Workbook

Sheet Sumário
A1: ARSAE-MG
A2: Cálculo do Índice de Reposicionamento Tarifário (IRT) e Efeito Tarifário Médio (ETM) - Revisão Tarifária da Copanor - 2022
A3: ='4.IRT_e_ETM_2022'!A3 -> Data: 28/04/2022
B7: Esta planilha contém os cálculos preliminares referentes à 4ª Revisão Tarifária Periódica da Copanor - 2022 Ciclo tarifário: ago/2022 a jul/2023 | R7: PR0: | S7: =EDATE(S8,-12) -> 2021-08-01 | T7: =EDATE(S7,11) -> 2022-07-01
R8: PR1: | S8: 2022-08-01 | T8: =EDATE(S8,11) -> 2023-07-01
B10: Conteúdo das abas principais:
C12: 1.Dados_cont_historicos | H12: Dados contábeis históricos extraídos da contabilidade da Copanor e agregados conforme classificação regulatória definida para a RTP 2022
C13: 2.Dados_cont_atualizados | H13: Dados da aba anterior atualizados pela inflação acumulada de cada mês até julho/2022. A inflação acumulada está calculada na aba 3.Índices_inflação
C14: 3.Índices_inflação | H14: Histórico dos índices de inflação utilizados nos cálculos, e também da taxa Selic, com cálculo dos percentuais acumulados nos períodos de interesse.
C15: 3.1.Variação_mensal_IEE | H15: Cálculo do índice de reajuste de energia elétrica (IEE) mensal. O resultado alimenta a plan. 3.Índices_inflação.
C16: 4.IRT_e_ETM_2021 | H16: Planilha principal, onde é feito o cálculo do IRT e do ETM
C17: 5.NCG | H17: Resumo do cálculo da necessidade de capital de giro e da remuneração desse montante
C18: 6.Outras_receitas | H18: Apuração dos valores de reversão das outras receitas
C19: 7.Componentes_financeiros | H19: Apresenta os componentes financeiros referentes ao período anterior
C20: 7.1.Itens_não_adm | H20: Resumo do cálculo da compensação dos itens não administráveis

Sheet 1.Dados_cont_historicos
A1: ARSAE-MG
A2: Dados contábeis históricos agregados conforme classificação regulatória definida para a RTP 2022 | BM2: Em roxo: | BN2: valor do mesmo mês do ano anterior atualizado pela inflação acumulada
D3: 67 | E3: 68 | F3: 69 | G3: 70 | H3: 71 | I3: 72 | J3: 73 | K3: 74 | L3: 75 | M3: 76 | N3: 77 | O3: 78 | P3: 79 | Q3: 80 | R3: 81 | S3: 82 | T3: 83 | U3: 84 | V3: 85 | W3: 86 | X3: 87 | Y3: 88 | Z3: 89 | AA3: 90 | AB3: 91 | AC3: 92 | AD3: 93 | AE3: 94 | AF3: 95 | AG3: 96 | AH3: 97 | AI3: 98 | AJ3: 99 | AK3: 100 | AL3: 101 | AM3: 102 | AN3: 103 | AO3: 104 | AP3: 105 | AQ3: 106 | AR3: 107 | AS3: 108 | AT3: 109 | AU3: 110 | AV3: 111 | AW3: 112 | AX3: 113 | AY3: 114 | AZ3: 115 | BA3: 116 | BB3: 117 | BC3: 118 | BD3: 119 | BE3: 120 | BM3: Em vermelho: | BN3: média últimos 3 meses | BZ3: Totais nominais | CK3: Índices inflação
C4: Classificação Regulatória | D4: 2017-01-01 | E4: 2017-02-01 | F4: 2017-03-01 | G4: 2017-04-01 | H4: 2017-05-01 | I4: 2017-06-01 | J4: 2017-07-01 | K4: 2017-08-01 | L4: 2017-09-01 | M4: 2017-10-01 | N4: 2017-11-01 | O4: 2017-12-01 | P4: 2017 | Q4: 2018-01-01 | R4: 2018-02-01 | S4: 2018-03-01 | T4: 2018-04-01 | U4: 2018-05-01 | V4: 2018-06-01 | W4: 2018-07-01 | X4: 2018-08-01 | Y4: 2018-09-01 | Z4: 2018-10-01 | AA4: 2018-11-01 | AB4: 2018-12-01 | AC4: 2018 | AD4: 2019-01-01 | AE4: 2019-02-01 | AF4: 2019-03-01 | AG4: 2019-04-01 | AH4: 2019-05-01 | AI4: 2019-06-01 | AJ4: 2019-07-01 | AK4: 2019-08-01 | AL4: 2019-09-01 | AM4: 2019-10-01 | AN4: 2019-11-01 | AO4: 2019-12-01 | AP4: 2019 | AQ4: 2020-01-01 | AR4: 2020-02-01 | AS4: 2020-03-01 | AT4: 2020-04-01 | AU4: 2020-05-01 | AV4: 2020-06-01 | AW4: 2020-07-01 | AX4: 2020-08-01 | AY4: 2020-09-01 | AZ4: 2020-10-01 | BA4: 2020-11-01 | BB4: 2020-12-01 | BC4: 2020 | BD4: 2021-01-01 | BE4: 2021-02-01 | BF4: 2021-03-01 | BG4: 2021-04-01 | BH4: 2021-05-01 | BI4: 2021-06-01 | BJ4: 2021-07-01 | BK4: 2021-08-01 | BL4: 2021-09-01 | BM4: 2021-10-01 | BN4: 2021-11-01 | BO4: 2021-12-01 | BP4: 2021 | BQ4: 2022-01-01 | BR4: 2022-02-01 | BS4: 2022-03-01 | BT4: 2022-04-01 | BU4: 2022-05-01 | BV4: 2022-06-01 | BW4: 2022-07-01 | BZ4: 2017 | CA4: 2018 | CB4: 2019 | CC4: 2020 | CD4: 2021 | CE4: PR2017/18 | CF4: PR2018/19 | CG4: PR2019/20 | CH4: PR2020/21 | CI4: PR2021/22
C6: Receita Direta de Água | D6: -1840351.39 | E6: -1686900.33 | F6: -1704980.97 | G6: -1681782.33 | H6: -1736305.56 | I6: -1595962.16 | J6: -1685008.96 | K6: -1673191.17 | L6: -1569211.91 | M6: -2063037.47 | N6: -2062323.77 | O6: -2163854.35 | P6: -21462910.37 | Q6: -2049136.74 | R6: -1951037.1 | S6: -1970017.84 | T6: -1760157.83 | U6: -1812465.08 | V6: -1811503.59 | W6: -1749121.17 | X6: -1768200.12 | Y6: -1870495.9 | Z6: -2078980.7 | AA6: -1828931.26 | AB6: -1883035.72 | AC6: -22533083.05 | AD6: -1876662.62 | AE6: -2216543.24 | AF6: -2591029.46 | AG6: -2177440.96 | AH6: -2278253.24 | AI6: -2012823.1 | AJ6: -2262190.69 | AK6: -2290385.48 | AL6: -2233267.96 | AM6: -2715483.03 | AN6: -2388900.48 | AO6: -2484475.08 | AP6: -27527455.34 | AQ6: -2717261.83 | AR6: -2235043.61 | AS6: -2176133.53 | AT6: -2250177.89 | AU6: -2360742.54 | AV6: -2296334.94 | AW6: -2506905.89 | AX6: -2515115.62 | AY6: -2740140.2 | AZ6: -3301935.79 | BA6: -2548240.37 | BB6: -2446045.35 | BC6: -30094077.56 | BD6: -3275092.62 | BE6: -2863065.7 | BF6: -2338353.42 | BG6: -2543196.49 | BH6: -2676156.05 | BI6: -2612183.36 | BJ6: -2678207.71 | BK6: -3002157.39 | BL6: -3079286.27 | BM6: -3391328.49 | BN6: -2796188.23 | BO6: -2704829.49 | BP6: -33960045.22 | BQ6: -3009160.07 | BR6: -2859444.41 | BS6: =AVERAGE(BO6,BQ6,BR6) -> -2857811.323 | BT6: =AVERAGE(BQ6,BR6,BS6) -> -2908805.268 | BU6: -2875353.667 | BV6: -2880656.753 | BW6: -2888271.896 | BZ6: =P6 -> -21462910.37 | CA6: =AC6 -> -22533083.05 | CB6: =AP6 -> -27527455.34 | CC6: =BC6 -> -30094077.56 | CD6: =BP6 -> -33960045.22 | CE6: =SUM(K6:O6,Q6:W6) -> -22635058.02 | CF6: =SUM(X6:AB6,AD6:AJ6) -> -24844587.01 | CG6: =SUM(AK6:AO6,AQ6:AW6) -> -28655112.26 | CH6: =SUM(AX6:BB6,BD6:BJ6) -> -32537732.68 | CI6: =SUM(BK6:BO6,BQ6:BW6) -> -35253293.26 | CK6: ETM
C7: Receita Direta de Esgoto | D7: -544054.28 | E7: -490675.12 | F7: -524930.05 | G7: -504125.14 | H7: -523136.42 | I7: -485917.3 | J7: -499398.85 | K7: -513203.49 | L7: -515744.37 | M7: -581923.13 | N7: -610808.26 | O7: -904472.47 | P7: -6698388.88 | Q7: -587001.91 | R7: -556454.95 | S7: -573717.38 | T7: -486425.13 | U7: -532734.49 | V7: -546365.1 | W7: -501450.05 | X7: -534408.72 | Y7: -559771.95 | Z7: -615610.66 | AA7: -566018.29 | AB7: -650396.55 | AC7: -6710355.18 | AD7: -549461.67 | AE7: -650543.16 | AF7: -771590.05 | AG7: -645306.32 | AH7: -678842.45 | AI7: -517518.53 | AJ7: -631749.96 | AK7: -636798.22 | AL7: -641277.71 | AM7: -779557.44 | AN7: -670774.83 | AO7: -683526.44 | AP7: -7856946.78 | AQ7: -753289.68 | AR7: -659783.01 | AS7: -627503.85 | AT7: -616986.52 | AU7: -654524.97 | AV7: -667991.15 | AW7: -749802 | AX7: -669697.81 | AY7: -772293.88 | AZ7: -1005521.81 | BA7: -734812.93 | BB7: -775572.02 | BC7: -8687779.63 | BD7: -934395.07 | BE7: -790386 | BF7: -722480.72 | BG7: -845116.98 | BH7: -866871.89 | BI7: -805090.03 | BJ7: -855576.17 | BK7: -947993.14 | BL7: -1025661.83 | BM7: -1081281.46 | BN7: -964147.82 | BO7: -958489.01 | BP7: -10797490.12 | BQ7: -1004681.18 | BR7: -943971.99 | BS7: =AVERAGE(BO7,BQ7,BR7) -> -969047.3933 | BT7: -972566.8544 | BU7: -961862.0793 | BV7: -967825.4423 | BW7: -967418.1253 | BZ7: =P7 -> -6698388.88 | CA7: =AC7 -> -6710355.18 | CB7: =AP7 -> -7856946.78 | CC7: =BC7 -> -8687779.63 | CD7: =BP7 -> -10797490.12 | CE7: =SUM(K7:O7,Q7:W7) -> -6910300.73 | CF7: =SUM(X7:AB7,AD7:AJ7) -> -7371218.31 | CG7: =SUM(AK7:AO7,AQ7:AW7) -> -8141815.82 | CH7: =SUM(AX7:BB7,BD7:BJ7) -> -9777815.31 | CI7: =SUM(BK7:BO7,BQ7:BW7) -> -11764946.32 | CK7: ETM
C8: Receita Direta de Água - Devoluções | D8: 755.72 | E8: 407.2 | F8: 376.79 | G8: 423.88 | H8: 512.75 | I8: 808.66 | J8: 632.95 | K8: 210.96 | L8: 213.91 | M8: -318.55 | N8: 195.19 | O8: 319.3 | P8: 4538.76 | Q8: 242.73 | R8: 311.63 | S8: 423.42 | T8: 494.3 | U8: 665.86 | V8: 491.84 | W8: 212.65 | X8: 12098.32 | Y8: 6438.33 | Z8: 1321.23 | AA8: 511 | AB8: 459.13 | AC8: 23670.44 | AD8: 540.63 | AE8: 1116.76 | AF8: 636.89 | AG8: 551.27 | AH8: 525.26 | AI8: 389.99 | AJ8: 165928.59 | AK8: 37645.84 | AL8: 3626.31 | AM8: 2868.23 | AN8: 2053.37 | AO8: 2459.37 | AP8: 218342.51 | AQ8: 698.81 | AR8: 2047.35 | AS8: 728 | AT8: 570.03 | AU8: 539.53 | AV8: 894.73 | AW8: 791.16 | AX8: 580.75 | AY8: 945.35 | AZ8: 719.24 | BA8: 428.71 | BB8: 881.72 | BC8: 9825.38 | BD8: 743.11 | BE8: 692.76 | BF8: 522.03 | BG8: 783.28 | BH8: 787.88 | BI8: 966.67 | BJ8: 557.08 | BK8: 769.78 | BL8: 233.16 | BM8: 502.87 | BN8: 1335.37 | BO8: 1060.11 | BP8: 8954.1 | BQ8: 3257.14 | BR8: 1161.89 | BS8: =AVERAGE(BO8,BQ8,BR8) -> 1826.38 | BT8: 2081.803333 | BU8: 1690.024444 | BV8: 1866.069259 | BW8: 1879.299012 | BZ8: =P8 -> 4538.76 | CA8: =AC8 -> 23670.44 | CB8: =AP8 -> 218342.51 | CC8: =BC8 -> 9825.38 | CD8: 8954.1 | CE8: =SUM(K8:O8,Q8:W8) -> 3463.24 | CF8: =SUM(X8:AB8,AD8:AJ8) -> 190517.4 | CG8: =SUM(AK8:AO8,AQ8:AW8) -> 54922.73 | CH8: =SUM(AX8:BB8,BD8:BJ8) -> 8608.58 | CI8: 17663.89605 | CK8: ETM
C9: Receita Direta de Esgoto - Devoluções | D9: 669.05 | E9: 106.44 | F9: 156.91 | G9: 2478.27 | H9: 2832.11 | I9: 2252.97 | J9: 1988.92 | K9: 1412.37 | L9: 284.29 | M9: 550.48 | N9: 287.22 | O9: 603.09 | P9: 13622.12 | Q9: 169.11 | R9: 432.47 | S9: 636.89 | T9: -1117.09 | U9: 3773.48 | V9: 741.61 | W9: 547.72 | X9: 1220.26 | Y9: 1604.33 | Z9: 1087.13 | AA9: 640.33 | AB9: 686.37 | AC9: 10422.61 | AD9: -896.66 | AE9: 1670.51 | AF9: 1484.57 | AG9: 11594.6 | AH9: 6048.95 | AI9: 20609.96 | AJ9: 23718.23 | AK9: 22439.67 | AL9: 17722.94 | AM9: 13053.26 | AN9: 9680.5 | AO9: 8268.09 | AP9: 135394.62 | AQ9: 8089.72 | AR9: 10163.98 | AS9: 6405.92 | AT9: 6160.93 | AU9: 10093.85 | AV9: 7017.36 | AW9: 4468.88 | AX9: 8939.25 | AY9: 3725.27 | AZ9: 3778.86 | BA9: 4432.76 | BB9: 3471.23 | BC9: 76748.01 | BD9: 3320.84 | BE9: 3571.03 | BF9: 2745.93 | BG9: 3174.21 | BH9: 2957.48 | BI9: 1664.22 | BJ9: 1672.49 | BK9: 1432.96 | BL9: 1554.73 | BM9: 8915.69 | BN9: 7518.43 | BO9: 8523.23 | BP9: 47051.24 | BQ9: 8001.56 | BR9: 3789.21 | BS9: =AVERAGE(BO9,BQ9,BR9) -> 6771.333333 | BT9: 6187.367778 | BU9: 5582.637037 | BV9: 6180.446049 | BW9: 5983.483621 | BZ9: =P9 -> 13622.12 | CA9: =AC9 -> 10422.61 | CB9: =AP9 -> 135394.62 | CC9: =BC9 -> 76748.01 | CD9: 47051.24 | CE9: =SUM(K9:O9,Q9:W9) -> 8321.64 | CF9: =SUM(X9:AB9,AD9:AJ9) -> 69468.58 | CG9: =SUM(AK9:AO9,AQ9:AW9) -> 123565.1 | CH9: =SUM(AX9:BB9,BD9:BJ9) -> 43453.57 | CI9: 70441.07782 | CK9: ETM
C10: Descontos Tarifários Concedidos | D10: 0 | E10: 0 | F10: 0 | G10: 0 | H10: 0 | I10: 0 | J10: 0 | K10: -3.21 | L10: 12.34 | M10: 0 | N10: 0 | O10: 0 | P10: 9.13 | Q10: 0 | R10: 0 | S10: 0 | T10: 0 | U10: 0 | V10: 0 | W10: 577.99 | X10: 0 | Y10: 5.88 | Z10: 0 | AA10: 0 | AB10: 0 | AC10: 583.87 | AD10: 0 | AE10: 0 | AF10: 0 | AG10: 0 | AH10: 16.57 | AI10: 0 | AJ10: 0 | AK10: 0 | AL10: 0 | AM10: 301.44 | AN10: 0 | AO10: 0 | AP10: 318.01 | AQ10: 0 | AR10: 0 | AS10: 0 | AT10: 0 | AU10: 0 | AV10: 0 | AW10: 0 | AX10: 0 | AY10: 0 | AZ10: 0 | BA10: 0 | BB10: 0 | BC10: 0 | BD10: 124.56 | BE10: 0 | BF10: 0 | BG10: 0 | BH10: 0 | BI10: 0 | BJ10: 0 | BK10: 0 | BL10: 0 | BM10: 0 | BN10: 0 | BO10: 0 | BP10: 124.56 | BQ10: 0 | BR10: 0 | BS10: =AVERAGE(BO10,BQ10,BR10) -> 0 | BT10: 0 | BU10: 0 | BV10: 0 | BW10: 0 | BZ10: =P10 -> 9.13 | CA10: =AC10 -> 583.87 | CB10: =AP10 -> 318.01 | CC10: =BC10 -> 0 | CD10: 124.56 | CE10: =SUM(K10:O10,Q10:W10) -> 587.12 | CF10: =SUM(X10:AB10,AD10:AJ10) -> 22.45 | CG10: =SUM(AK10:AO10,AQ10:AW10) -> 301.44 | CH10: =SUM(AX10:BB10,BD10:BJ10) -> 124.56 | CI10: 0 | CK10: ETM
C11: Total - Receitas Operacionais Diretas | D11: -2382980.9 | E11: -2177061.81 | F11: -2229377.32 | G11: -2183005.32 | H11: -2256097.12 | I11: -2078817.83 | J11: -2181785.94 | K11: -2184774.54 | L11: -2084445.74 | M11: -2644728.67 | N11: -2672649.62 | O11: -3067404.43 | P11: -28143129.24 | Q11: -2635726.81 | R11: -2506747.95 | S11: -2542674.91 | T11: -2247205.75 | U11: -2340760.23 | V11: -2356635.24 | W11: -2249232.86 | X11: -2289290.26 | Y11: -2422219.31 | Z11: -2692183 | AA11: -2393798.22 | AB11: -2532286.77 | AC11: -29208761.31 | AD11: -2426480.32 | AE11: -2864299.13 | AF11: -3360498.05 | AG11: -2810601.41 | AH11: -2950504.91 | AI11: -2509341.68 | AJ11: -2704293.83 | AK11: -2867098.19 | AL11: -2853196.42 | AM11: -3478817.54 | AN11: -3047941.44 | AO11: -3157274.06 | AP11: -35030346.98 | AQ11: -3461762.98 | AR11: -2882615.29 | AS11: -2796503.46 | AT11: -2860433.45 | AU11: -3004634.13 | AV11: -2956414 | AW11: -3251447.85 | AX11: -3175293.43 | AY11: -3507763.46 | AZ11: -4302959.5 | BA11: -3278191.83 | BB11: -3217264.42 | BC11: -38695283.8 | BD11: -4205299.18 | BE11: -3649187.91 | BF11: -3057566.18 | BG11: -3384355.98 | BH11: -3539282.58 | BI11: -3414642.5 | BJ11: -3531554.31 | BK11: -3947947.79 | BL11: -4103160.21 | BM11: -4463191.39 | BN11: -3751482.25 | BO11: -3653735.16 | BP11: -44701405.44 | BQ11: -4002582.55 | BR11: -3798465.3 | BS11: =SUM(BS6:BS10) -> -3818261.003 | BT11: -3873102.951 | BU11: -3829943.085 | BV11: -3840435.68 | BW11: -3847827.239 | BZ11: =SUM(BZ6:BZ10) -> -28143129.24 | CA11: -29208761.31 | CB11: -35030346.98 | CC11: -38695283.8 | CD11: -44701405.44 | CE11: -29532986.75 | CF11: -31955796.89 | CG11: -36618138.81 | CH11: -42263361.28 | CI11: -46930134.61
C13: Receitas Operacionais Indiretas | D13: -34359.66 | E13: -14717.72 | F13: -15698.16 | G13: -16364.79 | H13: -23019.37 | I13: -18820.78 | J13: -26568.3 | K13: -18460.3 | L13: -14377.65 | M13: -4665.55 | N13: -13782.6 | O13: -75331.38 | P13: -276166.26 | Q13: -19805.42 | R13: -18607.86 | S13: -13432.67 | T13: -18469.13 | U13: -16429.69 | V13: -28305.18 | W13: -22998.75 | X13: -30822.75 | Y13: -28536.65 | Z13: 2194.32 | AA13: -30253.13 | AB13: -5968.6 | AC13: -231435.51 | AD13: -18672.86 | AE13: -29709.61 | AF13: -17624.67 | AG13: -27661.68 | AH13: -19948.85 | AI13: -35609.44 | AJ13: -28745.84 | AK13: -32393.02 | AL13: -34651.23 | AM13: -30386.74 | AN13: 7479.49 | AO13: -219544.37 | AP13: -487468.82 | AQ13: -20973.87 | AR13: -18431.35 | AS13: -16337.47 | AT13: -13618.31 | AU13: -18923.68 | AV13: 21075.89 | AW13: -13444.5 | AX13: -17540.35 | AY13: -14187.61 | AZ13: -13350.53 | BA13: -14992.13 | BB13: -13934.89 | BC13: -154658.8 | BD13: -15102.61 | BE13: -26804.13 | BF13: -24894.1 | BG13: -27242.04 | BH13: -17116.52 | BI13: 9793.96 | BJ13: -9380.29 | BK13: -15081.04 | BL13: -8381.86 | BM13: -14067.76 | BN13: -29707.68 | BO13: -18745.92 | BP13: -196729.99 | BQ13: -15957.94 | BR13: -19917.73 | BS13: =AVERAGE(BO13,BQ13,BR13) -> -18207.19667 | BT13: =AVERAGE(BQ13,BR13,BS13) -> -18027.62222 | BU13: -18717.5163 | BV13: -18317.44506 | BW13: -18354.19453 | BZ13: =P13 -> -276166.26 | CA13: =AC13 -> -231435.51 | CB13: =AP13 -> -487468.82 | CC13: =BC13 -> -154658.8 | CD13: =BP13 -> -196729.99 | CE13: =SUM(K13:O13,Q13:W13) -> -264666.18 | CF13: =SUM(X13:AB13,AD13:AJ13) -> -271359.76 | CG13: =SUM(AK13:AO13,AQ13:AW13) -> -390149.16 | CH13: =SUM(AX13:BB13,BD13:BJ13) -> -184751.24 | CI13: =SUM(BK13:BO13,BQ13:BW13) -> -213483.9048 | CK13: INPC
C14: Receitas Financeiras | D14: -323852.35 | E14: -243031.17 | F14: -378191.48 | G14: -267477.68 | H14: -284156.65 | I14: -239689.21 | J14: -173092.74 | K14: -179136 | L14: -103850.99 | M14: -184843.49 | N14: -184270.86 | O14: -159762.01 | P14: -2721354.63 | Q14: -121019.61 | R14: -117512 | S14: -111878.85 | T14: -179473.27 | U14: -166947.63 | V14: -133379.89 | W14: -151855.57 | X14: -126968.57 | Y14: -175757.52 | Z14: -137103.23 | AA14: -115657.26 | AB14: -131259.93 | AC14: -1668813.33 | AD14: -105582.25 | AE14: -108966.95 | AF14: -54177.38 | AG14: -168541.54 | AH14: -156252.44 | AI14: -98872.13 | AJ14: -90199.41 | AK14: -107755 | AL14: -152584.02 | AM14: -133622.85 | AN14: -80816.57 | AO14: -100801.14 | AP14: -1358171.68 | AQ14: -124813.13 | AR14: -104394.79 | AS14: -89820.94 | AT14: -107726.43 | AU14: -94724.27 | AV14: -94695.4 | AW14: -106037.38 | AX14: -94561.3 | AY14: -121472.6 | AZ14: -125950.35 | BA14: -130804.67 | BB14: -128701.52 | BC14: -1323702.78 | BD14: -122941.29 | BE14: -129145.03 | BF14: -136732.44 | BG14: -181166.78 | BH14: -183796.18 | BI14: -182406.22 | BJ14: -185680.69 | BK14: -192606.43 | BL14: -297204.27 | BM14: -302615.99 | BN14: -353769.93 | BO14: -379749.86 | BP14: -2647815.11 | BQ14: -330367.96 | BR14: -275523.01 | BS14: -328546.9433 | BT14: -311479.3044 | BU14: -305183.0859 | BV14: -315069.7779 | BW14: -310577.3894 | BZ14: -2721354.63 | CA14: -1668813.33 | CB14: -1358171.68 | CC14: -1323702.78 | CD14: -2647815.11 | CE14: -1793930.17 | CF14: -1469338.61 | CG14: -1297791.92 | CH14: =SUM(AX14:BB14,BD14:BJ14) -> -1723359.07 | CI14: -3702693.951 | CK14: IPCA
C15: Descontos e multas por impontualidade | D15: -34234.95 | E15: -35501.12 | F15: -33828.96 | G15: -33811.94 | H15: -35548.26 | I15: -34476.13 | J15: -34931.96 | K15: -39518.26 | L15: -39825.24 | M15: -44458.6 | N15: -46923.14 | O15: -41970.62 | P15: -455029.18 | Q15: -45533.05 | R15: -46142.46 | S15: -48529.57 | T15: -45640 | U15: -43885.98 | V15: -26438.65 | W15: -69262.58 | X15: -53722.72 | Y15: -45284.17 | Z15: -44239.77 | AA15: -44493.13 | AB15: -51124.75 | AC15: -564296.83 | AD15: -38159.75 | AE15: -39426.08 | AF15: -55399.73 | AG15: -49965.58 | AH15: -47052.09 | AI15: -44907.33 | AJ15: -41463.2 | AK15: -42419.74 | AL15: -47405.55 | AM15: -43693.37 | AN15: -13707.61 | AO15: -42240.86 | AP15: -505840.89 | AQ15: -46398.92 | AR15: -51472.35 | AS15: -46936.74 | AT15: -26663.3 | AU15: -26006.19 | AV15: -34037.39 | AW15: -51605.59 | AX15: -42440.48 | AY15: -46345.04 | AZ15: -47829.7 | BA15: -59388.89 | BB15: -56324.12 | BC15: -535448.71 | BD15: -48975.76 | BE15: -53755.88 | BF15: -55547.89 | BG15: -54312.42 | BH15: -57341.4 | BI15: -55286.49 | BJ15: -56944.83 | BK15: -56495.77 | BL15: -68326.95 | BM15: -57901.31 | BN15: -71397.82 | BO15: -62274.08 | BP15: -698560.6 | BQ15: -58311.28 | BR15: -65961.41 | BS15: -62182.25667 | BT15: -62151.64889 | BU15: -63431.77185 | BV15: -62588.55914 | BW15: -62723.99329 | BZ15: -455029.18 | CA15: -564296.83 | CB15: -505840.89 | CC15: -535448.71 | CD15: -698560.6 | CE15: -538128.15 | CF15: -555238.3 | CG15: -472587.61 | CH15: -634492.9 | CI15: -753746.8498
C16: Juros por impontualidade, rendimentos de aplicações e outras | D16: -289617.4 | E16: -207530.05 | F16: -344362.52 | G16: -233665.74 | H16: -248608.39 | I16: -205213.08 | J16: -138160.78 | K16: -139617.74 | L16: -64025.75 | M16: -140384.89 | N16: -137347.72 | O16: -117791.39 | P16: -2266325.45 | Q16: -75486.56 | R16: -71369.54 | S16: -63349.28 | T16: -133833.27 | U16: -123061.65 | V16: -106941.24 | W16: -82592.99 | X16: -73245.85 | Y16: -130473.35 | Z16: -92863.46 | AA16: -71164.13 | AB16: -80135.18 | AC16: -1104516.5 | AD16: -67422.5 | AE16: -69540.87 | AF16: 1222.35 | AG16: -118575.96 | AH16: -109200.35 | AI16: -53964.8 | AJ16: -48736.21 | AK16: -65335.26 | AL16: -105178.47 | AM16: -89929.48 | AN16: -67108.96 | AO16: -58560.28 | AP16: -852330.79 | AQ16: -78414.21 | AR16: -52922.44 | AS16: -42884.2 | AT16: -81063.13 | AU16: -68718.08 | AV16: -60658.01 | AW16: -54431.79 | AX16: -52120.82 | AY16: -75127.56 | AZ16: -78120.65 | BA16: -71415.78 | BB16: -72377.4 | BC16: -788254.07 | BD16: -73965.53 | BE16: -75389.15 | BF16: -81184.55 | BG16: -126854.36 | BH16: -126454.78 | BI16: -127119.73 | BJ16: -128735.86 | BK16: -136110.66 | BL16: -228877.32 | BM16: -244714.68 | BN16: -282372.11 | BO16: -317475.78 | BP16: -1949254.51 | BQ16: -272056.68 | BR16: -209561.6 | BS16: -266364.6867 | BT16: -249327.6556 | BU16: -241751.3141 | BV16: -252481.2188 | BW16: -247853.3961 | BZ16: -2266325.45 | CA16: -1104516.5 | CB16: -852330.79 | CC16: -788254.07 | CD16: -1949254.51 | CE16: -1255802.02 | CF16: -914100.31 | CG16: -825204.31 | CH16: -1088866.17 | CI16: -2948947.101
C17: Outras Receitas Diversas | D17: -7405.5 | E17: -33339.96 | F17: -68100.28 | G17: -8872.98 | H17: -3906.5 | I17: -58278.57 | J17: -43304.42 | K17: -13685.48 | L17: -25794.43 | M17: -17270.3 | N17: -12788.9 | O17: -6101.01 | P17: -298848.33 | Q17: -20730.89 | R17: -15307.7 | S17: -19212.77 | T17: -8501.86 | U17: -25148.2 | V17: -2075.58 | W17: -6883.5 | X17: -15929.99 | Y17: -26842.03 | Z17: -13633.73 | AA17: -24965.03 | AB17: 2686.97 | AC17: -176544.31 | AD17: -3001.35 | AE17: -7470.1 | AF17: -5845.51 | AG17: -16548.91 | AH17: -14044.29 | AI17: -35699.12 | AJ17: -16289.01 | AK17: -19444.55 | AL17: -17677.33 | AM17: -11941.1 | AN17: -23227.1 | AO17: -15172.37 | AP17: -186360.74 | AQ17: -33658.65 | AR17: -143867.02 | AS17: -49934.91 | AT17: -5178.83 | AU17: -5749.61 | AV17: -385762.37 | AW17: -11335.76 | AX17: -4612.43 | AY17: -34291.93 | AZ17: -18520.41 | BA17: -14054.21 | BB17: -26055.4 | BC17: -733021.53 | BD17: 9554.37 | BE17: -17983.61 | BF17: -50687.75 | BG17: -7412.59 | BH17: -4058.25 | BI17: -11562.07 | BJ17: -5362.37 | BK17: -4205.17 | BL17: -9387.08 | BM17: -1780.62 | BN17: -1549.79 | BO17: -23608.37 | BP17: -128043.3 | BQ17: -15193.51 | BR17: 647.08 | BS17: -12718.26667 | BT17: -9088.232222 | BU17: -7053.13963 | BV17: -9619.879506 | BW17: -8587.083786 | BZ17: -298848.33 | CA17: -176544.31 | CB17: -186360.74 | CC17: -733021.53 | CD17: -128043.3 | CE17: -173500.62 | CF17: -177582.1 | CG17: -722949.6 | CH17: -185046.65 | CI17: -102144.0618 | CK17: IPCA
C18: Indenizações e Ressarcimentos | D18: 0 | E18: 0 | F18: 0 | G18: 0 | H18: 0 | I18: 0 | J18: 0 | K18: 0 | L18: 0 | M18: 0 | N18: 0 | O18: 0 | P18: 0 | Q18: 0 | R18: -80 | S18: 0 | T18: 0 | U18: -330 | V18: 0 | W18: 0 | X18: 0 | Y18: 0 | Z18: 0 | AA18: 0 | AB18: 0 | AC18: -410 | AD18: 0 | AE18: 0 | AF18: 0 | AG18: 0 | AH18: 0 | AI18: 0 | AJ18: 0 | AK18: 0 | AL18: 0 | AM18: 0 | AN18: 0 | AO18: 0 | AP18: 0 | AQ18: -156.18 | AR18: -5126.86 | AS18: 0 | AT18: 0 | AU18: 0 | AV18: 0 | AW18: 0 | AX18: 249.78 | AY18: 129.11 | AZ18: 0 | BA18: -4666.44 | BB18: 0 | BC18: -9570.59 | BD18: 0 | BE18: 0 | BF18: 0 | BG18: 0 | BH18: 0 | BI18: 0 | BJ18: 0 | BK18: 0 | BL18: 0 | BM18: 0 | BN18: 0 | BO18: 0 | BP18: 0 | BQ18: 0 | BR18: 0 | BS18: 0 | BT18: 0 | BU18: 0 | BV18: 0 | BW18: 0 | BZ18: 0 | CA18: -410 | CB18: 0 | CC18: -9570.59 | CD18: 0 | CE18: -410 | CF18: 0 | CG18: -5283.04 | CH18: -4287.55 | CI18: 0
C19: Outras | D19: -7405.5 | E19: -33339.96 | F19: -68100.28 | G19: -8872.98 | H19: -3906.5 | I19: -58278.57 | J19: -43304.42 | K19: -13685.48 | L19: -25794.43 | M19: -17270.3 | N19: -12788.9 | O19: -6101.01 | P19: -298848.33 | Q19: -20730.89 | R19: -15227.7 | S19: -19212.77 | T19: -8501.86 | U19: -24818.2 | V19: -2075.58 | W19: -6883.5 | X19: -15929.99 | Y19: -26842.03 | Z19: -13633.73 | AA19: -24965.03 | AB19: 2686.97 | AC19: -176134.31 | AD19: -3001.35 | AE19: -7320.1 | AF19: -5845.51 | AG19: -16548.91 | AH19: -14044.29 | AI19: -35699.12 | AJ19: -16289.01 | AK19: -19444.55 | AL19: -17677.33 | AM19: -11941.1 | AN19: -23227.1 | AO19: -15172.37 | AP19: -186210.74 | AQ19: -33502.47 | AR19: -138740.16 | AS19: -49934.91 | AT19: -5178.83 | AU19: -5749.61 | AV19: -385762.37 | AW19: -11335.76 | AX19: -4862.21 | AY19: -34421.04 | AZ19: -18520.41 | BA19: -9287.77 | BB19: -26155.4 | BC19: -723450.94 | BD19: 9554.37 | BE19: -17983.53 | BF19: -50687.75 | BG19: -7412.59 | BH19: -4058.25 | BI19: -11562.07 | BJ19: -5337.19 | BK19: -4230.35 | BL19: -9387.08 | BM19: -1780.62 | BN19: -1549.79 | BO19: -23608.37 | BP19: -128043.22 | BQ19: -15193.51 | BR19: 647.08 | BS19: -12718.26667 | BT19: -9088.232222 | BU19: -7053.13963 | BV19: -9619.879506 | BW19: -8587.083786 | BZ19: -298848.33 | CA19: -176134.31 | CB19: -186210.74 | CC19: -723450.94 | CD19: -128043.22 | CE19: -173090.62 | CF19: -177432.1 | CG19: -717666.56 | CH19: -180733.84 | CI19: -102169.2418
C20: Total - Outras Receitas | D20: -365617.51 | E20: -291088.85 | F20: -461989.92 | G20: -292715.45 | H20: -311082.52 | I20: -316788.56 | J20: -242965.46 | K20: -211281.78 | L20: -144023.07 | M20: -206779.34 | N20: -210842.36 | O20: -241194.4 | P20: -3296369.22 | Q20: -161555.92 | R20: -151427.56 | S20: -144524.29 | T20: -206444.26 | U20: -208525.52 | V20: -163760.65 | W20: -181737.82 | X20: -173721.31 | Y20: -231136.2 | Z20: -148542.64 | AA20: -170875.42 | AB20: -134541.56 | AC20: -2076793.15 | AD20: -127256.46 | AE20: -146146.66 | AF20: -77647.56 | AG20: -212752.13 | AH20: -190245.58 | AI20: -170180.69 | AJ20: -135234.26 | AK20: -159592.57 | AL20: -204912.58 | AM20: -175950.69 | AN20: -96564.18 | AO20: -335517.88 | AP20: -2032001.24 | AQ20: -179445.65 | AR20: -266693.16 | AS20: -156093.32 | AT20: -126523.57 | AU20: -119397.56 | AV20: -459381.88 | AW20: -130817.64 | AX20: -116714.08 | AY20: -169952.14 | AZ20: -157821.29 | BA20: -159851.01 | BB20: -168691.81 | BC20: -2211383.11 | BD20: -128489.53 | BE20: -173932.77 | BF20: -212314.29 | BG20: -215821.41 | BH20: -204970.95 | BI20: -184174.33 | BJ20: -200423.35 | BK20: -211892.64 | BL20: -314973.21 | BM20: -318464.37 | BN20: -385027.4 | BO20: -422104.15 | BP20: -2972588.4 | BQ20: -361519.41 | BR20: -294793.66 | BS20: =SUM(BS13:BS14,BS17) -> -359472.4067 | BT20: -338595.1589 | BU20: -330953.7419 | BV20: -343007.1025 | BW20: -337518.6677 | BZ20: =SUM(BZ13:BZ14)+BZ17 -> -3296369.22 | CA20: -2076793.15 | CB20: -2032001.24 | CC20: -2211383.11 | CD20: -2972588.4 | CE20: -2232096.97 | CF20: -1918280.47 | CG20: -2410890.68 | CH20: -2093156.96 | CI20: -4018321.918
C22: Aluguel | D22: 16638.96 | E22: 15023.78 | F22: 11371.24 | G22: 23158.57 | H22: 36107.1 | I22: 20009.82 | J22: 21440.39 | K22: 14194.27 | L22: 14937.13 | M22: 14301.85 | N22: 49852.75 | O22: 7430 | P22: 244465.86 | Q22: 14990.25 | R22: 9259.84 | S22: 6440 | T22: 9543.16 | U22: 11704.86 | V22: 9329.18 | W22: 63933 | X22: 13416 | Y22: 6685 | Z22: 46861.6 | AA22: 21696 | AB22: 8720.95 | AC22: 222579.84 | AD22: 29010.15 | AE22: 18337 | AF22: 14259 | AG22: 15405 | AH22: 21060.02 | AI22: 10590.05 | AJ22: 26079.49 | AK22: 10506.97 | AL22: 63313.63 | AM22: 13032.2 | AN22: 13694.3 | AO22: 29876.41 | AP22: 265164.22 | AQ22: 22051.04 | AR22: 16686.2 | AS22: 15338.62 | AT22: 13346.49 | AU22: 12245.36 | AV22: 10761.45 | AW22: 4180.17 | AX22: 4478.23 | AY22: 3927.37 | AZ22: 17626.54 | BA22: 9493.14 | BB22: 20572.85 | BC22: 150707.46 | BD22: 10373.8 | BE22: 25895.28 | BF22: 9847.46 | BG22: 13313.86 | BH22: 9599.34 | BI22: 7926.17 | BJ22: 9391.14 | BK22: 10625.32 | BL22: 8922.55 | BM22: 8291.7 | BN22: 29623.54 | BO22: 12021.47 | BP22: 155831.63 | BQ22: 7845 | BR22: 8458.47 | BS22: =BF22*(1+HLOOKUP($CK22,'3.Índices_inflação'!$B$142:$AY$149,8,FALSE)) -> 13473.92689 | BT22: =BG22*(1+HLOOKUP($CK22,'3.Índices_inflação'!$B$142:$AY$149,8,FALSE)) -> 18216.87788 | BU22: =BH22*(1+HLOOKUP($CK22,'3.Índices_inflação'!$B$142:$AY$149,8,FALSE)) -> 13134.43318 | BV22: =BI22*(1+HLOOKUP($CK22,'3.Índices_inflação'!$B$142:$AY$149,8,FALSE)) -> 10845.09458 | BW22: =BJ22*(1+HLOOKUP($CK22,'3.Índices_inflação'!$B$142:$AY$149,8,FALSE)) -> 12849.56057 | BZ22: =P22 -> 244465.86 | CA22: =AC22 -> 222579.84 | CB22: =AP22 -> 265164.22 | CC22: =BC22 -> 150707.46 | CD22: =BP22 -> 155831.63 | CE22: =SUM(K22:O22,Q22:W22) -> 225916.29 | CF22: =SUM(X22:AB22,AD22:AJ22) -> 232120.26 | CG22: =SUM(AK22:AO22,AQ22:AW22) -> 225032.84 | CH22: =SUM(AX22:BB22,BD22:BJ22) -> 142445.18 | CI22: =SUM(BK22:BO22,BQ22:BW22) -> 154307.9431 | CK22: IGP-M
C23: Atendimento Telefônico | D23: 22924.71 | E23: 22286.9 | F23: 22323.71 | G23: 22144.43 | H23: 34842.94 | I23: 9463.99 | J23: 22784.43 | K23: 22657.57 | L23: 22866.34 | M23: 22402.92 | N23: 21551.45 | O23: 21574.93 | P23: 267824.32 | Q23: 22701.17 | R23: 22586.56 | S23: 22831.84 | T23: 22305.94 | U23: 22133.27 | V23: 21221.73 | W23: 23654.11 | X23: 21129.61 | Y23: 21328.77 | Z23: 22844.42 | AA23: 22088.19 | AB23: 21759.24 | AC23: 266584.85 | AD23: 22948.93 | AE23: 22242.61 | AF23: 23011.97 | AG23: 23574.99 | AH23: 22784.05 | AI23: 22792.37 | AJ23: 22134.98 | AK23: 22885.43 | AL23: 22242.61 | AM23: 22745.19 | AN23: 22439.41 | AO23: 22538.83 | AP23: 272341.37 | AQ23: 23118.99 | AR23: 22852.09 | AS23: 23136.36 | AT23: 264.61 | AU23: 266.91 | AV23: 68547.04 | AW23: 22806.65 | AX23: 22690.35 | AY23: 22751.46 | AZ23: 22806.65 | BA23: 22751.46 | BB23: 22751.46 | BC23: 274744.03 | BD23: 23495.86 | BE23: 23481.42 | BF23: 23757.57 | BG23: 23757.57 | BH23: 23528.21 | BI23: 23596.88 | BJ23: 23757.57 | BK23: 23700.24 | BL23: 23700.24 | BM23: 23700.24 | BN23: 23585.55 | BO23: 25496.44 | BP23: 285557.79 | BQ23: 26995.97 | BR23: 26508.76 | BS23: =BF23*(1+HLOOKUP($CK23,'3.Índices_inflação'!$B$142:$AY$149,8,FALSE)) -> 25987.69946 | BT23: =BG23*(1+HLOOKUP($CK23,'3.Índices_inflação'!$B$142:$AY$149,8,FALSE)) -> 25987.69946 | BU23: =BH23*(1+HLOOKUP($CK23,'3.Índices_inflação'!$B$142:$AY$149,8,FALSE)) -> 25736.80937 | BV23: =BI23*(1+HLOOKUP($CK23,'3.Índices_inflação'!$B$142:$AY$149,8,FALSE)) -> 25811.92544 | BW23: =BJ23*(1+HLOOKUP($CK23,'3.Índices_inflação'!$B$142:$AY$149,8,FALSE)) -> 25987.69946 | BZ23: 267824.32 | CA23: 266584.85 | CB23: 272341.37 | CC23: 274744.03 | CD23: 285557.79 | CE23: 268487.83 | CF23: 268640.13 | CG23: 273844.12 | CH23: =SUM(AX23:BB23,BD23:BJ23) -> 279126.46 | CI23: 303199.2732 | CK23: IPCA
C24: Autosserviços de Água e Esgoto | D24: 3763.02 | E24: 5330.44 | F24: 5292.2 | G24: 8369.63 | H24: 7453.19 | I24: 7219.83 | J24: 8187.29 | K24: 8822.28 | L24: 6272.94 | M24: 14638.88 | N24: 8893.33 | O24: 5351.23 | P24: 89594.26 | Q24: 4701.35 | R24: 6301.03 | S24: 3972.33 | T24: 4668.91 | U24: 9646.69 | V24: 4976.16 | W24: 4999.59 | X24: 4616.39 | Y24: 8322.49 | Z24: 5927.08 | AA24: 5808.01 | AB24: 4300.58 | AC24: 68240.61 | AD24: 5156.06 | AE24: 6034.71 | AF24: 17878.22 | AG24: 6014.93 | AH24: 5407.33 | AI24: 7766.44 | AJ24: 4967.64 | AK24: 5143.16 | AL24: 7677.99 | AM24: 7638.59 | AN24: 8603.55 | AO24: 5789.05 | AP24: 88077.67 | AQ24: 5833.52 | AR24: 5491.18 | AS24: 61382.79 | AT24: 5345.11 | AU24: 6410.25 | AV24: 5999.91 | AW24: 5766.84 | AX24: 5444.52 | AY24: 5444.89 | AZ24: 5820.3 | BA24: 5334.53 | BB24: 7314.86 | BC24: 125588.7 | BD24: 5471.09 | BE24: 7785.77 | BF24: 7531.49 | BG24: 5597.12 | BH24: 5677.64 | BI24: 5627.11 | BJ24: 5819.58 | BK24: 6148.18 | BL24: 6208.48 | BM24: 7380.84 | BN24: 7192.98 | BO24: 6391.05 | BP24: 76831.33 | BQ24: 9332.91 | BR24: 6893.18 | BS24: =BF24*(1+HLOOKUP($CK24,'3.Índices_inflação'!$B$142:$AY$149,8,FALSE)) -> 7531.49 | BT24: =BG24*(1+HLOOKUP($CK24,'3.Índices_inflação'!$B$142:$AY$149,8,FALSE)) -> 5597.12 | BU24: =BH24*(1+HLOOKUP($CK24,'3.Índices_inflação'!$B$142:$AY$149,8,FALSE)) -> 5677.64 | BV24: =BI24*(1+HLOOKUP($CK24,'3.Índices_inflação'!$B$142:$AY$149,8,FALSE)) -> 5627.11 | BW24: =BJ24*(1+HLOOKUP($CK24,'3.Índices_inflação'!$B$142:$AY$149,8,FALSE)) -> 5819.58 | BZ24: 89594.26 | CA24: 68240.61 | CB24: 88077.67 | CC24: 125588.7 | CD24: 76831.33 | CE24: 83244.72 | CF24: 82199.88 | CG24: 131081.94 | CH24: 72868.9 | CI24: 79800.56 | CK24: ETM
C25: Combustíveis e Lubrificantes | D25: 74134.99 | E25: 48503.77 | F25: 69532.42 | G25: 56188.77 | H25: 78051.19 | I25: 79523.58 | J25: 67207.95 | K25: 120014.87 | L25: 78479.44 | M25: 54535.91 | N25: 89001.27 | O25: 90723.52 | P25: 905897.68 | Q25: 100312.42 | R25: 60988.19 | S25: 99810.24 | T25: 93494.97 | U25: 104862.87 | V25: 93906.66 | W25: 102083.97 | X25: 131146.55 | Y25: 81752.96 | Z25: 112180.03 | AA25: 107757.19 | AB25: 121041.49 | AC25: 1209337.54 | AD25: 54918.04 | AE25: 109437.02 | AF25: 108025.9 | AG25: 114603.11 | AH25: 118258.51 | AI25: 92437.37 | AJ25: 131226.21 | AK25: 94337.17 | AL25: 125989.66 | AM25: 111479.88 | AN25: 117907.11 | AO25: 190124.63 | AP25: 1368744.61 | AQ25: 93101.47 | AR25: 88182.84 | AS25: 94672.26 | AT25: 97225.02 | AU25: 107645.08 | AV25: 109950.5 | AW25: 102808.08 | AX25: 98701.41 | AY25: 144221.6 | AZ25: 78276.18 | BA25: 99017.24 | BB25: 137100.37 | BC25: 1250902.05 | BD25: 37319.83 | BE25: 82961.01 | BF25: 99245.71 | BG25: 153354.58 | BH25: 93142.65 | BI25: 85900.59 | BJ25: 104965.22 | BK25: 127651.51 | BL25: 103442.21 | BM25: 74494.04 | BN25: 76612.89 | BO25: 202768.21 | BP25: 1241858.45 | BQ25: 102212.06 | BR25: 213560.13 | BS25: =BF25*(1+HLOOKUP($CK25,'3.Índices_inflação'!$B$142:$AY$149,8,FALSE)) -> 142973.7908 | BT25: =BG25*(1+HLOOKUP($CK25,'3.Índices_inflação'!$B$142:$AY$149,8,FALSE)) -> 220923.2584 | BU25: =BH25*(1+HLOOKUP($CK25,'3.Índices_inflação'!$B$142:$AY$149,8,FALSE)) -> 134181.6967 | BV25: =BI25*(1+HLOOKUP($CK25,'3.Índices_inflação'!$B$142:$AY$149,8,FALSE)) -> 123748.7543 | BW25: =BJ25*(1+HLOOKUP($CK25,'3.Índices_inflação'!$B$142:$AY$149,8,FALSE)) -> 151213.3411 | BZ25: 905897.68 | CA25: 1209337.54 | CB25: 1368744.61 | CC25: 1250902.05 | CD25: 1241858.45 | CE25: 1088214.33 | CF25: 1282784.38 | CG25: 1333423.7 | CH25: 1214206.39 | CI25: 1673781.891 | CK25: IPCA BH Comb
C26: Comercialização | D26: 83236.3 | E26: 77362 | F26: 74979.83 | G26: 63067.22 | H26: 73077.23 | I26: 67908.99 | J26: 67678.42 | K26: 72117.82 | L26: 67427.41 | M26: 68429.96 | N26: 76699.09 | O26: 85258 | P26: 877242.27 | Q26: 74026.06 | R26: 94329.87 | S26: 67522.32 | T26: 78510.9 | U26: 71797.74 | V26: 79705.2 | W26: 98775.43 | X26: 86304.37 | Y26: 80473.68 | Z26: 113142.22 | AA26: 240946.93 | AB26: 115518.66 | AC26: 1201053.38 | AD26: 112624.38 | AE26: 117804.66 | AF26: 120252.4 | AG26: 126292.83 | AH26: 126398.45 | AI26: 140821.54 | AJ26: 129964.05 | AK26: 128839.94 | AL26: 123084.73 | AM26: 132868.08 | AN26: 126585.64 | AO26: 129112.58 | AP26: 1514649.28 | AQ26: 133558.37 | AR26: 129217.31 | AS26: 122636.48 | AT26: 130413.5 | AU26: 131754.32 | AV26: 125332.29 | AW26: 131141.76 | AX26: 128323.11 | AY26: 122821.89 | AZ26: 132136.27 | BA26: 132167.12 | BB26: 137865.49 | BC26: 1557367.91 | BD26: 139190.19 | BE26: 136586.9 | BF26: 143745.01 | BG26: 141256.72 | BH26: 140905.61 | BI26: 121657.08 | BJ26: 98699.19 | BK26: 137633.11 | BL26: 123200.4 | BM26: 140571.08 | BN26: 152426.91 | BO26: 143366.82 | BP26: 1619239.02 | BQ26: 140334.07 | BR26: 142826.3 | BS26: =BF26*(1+HLOOKUP($CK26,'3.Índices_inflação'!$B$142:$AY$149,8,FALSE)) -> 157238.3926 | BT26: =BG26*(1+HLOOKUP($CK26,'3.Índices_inflação'!$B$142:$AY$149,8,FALSE)) -> 154516.5261 | BU26: =BH26*(1+HLOOKUP($CK26,'3.Índices_inflação'!$B$142:$AY$149,8,FALSE)) -> 154132.4573 | BV26: =BI26*(1+HLOOKUP($CK26,'3.Índices_inflação'!$B$142:$AY$149,8,FALSE)) -> 133077.0627 | BW26: =BJ26*(1+HLOOKUP($CK26,'3.Índices_inflação'!$B$142:$AY$149,8,FALSE)) -> 107964.1094 | BZ26: 877242.27 | CA26: 1201053.38 | CB26: 1514649.28 | CC26: 1557367.91 | CD26: 1619239.02 | CE26: 934599.8 | CF26: 1510544.17 | CG26: 1544545 | CH26: 1575354.58 | CI26: 1687287.238 | CK26: IPCA
C27: Comunicação, Publicidade e Propaganda Legal | D27: 4366.72 | E27: 235.7 | F27: 0 | G27: 0 | H27: 3 | I27: 2000.32 | J27: 9703.68 | K27: 255.36 | L27: 45.9 | M27: 0 | N27: 0 | O27: 0 | P27: 16610.68 | Q27: 0 | R27: 4780.8 | S27: 8331.35 | T27: 319.09 | U27: 487.28 | V27: 628.88 | W27: 98.12 | X27: 856.82 | Y27: 51.03 | Z27: 1259.44 | AA27: 864.53 | AB27: 446.04 | AC27: 18123.38 | AD27: 212.8 | AE27: 340.48 | AF27: 9916.48 | AG27: 680.96 | AH27: 425.6 | AI27: 1064 | AJ27: 0 | AK27: 0 | AL27: 0 | AM27: 3422.84 | AN27: 595.84 | AO27: 553.28 | AP27: 17212.28 | AQ27: 2532.68 | AR27: 1234.24 | AS27: 510.72 | AT27: 553.28 | AU27: 383.04 | AV27: 0 | AW27: 0 | AX27: 0 | AY27: 0 | AZ27: 0 | BA27: 0 | BB27: 0 | BC27: 5213.96 | BD27: 0 | BE27: 553.28 | BF27: 0 | BG27: 37623.04 | BH27: 0 | BI27: 127.68 | BJ27: 383.04 | BK27: 510.72 | BL27: 297.92 | BM27: 255.36 | BN27: 255.36 | BO27: 212.8 | BP27: 40219.2 | BQ27: 297.92 | BR27: 0 | BS27: =BF27*(1+HLOOKUP($CK27,'3.Índices_inflação'!$B$142:$AY$149,8,FALSE)) -> 0 | BT27: =BG27*(1+HLOOKUP($CK27,'3.Índices_inflação'!$B$142:$AY$149,8,FALSE)) -> 41154.72484 | BU27: =BH27*(1+HLOOKUP($CK27,'3.Índices_inflação'!$B$142:$AY$149,8,FALSE)) -> 0 | BV27: =BI27*(1+HLOOKUP($CK27,'3.Índices_inflação'!$B$142:$AY$149,8,FALSE)) -> 139.6653558 | BW27: =BJ27*(1+HLOOKUP($CK27,'3.Índices_inflação'!$B$142:$AY$149,8,FALSE)) -> 418.9960674 | BZ27: 16610.68 | CA27: 18123.38 | CB27: 17212.28 | CC27: 5213.96 | CD27: 40219.2 | CE27: 14946.78 | CF27: 16118.18 | CG27: 9785.92 | CH27: 38687.04 | CI27: 43543.46626 | CK27: IPCA
C28: Convênios | D28: 0 | E28: 0 | F28: 0 | G28: 0 | H28: 0 | I28: 0 | J28: 0 | K28: 0 | L28: 0 | M28: 0 | N28: 0 | O28: 0 | P28: 0 | Q28: 0 | R28: 0 | S28: 0 | T28: 0 | U28: 0 | V28: 0 | W28: 0 | X28: 0 | Y28: 0 | Z28: 0 | AA28: 0 | AB28: 0 | AC28: 0 | AD28: 0 | AE28: 0 | AF28: 191864.01 | AG28: 0 | AH28: 0 | AI28: 0 | AJ28: 0 | AK28: 0 | AL28: 0 | AM28: 0 | AN28: 0 | AO28: 0 | AP28: 191864.01 | AQ28: 0 | AR28: 0 | AS28: 0 | AT28: 0 | AU28: 0 | AV28: 0 | AW28: 0 | AX28: 0 | AY28: 0 | AZ28: 0 | BA28: 0 | BB28: 0 | BC28: 0 | BD28: 0 | BE28: 0 | BF28: 0 | BG28: 0 | BH28: 0 | BI28: 0 | BJ28: 0 | BK28: 0 | BL28: 0 | BM28: 0 | BN28: 0 | BO28: 0 | BP28: 0 | BQ28: 0 | BR28: 0 | BS28: =BF28*(1+HLOOKUP($CK28,'3.Índices_inflação'!$B$142:$AY$149,8,FALSE)) -> 0 | BT28: =BG28*(1+HLOOKUP($CK28,'3.Índices_inflação'!$B$142:$AY$149,8,FALSE)) -> 0 | BU28: =BH28*(1+HLOOKUP($CK28,'3.Índices_inflação'!$B$142:$AY$149,8,FALSE)) -> 0 | BV28: =BI28*(1+HLOOKUP($CK28,'3.Índices_inflação'!$B$142:$AY$149,8,FALSE)) -> 0 | BW28: =BJ28*(1+HLOOKUP($CK28,'3.Índices_inflação'!$B$142:$AY$149,8,FALSE)) -> 0 | BZ28: 0 | CA28: 0 | CB28: 191864.01 | CC28: 0 | CD28: 0 | CE28: 0 | CF28: 191864.01 | CG28: 0 | CH28: 0 | CI28: 0 | CK28: IPCA
C29: Energia Elétrica | D29: 480091.94 | E29: 727411.54 | F29: 620390.48 | G29: 789025.81 | H29: 635624.88 | I29: 636186.82 | J29: 705667.84 | K29: 586824.94 | L29: 634120.57 | M29: 727103.07 | N29: 670224.01 | O29: 781428.15 | P29: 7994100.05 | Q29: 540798.01 | R29: 660483.04 | S29: 610932.26 | T29: 555126.48 | U29: 645974.67 | V29: 613638.75 | W29: 757710.56 | X29: 865687.31 | Y29: 938873.49 | Z29: 840595.72 | AA29: 893302.35 | AB29: 866620.7 | AC29: 8789743.34 | AD29: 834565.35 | AE29: 865794.46 | AF29: 894185.97 | AG29: 807531.72 | AH29: 782375.33 | AI29: 729115.58 | AJ29: 797764.87 | AK29: 1050081.04 | AL29: 997713.17 | AM29: 1041608.27 | AN29: 795527 | AO29: 917592.18 | AP29: 10513854.94 | AQ29: 725465.44 | AR29: 1001922.89 | AS29: 857670.75 | AT29: 717303.12 | AU29: 809239.14 | AV29: 627046.34 | AW29: 788719.94 | AX29: 808018.23 | AY29: 1055272.97 | AZ29: 762259.29 | BA29: 920966.21 | BB29: 849646.05 | BC29: 9923530.37 | BD29: 860836.93 | BE29: 1030178.28 | BF29: 812548.62 | BG29: 858202.73 | BH29: 862557.64 | BI29: 917434.79 | BJ29: 1029209.85 | BK29: 1046634.25 | BL29: 1253273.41 | BM29: 1254825.39 | BN29: 1252526.72 | BO29: 1068195.49 | BP29: 12246424.1 | BQ29: 998015.12 | BR29: 951446.68 | BS29: =BF29*(1+HLOOKUP($CK29,'3.Índices_inflação'!$B$142:$AY$149,8,FALSE)) -> 952970.4487 | BT29: =BG29*(1+HLOOKUP($CK29,'3.Índices_inflação'!$B$142:$AY$149,8,FALSE)) -> 1006514.343 | BU29: =BH29*(1+HLOOKUP($CK29,'3.Índices_inflação'!$B$142:$AY$149,8,FALSE)) -> 1011621.854 | BV29: =BI29*(1+HLOOKUP($CK29,'3.Índices_inflação'!$B$142:$AY$149,8,FALSE)) -> 1075982.682 | BW29: =BJ29*(1+HLOOKUP($CK29,'3.Índices_inflação'!$B$142:$AY$149,8,FALSE)) -> 1207074.32 | BZ29: 7994100.05 | CA29: 8789743.34 | CB29: 10513854.94 | CC29: 9923530.37 | CD29: 12246424.1 | CE29: 7784364.51 | CF29: 10116412.85 | CG29: 10329889.28 | CH29: 10767131.59 | CI29: 13079080.71 | CK29: IEE
C30: Manutenção | D30: 154074.99 | E30: 171281.98 | F30: 150179.31 | G30: 155308 | H30: 279805.57 | I30: 207924.63 | J30: 218563.29 | K30: 287982.29 | L30: 234562.71 | M30: 284078.85 | N30: 200531.35 | O30: 222415.92 | P30: 2566708.89 | Q30: 227020.39 | R30: 154580.82 | S30: 228102.94 | T30: 261783.1 | U30: 244757.35 | V30: 293162.17 | W30: 365539.01 | X30: 337533.85 | Y30: 242652.54 | Z30: 374357.36 | AA30: 570397.34 | AB30: 505637.39 | AC30: 3805524.26 | AD30: 254461.5 | AE30: 586568.91 | AF30: 848015.99 | AG30: 552117.06 | AH30: 887243.83 | AI30: 482535.22 | AJ30: 698810.52 | AK30: 553345.14 | AL30: 215267.03 | AM30: 284798.58 | AN30: 212916.6 | AO30: 373964.62 | AP30: 5950045 | AQ30: 256313.17 | AR30: 337896.71 | AS30: 239198.95 | AT30: 207979.32 | AU30: 296601.19 | AV30: 140603.89 | AW30: 225016.51 | AX30: 164108.05 | AY30: 335100.24 | AZ30: 317380.08 | BA30: 345571.59 | BB30: 429127.17 | BC30: 3294896.87 | BD30: 235124.04 | BE30: 327154.82 | BF30: 295732.24 | BG30: 288584.79 | BH30: 288944.01 | BI30: 398033.52 | BJ30: 322749.89 | BK30: 445939.83 | BL30: 403820.48 | BM30: 443117.44 | BN30: 438258.64 | BO30: 627593.81 | BP30: 4515053.51 | BQ30: 187896.66 | BR30: 484156.38 | BS30: =BF30*(1+HLOOKUP($CK30,'3.Índices_inflação'!$B$142:$AY$149,8,FALSE)) -> 384838.2747 | BT30: =BG30*(1+HLOOKUP($CK30,'3.Índices_inflação'!$B$142:$AY$149,8,FALSE)) -> 375537.2519 | BU30: =BH30*(1+HLOOKUP($CK30,'3.Índices_inflação'!$B$142:$AY$149,8,FALSE)) -> 376004.7072 | BV30: =BI30*(1+HLOOKUP($CK30,'3.Índices_inflação'!$B$142:$AY$149,8,FALSE)) -> 517963.5914 | BW30: =BJ30*(1+HLOOKUP($CK30,'3.Índices_inflação'!$B$142:$AY$149,8,FALSE)) -> 419996.5172 | BZ30: 2566708.89 | CA30: 3805524.26 | CB30: 5950045 | CC30: 3294896.87 | CD30: 4515053.51 | CE30: 3004516.9 | CF30: 6340331.51 | CG30: 3343901.71 | CH30: 3747610.44 | CI30: 5105123.582 | CK30: INCC-DI MS
C31: Material de Tratamento | D31: 123669.41 | E31: 145874.84 | F31: 205177.79 | G31: 194676.36 | H31: 37777.48 | I31: 73640.31 | J31: 83791.63 | K31: 60537.22 | L31: 43687.96 | M31: 40627.41 | N31: 210309.61 | O31: 85491.11 | P31: 1305261.13 | Q31: 148772.86 | R31: 76479.36 | S31: 79048.9 | T31: 118858.05 | U31: 79996.84 | V31: 74494.29 | W31: 134327.35 | X31: 125024.33 | Y31: 72570.21 | Z31: 133356.63 | AA31: 122052.05 | AB31: 133498.85 | AC31: 1298479.72 | AD31: 127345.64 | AE31: 108540.06 | AF31: 124274.88 | AG31: 122923.64 | AH31: 138857.98 | AI31: 80310.46 | AJ31: 223499.3 | AK31: 162669.07 | AL31: 135737.05 | AM31: 150123.52 | AN31: 155283.13 | AO31: 163588.87 | AP31: 1693153.6 | AQ31: 99929.71 | AR31: 112300.31 | AS31: 213141.64 | AT31: 137683.79 | AU31: 155823.49 | AV31: 101564.81 | AW31: 188756.8 | AX31: 187659.62 | AY31: 136259.17 | AZ31: 120825.89 | BA31: 227088.58 | BB31: 231307.69 | BC31: 1912341.5 | BD31: 86176.21 | BE31: 185388.07 | BF31: 190877.87 | BG31: 104460.36 | BH31: 109551.12 | BI31: 138251.52 | BJ31: 92487.35 | BK31: 41334.33 | BL31: 269132.88 | BM31: 121372.35 | BN31: 336022.01 | BO31: 214940.01 | BP31: 1889994.08 | BQ31: 179720.67 | BR31: 142493.89 | BS31: =BF31*(1+HLOOKUP($CK31,'3.Índices_inflação'!$B$142:$AY$149,8,FALSE)) -> 261171.3544 | BT31: =BG31*(1+HLOOKUP($CK31,'3.Índices_inflação'!$B$142:$AY$149,8,FALSE)) -> 142929.37 | BU31: =BH31*(1+HLOOKUP($CK31,'3.Índices_inflação'!$B$142:$AY$149,8,FALSE)) -> 149894.8746 | BV31: =BI31*(1+HLOOKUP($CK31,'3.Índices_inflação'!$B$142:$AY$149,8,FALSE)) -> 189164.6042 | BW31: =BJ31*(1+HLOOKUP($CK31,'3.Índices_inflação'!$B$142:$AY$149,8,FALSE)) -> 126547.1291 | BZ31: 1305261.13 | CA31: 1298479.72 | CB31: 1693153.6 | CC31: 1912341.5 | CD31: 1889994.08 | CE31: 1152630.96 | CF31: 1512254.03 | CG31: 1776602.19 | CH31: 1810333.45 | CI31: 2174723.472 | CK31: IGP-M
C32: Outros Materiais | D32: 44699.78 | E32: 22196 | F32: 12874.15 | G32: 16695.41 | H32: 17189.1 | I32: 25133.76 | J32: 20775.31 | K32: 14520.2 | L32: 19691.14 | M32: 21466.55 | N32: 10595.41 | O32: 7276.28 | P32: 233113.09 | Q32: 23078.98 | R32: 7522.3 | S32: 21247.41 | T32: 16552.54 | U32: 8340.91 | V32: 20762.48 | W32: 14385.11 | X32: 25753.85 | Y32: 17776.3 | Z32: 22613.05 | AA32: 3208.42 | AB32: 36210.39 | AC32: 217451.74 | AD32: 9441.04 | AE32: 11027.86 | AF32: 9791.8 | AG32: 10612.44 | AH32: 13114.11 | AI32: 16303.22 | AJ32: 19867.81 | AK32: 12887.11 | AL32: 13481.85 | AM32: 12862.31 | AN32: 14679.57 | AO32: 42995.06 | AP32: 187064.18 | AQ32: 10779.94 | AR32: 8585.41 | AS32: 15325.11 | AT32: 23953.62 | AU32: 25669.56 | AV32: 15959.9 | AW32: 19025.9 | AX32: 11664.54 | AY32: 8741.66 | AZ32: 26722.93 | BA32: 39166.98 | BB32: 41076.07 | BC32: 246671.62 | BD32: 6203.8 | BE32: 10900.5 | BF32: 1987.49 | BG32: 10730.61 | BH32: 27236.27 | BI32: 10111.64 | BJ32: 6254.63 | BK32: 28865.8 | BL32: 11107.45 | BM32: 13020.07 | BN32: 13217.36 | BO32: 21637.65 | BP32: 161273.27 | BQ32: 7436.08 | BR32: 12561.75 | BS32: =BF32*(1+HLOOKUP($CK32,'3.Índices_inflação'!$B$142:$AY$149,8,FALSE)) -> 2719.411397 | BT32: =BG32*(1+HLOOKUP($CK32,'3.Índices_inflação'!$B$142:$AY$149,8,FALSE)) -> 14682.30941 | BU32: =BH32*(1+HLOOKUP($CK32,'3.Índices_inflação'!$B$142:$AY$149,8,FALSE)) -> 37266.41294 | BV32: =BI32*(1+HLOOKUP($CK32,'3.Índices_inflação'!$B$142:$AY$149,8,FALSE)) -> 13835.39492 | BW32: =BJ32*(1+HLOOKUP($CK32,'3.Índices_inflação'!$B$142:$AY$149,8,FALSE)) -> 8557.986256 | BZ32: 233113.09 | CA32: 217451.74 | CB32: 187064.18 | CC32: 246671.62 | CD32: 161273.27 | CE32: 185439.31 | CF32: 195720.29 | CG32: 216205.34 | CH32: 200797.12 | CI32: 184907.6749 | CK32: IGP-M
C33: Pessoal | D33: 1122250.59 | E33: 1123652.88 | F33: 1617959.55 | G33: 1367567.88 | H33: 1442835.33 | I33: 1243485.08 | J33: 1249505.47 | K33: 1271150.58 | L33: 1201015.49 | M33: 1380349.84 | N33: 1372524.88 | O33: 1391278.99 | P33: 15783576.56 | Q33: 1386622.08 | R33: 1414519.61 | S33: 1274997.13 | T33: 1380755.12 | U33: 1679682.75 | V33: 1434792.46 | W33: 1408743.51 | X33: 1451214.67 | Y33: 1489518.1 | Z33: 1528677.92 | AA33: 1484410.58 | AB33: 1733596.74 | AC33: 17667530.67 | AD33: 1540516.29 | AE33: 1499133.66 | AF33: 1498070.4 | AG33: 1519701.29 | AH33: 1522745.83 | AI33: 1445172.08 | AJ33: 1571970.32 | AK33: 1581461.63 | AL33: 1507362.97 | AM33: 1585506.66 | AN33: 1555155.93 | AO33: 1800381.76 | AP33: 18627178.82 | AQ33: 1563069.24 | AR33: 1548371.08 | AS33: 1591221.41 | AT33: 1604778.07 | AU33: 1616963.48 | AV33: 1614679.57 | AW33: 1547023.24 | AX33: 1568019.9 | AY33: 1551740.22 | AZ33: 1586233.56 | BA33: 1668622.59 | BB33: 1698398.08 | BC33: 19159120.44 | BD33: 1597331.78 | BE33: 1703195.3 | BF33: 1644640.74 | BG33: 1663130.02 | BH33: 1706200.52 | BI33: 1527459.31 | BJ33: 1474931.21 | BK33: 1291929.97 | BL33: 1754570.02 | BM33: 1635675.9 | BN33: 1911340.22 | BO33: 1013535.74 | BP33: 18923940.73 | BQ33: 1841021.85 | BR33: 1825351.83 | BS33: =BF33*(1+HLOOKUP($CK33,'3.Índices_inflação'!$B$142:$AY$149,8,FALSE)) -> 1814630.787 | BT33: =BG33*(1+HLOOKUP($CK33,'3.Índices_inflação'!$B$142:$AY$149,8,FALSE)) -> 1835031.119 | BU33: =BH33*(1+HLOOKUP($CK33,'3.Índices_inflação'!$B$142:$AY$149,8,FALSE)) -> 1882553.386 | BV33: =BI33*(1+HLOOKUP($CK33,'3.Índices_inflação'!$B$142:$AY$149,8,FALSE)) -> 1685337.486 | BW33: =BJ33*(1+HLOOKUP($CK33,'3.Índices_inflação'!$B$142:$AY$149,8,FALSE)) -> 1627380.082 | BZ33: 15783576.56 | CA33: 17667530.67 | CB33: 18627178.82 | CC33: 19159120.44 | CD33: 18923940.73 | CE33: 16596432.44 | CF33: 18284727.88 | CG33: 19115975.04 | CH33: 19389903.23 | CI33: 20118358.39 | CK33: INPC
C34: Serviços de Terceiros | D34: 182647.24 | E34: 187777.57 | F34: 374013.19 | G34: 155789.56 | H34: 342334.51 | I34: 301642.66 | J34: 157562.72 | K34: 201021.57 | L34: 259336.93 | M34: 271428.27 | N34: 252734.67 | O34: 987639.02 | P34: 3673927.91 | Q34: 133107.13 | R34: 165591.63 | S34: 29962.17 | T34: 278407.84 | U34: 31291.02 | V34: 129916.59 | W34: 218153.07 | X34: 147160.9 | Y34: 227034.16 | Z34: 582029.12 | AA34: 513849.02 | AB34: 457667.81 | AC34: 2914170.46 | AD34: 508356.01 | AE34: 58726.15 | AF34: 132980.9 | AG34: 81721.04 | AH34: 124409.2 | AI34: 45532.45 | AJ34: 325510.61 | AK34: 167891.56 | AL34: 110895.68 | AM34: 227491.94 | AN34: 54641.74 | AO34: 205441.8 | AP34: 2043599.08 | AQ34: 441084.73 | AR34: 149316.42 | AS34: 248717.07 | AT34: 84742.25 | AU34: 39019.5 | AV34: 26686.19 | AW34: 36742.22 | AX34: 27669.72 | AY34: 26439.54 | AZ34: 29044.43 | BA34: 199514.41 | BB34: 133361.73 | BC34: 1442338.21 | BD34: 8908.89 | BE34: 61649.62 | BF34: 175142.18 | BG34: 136367.81 | BH34: 74143.31 | BI34: 31022.2 | BJ34: 184380.83 | BK34: 113560.2 | BL34: 323266.16 | BM34: 142262.74 | BN34: 161478.6 | BO34: 138389.4 | BP34: 1550571.94 | BQ34: 137458.44 | BR34: -17081.08 | BS34: =BF34*(1+HLOOKUP($CK34,'3.Índices_inflação'!$B$142:$AY$149,8,FALSE)) -> 191582.8233 | BT34: =BG34*(1+HLOOKUP($CK34,'3.Índices_inflação'!$B$142:$AY$149,8,FALSE)) -> 149168.6928 | BU34: =BH34*(1+HLOOKUP($CK34,'3.Índices_inflação'!$B$142:$AY$149,8,FALSE)) -> 81103.16236 | BV34: =BI34*(1+HLOOKUP($CK34,'3.Índices_inflação'!$B$142:$AY$149,8,FALSE)) -> 33934.26222 | BW34: =BJ34*(1+HLOOKUP($CK34,'3.Índices_inflação'!$B$142:$AY$149,8,FALSE)) -> 201688.7079 | BZ34: 3673927.91 | CA34: 2914170.46 | CB34: 2043599.08 | CC34: 1442338.21 | CD34: 1550571.94 | CE34: 2958589.91 | CF34: 3204977.37 | CG34: 1792671.1 | CH34: 1087644.67 | CI34: 1656812.109 | CK34: IPCA
C35: Telecomunicação | D35: 55231.43 | E35: 55773.92 | F35: 55809.66 | G35: 54563.85 | H35: 55374.62 | I35: 54700.7 | J35: 56759.88 | K35: 53778.1 | L35: 55947.79 | M35: 53842.1 | N35: 55930.44 | O35: 50852.07 | P35: 658564.56 | Q35: 12395.93 | R35: 11807.28 | S35: 12751.15 | T35: 13846.36 | U35: 13555.91 | V35: 571.57 | W35: 161891.34 | X35: 50527.91 | Y35: 52298.48 | Z35: 39755.65 | AA35: 42173.52 | AB35: 42577.92 | AC35: 454153.02 | AD35: 41624.72 | AE35: 41308.25 | AF35: 9935.23 | AG35: 45132.73 | AH35: 73798.09 | AI35: 44913.83 | AJ35: 44059.98 | AK35: 45546.08 | AL35: 43739.35 | AM35: 44633.93 | AN35: 13497.54 | AO35: 45710.06 | AP35: 493899.79 | AQ35: 84667.99 | AR35: 37198.48 | AS35: 36526.3 | AT35: 35954.91 | AU35: 36091.75 | AV35: 36144.19 | AW35: 34765.26 | AX35: 36375.27 | AY35: 40663.21 | AZ35: 38340 | BA35: 16987.18 | BB35: 18218.63 | BC35: 451933.17 | BD35: 18435.23 | BE35: 17114.51 | BF35: 123608.71 | BG35: 15564.73 | BH35: 12687.22 | BI35: 93771.04 | BJ35: 43502.35 | BK35: 63505.36 | BL35: 38860.93 | BM35: 41022.5 | BN35: 9426.83 | BO35: 118533.31 | BP35: 596032.72 | BQ35: 64645.5 | BR35: 1620.15 | BS35: =BF35*(1+HLOOKUP($CK35,'3.Índices_inflação'!$B$142:$AY$149,8,FALSE)) -> 129840.2782 | BT35: =BG35*(1+HLOOKUP($CK35,'3.Índices_inflação'!$B$142:$AY$149,8,FALSE)) -> 16349.4051 | BU35: =BH35*(1+HLOOKUP($CK35,'3.Índices_inflação'!$B$142:$AY$149,8,FALSE)) -> 13326.82927 | BV35: =BI35*(1+HLOOKUP($CK35,'3.Índices_inflação'!$B$142:$AY$149,8,FALSE)) -> 98498.38188 | BW35: =BJ35*(1+HLOOKUP($CK35,'3.Índices_inflação'!$B$142:$AY$149,8,FALSE)) -> 45695.46294 | BZ35: 658564.56 | CA35: 454153.02 | CB35: 493899.79 | CC35: 451933.17 | CD35: 596032.72 | CE35: 497170.04 | CF35: 528106.31 | CG35: 494475.84 | CH35: 475268.08 | CI35: 641324.9374 | CK35: IPCA BH Tel
C36: Treinamento | D36: 0 | E36: 0 | F36: 5760 | G36: 0 | H36: 5713 | I36: 3154 | J36: 15165.61 | K36: 31990.8 | L36: 15402.17 | M36: 10732.72 | N36: 14891.08 | O36: 11863.25 | P36: 114672.63 | Q36: 12047 | R36: 7563.76 | S36: 4874.79 | T36: 3843.4 | U36: 13064.99 | V36: 16481.16 | W36: 62573.94 | X36: 138616.94 | Y36: 65716.43 | Z36: 54028.92 | AA36: 8769.64 | AB36: 25811.35 | AC36: 413392.32 | AD36: 11169.08 | AE36: 5233.85 | AF36: 11099.65 | AG36: 19553.7 | AH36: 31420.92 | AI36: 48095 | AJ36: 52491.56 | AK36: 43361.66 | AL36: 64835.12 | AM36: 67236.41 | AN36: 50618.68 | AO36: 86534.11 | AP36: 491649.74 | AQ36: 28525.95 | AR36: 8246.2 | AS36: 69732.49 | AT36: 8487.44 | AU36: 2101.48 | AV36: 3027.8 | AW36: 4075.75 | AX36: 1688.53 | AY36: 2414.68 | AZ36: 3645.37 | BA36: 13325.55 | BB36: 21698.55 | BC36: 166969.79 | BD36: 708.5 | BE36: 881.35 | BF36: 989.4 | BG36: 0 | BH36: 1054.5 | BI36: 253.24 | BJ36: 150 | BK36: 875 | BL36: 4503.6 | BM36: 14662.24 | BN36: 34573 | BO36: 14969.4 | BP36: 73620.23 | BQ36: 9108.04 | BR36: 935 | BS36: =BF36*(1+HLOOKUP($CK36,'3.Índices_inflação'!$B$142:$AY$149,8,FALSE)) -> 1082.275243 | BT36: =BG36*(1+HLOOKUP($CK36,'3.Índices_inflação'!$B$142:$AY$149,8,FALSE)) -> 0 | BU36: =BH36*(1+HLOOKUP($CK36,'3.Índices_inflação'!$B$142:$AY$149,8,FALSE)) -> 1153.486197 | BV36: =BI36*(1+HLOOKUP($CK36,'3.Índices_inflação'!$B$142:$AY$149,8,FALSE)) -> 277.0117066 | BW36: =BJ36*(1+HLOOKUP($CK36,'3.Índices_inflação'!$B$142:$AY$149,8,FALSE)) -> 164.0805402 | BZ36: 114672.63 | CA36: 413392.32 | CB36: 491649.74 | CC36: 166969.79 | CD36: 73620.23 | CE36: 205329.06 | CF36: 472007.04 | CG36: 436783.09 | CH36: 46809.67 | CI36: 82303.13369 | CK36: IPCA
C37: Outros Custos Operacionais | D37: 38928.35 | E37: 41916.56 | F37: 71921.14 | G37: 44622.46 | H37: 90880.7 | I37: 82590.14 | J37: 64407.88 | K37: 96063.39 | L37: 57025.99 | M37: 36446.02 | N37: 56729.24 | O37: 79555.18 | P37: 761087.05 | Q37: 77091.82 | R37: 46681.34 | S37: 58534.73 | T37: 59072.98 | U37: 67915.85 | V37: 78662.53 | W37: 87407.56 | X37: 109073.93 | Y37: 54469.42 | Z37: 65740.46 | AA37: 72375.64 | AB37: 80022.74 | AC37: 857049 | AD37: 36995.92 | AE37: 69962.79 | AF37: 72974.43 | AG37: 66053.83 | AH37: 81910.25 | AI37: 54356.7 | AJ37: 82738.09 | AK37: 62699.03 | AL37: 88470.25 | AM37: 60918.38 | AN37: 71174.86 | AO37: 333256.15 | AP37: 1081510.68 | AQ37: 43767.93 | AR37: 45769.57 | AS37: 66690.01 | AT37: 42930.77 | AU37: 39255.15 | AV37: 39391.25 | AW37: 55596.73 | AX37: 58915.22 | AY37: 72813.16 | AZ37: 49931.93 | BA37: 57243.74 | BB37: 75440.48 | BC37: 647745.94 | BD37: 32783.23 | BE37: 38274.53 | BF37: 58043.64 | BG37: 45257.43 | BH37: 58517.65 | BI37: 41812.53 | BJ37: 62323.09 | BK37: 55440.38 | BL37: 50770.88 | BM37: 47313.95 | BN37: 46465.66 | BO37: 67029.31 | BP37: 604032.28 | BQ37: 29055.87 | BR37: 72611.77 | BS37: =BF37*(1+HLOOKUP($CK37,'3.Índices_inflação'!$B$142:$AY$149,8,FALSE)) -> 63492.21203 | BT37: =BG37*(1+HLOOKUP($CK37,'3.Índices_inflação'!$B$142:$AY$149,8,FALSE)) -> 49505.75707 | BU37: =BH37*(1+HLOOKUP($CK37,'3.Índices_inflação'!$B$142:$AY$149,8,FALSE)) -> 64010.71748 | BV37: =BI37*(1+HLOOKUP($CK37,'3.Índices_inflação'!$B$142:$AY$149,8,FALSE)) -> 45737.48339 | BW37: =BJ37*(1+HLOOKUP($CK37,'3.Índices_inflação'!$B$142:$AY$149,8,FALSE)) -> 68173.37515 | BZ37: 761087.05 | CA37: 857049 | CB37: 1081510.68 | CC37: 647745.94 | CD37: 604032.28 | CE37: 801186.63 | CF37: 846674.2 | CG37: 949920.08 | CH37: 651356.63 | CI37: 659607.3651 | CK37: IPCA
C38: Total - Custos Operacionais | D38: 2406658.43 | E38: 2644627.88 | F38: 3297584.67 | G38: 2951177.95 | H38: 3137069.84 | I38: 2814584.63 | J38: 2769201.79 | K38: 2841931.26 | L38: 2710819.91 | M38: 3000384.35 | N38: 3090468.58 | O38: 3828137.65 | P38: 35492646.94 | Q38: 2777665.45 | R38: 2743475.43 | S38: 2529359.56 | T38: 2897088.84 | U38: 3005213 | V38: 2872249.81 | W38: 3504275.67 | X38: 3508063.43 | Y38: 3359523.06 | Z38: 3943369.62 | AA38: 4109699.41 | AB38: 4153430.85 | AC38: 39403414.13 | AD38: 3589345.91 | AE38: 3520492.47 | AF38: 4086537.23 | AG38: 3511919.27 | AH38: 3950209.5 | AI38: 3221806.31 | AJ38: 4131085.43 | AK38: 3941654.99 | AL38: 3519811.09 | AM38: 3766366.78 | AN38: 3213320.9 | AO38: 4347459.39 | AP38: 44800009.27 | AQ38: 3533800.17 | AR38: 3513270.93 | AS38: 3655900.96 | AT38: 3110961.3 | AU38: 3279469.7 | AV38: 2925695.13 | AW38: 3166425.85 | AX38: 3123756.7 | AY38: 3528612.06 | AZ38: 3191049.42 | BA38: 3757250.32 | BB38: 3823879.48 | BC38: 40610072.02 | BD38: 3062359.38 | BE38: 3652000.64 | BF38: 3587698.13 | BG38: 3497201.37 | BH38: 3413745.69 | BI38: 3402985.3 | BJ38: 3459004.94 | BK38: 3394354.2 | BL38: 4375077.61 | BM38: 3967965.84 | BN38: 4493006.27 | BO38: 3675080.91 | BP38: 43980480.28 | BQ38: 3741376.16 | BR38: 3872343.21 | BS38: =SUM(BS22:BS37) -> 4149533.165 | BT38: 4056114.455 | BU38: 3949798.466 | BV38: 3959980.51 | BW38: 4009530.948 | BZ38: =SUM(BZ22:BZ37) -> 35492646.94 | CA38: 39403414.13 | CB38: 44800009.27 | CC38: 40610072.02 | CD38: 43980480.28 | CE38: 35801069.51 | CF38: 45085482.49 | CG38: 41974137.19 | CH38: 41499543.43 | CI38: 47644161.74
C40: Repasse Tarifário a Fundos Municipais de Saneamento | D40: 0 | E40: 0 | F40: 0 | G40: 0 | H40: 0 | I40: 0 | J40: 0 | K40: 0 | L40: 0 | M40: 0 | N40: 0 | O40: 0 | P40: 0 | Q40: 0 | R40: 0 | S40: 0 | T40: 0 | U40: 0 | V40: 0 | W40: 0 | X40: 0 | Y40: 0 | Z40: 0 | AA40: 0 | AB40: 0 | AC40: 0 | AD40: 0 | AE40: 0 | AF40: 0 | AG40: 0 | AH40: 0 | AI40: 0 | AJ40: 0 | AK40: 0 | AL40: 0 | AM40: 0 | AN40: 0 | AO40: 0 | AP40: 0 | AQ40: 0 | AR40: 0 | AS40: 0 | AT40: 0 | AU40: 0 | AV40: 0 | AW40: 0 | AX40: 0 | AY40: 0 | AZ40: 0 | BA40: 0 | BB40: 0 | BC40: 0 | BD40: 0 | BE40: 0 | BF40: 0 | BG40: 0 | BH40: 0 | BI40: 0 | BJ40: 0 | BK40: 0 | BL40: 0 | BM40: 0 | BN40: 0 | BO40: 0 | BP40: 0 | BQ40: 0 | BR40: 0 | BS40: =AVERAGE(BJ40,BQ40,BR40) -> 0 | BT40: =AVERAGE(BK40,BR40,BS40) -> 0 | BU40: =AVERAGE(BL40,BS40,BT40) -> 0 | BV40: =AVERAGE(BM40,BT40,BU40) -> 0 | BW40: =AVERAGE(BN40,BU40,BV40) -> 0 | BZ40: =P40 -> 0 | CA40: =AC40 -> 0 | CB40: =AP40 -> 0 | CC40: =BC40 -> 0 | CD40: =BP40 -> 0 | CE40: =SUM(K40:O40,Q40:W40) -> 0 | CF40: =SUM(X40:AB40,AD40:AJ40) -> 0 | CG40: =SUM(AK40:AO40,AQ40:AW40) -> 0 | CH40: =SUM(AX40:BB40,BD40:BO40) -> 0 | CI40: =SUM(BK40:BO40,BQ40:BW40) -> 0 | CK40: ETM
C41: Total - Programas Especiais | D41: 0 | E41: 0 | F41: 0 | G41: 0 | H41: 0 | I41: 0 | J41: 0 | K41: 0 | L41: 0 | M41: 0 | N41: 0 | O41: 0 | P41: 0 | Q41: 0 | R41: 0 | S41: 0 | T41: 0 | U41: 0 | V41: 0 | W41: 0 | X41: 0 | Y41: 0 | Z41: 0 | AA41: 0 | AB41: 0 | AC41: 0 | AD41: 0 | AE41: 0 | AF41: 0 | AG41: 0 | AH41: 0 | AI41: 0 | AJ41: 0 | AK41: 0 | AL41: 0 | AM41: 0 | AN41: 0 | AO41: 0 | AP41: 0 | AQ41: 0 | AR41: 0 | AS41: 0 | AT41: 0 | AU41: 0 | AV41: 0 | AW41: 0 | AX41: 0 | AY41: 0 | AZ41: 0 | BA41: 0 | BB41: 0 | BC41: 0 | BD41: 0 | BE41: 0 | BF41: 0 | BG41: 0 | BH41: 0 | BI41: 0 | BJ41: 0 | BK41: 0 | BL41: 0 | BM41: 0 | BN41: 0 | BO41: 0 | BP41: 0 | BQ41: 0 | BR41: 0 | BS41: =BS40 -> 0 | BT41: 0 | BU41: 0 | BV41: 0 | BW41: 0 | BZ41: =SUM(BZ38:BZ40) -> 35492646.94 | CA41: 39403414.13 | CB41: 44800009.27 | CC41: 40610072.02 | CD41: 43980480.28 | CE41: 35801069.51 | CF41: 45085482.49 | CG41: 41974137.19 | CH41: 41499543.43 | CI41: 47644161.74
D43: 0.06290755415 | E43: 0.05655767302 | F43: 0.05910019305 | G43: 0.05420252938 | H43: 0.05014653359 | I43: 0.04947360395 | J43: 0.05281160167 | K43: 0.05327988672 | L43: 0.05426125412 | M43: 0.05544988477 | N43: 0.05300800335 | O43: 0.06097779548 | P43: 0.05540244678 | Q43: 0.06074845063 | R43: 0.05795737062 | S43: 0.05593543219 | T43: 0.05473750679 | U43: 0.05526138403 | V43: 0.05357862679 | W43: 0.05066767075 | X43: 0.04225794417 | Y43: 0.04278128722 | Z43: 0.04495922454 | AA43: 0.02509889493 | AB43: 0.01957726928 | AC43: 0.04694745441 | AD43: 0.03818998211 | AE43: 0.02900951899 | AF43: 0.03193397776 | AG43: 0.02995040126 | AH43: 0.01289782975 | AI43: 0.03087749692 | AJ43: 0.03432804489 | AK43: 0.04631401898 | AL43: 0.0419395311 | AM43: 0.0596373186 | AN43: 0.05708224499 | AO43: 0.1120644212 | AP43: 0.04462815201 | AQ43: 0.07681942742 | AR43: 0.07691355165 | AS43: 0.07490805679 | AT43: 0.07120239417 | AU43: 0.07996616214 | AV43: 0.06691192438 | AW43: 0.06742478124 | AX43: 0.0557815156 | AY43: 0.06417683306 | AZ43: 0.06778324081 | BA43: 0.05968958504 | BB43: 0.06197167344 | BC43: 0.06840811153 | BD43: 0.06872528865 | BE43: 0.06652603976 | BF43: 0.06053952363 | BG43: 0.06725308784 | BH43: 0.06425649404 | BI43: 0.06239191365 | BJ43: 0.06183794183 | BK43: 0.06714265844 | BL43: 0.06645254537 | BM43: 0.07006503031 | BN43: 0.0662164695 | BO43: 0.03495692337 | BQ43: 0.06362326993 | BR43: 0.09551100546 | BS43: =AVERAGE(BO43,BQ43,BR43) -> 0.06469706625 | BT43: =AVERAGE(BQ43,BR43,BS43) -> 0.07461044721 | BU43: 0.07827283964 | BV43: 0.07252678437 | BW43: 0.07513669041 | BZ43: =BZ44/-BZ11 -> 0.05540244678 | CA43: 0.04694745441 | CB43: 0.04462815201 | CC43: 0.06840811153 | CD43: 0.06330737126 | CE43: 0.05570346453 | CF43: 0.03150239324 | CG43: 0.06952366157 | CH43: =CH44/-CH11 -> 0.06370297791 | CI43: 0.06923351694
C44: PIS/Pasep e Cofins | D44: 149907.5 | E44: 123129.55 | F44: 131756.63 | G44: 118324.41 | H44: 113135.45 | I44: 102846.61 | J44: 115223.61 | K44: 116404.54 | L44: 113104.64 | M44: 146649.9 | N44: 141671.82 | O44: 187043.56 | P44: 1559198.22 | Q44: 160116.32 | R44: 145284.52 | S44: 142225.62 | T44: 123006.44 | U44: 129353.65 | V44: 126265.28 | W44: 113963.39 | X44: 96740.7 | Y44: 103625.66 | Z44: 121038.46 | AA44: 60081.69 | AB44: 49575.26 | AC44: 1371276.99 | AD44: 92667.24 | AE44: 83091.94 | AF44: 107314.07 | AG44: 84178.64 | AH44: 38055.11 | AI44: 77482.19 | AJ44: 92833.12 | AK44: 132786.84 | AL44: 119661.72 | AM44: 207467.35 | AN44: 173983.34 | AO44: 353818.09 | AP44: 1563339.65 | AQ44: 265930.65 | AR44: 221712.18 | AS44: 209480.64 | AT44: 203669.71 | AU44: 240269.06 | AV44: 197819.35 | AW44: 219228.16 | AX44: 177122.68 | AY44: 225117.15 | AZ44: 291668.54 | BA44: 195673.91 | BB44: 199379.26 | BC44: 2647071.29 | BD44: 289010.4 | BE44: 242766.02 | BF44: 185103.6 | BG44: 227608.39 | BH44: 227421.89 | BI44: 213046.08 | BJ44: 218384.05 | BK44: 265075.71 | BL44: 272665.44 | BM44: 312713.64 | BN44: 248409.91 | BO44: 127723.34 | BP44: 2829928.47 | BQ44: 254657.39 | BR44: 362795.24 | BS44: =AVERAGE(BO44,BQ44,BR44) -> 248391.99 | BT44: =AVERAGE(BQ44,BR44,BS44) -> 288614.8733 | BU44: 299934.0344 | BV44: 278980.2993 | BW44: 289176.4023 | BZ44: =P44 -> 1559198.22 | CA44: =AC44 -> 1371276.99 | CB44: =AP44 -> 1563339.65 | CC44: =BC44 -> 2647071.29 | CD44: =BP44 -> 2829928.47 | CE44: =SUM(K44:O44,Q44:W44) -> 1645089.68 | CF44: =SUM(X44:AB44,AD44:AJ44) -> 1006684.08 | CG44: =SUM(AK44:AO44,AQ44:AW44) -> 2545827.09 | CH44: =SUM(AX44:BB44,BD44:BJ44) -> 2692301.97 | CI44: =SUM(BK44:BO44,BQ44:BW44) -> 3249138.269 | CK44: ETM
C45: TFAS | D45: 47513.82 | E45: 47513.82 | F45: 47513.82 | G45: 47513.82 | H45: 47513.82 | I45: 47513.82 | J45: 47513.82 | K45: 47513.82 | L45: 47513.82 | M45: 47513.82 | N45: 47513.82 | O45: 47513.82 | P45: 570165.84 | Q45: 48096.56 | R45: 48096.56 | S45: 48096.56 | T45: 48096.56 | U45: 48096.56 | V45: 48096.56 | W45: 48096.56 | X45: 48096.56 | Y45: 48096.56 | Z45: 48096.56 | AA45: 48096.56 | AB45: 48168.7 | AC45: 577230.86 | AD45: 53523.08 | AE45: 53523.08 | AF45: 0 | AG45: 107046.16 | AH45: 53523.08 | AI45: 53523.08 | AJ45: 53523.08 | AK45: 53523.08 | AL45: 53523.08 | AM45: 53523.08 | AN45: 53523.08 | AO45: 53523.08 | AP45: 642276.96 | AQ45: 57686.53 | AR45: 57686.59 | AS45: 57686.59 | AT45: 57686.59 | AU45: 57686.59 | AV45: 57686.59 | AW45: 57686.59 | AX45: 57686.59 | AY45: 57686.59 | AZ45: 57686.59 | BA45: 57686.59 | BB45: 57686.59 | BC45: 692239.02 | BD45: 64622.3775 | BE45: 64622.3775 | BF45: 64622.3775 | BG45: 64622.3775 | BH45: 64622.37 | BI45: 64622.38 | BJ45: 64622.36 | BK45: 64622.37 | BL45: 64622.37 | BM45: 64622.37 | BN45: 64622.37 | BO45: 64622.37 | BP45: 775468.47 | BQ45: 80012.72 | BR45: 80012.69 | BS45: =AVERAGE(BO45,BQ45,BR45) -> 74882.59333 | BT45: 78302.66778 | BU45: 77732.65037 | BV45: 76972.63716 | BW45: 77669.31844 | BZ45: =P45 -> 570165.84 | CA45: =AC45 -> 577230.86 | CB45: =AP45 -> 642276.96 | CC45: =BC45 -> 692239.02 | CD45: 775468.47 | CE45: =SUM(K45:O45,Q45:W45) -> 574245.02 | CF45: =SUM(X45:AB45,AD45:AJ45) -> 615216.5 | CG45: =SUM(AK45:AO45,AQ45:AW45) -> 671421.47 | CH45: =SUM(AX45:BB45,BD45:BJ45) -> 740789.57 | CI45: 868697.1271 | CK45: IGP-DI
C46: Outros Tributos e Taxas | D46: 6532.4 | E46: 6580.57 | F46: 8869.36 | G46: 7016.11 | H46: 9352.99 | I46: 19340.1 | J46: 10065.6 | K46: 11982.17 | L46: 2069.72 | M46: 0 | N46: 3790.6 | O46: 1904.84 | P46: 87504.46 | Q46: 31242.96 | R46: 2069.72 | S46: 0 | T46: 5657.44 | U46: 5896.69 | V46: 0 | W46: 0 | X46: 0 | Y46: 0 | Z46: 0 | AA46: 987.5 | AB46: 46917.13 | AC46: 92771.44 | AD46: 58093.09 | AE46: 0 | AF46: 0 | AG46: 0 | AH46: 1279.82 | AI46: 1750.05 | AJ46: 0 | AK46: 0 | AL46: 0 | AM46: 0 | AN46: 0 | AO46: 12045.75 | AP46: 73168.71 | AQ46: 58860.99 | AR46: 0 | AS46: 0 | AT46: 0 | AU46: 0 | AV46: 0 | AW46: 0 | AX46: 0 | AY46: 400.86 | AZ46: 846.26 | BA46: 2839.88 | BB46: 58.04 | BC46: 63006.03 | BD46: 77884.96 | BE46: 0 | BF46: 287.92 | BG46: 4993.33 | BH46: 0 | BI46: 0 | BJ46: 1377.94 | BK46: 24466.56 | BL46: 0 | BM46: 0 | BN46: 0 | BO46: 1076171.9 | BP46: 1185182.61 | BQ46: 2533.46 | BR46: 0 | BS46: =AVERAGE(BE46:BN46,BQ46,BR46) -> 2804.934167 | BT46: 1779.464722 | BU46: 1528.132963 | BV46: 2037.510617 | BW46: 1781.702767 | BZ46: =P46 -> 87504.46 | CA46: =AC46 -> 92771.44 | CB46: =AP46 -> 73168.71 | CC46: =BC46 -> 63006.03 | CD46: 1185182.61 | CE46: =SUM(K46:O46,Q46:W46) -> 64614.14 | CF46: =SUM(X46:AB46,AD46:AJ46) -> 109027.59 | CG46: =SUM(AK46:AO46,AQ46:AW46) -> 70906.74 | CH46: 88689.19 | CI46: =SUM(BK46:BO46,BQ46:BW46) -> 1113103.665 | CK46: IPCA
C47: Total - Tributos e Outras Obrigações | D47: 203953.72 | E47: 177223.94 | F47: 188139.81 | G47: 172854.34 | H47: 170002.26 | I47: 169700.53 | J47: 172803.03 | K47: 175900.53 | L47: 162688.18 | M47: 194163.72 | N47: 192976.24 | O47: 236462.22 | P47: 2216868.52 | Q47: 239455.84 | R47: 195450.8 | S47: 190322.18 | T47: 176760.44 | U47: 183346.9 | V47: 174361.84 | W47: 162059.95 | X47: 144837.26 | Y47: 151722.22 | Z47: 169135.02 | AA47: 109165.75 | AB47: 144661.09 | AC47: 2041279.29 | AD47: 204283.41 | AE47: 136615.02 | AF47: 107314.07 | AG47: 191224.8 | AH47: 92858.01 | AI47: 132755.32 | AJ47: 146356.2 | AK47: 186309.92 | AL47: 173184.8 | AM47: 260990.43 | AN47: 227506.42 | AO47: 419386.92 | AP47: 2278785.32 | AQ47: 382478.17 | AR47: 279398.77 | AS47: 267167.23 | AT47: 261356.3 | AU47: 297955.65 | AV47: 255505.94 | AW47: 276914.75 | AX47: 234809.27 | AY47: 283204.6 | AZ47: 350201.39 | BA47: 256200.38 | BB47: 257123.89 | BC47: 3402316.34 | BD47: 431517.7375 | BE47: 307388.3975 | BF47: 250013.8975 | BG47: 297224.0975 | BH47: 292044.26 | BI47: 277668.46 | BJ47: 284384.35 | BK47: 354164.64 | BL47: 337287.81 | BM47: 377336.01 | BN47: 313032.28 | BO47: 1268517.61 | BP47: 4790579.55 | BQ47: 337203.57 | BR47: 442807.93 | BS47: =SUM(BS44:BS46) -> 326079.5175 | BT47: 368697.0058 | BU47: 379194.8178 | BV47: 357990.447 | BW47: 368627.4235 | BZ47: =SUM(BZ44:BZ46) -> 2216868.52 | CA47: 2041279.29 | CB47: 2278785.32 | CC47: 3402316.34 | CD47: 4790579.55 | CE47: 2283948.84 | CF47: 1730928.17 | CG47: 3288155.3 | CH47: 3521780.73 | CI47: 5230939.062
C49: Depreciação e Amortização | D49: 0 | E49: 0 | F49: 0 | G49: 0 | H49: 0 | I49: 0 | J49: 0 | K49: 0 | L49: 0 | M49: 0 | N49: 0 | O49: 0 | P49: 0 | Q49: 0 | R49: 0 | S49: 0 | T49: 0 | U49: 0 | V49: 0 | W49: 0 | X49: 0 | Y49: 101768.15 | Z49: 88233.71 | AA49: 92113.79 | AB49: 151759.22 | AC49: 433874.87 | AD49: 141292.34 | AE49: 142739.99 | AF49: 227477.32 | AG49: 162887.59 | AH49: 174935.83 | AI49: 272848.1 | AJ49: 203251.68 | AK49: 204689.63 | AL49: 244082.42 | AM49: 208895.61 | AN49: 210157.02 | AO49: 274902.09 | AP49: 2468159.62 | AQ49: 211680.15 | AR49: 212773.08 | AS49: 280989.09 | AT49: 216074.95 | AU49: 221522.71 | AV49: 372402.15 | AW49: 361862.02 | AX49: 405491.83 | AY49: 599385.02 | AZ49: 438237.56 | BA49: 443578.11 | BB49: 660560.85 | BC49: 4424557.52 | BD49: 485132.98 | BE49: 491496.83 | BF49: 664810.06 | BG49: 501354.75 | BH49: 518136.46 | BI49: 713718.54 | BJ49: 541348.92 | BK49: 551736.65 | BL49: 772029.15 | BM49: 562601.23 | BN49: 573345 | BO49: 820337.06 | BP49: 7196047.63 | BQ49: 616438.27 | BR49: 618886.28 | BS49: =BF49*(1+HLOOKUP($CK49,'3.Índices_inflação'!$B$142:$AY$149,8,FALSE)) -> 727215.9584 | BT49: =BG49*(1+HLOOKUP($CK49,'3.Índices_inflação'!$B$142:$AY$149,8,FALSE)) -> 548417.0546 | BU49: =BH49*(1+HLOOKUP($CK49,'3.Índices_inflação'!$B$142:$AY$149,8,FALSE)) -> 566774.0682 | BV49: =BI49*(1+HLOOKUP($CK49,'3.Índices_inflação'!$B$142:$AY$149,8,FALSE)) -> 780715.4905 | BW49: =BJ49*(1+HLOOKUP($CK49,'3.Índices_inflação'!$B$142:$AY$149,8,FALSE)) -> 592165.4881 | BZ49: =P49 -> 0 | CA49: =AC49 -> 433874.87 | CB49: =AP49 -> 2468159.62 | CC49: =BC49 -> 4424557.52 | CD49: =BP49 -> 7196047.63 | CE49: =SUM(K49:O49,Q49:W49) -> 0 | CF49: =SUM(X49:AB49,AD49:AJ49) -> 1759307.72 | CG49: =SUM(AK49:AO49,AQ49:AW49) -> 3020030.92 | CH49: =SUM(AX49:BB49,BD49:BJ49) -> 6463251.91 | CI49: =SUM(BK49:BO49,BQ49:BW49) -> 7730661.7 | CK49: IPCA
C50: Encargos sobre Empréstimos | D50: 100.76 | E50: 1093.83 | F50: -422.2 | G50: -397.66 | H50: 3857.18 | I50: 546.78 | J50: 1634.5 | K50: 1807.97 | L50: 5923.47 | M50: 98.88 | N50: 1991.11 | O50: -8719.51 | P50: 7515.11 | Q50: 1407.84 | R50: -847.95 | S50: -489.81 | T50: 909.97 | U50: -415.21 | V50: -407.95 | W50: -555.8 | X50: -636.41 | Y50: -424.15 | Z50: 575.44 | AA50: 1995.16 | AB50: -29823.78 | AC50: -28712.65 | AD50: 3525.37 | AE50: -3199.1 | AF50: -45981.78 | AG50: -902.9 | AH50: -1298.1 | AI50: -531.48 | AJ50: -2691.59 | AK50: -1364.47 | AL50: -1071.96 | AM50: -4096.59 | AN50: -2025.28 | AO50: -11751.23 | AP50: -71389.11 | AQ50: -3758.71 | AR50: -56495.75 | AS50: -524.41 | AT50: -955.22 | AU50: -1085.9 | AV50: 54432.27 | AW50: -1109.59 | AX50: -1818.08 | AY50: -1185.14 | AZ50: -1558.27 | BA50: -1583.56 | BB50: -5845.81 | BC50: -21488.17 | BD50: -1719.84 | BE50: -1976.28 | BF50: -1964.62 | BG50: -3121.57 | BH50: -2145.19 | BI50: -2902.81 | BJ50: -1857.47 | BK50: -1440.2 | BL50: -1874.08 | BM50: -2208.2 | BN50: -2038.36 | BO50: -19082.79 | BP50: -42331.41 | BQ50: -2102.26 | BR50: -3189.03 | BS50: =BF50*(1+HLOOKUP($CK50,'3.Índices_inflação'!$B$142:$AY$149,8,FALSE)) -> -2149.039405 | BT50: =BG50*(1+HLOOKUP($CK50,'3.Índices_inflação'!$B$142:$AY$149,8,FALSE)) -> -3414.592612 | BU50: =BH50*(1+HLOOKUP($CK50,'3.Índices_inflação'!$B$142:$AY$149,8,FALSE)) -> -2346.55956 | BV50: =BI50*(1+HLOOKUP($CK50,'3.Índices_inflação'!$B$142:$AY$149,8,FALSE)) -> -3175.297552 | BW50: =BJ50*(1+HLOOKUP($CK50,'3.Índices_inflação'!$B$142:$AY$149,8,FALSE)) -> -2031.831206 | BZ50: =P50 -> 7515.11 | CA50: =AC50 -> -28712.65 | CB50: =AP50 -> -71389.11 | CC50: =BC50 -> -21488.17 | CD50: -42331.41 | CE50: =SUM(K50:O50,Q50:W50) -> 703.01 | CF50: =SUM(X50:AB50,AD50:AJ50) -> -79393.32 | CG50: =SUM(AK50:AO50,AQ50:AW50) -> -29806.84 | CH50: =SUM(AX50:BB50,BD50:BJ50) -> -27678.64 | CI50: -45052.24034 | CK50: IPCA
C51: Tributos sobre o Lucro | D51: 0 | E51: 0 | F51: 0 | G51: 0 | H51: 0 | I51: 0 | J51: 0 | K51: 0 | L51: 0 | M51: 0 | N51: 0 | O51: 0 | P51: 0 | Q51: 0 | R51: 0 | S51: 0 | T51: 0 | U51: 0 | V51: 0 | W51: 0 | X51: 0 | Y51: 0 | Z51: 0 | AA51: 0 | AB51: 0 | AC51: 0 | AD51: 0 | AE51: 0 | AF51: 0 | AG51: 0 | AH51: 0 | AI51: 0 | AJ51: 0 | AK51: 0 | AL51: 0 | AM51: 0 | AN51: 0 | AO51: 0 | AP51: 0 | AQ51: 0 | AR51: 0 | AS51: 0 | AT51: 0 | AU51: 0 | AV51: 0 | AW51: 0 | AX51: 0 | AY51: 0 | AZ51: 0 | BA51: 0 | BB51: 0 | BC51: 0 | BD51: 11498.83 | BE51: -11498.83 | BF51: 0 | BG51: 0 | BH51: 0 | BI51: 0 | BJ51: 0 | BK51: 0 | BL51: 0 | BM51: 0 | BN51: 0 | BO51: 0 | BP51: 0 | BQ51: 0 | BR51: 0 | BS51: =AVERAGE(BO51,BQ51,BR51) -> 0 | BT51: =AVERAGE(BQ51,BR51,BS51) -> 0 | BU51: 0 | BV51: 0 | BW51: 0 | BZ51: =P51 -> 0 | CA51: =AC51 -> 0 | CB51: =AP51 -> 0 | CC51: =BC51 -> 0 | CD51: 0 | CE51: =SUM(K51:O51,Q51:W51) -> 0 | CF51: =SUM(X51:AB51,AD51:AJ51) -> 0 | CG51: =SUM(AK51:AO51,AQ51:AW51) -> 0 | CH51: 0 | CI51: 0 | CK51: IPCA
C52: Total - Custos de Capital | D52: 100.76 | E52: 1093.83 | F52: -422.2 | G52: -397.66 | H52: 3857.18 | I52: 546.78 | J52: 1634.5 | K52: 1807.97 | L52: 5923.47 | M52: 98.88 | N52: 1991.11 | O52: -8719.51 | P52: 7515.11 | Q52: 1407.84 | R52: -847.95 | S52: -489.81 | T52: 909.97 | U52: -415.21 | V52: -407.95 | W52: -555.8 | X52: -636.41 | Y52: 101344 | Z52: 88809.15 | AA52: 94108.95 | AB52: 121935.44 | AC52: 405162.22 | AD52: 144817.71 | AE52: 139540.89 | AF52: 181495.54 | AG52: 161984.69 | AH52: 173637.73 | AI52: 272316.62 | AJ52: 200560.09 | AK52: 203325.16 | AL52: 243010.46 | AM52: 204799.02 | AN52: 208131.74 | AO52: 263150.86 | AP52: 2396770.51 | AQ52: 207921.44 | AR52: 156277.33 | AS52: 280464.68 | AT52: 215119.73 | AU52: 220436.81 | AV52: 426834.42 | AW52: 360752.43 | AX52: 403673.75 | AY52: 598199.88 | AZ52: 436679.29 | BA52: 441994.55 | BB52: 654715.04 | BC52: 4403069.35 | BD52: 494911.97 | BE52: 478021.72 | BF52: 662845.44 | BG52: 498233.18 | BH52: 515991.27 | BI52: 710815.73 | BJ52: 539491.45 | BK52: 550296.45 | BL52: 770155.07 | BM52: 560393.03 | BN52: 571306.64 | BO52: 801254.27 | BP52: 7153716.22 | BQ52: 614336.01 | BR52: 615697.25 | BS52: =SUM(BS49:BS51) -> 725066.9189 | BT52: 545002.462 | BU52: 564427.5087 | BV52: 777540.1929 | BW52: 590133.6569 | BZ52: =SUM(BZ49:BZ51) -> 7515.11 | CA52: 405162.22 | CB52: 2396770.51 | CC52: 4403069.35 | CD52: 7153716.22 | CE52: 703.01 | CF52: 1679914.4 | CG52: 2990224.08 | CH52: 6435573.27 | CI52: 7685609.459
C54: Doações | D54: 0 | E54: 0 | F54: 0 | G54: 0 | H54: 0 | I54: 0 | J54: 0 | K54: 0 | L54: 0 | M54: 0 | N54: 0 | O54: 0 | P54: 0 | Q54: 0 | R54: 0 | S54: 0 | T54: 0 | U54: 0 | V54: 0 | W54: 0 | X54: 0 | Y54: 5580.5 | Z54: 1100 | AA54: 0 | AB54: 0 | AC54: 6680.5 | AD54: 0 | AE54: 0 | AF54: 0 | AG54: 0 | AH54: 0 | AI54: 0 | AJ54: 0 | AK54: 0 | AL54: 0 | AM54: 0 | AN54: 0 | AO54: 0 | AP54: 0 | AQ54: 0 | AR54: 0 | AS54: 0 | AT54: 0 | AU54: 0 | AV54: 0 | AW54: 0 | AX54: 0 | AY54: 0 | AZ54: 0 | BA54: 0 | BB54: 0 | BC54: 0 | BD54: 0 | BE54: 0 | BF54: 0 | BG54: 0 | BH54: 0 | BI54: 0 | BJ54: 0 | BK54: 0 | BL54: 0 | BM54: 0 | BN54: 0 | BO54: 0 | BP54: 0 | BQ54: 0 | BR54: 0 | BS54: =AVERAGE(BO54,BQ54,BR54) -> 0 | BT54: =AVERAGE(BQ54,BR54,BS54) -> 0 | BU54: 0 | BV54: 0 | BW54: 0 | BZ54: =P54 -> 0 | CA54: =AC54 -> 6680.5 | CB54: =AP54 -> 0 | CC54: =BC54 -> 0 | CD54: =BP54 -> 0 | CE54: =SUM(K54:O54,Q54:W54) -> 0 | CF54: =SUM(X54:AB54,AD54:AJ54) -> 6680.5 | CG54: =SUM(AK54:AO54,AQ54:AW54) -> 0 | CH54: =SUM(AX54:BB54,BD54:BJ54) -> 0 | CI54: =SUM(BK54:BO54,BQ54:BW54) -> 0 | CK54: IPCA
C55: Repasse Tarifário a Municípios | D55: 0 | E55: 0 | F55: 0 | G55: 0 | H55: 0 | I55: 0 | J55: 0 | K55: 0 | L55: 0 | M55: 0 | N55: 0 | O55: 0 | P55: 0 | Q55: 0 | R55: 0 | S55: 0 | T55: 0 | U55: 0 | V55: 0 | W55: 0 | X55: 0 | Y55: 0 | Z55: 0 | AA55: 0 | AB55: 0 | AC55: 0 | AD55: 0 | AE55: 0 | AF55: 0 | AG55: 0 | AH55: 0 | AI55: 0 | AJ55: 0 | AK55: 0 | AL55: 0 | AM55: 0 | AN55: 0 | AO55: 0 | AP55: 0 | AQ55: 0 | AR55: 0 | AS55: 0 | AT55: 0 | AU55: 0 | AV55: 0 | AW55: 0 | AX55: 0 | AY55: 37459.13 | AZ55: 8017.71 | BA55: 9514.33 | BB55: 5759.31 | BC55: 60750.48 | BD55: 6361.24 | BE55: 8442.47 | BF55: 7438.2 | BG55: 5435.64 | BH55: 6959.39 | BI55: 6949.85 | BJ55: 6710.53 | BK55: 7128.03 | BL55: 46699.11 | BM55: 44974.42 | BN55: 50677.37 | BO55: 41359.05 | BP55: 239135.3 | BQ55: 40947.75 | BR55: 44861.72 | BS55: 42389.50667 | BT55: 42732.99222 | BU55: 43328.07296 | BV55: 42816.85728 | BW55: 42959.30749 | BZ55: 0 | CA55: 0 | CB55: 0 | CC55: 60750.48 | CD55: 239135.3 | CE55: 0 | CF55: 0 | CG55: 0 | CH55: =SUM(AX55:BB55,BD55:BJ55) -> 109047.8 | CI55: 490874.1866 | CK55: IPCA
C56: Indenizações e Despesas Judiciais | D56: 124642.84 | E56: 2256.68 | F56: -58484.34 | G56: 1769.6 | H56: 43393.06 | I56: 18266.76 | J56: 57818.76 | K56: 48123.16 | L56: 103458.17 | M56: 27645.39 | N56: 71657.16 | O56: 163810.96 | P56: 604358.2 | Q56: 99108.48 | R56: 98259.01 | S56: 50250 | T56: 18183.87 | U56: 114979.92 | V56: 177139.66 | W56: 125864.58 | X56: 594891.26 | Y56: 11430.57 | Z56: 9235.21 | AA56: 53960.59 | AB56: 50478.86 | AC56: 1403782.01 | AD56: 19120.62 | AE56: 11463.17 | AF56: 215705.79 | AG56: 36579.65 | AH56: 52638.41 | AI56: -64024.47 | AJ56: 5764.6 | AK56: 54409.44 | AL56: -19393.55 | AM56: 68169.52 | AN56: 36291.51 | AO56: 5019.42 | AP56: 421744.11 | AQ56: 18492.94 | AR56: 24507.93 | AS56: 88200.12 | AT56: 12720.79 | AU56: 16913.25 | AV56: 7775.52 | AW56: 2443.58 | AX56: 21590.84 | AY56: 261686.44 | AZ56: 5335.9 | BA56: 7902.16 | BB56: -4158.75 | BC56: 463410.72 | BD56: 12363.46 | BE56: 26061.31 | BF56: 71847.65 | BG56: 13281.59 | BH56: 8263.96 | BI56: 9433.83 | BJ56: 42495.54 | BK56: 22366.47 | BL56: 261037.13 | BM56: 21188.84 | BN56: 8153.35 | BO56: 15634.11 | BP56: 512127.24 | BQ56: 18310.57 | BR56: 34184.29 | BS56: 22709.65667 | BT56: 25068.17222 | BU56: 27320.7063 | BV56: 25032.84506 | BW56: 25807.24119 | BZ56: 604358.2 | CA56: 1403782.01 | CB56: 421744.11 | CC56: 463410.72 | CD56: 512127.24 | CE56: 1098480.36 | CF56: 997244.26 | CG56: 315550.47 | CH56: 476103.93 | CI56: 506813.3814 | CK56: IPCA
C57: Multas e Juros | D57: 0 | E57: 0 | F57: 0 | G57: 338.26 | H57: 2985.94 | I57: 8569.11 | J57: 1852.89 | K57: 393.72 | L57: 0 | M57: 877.77 | N57: 1166.09 | O57: 0 | P57: 16183.78 | Q57: 15658.58 | R57: 17.02 | S57: 60615.85 | T57: 0 | U57: 24360.24 | V57: 0 | W57: 0 | X57: 1915.4 | Y57: 0 | Z57: 0 | AA57: 1252.3 | AB57: 135.53 | AC57: 103954.92 | AD57: 34916.91 | AE57: 111418.18 | AF57: 3632.68 | AG57: 4901.98 | AH57: 5141.47 | AI57: 103466.03 | AJ57: 11656.93 | AK57: 39292.77 | AL57: 64254.77 | AM57: 114459.8 | AN57: 81038.27 | AO57: 197406.47 | AP57: 771586.26 | AQ57: 29414.12 | AR57: 151.18 | AS57: 10975.7 | AT57: 2436.9 | AU57: 4831.62 | AV57: 3761.08 | AW57: 2230.11 | AX57: 27135.71 | AY57: 0 | AZ57: 1806.6 | BA57: 0 | BB57: 478.37 | BC57: 83221.39 | BD57: 212.02 | BE57: 3992.33 | BF57: 3815.84 | BG57: 0 | BH57: 49262.22 | BI57: 170.38 | BJ57: 1908.48 | BK57: 1857.27 | BL57: 202.11 | BM57: 1508.71 | BN57: 27450.11 | BO57: 171748.48 | BP57: 262127.95 | BQ57: 21325.02 | BR57: 22216.41 | BS57: 71763.30333 | BT57: 38434.91111 | BU57: 44138.20815 | BV57: 51445.4742 | BW57: 44672.86449 | BZ57: 16183.78 | CA57: 103954.92 | CB57: 771586.26 | CC57: 83221.39 | CD57: 262127.95 | CE57: 103089.27 | CF57: 278437.41 | CG57: 550252.79 | CH57: 88781.95 | CI57: 496762.8713 | CK57: IPCA
C58: Operações com a Controladora | D58: 0 | E58: 0 | F58: 0 | G58: 0 | H58: 0 | I58: 0 | J58: 0 | K58: 0 | L58: 0 | M58: 0 | N58: 0 | O58: 0 | P58: 0 | Q58: 0 | R58: 0 | S58: 0 | T58: 0 | U58: 0 | V58: 0 | W58: 0 | X58: 0 | Y58: 0 | Z58: 0 | AA58: 0 | AB58: 0 | AC58: 0 | AD58: 0 | AE58: 0 | AF58: 0 | AG58: 0 | AH58: 0 | AI58: 0 | AJ58: 0 | AK58: 0 | AL58: 1608.72 | AM58: 0 | AN58: 0 | AO58: 0 | AP58: 1608.72 | AQ58: 0 | AR58: 0 | AS58: 0 | AT58: 0 | AU58: 0 | AV58: 0 | AW58: 0 | AX58: 0 | AY58: 0 | AZ58: 167.06 | BA58: 0 | BB58: 29.48 | BC58: 196.54 | BD58: 0 | BE58: 0 | BF58: 0 | BG58: 0 | BH58: 0 | BI58: 0 | BJ58: 0 | BK58: 0 | BL58: 0 | BM58: 0 | BN58: 1843.4 | BO58: 0 | BP58: 1843.4 | BQ58: 0 | BR58: 0 | BS58: 0 | BT58: 0 | BU58: 0 | BV58: 0 | BW58: 0 | BZ58: 0 | CA58: 0 | CB58: 1608.72 | CC58: 196.54 | CD58: 1843.4 | CE58: 0 | CF58: 0 | CG58: 1608.72 | CH58: 196.54 | CI58: 1843.4 | CK58: IPCA
C59: Outros não associados aos serv. de água e esgoto | D59: 36 | E59: 70 | F59: 225.4 | G59: 14.89 | H59: 160.4 | I59: 325.6 | J59: 83.43 | K59: 74.16 | L59: 217.9 | M59: 625 | N59: 0 | O59: 595.65 | P59: 2428.43 | Q59: 614.9 | R59: 1578.13 | S59: 440.7 | T59: 1505.8 | U59: 849.26 | V59: 779.02 | W59: 458.05 | X59: 752 | Y59: 434 | Z59: 0 | AA59: 883.7 | AB59: 0 | AC59: 8295.56 | AD59: 0 | AE59: 0 | AF59: 112 | AG59: 0 | AH59: 0 | AI59: 0 | AJ59: 190 | AK59: 486.72 | AL59: 0 | AM59: 0 | AN59: 0 | AO59: 0 | AP59: 788.72 | AQ59: 1000 | AR59: 3767.2 | AS59: 582.4 | AT59: 0 | AU59: 28576.5 | AV59: 5148.6 | AW59: 0 | AX59: 0 | AY59: 0 | AZ59: 0 | BA59: 0 | BB59: 12110.9 | BC59: 51185.6 | BD59: 0 | BE59: 0 | BF59: 9633.15 | BG59: 140 | BH59: 692.6 | BI59: 0 | BJ59: 160 | BK59: 130 | BL59: 5539.3 | BM59: 51388.8 | BN59: 265 | BO59: 23.15 | BP59: 67972 | BQ59: 0 | BR59: 260 | BS59: 94.38333333 | BT59: 118.1277778 | BU59: 157.5037037 | BV59: 123.3382716 | BW59: 132.9899177 | BZ59: 2428.43 | CA59: 8295.56 | CB59: 788.72 | CC59: 51185.6 | CD59: 67972 | CE59: 7738.57 | CF59: 2371.7 | CG59: 39561.42 | CH59: 22736.65 | CI59: 58232.593 | CK59: IPCA
C60: Total - Glosas | D60: 124678.84 | E60: 2326.68 | F60: -58258.94 | G60: 2122.75 | H60: 46539.4 | I60: 27161.47 | J60: 59755.08 | K60: 48591.04 | L60: 103676.07 | M60: 29148.16 | N60: 72823.25 | O60: 164406.61 | P60: 622970.41 | Q60: 115381.96 | R60: 99854.16 | S60: 111306.55 | T60: 19689.67 | U60: 140189.42 | V60: 177918.68 | W60: 126322.63 | X60: 597558.66 | Y60: 17445.07 | Z60: 10335.21 | AA60: 56096.59 | AB60: 50614.39 | AC60: 1522712.99 | AD60: 54037.53 | AE60: 122881.35 | AF60: 219450.47 | AG60: 41481.63 | AH60: 57779.88 | AI60: 39441.56 | AJ60: 17611.53 | AK60: 94188.93 | AL60: 46469.94 | AM60: 182629.32 | AN60: 117329.78 | AO60: 202425.89 | AP60: 1195727.81 | AQ60: 48907.06 | AR60: 28426.31 | AS60: 99758.22 | AT60: 15157.69 | AU60: 50321.37 | AV60: 16685.2 | AW60: 4673.69 | AX60: 48726.55 | AY60: 299145.57 | AZ60: 15327.27 | BA60: 17416.49 | BB60: 14219.31 | BC60: 658764.73 | BD60: 18936.72 | BE60: 38496.11 | BF60: 92734.84 | BG60: 18857.23 | BH60: 65178.17 | BI60: 16554.06 | BJ60: 51274.55 | BK60: 31481.77 | BL60: 313477.65 | BM60: 119060.77 | BN60: 88389.23 | BO60: 228764.79 | BP60: 1083205.89 | BQ60: 80583.34 | BR60: 101522.42 | BS60: =SUM(BS54:BS59) -> 136956.85 | BT60: 106354.2033 | BU60: 114944.4911 | BV60: 119418.5148 | BW60: 113572.4031 | BZ60: =SUM(BZ54:BZ59) -> 622970.41 | CA60: 1522712.99 | CB60: 1195727.81 | CC60: 658764.73 | CD60: 1083205.89 | CE60: 1209308.2 | CF60: 1284733.87 | CG60: 906973.4 | CH60: 696866.87 | CI60: 1554526.432
C62: Provisões | D62: 49651.59 | E62: 51452.85 | F62: 146142.87 | G62: 89575.2 | H62: -162346.24 | I62: 140281.83 | J62: 122942.39 | K62: 166995.95 | L62: -63384.53 | M62: 98689.66 | N62: 57219.65 | O62: 1043040.36 | P62: 1740261.58 | Q62: 154430.01 | R62: 100769.03 | S62: 76022.25 | T62: 72794.83 | U62: 208693.43 | V62: 174543.79 | W62: 120544.64 | X62: 140747.03 | Y62: 177842.76 | Z62: 94513.09 | AA62: 46300.78 | AB62: 1061159.81 | AC62: 2428361.45 | AD62: -265228.12 | AE62: 46011.29 | AF62: 104191.46 | AG62: 20550.31 | AH62: 85021.6 | AI62: -1440580.49 | AJ62: 31066.92 | AK62: 143120.22 | AL62: 104422.9 | AM62: 139008.11 | AN62: 102625.36 | AO62: 188050.8 | AP62: -741739.64 | AQ62: 172967.25 | AR62: 178776.74 | AS62: 729550.66 | AT62: 232764.07 | AU62: 150430.22 | AV62: 154153.19 | AW62: 197876.01 | AX62: 365920.71 | AY62: 1359181.58 | AZ62: 279989.33 | BA62: 161815.12 | BB62: 643587.46 | BC62: 4627012.34 | BD62: 237398.35 | BE62: 70125.03 | BF62: 209887.52 | BG62: 174463.65 | BH62: 228161.47 | BI62: 530812.84 | BJ62: 357335.79 | BK62: 318528.82 | BL62: 703576.63 | BM62: 445340.53 | BN62: 323799.91 | BO62: 110253.74 | BP62: 3709684.28 | BQ62: 95824.67 | BR62: 255563.36 | BS62: =AVERAGE(BJ62,BQ62,BR62) -> 236241.2733 | BT62: =AVERAGE(BK62,BR62,BS62) -> 270111.1511 | BU62: =AVERAGE(BL62,BS62,BT62) -> 403309.6848 | BV62: =AVERAGE(BM62,BT62,BU62) -> 372920.4553 | BW62: =AVERAGE(BN62,BU62,BV62) -> 366676.6834 | BZ62: =P62 -> 1740261.58 | CA62: =AC62 -> 2428361.45 | CB62: =AP62 -> -741739.64 | CC62: =BC62 -> 4627012.34 | CD62: =BP62 -> 3709684.28 | CE62: =SUM(K62:O62,Q62:W62) -> 2210359.07 | CF62: =SUM(X62:AB62,AD62:AJ62) -> 101596.44 | CG62: =SUM(AK62:AO62,AQ62:AW62) -> 2493745.53 | CH62: =SUM(AX62:BB62,BD62:BJ62) -> 4618678.85 | CI62: =SUM(BK62:BO62,BQ62:BW62) -> 3902146.908 | CK62: IPCA
C63: Baixa de Ativos e Materiais | D63: -4318.6 | E63: -241.48 | F63: 3.57 | G63: 0.65 | H63: 1.65 | I63: 1.64 | J63: 1.76 | K63: 2.04 | L63: 0.73 | M63: 3.09 | N63: 1229.36 | O63: 3.73 | P63: -3311.86 | Q63: 0.77 | R63: 1.56 | S63: 2.41 | T63: 0.99 | U63: 1.79 | V63: 908.14 | W63: 612.03 | X63: 154.46 | Y63: 598.79 | Z63: 0.68 | AA63: 1.66 | AB63: 111.23 | AC63: 2394.51 | AD63: 4836.18 | AE63: 0.59 | AF63: 6.78 | AG63: 2.26 | AH63: 1.34 | AI63: 2.67 | AJ63: 2.42 | AK63: 2.6 | AL63: 2.63 | AM63: 1.38 | AN63: 2.77 | AO63: 5200000.36 | AP63: 5204861.98 | AQ63: 1.45 | AR63: 0.85 | AS63: 157.57 | AT63: 1934.32 | AU63: 153.04 | AV63: -112.74 | AW63: -5.48 | AX63: 45.65 | AY63: -78.61 | AZ63: -585.85 | BA63: -2.4 | BB63: -5200497.35 | BC63: -5198989.55 | BD63: 1.75 | BE63: 891.07 | BF63: -660.05 | BG63: 2.15 | BH63: -12.96 | BI63: 1.97 | BJ63: 1.6 | BK63: 1.73 | BL63: -144.63 | BM63: 1.33 | BN63: -35.9 | BO63: -3111.99 | BP63: -3063.93 | BQ63: 0.86 | BR63: -3673.17 | BS63: =BF63*(1+HLOOKUP($CK63,'3.Índices_inflação'!$B$142:$AY$149,8,FALSE)) -> -722.0090702 | BT63: =BG63*(1+HLOOKUP($CK63,'3.Índices_inflação'!$B$142:$AY$149,8,FALSE)) -> 2.351821076 | BU63: =BH63*(1+HLOOKUP($CK63,'3.Índices_inflação'!$B$142:$AY$149,8,FALSE)) -> -14.17655867 | BV63: =BI63*(1+HLOOKUP($CK63,'3.Índices_inflação'!$B$142:$AY$149,8,FALSE)) -> 2.154924428 | BW63: =BJ63*(1+HLOOKUP($CK63,'3.Índices_inflação'!$B$142:$AY$149,8,FALSE)) -> 1.750192428 | BZ63: =P63 -> -3311.86 | CA63: =AC63 -> 2394.51 | CB63: =AP63 -> 5204861.98 | CC63: =BC63 -> -5198989.55 | CD63: -3063.93 | CE63: =SUM(K63:O63,Q63:W63) -> 2766.64 | CF63: =SUM(X63:AB63,AD63:AJ63) -> 5719.06 | CG63: =SUM(AK63:AO63,AQ63:AW63) -> 5202138.75 | CH63: =SUM(AX63:BB63,BD63:BJ63) -> -5200893.03 | CI63: -7691.698691 | CK63: IPCA
C64: Ajustes de Inventário e Outros | D64: -1.31 | E64: -29770.18 | F64: -33.14 | G64: -2.98 | H64: -0.89 | I64: -0.42 | J64: -81.02 | K64: -27958.42 | L64: -0.61 | M64: -0.18 | N64: -0.29 | O64: -3.09 | P64: -57852.53 | Q64: -1.59 | R64: -0.08 | S64: -4.1 | T64: -0.75 | U64: -2.66 | V64: -7.29 | W64: -1.31 | X64: -4 | Y64: -3.93 | Z64: -0.46 | AA64: -0.24 | AB64: -9376.68 | AC64: -9403.09 | AD64: -0.03 | AE64: -1349.28 | AF64: -656.41 | AG64: -78.16 | AH64: -2.51 | AI64: -1.9 | AJ64: -598.62 | AK64: -0.19 | AL64: -2.66 | AM64: -0.24 | AN64: -9.2 | AO64: -4.97 | AP64: -2704.17 | AQ64: -0.2 | AR64: -2.67 | AS64: -32.62 | AT64: -2.92 | AU64: -0.68 | AV64: -1.7 | AW64: -0.88 | AX64: -1.08 | AY64: -1.18 | AZ64: -170.71 | BA64: -2.4 | BB64: -0.47 | BC64: -217.51 | BD64: -0.13 | BE64: -0.36 | BF64: -0.43 | BG64: -0.19 | BH64: -1.82 | BI64: -0.23 | BJ64: -0.15 | BK64: -0.16 | BL64: -0.21 | BM64: -0.97 | BN64: -0.41 | BO64: -3.15 | BP64: -8.21 | BQ64: -1.12 | BR64: -1.39 | BS64: =BF64*(1+HLOOKUP($CK64,'3.Índices_inflação'!$B$142:$AY$149,8,FALSE)) -> -0.4703642151 | BT64: =BG64*(1+HLOOKUP($CK64,'3.Índices_inflação'!$B$142:$AY$149,8,FALSE)) -> -0.2078353509 | BU64: =BH64*(1+HLOOKUP($CK64,'3.Índices_inflação'!$B$142:$AY$149,8,FALSE)) -> -1.990843887 | BV64: =BI64*(1+HLOOKUP($CK64,'3.Índices_inflação'!$B$142:$AY$149,8,FALSE)) -> -0.2515901616 | BW64: =BJ64*(1+HLOOKUP($CK64,'3.Índices_inflação'!$B$142:$AY$149,8,FALSE)) -> -0.1640805402 | BZ64: =P64 -> -57852.53 | CA64: =AC64 -> -9403.09 | CB64: =AP64 -> -2704.17 | CC64: =BC64 -> -217.51 | CD64: -8.21 | CE64: =SUM(K64:O64,Q64:W64) -> -27980.37 | CF64: =SUM(X64:AB64,AD64:AJ64) -> -12072.22 | CG64: =SUM(AK64:AO64,AQ64:AW64) -> -58.93 | CH64: -179.15 | CI64: -10.49471416 | CK64: IPCA
C65: Receita/Custos de Construção | D65: 0 | E65: 0 | F65: 0 | G65: 0 | H65: 0 | I65: 0 | J65: 0 | K65: 0 | L65: 0 | M65: 0 | N65: 0 | O65: 0 | P65: 0 | Q65: 0 | R65: 0 | S65: 0 | T65: 0 | U65: 0 | V65: 0 | W65: 0 | X65: 0 | Y65: 0 | Z65: 0 | AA65: 0 | AB65: 0 | AC65: 0 | AD65: 0 | AE65: 0 | AF65: 9.313225746e-10 | AG65: 0 | AH65: 0 | AI65: 0 | AJ65: 0 | AK65: 0 | AL65: 0 | AM65: 0 | AN65: 0 | AO65: 9.313225746e-10 | AP65: 1.862645149e-09 | AQ65: 0 | AR65: 0 | AS65: 4.656612873e-10 | AT65: 0 | AU65: 0 | AV65: 0 | AW65: 0 | AX65: 0 | AY65: 0 | AZ65: 0 | BA65: 0 | BB65: 0 | BC65: 4.656612873e-10 | BD65: 0 | BE65: 0 | BF65: -2.328306437e-10 | BG65: 0 | BH65: 0 | BI65: 2.328306437e-10 | BJ65: 0 | BK65: 0 | BL65: 0 | BM65: 0 | BN65: 0 | BO65: -9.313225746e-10 | BP65: -9.313225746e-10 | BQ65: 0 | BR65: 0 | BS65: =BF65*(1+HLOOKUP($CK65,'3.Índices_inflação'!$B$142:$AY$149,8,FALSE)) -> -2.546865185e-10 | BT65: =BG65*(1+HLOOKUP($CK65,'3.Índices_inflação'!$B$142:$AY$149,8,FALSE)) -> 0 | BU65: =BH65*(1+HLOOKUP($CK65,'3.Índices_inflação'!$B$142:$AY$149,8,FALSE)) -> 0 | BV65: =BI65*(1+HLOOKUP($CK65,'3.Índices_inflação'!$B$142:$AY$149,8,FALSE)) -> 2.546865185e-10 | BW65: =BJ65*(1+HLOOKUP($CK65,'3.Índices_inflação'!$B$142:$AY$149,8,FALSE)) -> 0 | BZ65: =P65 -> 0 | CA65: =AC65 -> 0 | CB65: =AP65 -> 1.862645149e-09 | CC65: =BC65 -> 4.656612873e-10 | CD65: -9.313225746e-10 | CE65: =SUM(K65:O65,Q65:W65) -> 0 | CF65: =SUM(X65:AB65,AD65:AJ65) -> 9.313225746e-10 | CG65: =SUM(AK65:AO65,AQ65:AW65) -> 1.396983862e-09 | CH65: 0 | CI65: -9.313225746e-10 | CK65: IPCA
C66: Capitalização e ganho de ativos financeiros | D66: 0 | E66: 0 | F66: 0 | G66: 0 | H66: 0 | I66: 0 | J66: 0 | K66: 0 | L66: 0 | M66: 0 | N66: 0 | O66: 0 | P66: 0 | Q66: 0 | R66: 0 | S66: 0 | T66: 0 | U66: 0 | V66: 0 | W66: 0 | X66: 0 | Y66: 0 | Z66: 0 | AA66: 0 | AB66: -291.67 | AC66: -291.67 | AD66: 0 | AE66: 0 | AF66: -34780.31 | AG66: 0 | AH66: 0 | AI66: -24982.6 | AJ66: 0 | AK66: 0 | AL66: -12509.47 | AM66: 0 | AN66: 0 | AO66: -24918.58 | AP66: -97190.96 | AQ66: 0 | AR66: 0 | AS66: -8216.29 | AT66: 0 | AU66: 0 | AV66: -46628.91 | AW66: 0 | AX66: 0 | AY66: -98207.66 | AZ66: 0 | BA66: 0 | BB66: -56090.91 | BC66: -209143.77 | BD66: 0 | BE66: 0 | BF66: -74894.51 | BG66: 0 | BH66: 0 | BI66: -83712.04 | BJ66: 0 | BK66: 0 | BL66: -92523.12 | BM66: 0 | BN66: 0 | BO66: -98838.13 | BP66: -349967.8 | BQ66: 0 | BR66: 0 | BS66: =AVERAGE(BJ66,BQ66,BR66) -> 0 | BT66: =AVERAGE(BK66,BR66,BS66) -> 0 | BU66: =AVERAGE(BL66,BS66,BT66) -> -30841.04 | BV66: =AVERAGE(BM66,BT66,BU66) -> -10280.34667 | BW66: =AVERAGE(BN66,BU66,BV66) -> -13707.12889 | BZ66: =P66 -> 0 | CA66: =AC66 -> -291.67 | CB66: =AP66 -> -97190.96 | CC66: =BC66 -> -209143.77 | CD66: -349967.8 | CE66: =SUM(K66:O66,Q66:W66) -> 0 | CF66: =SUM(X66:AB66,AD66:AJ66) -> -60054.58 | CG66: =SUM(AK66:AO66,AQ66:AW66) -> -92273.25 | CH66: -312905.12 | CI66: -246189.7656 | CK66: IPCA
C67: Total - Contas sem efeito nas análises tarifárias | D67: 45331.68 | E67: 21441.19 | F67: 146113.3 | G67: 89572.87 | H67: -162345.48 | I67: 140283.05 | J67: 122863.13 | K67: 139039.57 | L67: -63384.41 | M67: 98692.57 | N67: 58448.72 | O67: 1043041 | P67: 1679097.19 | Q67: 154429.19 | R67: 100770.51 | S67: 76020.56 | T67: 72795.07 | U67: 208692.56 | V67: 175444.64 | W67: 121155.36 | X67: 140897.49 | Y67: 178437.62 | Z67: 94513.31 | AA67: 46302.2 | AB67: 1051602.69 | AC67: 2421061.2 | AD67: -260391.97 | AE67: 44662.6 | AF67: 68761.52 | AG67: 20474.41 | AH67: 85020.43 | AI67: -1465562.32 | AJ67: 30470.72 | AK67: 143122.63 | AL67: 91913.4 | AM67: 139009.25 | AN67: 102618.93 | AO67: 5363127.61 | AP67: 4363227.21 | AQ67: 172968.5 | AR67: 178774.92 | AS67: 721459.32 | AT67: 234695.47 | AU67: 150582.58 | AV67: 107409.84 | AW67: 197869.65 | AX67: 365965.28 | AY67: 1260894.13 | AZ67: 279232.77 | BA67: 161810.32 | BB67: -4613001.27 | BC67: -781338.49 | BD67: 237399.97 | BE67: 71015.74 | BF67: 134332.53 | BG67: 174465.61 | BH67: 228146.69 | BI67: 447102.54 | BJ67: 357337.24 | BK67: 318530.39 | BL67: 610908.67 | BM67: 445340.89 | BN67: 323763.6 | BO67: 8300.47 | BP67: 3356644.34 | BQ67: 95824.41 | BR67: 251888.8 | BS67: =SUM(BS62:BS66) -> 235518.7939 | BT67: 270113.2951 | BU67: 372452.4774 | BV67: 362642.012 | BW67: 352971.1406 | BZ67: =SUM(BZ62:BZ66) -> 1679097.19 | CA67: 2421061.2 | CB67: 4363227.21 | CC67: -781338.49 | CD67: 3356644.34 | CE67: 2185145.34 | CF67: 35188.7 | CG67: 7603552.1 | CH67: -895298.45 | CI67: 3648254.949
C70: Resultado do período | D70: 32125.02 | E70: 378562.86 | F70: 881789.4 | G70: 739609.48 | H70: 627943.56 | I70: 756670.07 | J70: 701506.13 | K70: 811214.05 | L70: 691254.41 | M70: 470979.67 | N70: 533215.92 | O70: 1954729.14 | P70: 8579599.71 | Q70: 491057.55 | R70: 480527.44 | S70: 219319.84 | T70: 713593.98 | U70: 987740.92 | V70: 879171.13 | W70: 1482287.13 | X70: 1927708.86 | Y70: 1155116.46 | Z70: 1465436.67 | AA70: 1850699.26 | AB70: 2855416.13 | AC70: 14508075.37 | AD70: 1178355.81 | AE70: 953746.54 | AF70: 1225413.22 | AG70: 903731.26 | AH70: 1218755.06 | AI70: -478764.88 | AJ70: 1686555.88 | AK70: 1541910.87 | AL70: 1016280.69 | AM70: 899026.57 | AN70: 724402.15 | AO70: 7102758.73 | AP70: 17972171.9 | AQ70: 704866.71 | AR70: 1006839.81 | AS70: 2072153.63 | AT70: 850333.47 | AU70: 874734.42 | AV70: 316334.65 | AW70: 624370.88 | AX70: 884924.04 | AY70: 2292340.64 | AZ70: -188290.65 | BA70: 1196629.22 | BB70: -3249019.78 | BC70: 7386217.04 | BD70: -88662.9325 | BE70: 723801.9275 | BF70: 1457744.367 | BG70: 885804.0975 | BH70: 770852.55 | BI70: 1256309.26 | BJ70: 959514.87 | BK70: 488987.02 | BL70: 1988773.39 | BM70: 688440.78 | BN70: 1652988.37 | BO70: 1906078.74 | BP70: 12690632.44 | BQ70: 505221.53 | BR70: 1191000.65 | BS70: =BS11+BS20+BS38+BS47+BS41+BS52+BS60+BS67 -> 1395421.835 | BT70: 1134583.312 | BU70: 1219920.934 | BV70: 1394128.895 | BW70: 1249489.666 | BZ70: =BZ11+BZ20+BZ38+BZ47+BZ41+BZ52+BZ60+BZ67 -> 44072246.65 | CA70: 53911489.5 | CB70: 62772181.17 | CC70: 47996289.06 | CD70: 56671112.72 | CE70: 45516160.69 | CF70: 61027652.76 | CG70: 59708149.77 | CH70: 48401491.04 | CI70: 62459196.87
C74: MATERIAIS EM ALMOXARIFADO | D74: 1104888.04 | E74: 1026047.76 | F74: 824653.54 | G74: 615619.97 | H74: 673474.81 | I74: 767245.82 | J74: 778633.45 | K74: 842696.96 | L74: 851322.77 | M74: 927052.5 | N74: 951902.26 | O74: 1016432.39 | P74: 1016432.39 | Q74: 957470.99 | R74: 1210901.51 | S74: 1277666.26 | T74: 1322082.69 | U74: 1323115.73 | V74: 1475779.47 | W74: 1405863.81 | X74: 1400009.88 | Y74: 1381630.09 | Z74: 1423148.6 | AA74: 1834498.5 | AB74: 1745017.08 | AC74: 1745017.08 | AD74: 1729792.65 | AE74: 1851828.04 | AF74: 1874433.14 | AG74: 2058192.66 | AH74: 2117053.6 | AI74: 2175093.99 | AJ74: 2347983.2 | AK74: 2251107.68 | AL74: 2161672.5 | AM74: 2244149.29 | AN74: 2159562.98 | AO74: 1961567.07 | AP74: 1961567.07 | AQ74: 2048721.1 | AR74: 2003104.24 | AS74: 2320485.47 | AT74: 2188244.11 | AU74: 2216219.58 | AV74: 2183441.46 | AW74: 2234330.59 | AX74: 2463760.71 | AY74: 2708942.26 | AZ74: 2746378.85 | BA74: 2622830.7 | BB74: 2462283.58 | BC74: 2462283.58 | BD74: 2766239.82 | BE74: 2936139.75 | BF74: 3158136.97 | BG74: 3600867.95 | BH74: 3625213.1 | BI74: 3559677.03 | BJ74: 3766286.81 | BK74: 3907983.84 | BL74: 3896412.31 | BM74: 4000007.81 | BN74: 3793459.27 | BO74: 4167149.08 | BP74: 3598131.145 | BQ74: 4537114.93 | BR74: 4621087.18 | BS74: 4441783.73 | BT74: 4533328.613 | BU74: 4532066.508 | BV74: 4502392.95 | BW74: 4522596.024 | BZ74: 1016432.39 | CA74: 1745017.08 | CB74: 1961567.07 | CC74: 2462283.58 | CD74: 3598131.145 | CE74: 1130190.612 | CF74: 1828223.453 | CG74: 2164383.839 | CH74: 3304809.991 | CI74: 4287948.52 | CK74: IPCA
C75: ESTOQUES PARA OBRAS / CONVENIOS | D75: 7811358.03 | E75: 7914455.36 | F75: 7662935.83 | G75: 7312682.43 | H75: 6773723.47 | I75: 6730527.92 | J75: 6746250.08 | K75: 7046473.61 | L75: 6551155.73 | M75: 6322386.31 | N75: 6142258.23 | O75: 5702787.03 | P75: 5702787.03 | Q75: 5664395.1 | R75: 5701467.48 | S75: 5640292.07 | T75: 5655796.6 | U75: 5396344.1 | V75: 5368392.05 | W75: 5267880.22 | X75: 5350897.04 | Y75: 5444629.47 | Z75: 5614580.85 | AA75: 6659884.44 | AB75: 6727647.86 | AC75: 6727647.86 | AD75: 6749202.16 | AE75: 6994460.82 | AF75: 7110740.37 | AG75: 7270684.66 | AH75: 7696098.32 | AI75: 7942482.2 | AJ75: 8136484.91 | AK75: 8387321 | AL75: 8026806.62 | AM75: 8213176.66 | AN75: 8364611.35 | AO75: 8785278.89 | AP75: 8785278.89 | AQ75: 8958871.95 | AR75: 9090953.74 | AS75: 9344169.5 | AT75: 9550390.14 | AU75: 9701651.42 | AV75: 9726537.7 | AW75: 9914641.07 | AX75: 9815429.69 | AY75: 9575890.76 | AZ75: 9831986.85 | BA75: 9743904.38 | BB75: 9867555.2 | BC75: 9867555.2 | BD75: 10703419.26 | BE75: 10429866.2 | BF75: 12169345.99 | BG75: 13062278.54 | BH75: 13443037.68 | BI75: 13347056.83 | BJ75: 13221856.83 | BK75: 13145290.33 | BL75: 12913754.06 | BM75: 12842236.17 | BN75: 12601085.04 | BO75: 12676361.96 | BP75: 12546299.07 | BQ75: 12676071.4 | BR75: 12821715.56 | BS75: 12906547.93 | BT75: 12957851.27 | BU75: 12926051.09 | BV75: 12908712.84 | BW75: 12811949.66 | BZ75: 5702787.03 | CA75: 6727647.86 | CB75: 8785278.89 | CC75: 9867555.2 | CD75: 12546299.07 | CE75: 5871635.711 | CF75: 6808149.425 | CG75: 9005367.503 | CH75: 11728844.46 | CI75: 12848968.94 | CK75: IPCA
A77: PROCV: | C77: 1 | D77: 67 | E77: 68 | F77: 69 | G77: 70 | H77: 71 | I77: 72 | J77: 73 | K77: 74 | L77: 75 | M77: 76 | N77: 77 | O77: 78 | P77: 79 | Q77: 80 | R77: 81 | S77: 82 | T77: 83 | U77: 84 | V77: 85 | W77: 86 | X77: 87 | Y77: 88 | Z77: 89 | AA77: 90 | AB77: 91 | AC77: 92 | AD77: 93 | AE77: 94 | AF77: 95 | AG77: 96 | AH77: 97 | AI77: 98 | AJ77: 99 | AK77: 100 | AL77: 101 | AM77: 102 | AN77: 103 | AO77: 104 | AP77: 105 | AQ77: 106 | AR77: 107 | AS77: 108 | AT77: 109 | AU77: 110 | AV77: 111 | AW77: 112 | AX77: 113 | AY77: 114 | AZ77: 115 | BA77: 116 | BB77: 117 | BC77: 118 | BD77: 119 | BE77: 120 | BF77: 121 | BG77: 122 | BH77: 123 | BI77: 124 | BJ77: 125 | BK77: 126 | BL77: 127 | BM77: 128 | BN77: 129 | BO77: 130 | BP77: 131 | BQ77: 132 | BR77: 133 | BS77: 134 | BT77: 135 | BU77: 136 | BV77: 137 | BW77: 138

Sheet 2.Dados_cont_atualizados
A1: ARSAE-MG
A2: Dados contábeis agregados conforme classificação regulatória RTP 2022, atualizados pela inflação acumulada até julho/2022
BZ3: Totais atualizados pela inflação até julho/2022 (índices previstos a partir de nov/21) | CK3: Índices inflação | CL3: Auxiliar Proch
C4: Classificação Regulatória | D4: 2017-01-01 | E4: 2017-02-01 | F4: 2017-03-01 | G4: 2017-04-01 | H4: 2017-05-01 | I4: 2017-06-01 | J4: 2017-07-01 | K4: 2017-08-01 | L4: 2017-09-01 | M4: 2017-10-01 | N4: 2017-11-01 | O4: 2017-12-01 | P4: 2017 | Q4: 2018-01-01 | R4: 2018-02-01 | S4: 2018-03-01 | T4: 2018-04-01 | U4: 2018-05-01 | V4: 2018-06-01 | W4: 2018-07-01 | X4: 2018-08-01 | Y4: 2018-09-01 | Z4: 2018-10-01 | AA4: 2018-11-01 | AB4: 2018-12-01 | AC4: 2018 | AD4: 2019-01-01 | AE4: 2019-02-01 | AF4: 2019-03-01 | AG4: 2019-04-01 | AH4: 2019-05-01 | AI4: 2019-06-01 | AJ4: 2019-07-01 | AK4: 2019-08-01 | AL4: 2019-09-01 | AM4: 2019-10-01 | AN4: 2019-11-01 | AO4: 2019-12-01 | AP4: 2019 | AQ4: 2020-01-01 | AR4: 2020-02-01 | AS4: 2020-03-01 | AT4: 2020-04-01 | AU4: 2020-05-01 | AV4: 2020-06-01 | AW4: 2020-07-01 | AX4: 2020-08-01 | AY4: 2020-09-01 | AZ4: 2020-10-01 | BA4: 2020-11-01 | BB4: 2020-12-01 | BC4: 2020 | BD4: 2021-01-01 | BE4: 2021-02-01 | BF4: 2021-03-01 | BG4: 2021-04-01 | BH4: 2021-05-01 | BI4: 2021-06-01 | BJ4: 2021-07-01 | BK4: 2021-08-01 | BL4: 2021-09-01 | BM4: 2021-10-01 | BN4: 2021-11-01 | BO4: 2021-12-01 | BP4: 2021 | BQ4: 2022-01-01 | BR4: 2022-02-01 | BS4: 2022-03-01 | BT4: 2022-04-01 | BU4: 2022-05-01 | BV4: 2022-06-01 | BW4: 2022-07-01 | BZ4: 2017 | CA4: 2018 | CB4: 2019 | CC4: 2020 | CD4: 2021 | CE4: PR2017/18 | CF4: PR2018/19 | CG4: PR2019/20 | CH4: PR2020/21 | CI4: PR2021/22
A6: =C6='1.Dados_cont_historicos'!C6 -> TRUE | C6: Receita Direta de Água | D6: ='1.Dados_cont_historicos'!D6*(1+VLOOKUP('1.Dados_cont_historicos'!D$4,'3.Índices_inflação'!$A$2:$BA$105,$CL6,FALSE)) -> -2757083.602 | E6: ='1.Dados_cont_historicos'!E6*(1+VLOOKUP('1.Dados_cont_historicos'!E$4,'3.Índices_inflação'!$A$2:$BA$105,$CL6,FALSE)) -> -2527194.135 | F6: ='1.Dados_cont_historicos'!F6*(1+VLOOKUP('1.Dados_cont_historicos'!F$4,'3.Índices_inflação'!$A$2:$BA$105,$CL6,FALSE)) -> -2554281.264 | G6: ='1.Dados_cont_historicos'!G6*(1+VLOOKUP('1.Dados_cont_historicos'!G$4,'3.Índices_inflação'!$A$2:$BA$105,$CL6,FALSE)) -> -2519526.711 | H6: ='1.Dados_cont_historicos'!H6*(1+VLOOKUP('1.Dados_cont_historicos'!H$4,'3.Índices_inflação'!$A$2:$BA$105,$CL6,FALSE)) -> -2601209.537 | I6: ='1.Dados_cont_historicos'!I6*(1+VLOOKUP('1.Dados_cont_historicos'!I$4,'3.Índices_inflação'!$A$2:$BA$105,$CL6,FALSE)) -> -2390957.034 | J6: ='1.Dados_cont_historicos'!J6*(1+VLOOKUP('1.Dados_cont_historicos'!J$4,'3.Índices_inflação'!$A$2:$BA$105,$CL6,FALSE)) -> -2524360.619 | K6: ='1.Dados_cont_historicos'!K6*(1+VLOOKUP('1.Dados_cont_historicos'!K$4,'3.Índices_inflação'!$A$2:$BA$105,$CL6,FALSE)) -> -2506656.046 | L6: ='1.Dados_cont_historicos'!L6*(1+VLOOKUP('1.Dados_cont_historicos'!L$4,'3.Índices_inflação'!$A$2:$BA$105,$CL6,FALSE)) -> -2350881.712 | M6: ='1.Dados_cont_historicos'!M6*(1+VLOOKUP('1.Dados_cont_historicos'!M$4,'3.Índices_inflação'!$A$2:$BA$105,$CL6,FALSE)) -> -2788933.454 | N6: ='1.Dados_cont_historicos'!N6*(1+VLOOKUP('1.Dados_cont_historicos'!N$4,'3.Índices_inflação'!$A$2:$BA$105,$CL6,FALSE)) -> -2787968.633 | O6: ='1.Dados_cont_historicos'!O6*(1+VLOOKUP('1.Dados_cont_historicos'!O$4,'3.Índices_inflação'!$A$2:$BA$105,$CL6,FALSE)) -> -2925223.548 | P6: =SUM(D6:O6) -> -31234276.29 | Q6: ='1.Dados_cont_historicos'!Q6*(1+VLOOKUP('1.Dados_cont_historicos'!Q$4,'3.Índices_inflação'!$A$2:$BA$105,$CL6,FALSE)) -> -2770141.643 | R6: ='1.Dados_cont_historicos'!R6*(1+VLOOKUP('1.Dados_cont_historicos'!R$4,'3.Índices_inflação'!$A$2:$BA$105,$CL6,FALSE)) -> -2637524.872 | S6: ='1.Dados_cont_historicos'!S6*(1+VLOOKUP('1.Dados_cont_historicos'!S$4,'3.Índices_inflação'!$A$2:$BA$105,$CL6,FALSE)) -> -2663184.135 | T6: ='1.Dados_cont_historicos'!T6*(1+VLOOKUP('1.Dados_cont_historicos'!T$4,'3.Índices_inflação'!$A$2:$BA$105,$CL6,FALSE)) -> -2379483.227 | U6: ='1.Dados_cont_historicos'!U6*(1+VLOOKUP('1.Dados_cont_historicos'!U$4,'3.Índices_inflação'!$A$2:$BA$105,$CL6,FALSE)) -> -2450195.195 | V6: ='1.Dados_cont_historicos'!V6*(1+VLOOKUP('1.Dados_cont_historicos'!V$4,'3.Índices_inflação'!$A$2:$BA$105,$CL6,FALSE)) -> -2448895.397 | W6: ='1.Dados_cont_historicos'!W6*(1+VLOOKUP('1.Dados_cont_historicos'!W$4,'3.Índices_inflação'!$A$2:$BA$105,$CL6,FALSE)) -> -2364563.232 | X6: ='1.Dados_cont_historicos'!X6*(1+VLOOKUP('1.Dados_cont_historicos'!X$4,'3.Índices_inflação'!$A$2:$BA$105,$CL6,FALSE)) -> -2390355.26 | Y6: ='1.Dados_cont_historicos'!Y6*(1+VLOOKUP('1.Dados_cont_historicos'!Y$4,'3.Índices_inflação'!$A$2:$BA$105,$CL6,FALSE)) -> -2528644.616 | Z6: ='1.Dados_cont_historicos'!Z6*(1+VLOOKUP('1.Dados_cont_historicos'!Z$4,'3.Índices_inflação'!$A$2:$BA$105,$CL6,FALSE)) -> -2810486.435 | AA6: ='1.Dados_cont_historicos'!AA6*(1+VLOOKUP('1.Dados_cont_historicos'!AA$4,'3.Índices_inflação'!$A$2:$BA$105,$CL6,FALSE)) -> -2472455.13 | AB6: ='1.Dados_cont_historicos'!AB6*(1+VLOOKUP('1.Dados_cont_historicos'!AB$4,'3.Índices_inflação'!$A$2:$BA$105,$CL6,FALSE)) -> -2545596.671 | AC6: =SUM(Q6:AB6) -> -30461525.81 | AD6: ='1.Dados_cont_historicos'!AD6*(1+VLOOKUP('1.Dados_cont_historicos'!AD$4,'3.Índices_inflação'!$A$2:$BA$105,$CL6,FALSE)) -> -2172817.014 | AE6: ='1.Dados_cont_historicos'!AE6*(1+VLOOKUP('1.Dados_cont_historicos'!AE$4,'3.Índices_inflação'!$A$2:$BA$105,$CL6,FALSE)) -> -2566333.88 | AF6: ='1.Dados_cont_historicos'!AF6*(1+VLOOKUP('1.Dados_cont_historicos'!AF$4,'3.Índices_inflação'!$A$2:$BA$105,$CL6,FALSE)) -> -2999917.425 | AG6: ='1.Dados_cont_historicos'!AG6*(1+VLOOKUP('1.Dados_cont_historicos'!AG$4,'3.Índices_inflação'!$A$2:$BA$105,$CL6,FALSE)) -> -2521060.906 | AH6: ='1.Dados_cont_historicos'!AH6*(1+VLOOKUP('1.Dados_cont_historicos'!AH$4,'3.Índices_inflação'!$A$2:$BA$105,$CL6,FALSE)) -> -2637782.278 | AI6: ='1.Dados_cont_historicos'!AI6*(1+VLOOKUP('1.Dados_cont_historicos'!AI$4,'3.Índices_inflação'!$A$2:$BA$105,$CL6,FALSE)) -> -2330464.853 | AJ6: ='1.Dados_cont_historicos'!AJ6*(1+VLOOKUP('1.Dados_cont_historicos'!AJ$4,'3.Índices_inflação'!$A$2:$BA$105,$CL6,FALSE)) -> -2619184.912 | AK6: ='1.Dados_cont_historicos'!AK6*(1+VLOOKUP('1.Dados_cont_historicos'!AK$4,'3.Índices_inflação'!$A$2:$BA$105,$CL6,FALSE)) -> -2651829.096 | AL6: ='1.Dados_cont_historicos'!AL6*(1+VLOOKUP('1.Dados_cont_historicos'!AL$4,'3.Índices_inflação'!$A$2:$BA$105,$CL6,FALSE)) -> -2585697.913 | AM6: ='1.Dados_cont_historicos'!AM6*(1+VLOOKUP('1.Dados_cont_historicos'!AM$4,'3.Índices_inflação'!$A$2:$BA$105,$CL6,FALSE)) -> -3144010.898 | AN6: ='1.Dados_cont_historicos'!AN6*(1+VLOOKUP('1.Dados_cont_historicos'!AN$4,'3.Índices_inflação'!$A$2:$BA$105,$CL6,FALSE)) -> -2765890.657 | AO6: ='1.Dados_cont_historicos'!AO6*(1+VLOOKUP('1.Dados_cont_historicos'!AO$4,'3.Índices_inflação'!$A$2:$BA$105,$CL6,FALSE)) -> -2876547.796 | AP6: =SUM(AD6:AO6) -> -31871537.63 | AQ6: ='1.Dados_cont_historicos'!AQ6*(1+VLOOKUP('1.Dados_cont_historicos'!AQ$4,'3.Índices_inflação'!$A$2:$BA$105,$CL6,FALSE)) -> -3146070.408 | AR6: ='1.Dados_cont_historicos'!AR6*(1+VLOOKUP('1.Dados_cont_historicos'!AR$4,'3.Índices_inflação'!$A$2:$BA$105,$CL6,FALSE)) -> -2587753.777 | AS6: ='1.Dados_cont_historicos'!AS6*(1+VLOOKUP('1.Dados_cont_historicos'!AS$4,'3.Índices_inflação'!$A$2:$BA$105,$CL6,FALSE)) -> -2410938.338 | AT6: ='1.Dados_cont_historicos'!AT6*(1+VLOOKUP('1.Dados_cont_historicos'!AT$4,'3.Índices_inflação'!$A$2:$BA$105,$CL6,FALSE)) -> -2492972.084 | AU6: ='1.Dados_cont_historicos'!AU6*(1+VLOOKUP('1.Dados_cont_historicos'!AU$4,'3.Índices_inflação'!$A$2:$BA$105,$CL6,FALSE)) -> -2615466.66 | AV6: ='1.Dados_cont_historicos'!AV6*(1+VLOOKUP('1.Dados_cont_historicos'!AV$4,'3.Índices_inflação'!$A$2:$BA$105,$CL6,FALSE)) -> -2544109.48 | AW6: ='1.Dados_cont_historicos'!AW6*(1+VLOOKUP('1.Dados_cont_historicos'!AW$4,'3.Índices_inflação'!$A$2:$BA$105,$CL6,FALSE)) -> -2777401.036 | AX6: ='1.Dados_cont_historicos'!AX6*(1+VLOOKUP('1.Dados_cont_historicos'!AX$4,'3.Índices_inflação'!$A$2:$BA$105,$CL6,FALSE)) -> -2786496.595 | AY6: ='1.Dados_cont_historicos'!AY6*(1+VLOOKUP('1.Dados_cont_historicos'!AY$4,'3.Índices_inflação'!$A$2:$BA$105,$CL6,FALSE)) -> -3035801.328 | AZ6: ='1.Dados_cont_historicos'!AZ6*(1+VLOOKUP('1.Dados_cont_historicos'!AZ$4,'3.Índices_inflação'!$A$2:$BA$105,$CL6,FALSE)) -> -3658214.662 | BA6: ='1.Dados_cont_historicos'!BA6*(1+VLOOKUP('1.Dados_cont_historicos'!BA$4,'3.Índices_inflação'!$A$2:$BA$105,$CL6,FALSE)) -> -2823195.506 | BB6: ='1.Dados_cont_historicos'!BB6*(1+VLOOKUP('1.Dados_cont_historicos'!BB$4,'3.Índices_inflação'!$A$2:$BA$105,$CL6,FALSE)) -> -2709973.643 | BC6: =SUM(AQ6:BB6) -> -33588393.52 | BD6: ='1.Dados_cont_historicos'!BD6*(1+VLOOKUP('1.Dados_cont_historicos'!BD$4,'3.Índices_inflação'!$A$2:$BA$105,$CL6,FALSE)) -> -3628475.114 | BE6: ='1.Dados_cont_historicos'!BE6*(1+VLOOKUP('1.Dados_cont_historicos'!BE$4,'3.Índices_inflação'!$A$2:$BA$105,$CL6,FALSE)) -> -3171990.489 | BF6: ='1.Dados_cont_historicos'!BF6*(1+VLOOKUP('1.Dados_cont_historicos'!BF$4,'3.Índices_inflação'!$A$2:$BA$105,$CL6,FALSE)) -> -2590661.754 | BG6: ='1.Dados_cont_historicos'!BG6*(1+VLOOKUP('1.Dados_cont_historicos'!BG$4,'3.Índices_inflação'!$A$2:$BA$105,$CL6,FALSE)) -> -2817607.391 | BH6: ='1.Dados_cont_historicos'!BH6*(1+VLOOKUP('1.Dados_cont_historicos'!BH$4,'3.Índices_inflação'!$A$2:$BA$105,$CL6,FALSE)) -> -2964913.288 | BI6: ='1.Dados_cont_historicos'!BI6*(1+VLOOKUP('1.Dados_cont_historicos'!BI$4,'3.Índices_inflação'!$A$2:$BA$105,$CL6,FALSE)) -> -2894037.945 | BJ6: ='1.Dados_cont_historicos'!BJ6*(1+VLOOKUP('1.Dados_cont_historicos'!BJ$4,'3.Índices_inflação'!$A$2:$BA$105,$CL6,FALSE)) -> -2967186.322 | BK6: ='1.Dados_cont_historicos'!BK6*(1+VLOOKUP('1.Dados_cont_historicos'!BK$4,'3.Índices_inflação'!$A$2:$BA$120,$CL6,FALSE)) -> -3002157.39 | BL6: ='1.Dados_cont_historicos'!BL6*(1+VLOOKUP('1.Dados_cont_historicos'!BL$4,'3.Índices_inflação'!$A$2:$BA$120,$CL6,FALSE)) -> -3079286.27 | BM6: ='1.Dados_cont_historicos'!BM6*(1+VLOOKUP('1.Dados_cont_historicos'!BM$4,'3.Índices_inflação'!$A$2:$BA$120,$CL6,FALSE)) -> -3391328.49 | BN6: ='1.Dados_cont_historicos'!BN6*(1+VLOOKUP('1.Dados_cont_historicos'!BN$4,'3.Índices_inflação'!$A$2:$BA$120,$CL6,FALSE)) -> -2796188.23 | BO6: ='1.Dados_cont_historicos'!BO6*(1+VLOOKUP('1.Dados_cont_historicos'!BO$4,'3.Índices_inflação'!$A$2:$BA$120,$CL6,FALSE)) -> -2704829.49 | BP6: =SUM(BD6:BO6) -> -36008662.17 | BQ6: ='1.Dados_cont_historicos'!BQ6*(1+VLOOKUP('1.Dados_cont_historicos'!BQ$4,'3.Índices_inflação'!$A$2:$BA$120,$CL6,FALSE)) -> -3009160.07 | BR6: ='1.Dados_cont_historicos'!BR6*(1+VLOOKUP('1.Dados_cont_historicos'!BR$4,'3.Índices_inflação'!$A$2:$BA$120,$CL6,FALSE)) -> -2859444.41 | BS6: ='1.Dados_cont_historicos'!BS6*(1+VLOOKUP('1.Dados_cont_historicos'!BS$4,'3.Índices_inflação'!$A$2:$BA$120,$CL6,FALSE)) -> -2857811.323 | BT6: ='1.Dados_cont_historicos'!BT6*(1+VLOOKUP('1.Dados_cont_historicos'!BT$4,'3.Índices_inflação'!$A$2:$BA$120,$CL6,FALSE)) -> -2908805.268 | BU6: ='1.Dados_cont_historicos'!BU6*(1+VLOOKUP('1.Dados_cont_historicos'!BU$4,'3.Índices_inflação'!$A$2:$BA$120,$CL6,FALSE)) -> -2875353.667 | BV6: ='1.Dados_cont_historicos'!BV6*(1+VLOOKUP('1.Dados_cont_historicos'!BV$4,'3.Índices_inflação'!$A$2:$BA$120,$CL6,FALSE)) -> -2880656.753 | BW6: ='1.Dados_cont_historicos'!BW6*(1+VLOOKUP('1.Dados_cont_historicos'!BW$4,'3.Índices_inflação'!$A$2:$BA$120,$CL6,FALSE)) -> -2888271.896 | BZ6: =P6 -> -31234276.29 | CA6: =AC6 -> -30461525.81 | CB6: =AP6 -> -31871537.63 | CC6: =BC6 -> -33588393.52 | CD6: =BP6 -> -36008662.17 | CE6: =SUM(K6:O6,Q6:W6) -> -31073651.09 | CF6: =SUM(X6:AB6,AD6:AJ6) -> -30595099.38 | CG6: =SUM(AK6:AO6,AQ6:AW6) -> -32598688.14 | CH6: =SUM(AX6:BB6,BD6:BJ6) -> -36048554.04 | CI6: =SUM(BK6:BO6,BQ6:BW6) -> -35253293.26 | CK6: ETM | CL6: 50
A7: =C7='1.Dados_cont_historicos'!C7 -> TRUE | C7: Receita Direta de Esgoto | D7: ='1.Dados_cont_historicos'!D7*(1+VLOOKUP('1.Dados_cont_historicos'!D$4,'3.Índices_inflação'!$A$2:$BA$105,$CL7,FALSE)) -> -815063.4397 | E7: ='1.Dados_cont_historicos'!E7*(1+VLOOKUP('1.Dados_cont_historicos'!E$4,'3.Índices_inflação'!$A$2:$BA$105,$CL7,FALSE)) -> -735094.5774 | F7: ='1.Dados_cont_historicos'!F7*(1+VLOOKUP('1.Dados_cont_historicos'!F$4,'3.Índices_inflação'!$A$2:$BA$105,$CL7,FALSE)) -> -786412.878 | G7: ='1.Dados_cont_historicos'!G7*(1+VLOOKUP('1.Dados_cont_historicos'!G$4,'3.Índices_inflação'!$A$2:$BA$105,$CL7,FALSE)) -> -755244.4411 | H7: ='1.Dados_cont_historicos'!H7*(1+VLOOKUP('1.Dados_cont_historicos'!H$4,'3.Índices_inflação'!$A$2:$BA$105,$CL7,FALSE)) -> -783725.7891 | I7: ='1.Dados_cont_historicos'!I7*(1+VLOOKUP('1.Dados_cont_historicos'!I$4,'3.Índices_inflação'!$A$2:$BA$105,$CL7,FALSE)) -> -727966.7498 | J7: ='1.Dados_cont_historicos'!J7*(1+VLOOKUP('1.Dados_cont_historicos'!J$4,'3.Índices_inflação'!$A$2:$BA$105,$CL7,FALSE)) -> -748163.8495 | K7: ='1.Dados_cont_historicos'!K7*(1+VLOOKUP('1.Dados_cont_historicos'!K$4,'3.Índices_inflação'!$A$2:$BA$105,$CL7,FALSE)) -> -768844.9796 | L7: ='1.Dados_cont_historicos'!L7*(1+VLOOKUP('1.Dados_cont_historicos'!L$4,'3.Índices_inflação'!$A$2:$BA$105,$CL7,FALSE)) -> -772651.5454 | M7: ='1.Dados_cont_historicos'!M7*(1+VLOOKUP('1.Dados_cont_historicos'!M$4,'3.Índices_inflação'!$A$2:$BA$105,$CL7,FALSE)) -> -786677.3671 | N7: ='1.Dados_cont_historicos'!N7*(1+VLOOKUP('1.Dados_cont_historicos'!N$4,'3.Índices_inflação'!$A$2:$BA$105,$CL7,FALSE)) -> -825725.9576 | O7: ='1.Dados_cont_historicos'!O7*(1+VLOOKUP('1.Dados_cont_historicos'!O$4,'3.Índices_inflação'!$A$2:$BA$105,$CL7,FALSE)) -> -1222718.233 | P7: =SUM(D7:O7) -> -9728289.807 | Q7: ='1.Dados_cont_historicos'!Q7*(1+VLOOKUP('1.Dados_cont_historicos'!Q$4,'3.Índices_inflação'!$A$2:$BA$105,$CL7,FALSE)) -> -793543.1559 | R7: ='1.Dados_cont_historicos'!R7*(1+VLOOKUP('1.Dados_cont_historicos'!R$4,'3.Índices_inflação'!$A$2:$BA$105,$CL7,FALSE)) -> -752248.0074 | S7: ='1.Dados_cont_historicos'!S7*(1+VLOOKUP('1.Dados_cont_historicos'!S$4,'3.Índices_inflação'!$A$2:$BA$105,$CL7,FALSE)) -> -775584.3593 | T7: ='1.Dados_cont_historicos'!T7*(1+VLOOKUP('1.Dados_cont_historicos'!T$4,'3.Índices_inflação'!$A$2:$BA$105,$CL7,FALSE)) -> -657577.6436 | U7: ='1.Dados_cont_historicos'!U7*(1+VLOOKUP('1.Dados_cont_historicos'!U$4,'3.Índices_inflação'!$A$2:$BA$105,$CL7,FALSE)) -> -720181.3167 | V7: ='1.Dados_cont_historicos'!V7*(1+VLOOKUP('1.Dados_cont_historicos'!V$4,'3.Índices_inflação'!$A$2:$BA$105,$CL7,FALSE)) -> -738607.9642 | W7: ='1.Dados_cont_historicos'!W7*(1+VLOOKUP('1.Dados_cont_historicos'!W$4,'3.Índices_inflação'!$A$2:$BA$105,$CL7,FALSE)) -> -677889.2 | X7: ='1.Dados_cont_historicos'!X7*(1+VLOOKUP('1.Dados_cont_historicos'!X$4,'3.Índices_inflação'!$A$2:$BA$105,$CL7,FALSE)) -> -722444.6377 | Y7: ='1.Dados_cont_historicos'!Y7*(1+VLOOKUP('1.Dados_cont_historicos'!Y$4,'3.Índices_inflação'!$A$2:$BA$105,$CL7,FALSE)) -> -756732.1199 | Z7: ='1.Dados_cont_historicos'!Z7*(1+VLOOKUP('1.Dados_cont_historicos'!Z$4,'3.Índices_inflação'!$A$2:$BA$105,$CL7,FALSE)) -> -832218.1199 | AA7: ='1.Dados_cont_historicos'!AA7*(1+VLOOKUP('1.Dados_cont_historicos'!AA$4,'3.Índices_inflação'!$A$2:$BA$105,$CL7,FALSE)) -> -765176.2839 | AB7: ='1.Dados_cont_historicos'!AB7*(1+VLOOKUP('1.Dados_cont_historicos'!AB$4,'3.Índices_inflação'!$A$2:$BA$105,$CL7,FALSE)) -> -879243.6993 | AC7: =SUM(Q7:AB7) -> -9071446.508 | AD7: ='1.Dados_cont_historicos'!AD7*(1+VLOOKUP('1.Dados_cont_historicos'!AD$4,'3.Índices_inflação'!$A$2:$BA$105,$CL7,FALSE)) -> -636171.7084 | AE7: ='1.Dados_cont_historicos'!AE7*(1+VLOOKUP('1.Dados_cont_historicos'!AE$4,'3.Índices_inflação'!$A$2:$BA$105,$CL7,FALSE)) -> -753204.7749 | AF7: ='1.Dados_cont_historicos'!AF7*(1+VLOOKUP('1.Dados_cont_historicos'!AF$4,'3.Índices_inflação'!$A$2:$BA$105,$CL7,FALSE)) -> -893353.9628 | AG7: ='1.Dados_cont_historicos'!AG7*(1+VLOOKUP('1.Dados_cont_historicos'!AG$4,'3.Índices_inflação'!$A$2:$BA$105,$CL7,FALSE)) -> -747141.514 | AH7: ='1.Dados_cont_historicos'!AH7*(1+VLOOKUP('1.Dados_cont_historicos'!AH$4,'3.Índices_inflação'!$A$2:$BA$105,$CL7,FALSE)) -> -785969.9497 | AI7: ='1.Dados_cont_historicos'!AI7*(1+VLOOKUP('1.Dados_cont_historicos'!AI$4,'3.Índices_inflação'!$A$2:$BA$105,$CL7,FALSE)) -> -599187.651 | AJ7: ='1.Dados_cont_historicos'!AJ7*(1+VLOOKUP('1.Dados_cont_historicos'!AJ$4,'3.Índices_inflação'!$A$2:$BA$105,$CL7,FALSE)) -> -731445.8374 | AK7: ='1.Dados_cont_historicos'!AK7*(1+VLOOKUP('1.Dados_cont_historicos'!AK$4,'3.Índices_inflação'!$A$2:$BA$105,$CL7,FALSE)) -> -737290.7586 | AL7: ='1.Dados_cont_historicos'!AL7*(1+VLOOKUP('1.Dados_cont_historicos'!AL$4,'3.Índices_inflação'!$A$2:$BA$105,$CL7,FALSE)) -> -742477.1528 | AM7: ='1.Dados_cont_historicos'!AM7*(1+VLOOKUP('1.Dados_cont_historicos'!AM$4,'3.Índices_inflação'!$A$2:$BA$105,$CL7,FALSE)) -> -902578.6792 | AN7: ='1.Dados_cont_historicos'!AN7*(1+VLOOKUP('1.Dados_cont_historicos'!AN$4,'3.Índices_inflação'!$A$2:$BA$105,$CL7,FALSE)) -> -776629.1861 | AO7: ='1.Dados_cont_historicos'!AO7*(1+VLOOKUP('1.Dados_cont_historicos'!AO$4,'3.Índices_inflação'!$A$2:$BA$105,$CL7,FALSE)) -> -791393.1159 | AP7: =SUM(AD7:AO7) -> -9096844.291 | AQ7: ='1.Dados_cont_historicos'!AQ7*(1+VLOOKUP('1.Dados_cont_historicos'!AQ$4,'3.Índices_inflação'!$A$2:$BA$105,$CL7,FALSE)) -> -872165.6283 | AR7: ='1.Dados_cont_historicos'!AR7*(1+VLOOKUP('1.Dados_cont_historicos'!AR$4,'3.Índices_inflação'!$A$2:$BA$105,$CL7,FALSE)) -> -763902.7571 | AS7: ='1.Dados_cont_historicos'!AS7*(1+VLOOKUP('1.Dados_cont_historicos'!AS$4,'3.Índices_inflação'!$A$2:$BA$105,$CL7,FALSE)) -> -695211.5154 | AT7: ='1.Dados_cont_historicos'!AT7*(1+VLOOKUP('1.Dados_cont_historicos'!AT$4,'3.Índices_inflação'!$A$2:$BA$105,$CL7,FALSE)) -> -683559.3655 | AU7: ='1.Dados_cont_historicos'!AU7*(1+VLOOKUP('1.Dados_cont_historicos'!AU$4,'3.Índices_inflação'!$A$2:$BA$105,$CL7,FALSE)) -> -725148.2143 | AV7: ='1.Dados_cont_historicos'!AV7*(1+VLOOKUP('1.Dados_cont_historicos'!AV$4,'3.Índices_inflação'!$A$2:$BA$105,$CL7,FALSE)) -> -740067.3951 | AW7: ='1.Dados_cont_historicos'!AW7*(1+VLOOKUP('1.Dados_cont_historicos'!AW$4,'3.Índices_inflação'!$A$2:$BA$105,$CL7,FALSE)) -> -830705.6358 | AX7: ='1.Dados_cont_historicos'!AX7*(1+VLOOKUP('1.Dados_cont_historicos'!AX$4,'3.Índices_inflação'!$A$2:$BA$105,$CL7,FALSE)) -> -741958.2037 | AY7: ='1.Dados_cont_historicos'!AY7*(1+VLOOKUP('1.Dados_cont_historicos'!AY$4,'3.Índices_inflação'!$A$2:$BA$105,$CL7,FALSE)) -> -855624.3897 | AZ7: ='1.Dados_cont_historicos'!AZ7*(1+VLOOKUP('1.Dados_cont_historicos'!AZ$4,'3.Índices_inflação'!$A$2:$BA$105,$CL7,FALSE)) -> -1114017.613 | BA7: ='1.Dados_cont_historicos'!BA7*(1+VLOOKUP('1.Dados_cont_historicos'!BA$4,'3.Índices_inflação'!$A$2:$BA$105,$CL7,FALSE)) -> -814099.2451 | BB7: ='1.Dados_cont_historicos'!BB7*(1+VLOOKUP('1.Dados_cont_historicos'!BB$4,'3.Índices_inflação'!$A$2:$BA$105,$CL7,FALSE)) -> -859256.241 | BC7: =SUM(AQ7:BB7) -> -9695716.204 | BD7: ='1.Dados_cont_historicos'!BD7*(1+VLOOKUP('1.Dados_cont_historicos'!BD$4,'3.Índices_inflação'!$A$2:$BA$105,$CL7,FALSE)) -> -1035216.298 | BE7: ='1.Dados_cont_historicos'!BE7*(1+VLOOKUP('1.Dados_cont_historicos'!BE$4,'3.Índices_inflação'!$A$2:$BA$105,$CL7,FALSE)) -> -875668.6494 | BF7: ='1.Dados_cont_historicos'!BF7*(1+VLOOKUP('1.Dados_cont_historicos'!BF$4,'3.Índices_inflação'!$A$2:$BA$105,$CL7,FALSE)) -> -800436.3897 | BG7: ='1.Dados_cont_historicos'!BG7*(1+VLOOKUP('1.Dados_cont_historicos'!BG$4,'3.Índices_inflação'!$A$2:$BA$105,$CL7,FALSE)) -> -936305.1021 | BH7: ='1.Dados_cont_historicos'!BH7*(1+VLOOKUP('1.Dados_cont_historicos'!BH$4,'3.Índices_inflação'!$A$2:$BA$105,$CL7,FALSE)) -> -960407.3669 | BI7: ='1.Dados_cont_historicos'!BI7*(1+VLOOKUP('1.Dados_cont_historicos'!BI$4,'3.Índices_inflação'!$A$2:$BA$105,$CL7,FALSE)) -> -891959.2442 | BJ7: ='1.Dados_cont_historicos'!BJ7*(1+VLOOKUP('1.Dados_cont_historicos'!BJ$4,'3.Índices_inflação'!$A$2:$BA$105,$CL7,FALSE)) -> -947892.8387 | BK7: ='1.Dados_cont_historicos'!BK7*(1+VLOOKUP('1.Dados_cont_historicos'!BK$4,'3.Índices_inflação'!$A$2:$BA$120,$CL7,FALSE)) -> -947993.14 | BL7: ='1.Dados_cont_historicos'!BL7*(1+VLOOKUP('1.Dados_cont_historicos'!BL$4,'3.Índices_inflação'!$A$2:$BA$120,$CL7,FALSE)) -> -1025661.83 | BM7: ='1.Dados_cont_historicos'!BM7*(1+VLOOKUP('1.Dados_cont_historicos'!BM$4,'3.Índices_inflação'!$A$2:$BA$120,$CL7,FALSE)) -> -1081281.46 | BN7: ='1.Dados_cont_historicos'!BN7*(1+VLOOKUP('1.Dados_cont_historicos'!BN$4,'3.Índices_inflação'!$A$2:$BA$120,$CL7,FALSE)) -> -964147.82 | BO7: ='1.Dados_cont_historicos'!BO7*(1+VLOOKUP('1.Dados_cont_historicos'!BO$4,'3.Índices_inflação'!$A$2:$BA$120,$CL7,FALSE)) -> -958489.01 | BP7: =SUM(BD7:BO7) -> -11425459.15 | BQ7: ='1.Dados_cont_historicos'!BQ7*(1+VLOOKUP('1.Dados_cont_historicos'!BQ$4,'3.Índices_inflação'!$A$2:$BA$120,$CL7,FALSE)) -> -1004681.18 | BR7: ='1.Dados_cont_historicos'!BR7*(1+VLOOKUP('1.Dados_cont_historicos'!BR$4,'3.Índices_inflação'!$A$2:$BA$120,$CL7,FALSE)) -> -943971.99 | BS7: ='1.Dados_cont_historicos'!BS7*(1+VLOOKUP('1.Dados_cont_historicos'!BS$4,'3.Índices_inflação'!$A$2:$BA$120,$CL7,FALSE)) -> -969047.3933 | BT7: ='1.Dados_cont_historicos'!BT7*(1+VLOOKUP('1.Dados_cont_historicos'!BT$4,'3.Índices_inflação'!$A$2:$BA$120,$CL7,FALSE)) -> -972566.8544 | BU7: ='1.Dados_cont_historicos'!BU7*(1+VLOOKUP('1.Dados_cont_historicos'!BU$4,'3.Índices_inflação'!$A$2:$BA$120,$CL7,FALSE)) -> -961862.0793 | BV7: ='1.Dados_cont_historicos'!BV7*(1+VLOOKUP('1.Dados_cont_historicos'!BV$4,'3.Índices_inflação'!$A$2:$BA$120,$CL7,FALSE)) -> -967825.4423 | BW7: ='1.Dados_cont_historicos'!BW7*(1+VLOOKUP('1.Dados_cont_historicos'!BW$4,'3.Índices_inflação'!$A$2:$BA$120,$CL7,FALSE)) -> -967418.1253 | BZ7: =P7 -> -9728289.807 | CA7: =AC7 -> -9071446.508 | CB7: =AP7 -> -9096844.291 | CC7: =BC7 -> -9695716.204 | CD7: =BP7 -> -11425459.15 | CE7: =SUM(K7:O7,Q7:W7) -> -9492249.73 | CF7: =SUM(X7:AB7,AD7:AJ7) -> -9102290.259 | CG7: =SUM(AK7:AO7,AQ7:AW7) -> -9261129.404 | CH7: =SUM(AX7:BB7,BD7:BJ7) -> -10832841.58 | CI7: =SUM(BK7:BO7,BQ7:BW7) -> -11764946.32 | CK7: ETM | CL7: 50
A8: =C8='1.Dados_cont_historicos'!C8 -> TRUE | C8: Receita Direta de Água - Devoluções | D8: ='1.Dados_cont_historicos'!D8*(1+VLOOKUP('1.Dados_cont_historicos'!D$4,'3.Índices_inflação'!$A$2:$BA$105,$CL8,FALSE)) -> 1132.165972 | E8: ='1.Dados_cont_historicos'!E8*(1+VLOOKUP('1.Dados_cont_historicos'!E$4,'3.Índices_inflação'!$A$2:$BA$105,$CL8,FALSE)) -> 610.0380878 | F8: ='1.Dados_cont_historicos'!F8*(1+VLOOKUP('1.Dados_cont_historicos'!F$4,'3.Índices_inflação'!$A$2:$BA$105,$CL8,FALSE)) -> 564.479988 | G8: ='1.Dados_cont_historicos'!G8*(1+VLOOKUP('1.Dados_cont_historicos'!G$4,'3.Índices_inflação'!$A$2:$BA$105,$CL8,FALSE)) -> 635.0268778 | H8: ='1.Dados_cont_historicos'!H8*(1+VLOOKUP('1.Dados_cont_historicos'!H$4,'3.Índices_inflação'!$A$2:$BA$105,$CL8,FALSE)) -> 768.1655931 | I8: ='1.Dados_cont_historicos'!I8*(1+VLOOKUP('1.Dados_cont_historicos'!I$4,'3.Índices_inflação'!$A$2:$BA$105,$CL8,FALSE)) -> 1211.476916 | J8: ='1.Dados_cont_historicos'!J8*(1+VLOOKUP('1.Dados_cont_historicos'!J$4,'3.Índices_inflação'!$A$2:$BA$105,$CL8,FALSE)) -> 948.2406868 | K8: ='1.Dados_cont_historicos'!K8*(1+VLOOKUP('1.Dados_cont_historicos'!K$4,'3.Índices_inflação'!$A$2:$BA$105,$CL8,FALSE)) -> 316.0452726 | L8: ='1.Dados_cont_historicos'!L8*(1+VLOOKUP('1.Dados_cont_historicos'!L$4,'3.Índices_inflação'!$A$2:$BA$105,$CL8,FALSE)) -> 320.4647529 | M8: ='1.Dados_cont_historicos'!M8*(1+VLOOKUP('1.Dados_cont_historicos'!M$4,'3.Índices_inflação'!$A$2:$BA$105,$CL8,FALSE)) -> -430.6343267 | N8: ='1.Dados_cont_historicos'!N8*(1+VLOOKUP('1.Dados_cont_historicos'!N$4,'3.Índices_inflação'!$A$2:$BA$105,$CL8,FALSE)) -> 263.869139 | O8: ='1.Dados_cont_historicos'!O8*(1+VLOOKUP('1.Dados_cont_historicos'!O$4,'3.Índices_inflação'!$A$2:$BA$105,$CL8,FALSE)) -> 431.6482201 | P8: 6770.987179 | Q8: ='1.Dados_cont_historicos'!Q8*(1+VLOOKUP('1.Dados_cont_historicos'!Q$4,'3.Índices_inflação'!$A$2:$BA$105,$CL8,FALSE)) -> 328.1364625 | R8: ='1.Dados_cont_historicos'!R8*(1+VLOOKUP('1.Dados_cont_historicos'!R$4,'3.Índices_inflação'!$A$2:$BA$105,$CL8,FALSE)) -> 421.2794702 | S8: ='1.Dados_cont_historicos'!S8*(1+VLOOKUP('1.Dados_cont_historicos'!S$4,'3.Índices_inflação'!$A$2:$BA$105,$CL8,FALSE)) -> 572.4036623 | T8: ='1.Dados_cont_historicos'!T8*(1+VLOOKUP('1.Dados_cont_historicos'!T$4,'3.Índices_inflação'!$A$2:$BA$105,$CL8,FALSE)) -> 668.2233486 | U8: ='1.Dados_cont_historicos'!U8*(1+VLOOKUP('1.Dados_cont_historicos'!U$4,'3.Índices_inflação'!$A$2:$BA$105,$CL8,FALSE)) -> 900.148086 | V8: ='1.Dados_cont_historicos'!V8*(1+VLOOKUP('1.Dados_cont_historicos'!V$4,'3.Índices_inflação'!$A$2:$BA$105,$CL8,FALSE)) -> 664.8977782 | W8: ='1.Dados_cont_historicos'!W8*(1+VLOOKUP('1.Dados_cont_historicos'!W$4,'3.Índices_inflação'!$A$2:$BA$105,$CL8,FALSE)) -> 287.4725775 | X8: ='1.Dados_cont_historicos'!X8*(1+VLOOKUP('1.Dados_cont_historicos'!X$4,'3.Índices_inflação'!$A$2:$BA$105,$CL8,FALSE)) -> 16355.20919 | Y8: ='1.Dados_cont_historicos'!Y8*(1+VLOOKUP('1.Dados_cont_historicos'!Y$4,'3.Índices_inflação'!$A$2:$BA$105,$CL8,FALSE)) -> 8703.707125 | Z8: ='1.Dados_cont_historicos'!Z8*(1+VLOOKUP('1.Dados_cont_historicos'!Z$4,'3.Índices_inflação'!$A$2:$BA$105,$CL8,FALSE)) -> 1786.115183 | AA8: ='1.Dados_cont_historicos'!AA8*(1+VLOOKUP('1.Dados_cont_historicos'!AA$4,'3.Índices_inflação'!$A$2:$BA$105,$CL8,FALSE)) -> 690.7993752 | AB8: ='1.Dados_cont_historicos'!AB8*(1+VLOOKUP('1.Dados_cont_historicos'!AB$4,'3.Índices_inflação'!$A$2:$BA$105,$CL8,FALSE)) -> 620.6785071 | AC8: 31999.07077 | AD8: ='1.Dados_cont_historicos'!AD8*(1+VLOOKUP('1.Dados_cont_historicos'!AD$4,'3.Índices_inflação'!$A$2:$BA$105,$CL8,FALSE)) -> 625.9463207 | AE8: ='1.Dados_cont_historicos'!AE8*(1+VLOOKUP('1.Dados_cont_historicos'!AE$4,'3.Índices_inflação'!$A$2:$BA$105,$CL8,FALSE)) -> 1292.994864 | AF8: ='1.Dados_cont_historicos'!AF8*(1+VLOOKUP('1.Dados_cont_historicos'!AF$4,'3.Índices_inflação'!$A$2:$BA$105,$CL8,FALSE)) -> 737.3970224 | AG8: ='1.Dados_cont_historicos'!AG8*(1+VLOOKUP('1.Dados_cont_historicos'!AG$4,'3.Índices_inflação'!$A$2:$BA$105,$CL8,FALSE)) -> 638.2654093 | AH8: ='1.Dados_cont_historicos'!AH8*(1+VLOOKUP('1.Dados_cont_historicos'!AH$4,'3.Índices_inflação'!$A$2:$BA$105,$CL8,FALSE)) -> 608.1507952 | AI8: ='1.Dados_cont_historicos'!AI8*(1+VLOOKUP('1.Dados_cont_historicos'!AI$4,'3.Índices_inflação'!$A$2:$BA$105,$CL8,FALSE)) -> 451.5339615 | AJ8: ='1.Dados_cont_historicos'!AJ8*(1+VLOOKUP('1.Dados_cont_historicos'!AJ$4,'3.Índices_inflação'!$A$2:$BA$105,$CL8,FALSE)) -> 192113.6275 | AK8: ='1.Dados_cont_historicos'!AK8*(1+VLOOKUP('1.Dados_cont_historicos'!AK$4,'3.Índices_inflação'!$A$2:$BA$105,$CL8,FALSE)) -> 43586.69522 | AL8: ='1.Dados_cont_historicos'!AL8*(1+VLOOKUP('1.Dados_cont_historicos'!AL$4,'3.Índices_inflação'!$A$2:$BA$105,$CL8,FALSE)) -> 4198.57463 | AM8: ='1.Dados_cont_historicos'!AM8*(1+VLOOKUP('1.Dados_cont_historicos'!AM$4,'3.Índices_inflação'!$A$2:$BA$105,$CL8,FALSE)) -> 3320.862726 | AN8: ='1.Dados_cont_historicos'!AN8*(1+VLOOKUP('1.Dados_cont_historicos'!AN$4,'3.Índices_inflação'!$A$2:$BA$105,$CL8,FALSE)) -> 2377.410422 | AO8: ='1.Dados_cont_historicos'!AO8*(1+VLOOKUP('1.Dados_cont_historicos'!AO$4,'3.Índices_inflação'!$A$2:$BA$105,$CL8,FALSE)) -> 2847.480907 | AP8: 252798.9397 | AQ8: ='1.Dados_cont_historicos'!AQ8*(1+VLOOKUP('1.Dados_cont_historicos'!AQ$4,'3.Índices_inflação'!$A$2:$BA$105,$CL8,FALSE)) -> 809.0885603 | AR8: ='1.Dados_cont_historicos'!AR8*(1+VLOOKUP('1.Dados_cont_historicos'!AR$4,'3.Índices_inflação'!$A$2:$BA$105,$CL8,FALSE)) -> 2370.440412 | AS8: ='1.Dados_cont_historicos'!AS8*(1+VLOOKUP('1.Dados_cont_historicos'!AS$4,'3.Índices_inflação'!$A$2:$BA$105,$CL8,FALSE)) -> 806.5512 | AT8: ='1.Dados_cont_historicos'!AT8*(1+VLOOKUP('1.Dados_cont_historicos'!AT$4,'3.Índices_inflação'!$A$2:$BA$105,$CL8,FALSE)) -> 631.536237 | AU8: ='1.Dados_cont_historicos'!AU8*(1+VLOOKUP('1.Dados_cont_historicos'!AU$4,'3.Índices_inflação'!$A$2:$BA$105,$CL8,FALSE)) -> 597.745287 | AV8: ='1.Dados_cont_historicos'!AV8*(1+VLOOKUP('1.Dados_cont_historicos'!AV$4,'3.Índices_inflação'!$A$2:$BA$105,$CL8,FALSE)) -> 991.271367 | AW8: ='1.Dados_cont_historicos'!AW8*(1+VLOOKUP('1.Dados_cont_historicos'!AW$4,'3.Índices_inflação'!$A$2:$BA$105,$CL8,FALSE)) -> 876.526164 | AX8: ='1.Dados_cont_historicos'!AX8*(1+VLOOKUP('1.Dados_cont_historicos'!AX$4,'3.Índices_inflação'!$A$2:$BA$105,$CL8,FALSE)) -> 643.412925 | AY8: ='1.Dados_cont_historicos'!AY8*(1+VLOOKUP('1.Dados_cont_historicos'!AY$4,'3.Índices_inflação'!$A$2:$BA$105,$CL8,FALSE)) -> 1047.353265 | AZ8: ='1.Dados_cont_historicos'!AZ8*(1+VLOOKUP('1.Dados_cont_historicos'!AZ$4,'3.Índices_inflação'!$A$2:$BA$105,$CL8,FALSE)) -> 796.845996 | BA8: ='1.Dados_cont_historicos'!BA8*(1+VLOOKUP('1.Dados_cont_historicos'!BA$4,'3.Índices_inflação'!$A$2:$BA$105,$CL8,FALSE)) -> 474.967809 | BB8: ='1.Dados_cont_historicos'!BB8*(1+VLOOKUP('1.Dados_cont_historicos'!BB$4,'3.Índices_inflação'!$A$2:$BA$105,$CL8,FALSE)) -> 976.857588 | BC8: 11022.59681 | BD8: ='1.Dados_cont_historicos'!BD8*(1+VLOOKUP('1.Dados_cont_historicos'!BD$4,'3.Índices_inflação'!$A$2:$BA$105,$CL8,FALSE)) -> 823.291569 | BE8: ='1.Dados_cont_historicos'!BE8*(1+VLOOKUP('1.Dados_cont_historicos'!BE$4,'3.Índices_inflação'!$A$2:$BA$105,$CL8,FALSE)) -> 767.508804 | BF8: ='1.Dados_cont_historicos'!BF8*(1+VLOOKUP('1.Dados_cont_historicos'!BF$4,'3.Índices_inflação'!$A$2:$BA$105,$CL8,FALSE)) -> 578.357037 | BG8: ='1.Dados_cont_historicos'!BG8*(1+VLOOKUP('1.Dados_cont_historicos'!BG$4,'3.Índices_inflação'!$A$2:$BA$105,$CL8,FALSE)) -> 867.795912 | BH8: ='1.Dados_cont_historicos'!BH8*(1+VLOOKUP('1.Dados_cont_historicos'!BH$4,'3.Índices_inflação'!$A$2:$BA$105,$CL8,FALSE)) -> 872.892252 | BI8: ='1.Dados_cont_historicos'!BI8*(1+VLOOKUP('1.Dados_cont_historicos'!BI$4,'3.Índices_inflação'!$A$2:$BA$105,$CL8,FALSE)) -> 1070.973693 | BJ8: ='1.Dados_cont_historicos'!BJ8*(1+VLOOKUP('1.Dados_cont_historicos'!BJ$4,'3.Índices_inflação'!$A$2:$BA$105,$CL8,FALSE)) -> 617.188932 | BK8: ='1.Dados_cont_historicos'!BK8*(1+VLOOKUP('1.Dados_cont_historicos'!BK$4,'3.Índices_inflação'!$A$2:$BA$120,$CL8,FALSE)) -> 769.78 | BL8: ='1.Dados_cont_historicos'!BL8*(1+VLOOKUP('1.Dados_cont_historicos'!BL$4,'3.Índices_inflação'!$A$2:$BA$120,$CL8,FALSE)) -> 233.16 | BM8: ='1.Dados_cont_historicos'!BM8*(1+VLOOKUP('1.Dados_cont_historicos'!BM$4,'3.Índices_inflação'!$A$2:$BA$120,$CL8,FALSE)) -> 502.87 | BN8: ='1.Dados_cont_historicos'!BN8*(1+VLOOKUP('1.Dados_cont_historicos'!BN$4,'3.Índices_inflação'!$A$2:$BA$120,$CL8,FALSE)) -> 1335.37 | BO8: ='1.Dados_cont_historicos'!BO8*(1+VLOOKUP('1.Dados_cont_historicos'!BO$4,'3.Índices_inflação'!$A$2:$BA$120,$CL8,FALSE)) -> 1060.11 | BP8: 9499.298199 | BQ8: ='1.Dados_cont_historicos'!BQ8*(1+VLOOKUP('1.Dados_cont_historicos'!BQ$4,'3.Índices_inflação'!$A$2:$BA$120,$CL8,FALSE)) -> 3257.14 | BR8: ='1.Dados_cont_historicos'!BR8*(1+VLOOKUP('1.Dados_cont_historicos'!BR$4,'3.Índices_inflação'!$A$2:$BA$120,$CL8,FALSE)) -> 1161.89 | BS8: ='1.Dados_cont_historicos'!BS8*(1+VLOOKUP('1.Dados_cont_historicos'!BS$4,'3.Índices_inflação'!$A$2:$BA$120,$CL8,FALSE)) -> 1826.38 | BT8: ='1.Dados_cont_historicos'!BT8*(1+VLOOKUP('1.Dados_cont_historicos'!BT$4,'3.Índices_inflação'!$A$2:$BA$120,$CL8,FALSE)) -> 2081.803333 | BU8: ='1.Dados_cont_historicos'!BU8*(1+VLOOKUP('1.Dados_cont_historicos'!BU$4,'3.Índices_inflação'!$A$2:$BA$120,$CL8,FALSE)) -> 1690.024444 | BV8: ='1.Dados_cont_historicos'!BV8*(1+VLOOKUP('1.Dados_cont_historicos'!BV$4,'3.Índices_inflação'!$A$2:$BA$120,$CL8,FALSE)) -> 1866.069259 | BW8: ='1.Dados_cont_historicos'!BW8*(1+VLOOKUP('1.Dados_cont_historicos'!BW$4,'3.Índices_inflação'!$A$2:$BA$120,$CL8,FALSE)) -> 1879.299012 | BZ8: =P8 -> 6770.987179 | CA8: =AC8 -> 31999.07077 | CB8: =AP8 -> 252798.9397 | CC8: =BC8 -> 11022.59681 | CD8: =BP8 -> 9499.298199 | CE8: =SUM(K8:O8,Q8:W8) -> 4743.954443 | CF8: =SUM(X8:AB8,AD8:AJ8) -> 224624.4252 | CG8: =SUM(AK8:AO8,AQ8:AW8) -> 63414.18313 | CH8: =SUM(AX8:BB8,BD8:BJ8) -> 9537.445782 | CI8: =SUM(BK8:BO8,BQ8:BW8) -> 17663.89605 | CK8: ETM | CL8: 50
A9: =C9='1.Dados_cont_historicos'!C9 -> TRUE | C9: Receita Direta de Esgoto - Devoluções | D9: ='1.Dados_cont_historicos'!D9*(1+VLOOKUP('1.Dados_cont_historicos'!D$4,'3.Índices_inflação'!$A$2:$BA$105,$CL9,FALSE)) -> 1002.32314 | E9: ='1.Dados_cont_historicos'!E9*(1+VLOOKUP('1.Dados_cont_historicos'!E$4,'3.Índices_inflação'!$A$2:$BA$105,$CL9,FALSE)) -> 159.46084 | F9: ='1.Dados_cont_historicos'!F9*(1+VLOOKUP('1.Dados_cont_historicos'!F$4,'3.Índices_inflação'!$A$2:$BA$105,$CL9,FALSE)) -> 235.0714056 | G9: ='1.Dados_cont_historicos'!G9*(1+VLOOKUP('1.Dados_cont_historicos'!G$4,'3.Índices_inflação'!$A$2:$BA$105,$CL9,FALSE)) -> 3712.767907 | H9: ='1.Dados_cont_historicos'!H9*(1+VLOOKUP('1.Dados_cont_historicos'!H$4,'3.Índices_inflação'!$A$2:$BA$105,$CL9,FALSE)) -> 4242.865837 | I9: ='1.Dados_cont_historicos'!I9*(1+VLOOKUP('1.Dados_cont_historicos'!I$4,'3.Índices_inflação'!$A$2:$BA$105,$CL9,FALSE)) -> 3375.239466 | J9: ='1.Dados_cont_historicos'!J9*(1+VLOOKUP('1.Dados_cont_historicos'!J$4,'3.Índices_inflação'!$A$2:$BA$105,$CL9,FALSE)) -> 2979.65853 | K9: ='1.Dados_cont_historicos'!K9*(1+VLOOKUP('1.Dados_cont_historicos'!K$4,'3.Índices_inflação'!$A$2:$BA$105,$CL9,FALSE)) -> 2115.912314 | L9: ='1.Dados_cont_historicos'!L9*(1+VLOOKUP('1.Dados_cont_historicos'!L$4,'3.Índices_inflação'!$A$2:$BA$105,$CL9,FALSE)) -> 425.9030648 | M9: ='1.Dados_cont_historicos'!M9*(1+VLOOKUP('1.Dados_cont_historicos'!M$4,'3.Índices_inflação'!$A$2:$BA$105,$CL9,FALSE)) -> 744.1707241 | N9: ='1.Dados_cont_historicos'!N9*(1+VLOOKUP('1.Dados_cont_historicos'!N$4,'3.Índices_inflação'!$A$2:$BA$105,$CL9,FALSE)) -> 388.2806194 | O9: ='1.Dados_cont_historicos'!O9*(1+VLOOKUP('1.Dados_cont_historicos'!O$4,'3.Índices_inflação'!$A$2:$BA$105,$CL9,FALSE)) -> 815.2919671 | P9: 20196.94582 | Q9: ='1.Dados_cont_historicos'!Q9*(1+VLOOKUP('1.Dados_cont_historicos'!Q$4,'3.Índices_inflação'!$A$2:$BA$105,$CL9,FALSE)) -> 228.6126856 | R9: ='1.Dados_cont_historicos'!R9*(1+VLOOKUP('1.Dados_cont_historicos'!R$4,'3.Índices_inflação'!$A$2:$BA$105,$CL9,FALSE)) -> 584.6379761 | S9: ='1.Dados_cont_historicos'!S9*(1+VLOOKUP('1.Dados_cont_historicos'!S$4,'3.Índices_inflação'!$A$2:$BA$105,$CL9,FALSE)) -> 860.9847633 | T9: ='1.Dados_cont_historicos'!T9*(1+VLOOKUP('1.Dados_cont_historicos'!T$4,'3.Índices_inflação'!$A$2:$BA$105,$CL9,FALSE)) -> -1510.146916 | U9: ='1.Dados_cont_historicos'!U9*(1+VLOOKUP('1.Dados_cont_historicos'!U$4,'3.Índices_inflação'!$A$2:$BA$105,$CL9,FALSE)) -> 5101.208662 | V9: ='1.Dados_cont_historicos'!V9*(1+VLOOKUP('1.Dados_cont_historicos'!V$4,'3.Índices_inflação'!$A$2:$BA$105,$CL9,FALSE)) -> 1002.55132 | W9: ='1.Dados_cont_historicos'!W9*(1+VLOOKUP('1.Dados_cont_historicos'!W$4,'3.Índices_inflação'!$A$2:$BA$105,$CL9,FALSE)) -> 740.4395964 | X9: ='1.Dados_cont_historicos'!X9*(1+VLOOKUP('1.Dados_cont_historicos'!X$4,'3.Índices_inflação'!$A$2:$BA$105,$CL9,FALSE)) -> 1649.618093 | Y9: ='1.Dados_cont_historicos'!Y9*(1+VLOOKUP('1.Dados_cont_historicos'!Y$4,'3.Índices_inflação'!$A$2:$BA$105,$CL9,FALSE)) -> 2168.826148 | Z9: ='1.Dados_cont_historicos'!Z9*(1+VLOOKUP('1.Dados_cont_historicos'!Z$4,'3.Índices_inflação'!$A$2:$BA$105,$CL9,FALSE)) -> 1469.645254 | AA9: ='1.Dados_cont_historicos'!AA9*(1+VLOOKUP('1.Dados_cont_historicos'!AA$4,'3.Índices_inflação'!$A$2:$BA$105,$CL9,FALSE)) -> 865.6351544 | AB9: ='1.Dados_cont_historicos'!AB9*(1+VLOOKUP('1.Dados_cont_historicos'!AB$4,'3.Índices_inflação'!$A$2:$BA$105,$CL9,FALSE)) -> 927.8746911 | AC9: 14089.88743 | AD9: ='1.Dados_cont_historicos'!AD9*(1+VLOOKUP('1.Dados_cont_historicos'!AD$4,'3.Índices_inflação'!$A$2:$BA$105,$CL9,FALSE)) -> -1038.161086 | AE9: ='1.Dados_cont_historicos'!AE9*(1+VLOOKUP('1.Dados_cont_historicos'!AE$4,'3.Índices_inflação'!$A$2:$BA$105,$CL9,FALSE)) -> 1934.131639 | AF9: ='1.Dados_cont_historicos'!AF9*(1+VLOOKUP('1.Dados_cont_historicos'!AF$4,'3.Índices_inflação'!$A$2:$BA$105,$CL9,FALSE)) -> 1718.84862 | AG9: ='1.Dados_cont_historicos'!AG9*(1+VLOOKUP('1.Dados_cont_historicos'!AG$4,'3.Índices_inflação'!$A$2:$BA$105,$CL9,FALSE)) -> 13424.33311 | AH9: ='1.Dados_cont_historicos'!AH9*(1+VLOOKUP('1.Dados_cont_historicos'!AH$4,'3.Índices_inflação'!$A$2:$BA$105,$CL9,FALSE)) -> 7003.52921 | AI9: ='1.Dados_cont_historicos'!AI9*(1+VLOOKUP('1.Dados_cont_historicos'!AI$4,'3.Índices_inflação'!$A$2:$BA$105,$CL9,FALSE)) -> 23862.39874 | AJ9: ='1.Dados_cont_historicos'!AJ9*(1+VLOOKUP('1.Dados_cont_historicos'!AJ$4,'3.Índices_inflação'!$A$2:$BA$105,$CL9,FALSE)) -> 27461.18196 | AK9: ='1.Dados_cont_historicos'!AK9*(1+VLOOKUP('1.Dados_cont_historicos'!AK$4,'3.Índices_inflação'!$A$2:$BA$105,$CL9,FALSE)) -> 25980.85359 | AL9: ='1.Dados_cont_historicos'!AL9*(1+VLOOKUP('1.Dados_cont_historicos'!AL$4,'3.Índices_inflação'!$A$2:$BA$105,$CL9,FALSE)) -> 20519.78078 | AM9: ='1.Dados_cont_historicos'!AM9*(1+VLOOKUP('1.Dados_cont_historicos'!AM$4,'3.Índices_inflação'!$A$2:$BA$105,$CL9,FALSE)) -> 15113.1829 | AN9: ='1.Dados_cont_historicos'!AN9*(1+VLOOKUP('1.Dados_cont_historicos'!AN$4,'3.Índices_inflação'!$A$2:$BA$105,$CL9,FALSE)) -> 11208.17076 | AO9: ='1.Dados_cont_historicos'!AO9*(1+VLOOKUP('1.Dados_cont_historicos'!AO$4,'3.Índices_inflação'!$A$2:$BA$105,$CL9,FALSE)) -> 9572.869642 | AP9: 156761.1199 | AQ9: ='1.Dados_cont_historicos'!AQ9*(1+VLOOKUP('1.Dados_cont_historicos'!AQ$4,'3.Índices_inflação'!$A$2:$BA$105,$CL9,FALSE)) -> 9366.351238 | AR9: ='1.Dados_cont_historicos'!AR9*(1+VLOOKUP('1.Dados_cont_historicos'!AR$4,'3.Índices_inflação'!$A$2:$BA$105,$CL9,FALSE)) -> 11767.94829 | AS9: ='1.Dados_cont_historicos'!AS9*(1+VLOOKUP('1.Dados_cont_historicos'!AS$4,'3.Índices_inflação'!$A$2:$BA$105,$CL9,FALSE)) -> 7097.118768 | AT9: ='1.Dados_cont_historicos'!AT9*(1+VLOOKUP('1.Dados_cont_historicos'!AT$4,'3.Índices_inflação'!$A$2:$BA$105,$CL9,FALSE)) -> 6825.694347 | AU9: ='1.Dados_cont_historicos'!AU9*(1+VLOOKUP('1.Dados_cont_historicos'!AU$4,'3.Índices_inflação'!$A$2:$BA$105,$CL9,FALSE)) -> 11182.97641 | AV9: ='1.Dados_cont_historicos'!AV9*(1+VLOOKUP('1.Dados_cont_historicos'!AV$4,'3.Índices_inflação'!$A$2:$BA$105,$CL9,FALSE)) -> 7774.533144 | AW9: ='1.Dados_cont_historicos'!AW9*(1+VLOOKUP('1.Dados_cont_historicos'!AW$4,'3.Índices_inflação'!$A$2:$BA$105,$CL9,FALSE)) -> 4951.072152 | AX9: ='1.Dados_cont_historicos'!AX9*(1+VLOOKUP('1.Dados_cont_historicos'!AX$4,'3.Índices_inflação'!$A$2:$BA$105,$CL9,FALSE)) -> 9903.795075 | AY9: ='1.Dados_cont_historicos'!AY9*(1+VLOOKUP('1.Dados_cont_historicos'!AY$4,'3.Índices_inflação'!$A$2:$BA$105,$CL9,FALSE)) -> 4127.226633 | AZ9: ='1.Dados_cont_historicos'!AZ9*(1+VLOOKUP('1.Dados_cont_historicos'!AZ$4,'3.Índices_inflação'!$A$2:$BA$105,$CL9,FALSE)) -> 4186.598994 | BA9: ='1.Dados_cont_historicos'!BA9*(1+VLOOKUP('1.Dados_cont_historicos'!BA$4,'3.Índices_inflação'!$A$2:$BA$105,$CL9,FALSE)) -> 4911.054804 | BB9: ='1.Dados_cont_historicos'!BB9*(1+VLOOKUP('1.Dados_cont_historicos'!BB$4,'3.Índices_inflação'!$A$2:$BA$105,$CL9,FALSE)) -> 3845.775717 | BC9: 85940.14558 | BD9: ='1.Dados_cont_historicos'!BD9*(1+VLOOKUP('1.Dados_cont_historicos'!BD$4,'3.Índices_inflação'!$A$2:$BA$105,$CL9,FALSE)) -> 3679.158636 | BE9: ='1.Dados_cont_historicos'!BE9*(1+VLOOKUP('1.Dados_cont_historicos'!BE$4,'3.Índices_inflação'!$A$2:$BA$105,$CL9,FALSE)) -> 3956.344137 | BF9: ='1.Dados_cont_historicos'!BF9*(1+VLOOKUP('1.Dados_cont_historicos'!BF$4,'3.Índices_inflação'!$A$2:$BA$105,$CL9,FALSE)) -> 3042.215847 | BG9: ='1.Dados_cont_historicos'!BG9*(1+VLOOKUP('1.Dados_cont_historicos'!BG$4,'3.Índices_inflação'!$A$2:$BA$105,$CL9,FALSE)) -> 3516.707259 | BH9: ='1.Dados_cont_historicos'!BH9*(1+VLOOKUP('1.Dados_cont_historicos'!BH$4,'3.Índices_inflação'!$A$2:$BA$105,$CL9,FALSE)) -> 3276.592092 | BI9: ='1.Dados_cont_historicos'!BI9*(1+VLOOKUP('1.Dados_cont_historicos'!BI$4,'3.Índices_inflação'!$A$2:$BA$105,$CL9,FALSE)) -> 1843.789338 | BJ9: ='1.Dados_cont_historicos'!BJ9*(1+VLOOKUP('1.Dados_cont_historicos'!BJ$4,'3.Índices_inflação'!$A$2:$BA$105,$CL9,FALSE)) -> 1852.951671 | BK9: ='1.Dados_cont_historicos'!BK9*(1+VLOOKUP('1.Dados_cont_historicos'!BK$4,'3.Índices_inflação'!$A$2:$BA$120,$CL9,FALSE)) -> 1432.96 | BL9: ='1.Dados_cont_historicos'!BL9*(1+VLOOKUP('1.Dados_cont_historicos'!BL$4,'3.Índices_inflação'!$A$2:$BA$120,$CL9,FALSE)) -> 1554.73 | BM9: ='1.Dados_cont_historicos'!BM9*(1+VLOOKUP('1.Dados_cont_historicos'!BM$4,'3.Índices_inflação'!$A$2:$BA$120,$CL9,FALSE)) -> 8915.69 | BN9: ='1.Dados_cont_historicos'!BN9*(1+VLOOKUP('1.Dados_cont_historicos'!BN$4,'3.Índices_inflação'!$A$2:$BA$120,$CL9,FALSE)) -> 7518.43 | BO9: ='1.Dados_cont_historicos'!BO9*(1+VLOOKUP('1.Dados_cont_historicos'!BO$4,'3.Índices_inflação'!$A$2:$BA$120,$CL9,FALSE)) -> 8523.23 | BP9: 49112.79898 | BQ9: ='1.Dados_cont_historicos'!BQ9*(1+VLOOKUP('1.Dados_cont_historicos'!BQ$4,'3.Índices_inflação'!$A$2:$BA$120,$CL9,FALSE)) -> 8001.56 | BR9: ='1.Dados_cont_historicos'!BR9*(1+VLOOKUP('1.Dados_cont_historicos'!BR$4,'3.Índices_inflação'!$A$2:$BA$120,$CL9,FALSE)) -> 3789.21 | BS9: ='1.Dados_cont_historicos'!BS9*(1+VLOOKUP('1.Dados_cont_historicos'!BS$4,'3.Índices_inflação'!$A$2:$BA$120,$CL9,FALSE)) -> 6771.333333 | BT9: ='1.Dados_cont_historicos'!BT9*(1+VLOOKUP('1.Dados_cont_historicos'!BT$4,'3.Índices_inflação'!$A$2:$BA$120,$CL9,FALSE)) -> 6187.367778 | BU9: ='1.Dados_cont_historicos'!BU9*(1+VLOOKUP('1.Dados_cont_historicos'!BU$4,'3.Índices_inflação'!$A$2:$BA$120,$CL9,FALSE)) -> 5582.637037 | BV9: ='1.Dados_cont_historicos'!BV9*(1+VLOOKUP('1.Dados_cont_historicos'!BV$4,'3.Índices_inflação'!$A$2:$BA$120,$CL9,FALSE)) -> 6180.446049 | BW9: ='1.Dados_cont_historicos'!BW9*(1+VLOOKUP('1.Dados_cont_historicos'!BW$4,'3.Índices_inflação'!$A$2:$BA$120,$CL9,FALSE)) -> 5983.483621 | BZ9: =P9 -> 20196.94582 | CA9: =AC9 -> 14089.88743 | CB9: =AP9 -> 156761.1199 | CC9: =BC9 -> 85940.14558 | CD9: =BP9 -> 49112.79898 | CE9: =SUM(K9:O9,Q9:W9) -> 11497.84678 | CF9: =SUM(X9:AB9,AD9:AJ9) -> 81447.86153 | CG9: =SUM(AK9:AO9,AQ9:AW9) -> 141360.552 | CH9: =SUM(AX9:BB9,BD9:BJ9) -> 48142.2102 | CI9: =SUM(BK9:BO9,BQ9:BW9) -> 70441.07782 | CK9: ETM | CL9: 50
A10: =C10='1.Dados_cont_historicos'!C10 -> TRUE | C10: Descontos Tarifários Concedidos | D10: ='1.Dados_cont_historicos'!D10*(1+VLOOKUP('1.Dados_cont_historicos'!D$4,'3.Índices_inflação'!$A$2:$BA$105,$CL10,FALSE)) -> 0 | E10: ='1.Dados_cont_historicos'!E10*(1+VLOOKUP('1.Dados_cont_historicos'!E$4,'3.Índices_inflação'!$A$2:$BA$105,$CL10,FALSE)) -> 0 | F10: ='1.Dados_cont_historicos'!F10*(1+VLOOKUP('1.Dados_cont_historicos'!F$4,'3.Índices_inflação'!$A$2:$BA$105,$CL10,FALSE)) -> 0 | G10: ='1.Dados_cont_historicos'!G10*(1+VLOOKUP('1.Dados_cont_historicos'!G$4,'3.Índices_inflação'!$A$2:$BA$105,$CL10,FALSE)) -> 0 | H10: ='1.Dados_cont_historicos'!H10*(1+VLOOKUP('1.Dados_cont_historicos'!H$4,'3.Índices_inflação'!$A$2:$BA$105,$CL10,FALSE)) -> 0 | I10: ='1.Dados_cont_historicos'!I10*(1+VLOOKUP('1.Dados_cont_historicos'!I$4,'3.Índices_inflação'!$A$2:$BA$105,$CL10,FALSE)) -> 0 | J10: ='1.Dados_cont_historicos'!J10*(1+VLOOKUP('1.Dados_cont_historicos'!J$4,'3.Índices_inflação'!$A$2:$BA$105,$CL10,FALSE)) -> 0 | K10: ='1.Dados_cont_historicos'!K10*(1+VLOOKUP('1.Dados_cont_historicos'!K$4,'3.Índices_inflação'!$A$2:$BA$105,$CL10,FALSE)) -> -4.808993767 | L10: ='1.Dados_cont_historicos'!L10*(1+VLOOKUP('1.Dados_cont_historicos'!L$4,'3.Índices_inflação'!$A$2:$BA$105,$CL10,FALSE)) -> 18.48691062 | M10: ='1.Dados_cont_historicos'!M10*(1+VLOOKUP('1.Dados_cont_historicos'!M$4,'3.Índices_inflação'!$A$2:$BA$105,$CL10,FALSE)) -> 0 | N10: ='1.Dados_cont_historicos'!N10*(1+VLOOKUP('1.Dados_cont_historicos'!N$4,'3.Índices_inflação'!$A$2:$BA$105,$CL10,FALSE)) -> 0 | O10: ='1.Dados_cont_historicos'!O10*(1+VLOOKUP('1.Dados_cont_historicos'!O$4,'3.Índices_inflação'!$A$2:$BA$105,$CL10,FALSE)) -> 0 | P10: 13.67791685 | Q10: ='1.Dados_cont_historicos'!Q10*(1+VLOOKUP('1.Dados_cont_historicos'!Q$4,'3.Índices_inflação'!$A$2:$BA$105,$CL10,FALSE)) -> 0 | R10: ='1.Dados_cont_historicos'!R10*(1+VLOOKUP('1.Dados_cont_historicos'!R$4,'3.Índices_inflação'!$A$2:$BA$105,$CL10,FALSE)) -> 0 | S10: ='1.Dados_cont_historicos'!S10*(1+VLOOKUP('1.Dados_cont_historicos'!S$4,'3.Índices_inflação'!$A$2:$BA$105,$CL10,FALSE)) -> 0 | T10: ='1.Dados_cont_historicos'!T10*(1+VLOOKUP('1.Dados_cont_historicos'!T$4,'3.Índices_inflação'!$A$2:$BA$105,$CL10,FALSE)) -> 0 | U10: ='1.Dados_cont_historicos'!U10*(1+VLOOKUP('1.Dados_cont_historicos'!U$4,'3.Índices_inflação'!$A$2:$BA$105,$CL10,FALSE)) -> 0 | V10: ='1.Dados_cont_historicos'!V10*(1+VLOOKUP('1.Dados_cont_historicos'!V$4,'3.Índices_inflação'!$A$2:$BA$105,$CL10,FALSE)) -> 0 | W10: ='1.Dados_cont_historicos'!W10*(1+VLOOKUP('1.Dados_cont_historicos'!W$4,'3.Índices_inflação'!$A$2:$BA$105,$CL10,FALSE)) -> 781.3603343 | X10: ='1.Dados_cont_historicos'!X10*(1+VLOOKUP('1.Dados_cont_historicos'!X$4,'3.Índices_inflação'!$A$2:$BA$105,$CL10,FALSE)) -> 0 | Y10: ='1.Dados_cont_historicos'!Y10*(1+VLOOKUP('1.Dados_cont_historicos'!Y$4,'3.Índices_inflação'!$A$2:$BA$105,$CL10,FALSE)) -> 7.948924317 | Z10: ='1.Dados_cont_historicos'!Z10*(1+VLOOKUP('1.Dados_cont_historicos'!Z$4,'3.Índices_inflação'!$A$2:$BA$105,$CL10,FALSE)) -> 0 | AA10: ='1.Dados_cont_historicos'!AA10*(1+VLOOKUP('1.Dados_cont_historicos'!AA$4,'3.Índices_inflação'!$A$2:$BA$105,$CL10,FALSE)) -> 0 | AB10: ='1.Dados_cont_historicos'!AB10*(1+VLOOKUP('1.Dados_cont_historicos'!AB$4,'3.Índices_inflação'!$A$2:$BA$105,$CL10,FALSE)) -> 0 | AC10: 789.3092587 | AD10: ='1.Dados_cont_historicos'!AD10*(1+VLOOKUP('1.Dados_cont_historicos'!AD$4,'3.Índices_inflação'!$A$2:$BA$105,$CL10,FALSE)) -> 0 | AE10: ='1.Dados_cont_historicos'!AE10*(1+VLOOKUP('1.Dados_cont_historicos'!AE$4,'3.Índices_inflação'!$A$2:$BA$105,$CL10,FALSE)) -> 0 | AF10: ='1.Dados_cont_historicos'!AF10*(1+VLOOKUP('1.Dados_cont_historicos'!AF$4,'3.Índices_inflação'!$A$2:$BA$105,$CL10,FALSE)) -> 0 | AG10: ='1.Dados_cont_historicos'!AG10*(1+VLOOKUP('1.Dados_cont_historicos'!AG$4,'3.Índices_inflação'!$A$2:$BA$105,$CL10,FALSE)) -> 0 | AH10: ='1.Dados_cont_historicos'!AH10*(1+VLOOKUP('1.Dados_cont_historicos'!AH$4,'3.Índices_inflação'!$A$2:$BA$105,$CL10,FALSE)) -> 19.18489639 | AI10: ='1.Dados_cont_historicos'!AI10*(1+VLOOKUP('1.Dados_cont_historicos'!AI$4,'3.Índices_inflação'!$A$2:$BA$105,$CL10,FALSE)) -> 0 | AJ10: ='1.Dados_cont_historicos'!AJ10*(1+VLOOKUP('1.Dados_cont_historicos'!AJ$4,'3.Índices_inflação'!$A$2:$BA$105,$CL10,FALSE)) -> 0 | AK10: ='1.Dados_cont_historicos'!AK10*(1+VLOOKUP('1.Dados_cont_historicos'!AK$4,'3.Índices_inflação'!$A$2:$BA$105,$CL10,FALSE)) -> 0 | AL10: ='1.Dados_cont_historicos'!AL10*(1+VLOOKUP('1.Dados_cont_historicos'!AL$4,'3.Índices_inflação'!$A$2:$BA$105,$CL10,FALSE)) -> 0 | AM10: ='1.Dados_cont_historicos'!AM10*(1+VLOOKUP('1.Dados_cont_historicos'!AM$4,'3.Índices_inflação'!$A$2:$BA$105,$CL10,FALSE)) -> 349.0099678 | AN10: ='1.Dados_cont_historicos'!AN10*(1+VLOOKUP('1.Dados_cont_historicos'!AN$4,'3.Índices_inflação'!$A$2:$BA$105,$CL10,FALSE)) -> 0 | AO10: ='1.Dados_cont_historicos'!AO10*(1+VLOOKUP('1.Dados_cont_historicos'!AO$4,'3.Índices_inflação'!$A$2:$BA$105,$CL10,FALSE)) -> 0 | AP10: 368.1948642 | AQ10: ='1.Dados_cont_historicos'!AQ10*(1+VLOOKUP('1.Dados_cont_historicos'!AQ$4,'3.Índices_inflação'!$A$2:$BA$105,$CL10,FALSE)) -> 0 | AR10: ='1.Dados_cont_historicos'!AR10*(1+VLOOKUP('1.Dados_cont_historicos'!AR$4,'3.Índices_inflação'!$A$2:$BA$105,$CL10,FALSE)) -> 0 | AS10: ='1.Dados_cont_historicos'!AS10*(1+VLOOKUP('1.Dados_cont_historicos'!AS$4,'3.Índices_inflação'!$A$2:$BA$105,$CL10,FALSE)) -> 0 | AT10: ='1.Dados_cont_historicos'!AT10*(1+VLOOKUP('1.Dados_cont_historicos'!AT$4,'3.Índices_inflação'!$A$2:$BA$105,$CL10,FALSE)) -> 0 | AU10: ='1.Dados_cont_historicos'!AU10*(1+VLOOKUP('1.Dados_cont_historicos'!AU$4,'3.Índices_inflação'!$A$2:$BA$105,$CL10,FALSE)) -> 0 | AV10: ='1.Dados_cont_historicos'!AV10*(1+VLOOKUP('1.Dados_cont_historicos'!AV$4,'3.Índices_inflação'!$A$2:$BA$105,$CL10,FALSE)) -> 0 | AW10: ='1.Dados_cont_historicos'!AW10*(1+VLOOKUP('1.Dados_cont_historicos'!AW$4,'3.Índices_inflação'!$A$2:$BA$105,$CL10,FALSE)) -> 0 | AX10: ='1.Dados_cont_historicos'!AX10*(1+VLOOKUP('1.Dados_cont_historicos'!AX$4,'3.Índices_inflação'!$A$2:$BA$105,$CL10,FALSE)) -> 0 | AY10: ='1.Dados_cont_historicos'!AY10*(1+VLOOKUP('1.Dados_cont_historicos'!AY$4,'3.Índices_inflação'!$A$2:$BA$105,$CL10,FALSE)) -> 0 | AZ10: ='1.Dados_cont_historicos'!AZ10*(1+VLOOKUP('1.Dados_cont_historicos'!AZ$4,'3.Índices_inflação'!$A$2:$BA$105,$CL10,FALSE)) -> 0 | BA10: ='1.Dados_cont_historicos'!BA10*(1+VLOOKUP('1.Dados_cont_historicos'!BA$4,'3.Índices_inflação'!$A$2:$BA$105,$CL10,FALSE)) -> 0 | BB10: ='1.Dados_cont_historicos'!BB10*(1+VLOOKUP('1.Dados_cont_historicos'!BB$4,'3.Índices_inflação'!$A$2:$BA$105,$CL10,FALSE)) -> 0 | BC10: 0 | BD10: ='1.Dados_cont_historicos'!BD10*(1+VLOOKUP('1.Dados_cont_historicos'!BD$4,'3.Índices_inflação'!$A$2:$BA$105,$CL10,FALSE)) -> 138.000024 | BE10: ='1.Dados_cont_historicos'!BE10*(1+VLOOKUP('1.Dados_cont_historicos'!BE$4,'3.Índices_inflação'!$A$2:$BA$105,$CL10,FALSE)) -> 0 | BF10: ='1.Dados_cont_historicos'!BF10*(1+VLOOKUP('1.Dados_cont_historicos'!BF$4,'3.Índices_inflação'!$A$2:$BA$105,$CL10,FALSE)) -> 0 | BG10: ='1.Dados_cont_historicos'!BG10*(1+VLOOKUP('1.Dados_cont_historicos'!BG$4,'3.Índices_inflação'!$A$2:$BA$105,$CL10,FALSE)) -> 0 | BH10: ='1.Dados_cont_historicos'!BH10*(1+VLOOKUP('1.Dados_cont_historicos'!BH$4,'3.Índices_inflação'!$A$2:$BA$105,$CL10,FALSE)) -> 0 | BI10: ='1.Dados_cont_historicos'!BI10*(1+VLOOKUP('1.Dados_cont_historicos'!BI$4,'3.Índices_inflação'!$A$2:$BA$105,$CL10,FALSE)) -> 0 | BJ10: ='1.Dados_cont_historicos'!BJ10*(1+VLOOKUP('1.Dados_cont_historicos'!BJ$4,'3.Índices_inflação'!$A$2:$BA$105,$CL10,FALSE)) -> 0 | BK10: ='1.Dados_cont_historicos'!BK10*(1+VLOOKUP('1.Dados_cont_historicos'!BK$4,'3.Índices_inflação'!$A$2:$BA$120,$CL10,FALSE)) -> 0 | BL10: ='1.Dados_cont_historicos'!BL10*(1+VLOOKUP('1.Dados_cont_historicos'!BL$4,'3.Índices_inflação'!$A$2:$BA$120,$CL10,FALSE)) -> 0 | BM10: ='1.Dados_cont_historicos'!BM10*(1+VLOOKUP('1.Dados_cont_historicos'!BM$4,'3.Índices_inflação'!$A$2:$BA$120,$CL10,FALSE)) -> 0 | BN10: ='1.Dados_cont_historicos'!BN10*(1+VLOOKUP('1.Dados_cont_historicos'!BN$4,'3.Índices_inflação'!$A$2:$BA$120,$CL10,FALSE)) -> 0 | BO10: ='1.Dados_cont_historicos'!BO10*(1+VLOOKUP('1.Dados_cont_historicos'!BO$4,'3.Índices_inflação'!$A$2:$BA$120,$CL10,FALSE)) -> 0 | BP10: 138.000024 | BQ10: ='1.Dados_cont_historicos'!BQ10*(1+VLOOKUP('1.Dados_cont_historicos'!BQ$4,'3.Índices_inflação'!$A$2:$BA$120,$CL10,FALSE)) -> 0 | BR10: ='1.Dados_cont_historicos'!BR10*(1+VLOOKUP('1.Dados_cont_historicos'!BR$4,'3.Índices_inflação'!$A$2:$BA$120,$CL10,FALSE)) -> 0 | BS10: ='1.Dados_cont_historicos'!BS10*(1+VLOOKUP('1.Dados_cont_historicos'!BS$4,'3.Índices_inflação'!$A$2:$BA$120,$CL10,FALSE)) -> 0 | BT10: ='1.Dados_cont_historicos'!BT10*(1+VLOOKUP('1.Dados_cont_historicos'!BT$4,'3.Índices_inflação'!$A$2:$BA$120,$CL10,FALSE)) -> 0 | BU10: ='1.Dados_cont_historicos'!BU10*(1+VLOOKUP('1.Dados_cont_historicos'!BU$4,'3.Índices_inflação'!$A$2:$BA$120,$CL10,FALSE)) -> 0 | BV10: ='1.Dados_cont_historicos'!BV10*(1+VLOOKUP('1.Dados_cont_historicos'!BV$4,'3.Índices_inflação'!$A$2:$BA$120,$CL10,FALSE)) -> 0 | BW10: ='1.Dados_cont_historicos'!BW10*(1+VLOOKUP('1.Dados_cont_historicos'!BW$4,'3.Índices_inflação'!$A$2:$BA$120,$CL10,FALSE)) -> 0 | BZ10: =P10 -> 13.67791685 | CA10: =AC10 -> 789.3092587 | CB10: =AP10 -> 368.1948642 | CC10: =BC10 -> 0 | CD10: =BP10 -> 138.000024 | CE10: =SUM(K10:O10,Q10:W10) -> 795.0382512 | CF10: =SUM(X10:AB10,AD10:AJ10) -> 27.1338207 | CG10: =SUM(AK10:AO10,AQ10:AW10) -> 349.0099678 | CH10: =SUM(AX10:BB10,BD10:BJ10) -> 138.000024 | CI10: =SUM(BK10:BO10,BQ10:BW10) -> 0 | CK10: ETM | CL10: 50
A11: =C11='1.Dados_cont_historicos'!C11 -> TRUE | C11: Total - Receitas Operacionais Diretas | D11: =SUM(D6:D10) -> -3570012.553 | E11: =SUM(E6:E10) -> -3261519.213 | F11: -3339894.591 | G11: -3270423.357 | H11: -3379924.295 | I11: -3114337.068 | J11: -3268596.569 | K11: -3273073.877 | L11: -3122768.402 | M11: -3575297.285 | N11: -3613042.441 | O11: -4146694.841 | P11: =SUM(D11:O11) -> -40935584.49 | Q11: =SUM(Q6:Q10) -> -3563128.05 | R11: -3388766.962 | S11: -3437335.106 | T11: -3037902.794 | U11: -3164375.155 | V11: -3185835.912 | W11: -3040643.159 | X11: -3094795.071 | Y11: -3274496.254 | Z11: -3639448.795 | AA11: -3236074.98 | AB11: -3423291.817 | AC11: -39486094.06 | AD11: =SUM(AD6:AD10) -> -2809400.937 | AE11: -3316311.529 | AF11: -3890815.142 | AG11: -3254139.821 | AH11: -3416121.363 | AI11: -2905338.572 | AJ11: -3131055.94 | AK11: -3319552.306 | AL11: -3303456.71 | AM11: -4027806.521 | AN11: -3528934.262 | AO11: -3655520.562 | AP11: -40558453.67 | AQ11: =SUM(AQ6:AQ10) -> -4008060.597 | AR11: -3337518.145 | AS11: -3098246.183 | AT11: -3169074.219 | AU11: -3328834.153 | AV11: -3275411.071 | AW11: -3602279.073 | AX11: -3517907.591 | AY11: -3886251.137 | AZ11: -4767248.83 | BA11: -3631908.728 | BB11: -3564407.251 | BC11: -43187146.98 | BD11: =SUM(BD6:BD10) -> -4659050.962 | BE11: -4042935.285 | BF11: =SUM(BF6:BF10) -> -3387477.571 | BG11: -3749527.99 | BH11: -3921171.17 | BI11: -3783082.426 | BJ11: -3912609.02 | BK11: -3947947.79 | BL11: -4103160.21 | BM11: -4463191.39 | BN11: -3751482.25 | BO11: -3653735.16 | BP11: -47375371.22 | BQ11: -4002582.55 | BR11: -3798465.3 | BS11: -3818261.003 | BT11: -3873102.951 | BU11: -3829943.085 | BV11: -3840435.68 | BW11: -3847827.239 | BZ11: =SUM(BZ6:BZ10) -> -40935584.49 | CA11: -39486094.06 | CB11: -40558453.67 | CC11: -43187146.98 | CE11: -40548863.98 | CF11: -39391290.22 | CG11: -41654693.8 | CH11: -46823577.96 | CI11: -46930134.61
A12: =C12='1.Dados_cont_historicos'!C12 -> TRUE
A13: =C13='1.Dados_cont_historicos'!C13 -> TRUE | C13: Receitas Operacionais Indiretas | D13: ='1.Dados_cont_historicos'!D13*(1+VLOOKUP('1.Dados_cont_historicos'!D$4,'3.Índices_inflação'!$A$2:$BA$105,$CL13,FALSE)) -> -46583.27797 | E13: ='1.Dados_cont_historicos'!E13*(1+VLOOKUP('1.Dados_cont_historicos'!E$4,'3.Índices_inflação'!$A$2:$BA$105,$CL13,FALSE)) -> -19905.84722 | F13: ='1.Dados_cont_historicos'!F13*(1+VLOOKUP('1.Dados_cont_historicos'!F$4,'3.Índices_inflação'!$A$2:$BA$105,$CL13,FALSE)) -> -21164.17567 | G13: ='1.Dados_cont_historicos'!G13*(1+VLOOKUP('1.Dados_cont_historicos'!G$4,'3.Índices_inflação'!$A$2:$BA$105,$CL13,FALSE)) -> -22045.28646 | H13: ='1.Dados_cont_historicos'!H13*(1+VLOOKUP('1.Dados_cont_historicos'!H$4,'3.Índices_inflação'!$A$2:$BA$105,$CL13,FALSE)) -> -30898.54938 | I13: ='1.Dados_cont_historicos'!I13*(1+VLOOKUP('1.Dados_cont_historicos'!I$4,'3.Índices_inflação'!$A$2:$BA$105,$CL13,FALSE)) -> -25338.86263 | J13: ='1.Dados_cont_historicos'!J13*(1+VLOOKUP('1.Dados_cont_historicos'!J$4,'3.Índices_inflação'!$A$2:$BA$105,$CL13,FALSE)) -> -35708.82761 | K13: ='1.Dados_cont_historicos'!K13*(1+VLOOKUP('1.Dados_cont_historicos'!K$4,'3.Índices_inflação'!$A$2:$BA$105,$CL13,FALSE)) -> -24818.80618 | L13: ='1.Dados_cont_historicos'!L13*(1+VLOOKUP('1.Dados_cont_historicos'!L$4,'3.Índices_inflação'!$A$2:$BA$105,$CL13,FALSE)) -> -19333.78603 | M13: ='1.Dados_cont_historicos'!M13*(1+VLOOKUP('1.Dados_cont_historicos'!M$4,'3.Índices_inflação'!$A$2:$BA$105,$CL13,FALSE)) -> -6250.689478 | N13: ='1.Dados_cont_historicos'!N13*(1+VLOOKUP('1.Dados_cont_historicos'!N$4,'3.Índices_inflação'!$A$2:$BA$105,$CL13,FALSE)) -> -18432.11627 | O13: ='1.Dados_cont_historicos'!O13*(1+VLOOKUP('1.Dados_cont_historicos'!O$4,'3.Índices_inflação'!$A$2:$BA$105,$CL13,FALSE)) -> -100482.9258 | P13: =SUM(D13:O13) -> -370963.1507 | Q13: ='1.Dados_cont_historicos'!Q13*(1+VLOOKUP('1.Dados_cont_historicos'!Q$4,'3.Índices_inflação'!$A$2:$BA$105,$CL13,FALSE)) -> -26357.40653 | R13: ='1.Dados_cont_historicos'!R13*(1+VLOOKUP('1.Dados_cont_historicos'!R$4,'3.Índices_inflação'!$A$2:$BA$105,$CL13,FALSE)) -> -24719.17778 | S13: ='1.Dados_cont_historicos'!S13*(1+VLOOKUP('1.Dados_cont_historicos'!S$4,'3.Índices_inflação'!$A$2:$BA$105,$CL13,FALSE)) -> -17831.835 | T13: ='1.Dados_cont_historicos'!T13*(1+VLOOKUP('1.Dados_cont_historicos'!T$4,'3.Índices_inflação'!$A$2:$BA$105,$CL13,FALSE)) -> -24466.34342 | U13: ='1.Dados_cont_historicos'!U13*(1+VLOOKUP('1.Dados_cont_historicos'!U$4,'3.Índices_inflação'!$A$2:$BA$105,$CL13,FALSE)) -> -21671.47821 | V13: ='1.Dados_cont_historicos'!V13*(1+VLOOKUP('1.Dados_cont_historicos'!V$4,'3.Índices_inflação'!$A$2:$BA$105,$CL13,FALSE)) -> -36809.39353 | W13: ='1.Dados_cont_historicos'!W13*(1+VLOOKUP('1.Dados_cont_historicos'!W$4,'3.Índices_inflação'!$A$2:$BA$105,$CL13,FALSE)) -> -29834.07603 | X13: ='1.Dados_cont_historicos'!X13*(1+VLOOKUP('1.Dados_cont_historicos'!X$4,'3.Índices_inflação'!$A$2:$BA$105,$CL13,FALSE)) -> -39983.40201 | Y13: ='1.Dados_cont_historicos'!Y13*(1+VLOOKUP('1.Dados_cont_historicos'!Y$4,'3.Índices_inflação'!$A$2:$BA$105,$CL13,FALSE)) -> -36907.14197 | Z13: ='1.Dados_cont_historicos'!Z13*(1+VLOOKUP('1.Dados_cont_historicos'!Z$4,'3.Índices_inflação'!$A$2:$BA$105,$CL13,FALSE)) -> 2826.660665 | AA13: ='1.Dados_cont_historicos'!AA13*(1+VLOOKUP('1.Dados_cont_historicos'!AA$4,'3.Índices_inflação'!$A$2:$BA$105,$CL13,FALSE)) -> -39068.89455 | AB13: ='1.Dados_cont_historicos'!AB13*(1+VLOOKUP('1.Dados_cont_historicos'!AB$4,'3.Índices_inflação'!$A$2:$BA$105,$CL13,FALSE)) -> -7697.074623 | AC13: =SUM(Q13:AB13) -> -302519.563 | AD13: ='1.Dados_cont_historicos'!AD13*(1+VLOOKUP('1.Dados_cont_historicos'!AD$4,'3.Índices_inflação'!$A$2:$BA$105,$CL13,FALSE)) -> -23994.04179 | AE13: ='1.Dados_cont_historicos'!AE13*(1+VLOOKUP('1.Dados_cont_historicos'!AE$4,'3.Índices_inflação'!$A$2:$BA$105,$CL13,FALSE)) -> -37970.87803 | AF13: ='1.Dados_cont_historicos'!AF13*(1+VLOOKUP('1.Dados_cont_historicos'!AF$4,'3.Índices_inflação'!$A$2:$BA$105,$CL13,FALSE)) -> -22353.3915 | AG13: ='1.Dados_cont_historicos'!AG13*(1+VLOOKUP('1.Dados_cont_historicos'!AG$4,'3.Índices_inflação'!$A$2:$BA$105,$CL13,FALSE)) -> -34874.09952 | AH13: ='1.Dados_cont_historicos'!AH13*(1+VLOOKUP('1.Dados_cont_historicos'!AH$4,'3.Índices_inflação'!$A$2:$BA$105,$CL13,FALSE)) -> -25112.58159 | AI13: ='1.Dados_cont_historicos'!AI13*(1+VLOOKUP('1.Dados_cont_historicos'!AI$4,'3.Índices_inflação'!$A$2:$BA$105,$CL13,FALSE)) -> -44822.41091 | AJ13: ='1.Dados_cont_historicos'!AJ13*(1+VLOOKUP('1.Dados_cont_historicos'!AJ$4,'3.Índices_inflação'!$A$2:$BA$105,$CL13,FALSE)) -> -36146.89481 | AK13: ='1.Dados_cont_historicos'!AK13*(1+VLOOKUP('1.Dados_cont_historicos'!AK$4,'3.Índices_inflação'!$A$2:$BA$105,$CL13,FALSE)) -> -40684.27578 | AL13: ='1.Dados_cont_historicos'!AL13*(1+VLOOKUP('1.Dados_cont_historicos'!AL$4,'3.Índices_inflação'!$A$2:$BA$105,$CL13,FALSE)) -> -43542.26404 | AM13: ='1.Dados_cont_historicos'!AM13*(1+VLOOKUP('1.Dados_cont_historicos'!AM$4,'3.Índices_inflação'!$A$2:$BA$105,$CL13,FALSE)) -> -38168.29663 | AN13: ='1.Dados_cont_historicos'!AN13*(1+VLOOKUP('1.Dados_cont_historicos'!AN$4,'3.Índices_inflação'!$A$2:$BA$105,$CL13,FALSE)) -> 9344.407596 | AO13: ='1.Dados_cont_historicos'!AO13*(1+VLOOKUP('1.Dados_cont_historicos'!AO$4,'3.Índices_inflação'!$A$2:$BA$105,$CL13,FALSE)) -> -270979.0772 | AP13: =SUM(AD13:AO13) -> -609303.8042 | AQ13: ='1.Dados_cont_historicos'!AQ13*(1+VLOOKUP('1.Dados_cont_historicos'!AQ$4,'3.Índices_inflação'!$A$2:$BA$105,$CL13,FALSE)) -> -25838.52095 | AR13: ='1.Dados_cont_historicos'!AR13*(1+VLOOKUP('1.Dados_cont_historicos'!AR$4,'3.Índices_inflação'!$A$2:$BA$105,$CL13,FALSE)) -> -22667.75713 | AS13: ='1.Dados_cont_historicos'!AS13*(1+VLOOKUP('1.Dados_cont_historicos'!AS$4,'3.Índices_inflação'!$A$2:$BA$105,$CL13,FALSE)) -> -20056.5015 | AT13: ='1.Dados_cont_historicos'!AT13*(1+VLOOKUP('1.Dados_cont_historicos'!AT$4,'3.Índices_inflação'!$A$2:$BA$105,$CL13,FALSE)) -> -16756.8978 | AU13: ='1.Dados_cont_historicos'!AU13*(1+VLOOKUP('1.Dados_cont_historicos'!AU$4,'3.Índices_inflação'!$A$2:$BA$105,$CL13,FALSE)) -> -23343.3454 | AV13: ='1.Dados_cont_historicos'!AV13*(1+VLOOKUP('1.Dados_cont_historicos'!AV$4,'3.Índices_inflação'!$A$2:$BA$105,$CL13,FALSE)) -> 25920.44725 | AW13: ='1.Dados_cont_historicos'!AW13*(1+VLOOKUP('1.Dados_cont_historicos'!AW$4,'3.Índices_inflação'!$A$2:$BA$105,$CL13,FALSE)) -> -16462.4519 | AX13: ='1.Dados_cont_historicos'!AX13*(1+VLOOKUP('1.Dados_cont_historicos'!AX$4,'3.Índices_inflação'!$A$2:$BA$105,$CL13,FALSE)) -> -21400.67472 | AY13: ='1.Dados_cont_historicos'!AY13*(1+VLOOKUP('1.Dados_cont_historicos'!AY$4,'3.Índices_inflação'!$A$2:$BA$105,$CL13,FALSE)) -> -17160.75661 | AZ13: ='1.Dados_cont_historicos'!AZ13*(1+VLOOKUP('1.Dados_cont_historicos'!AZ$4,'3.Índices_inflação'!$A$2:$BA$105,$CL13,FALSE)) -> -16005.80697 | BA13: ='1.Dados_cont_historicos'!BA13*(1+VLOOKUP('1.Dados_cont_historicos'!BA$4,'3.Índices_inflação'!$A$2:$BA$105,$CL13,FALSE)) -> -17804.75837 | BB13: ='1.Dados_cont_historicos'!BB13*(1+VLOOKUP('1.Dados_cont_historicos'!BB$4,'3.Índices_inflação'!$A$2:$BA$105,$CL13,FALSE)) -> -16311.03169 | BC13: -187888.0558 | BD13: ='1.Dados_cont_historicos'!BD13*(1+VLOOKUP('1.Dados_cont_historicos'!BD$4,'3.Índices_inflação'!$A$2:$BA$105,$CL13,FALSE)) -> -17630.26659 | BE13: ='1.Dados_cont_historicos'!BE13*(1+VLOOKUP('1.Dados_cont_historicos'!BE$4,'3.Índices_inflação'!$A$2:$BA$105,$CL13,FALSE)) -> -31035.72495 | BF13: ='1.Dados_cont_historicos'!BF13*(1+VLOOKUP('1.Dados_cont_historicos'!BF$4,'3.Índices_inflação'!$A$2:$BA$105,$CL13,FALSE)) -> -28578.38251 | BG13: ='1.Dados_cont_historicos'!BG13*(1+VLOOKUP('1.Dados_cont_historicos'!BG$4,'3.Índices_inflação'!$A$2:$BA$105,$CL13,FALSE)) -> -31155.42284 | BH13: ='1.Dados_cont_historicos'!BH13*(1+VLOOKUP('1.Dados_cont_historicos'!BH$4,'3.Índices_inflação'!$A$2:$BA$105,$CL13,FALSE)) -> -19389.21175 | BI13: ='1.Dados_cont_historicos'!BI13*(1+VLOOKUP('1.Dados_cont_historicos'!BI$4,'3.Índices_inflação'!$A$2:$BA$105,$CL13,FALSE)) -> 11028.20999 | BJ13: ='1.Dados_cont_historicos'!BJ13*(1+VLOOKUP('1.Dados_cont_historicos'!BJ$4,'3.Índices_inflação'!$A$2:$BA$105,$CL13,FALSE)) -> -10455.7599 | BK13: ='1.Dados_cont_historicos'!BK13*(1+VLOOKUP('1.Dados_cont_historicos'!BK$4,'3.Índices_inflação'!$A$2:$BA$120,$CL13,FALSE)) -> -16663.47426 | BL13: ='1.Dados_cont_historicos'!BL13*(1+VLOOKUP('1.Dados_cont_historicos'!BL$4,'3.Índices_inflação'!$A$2:$BA$120,$CL13,FALSE)) -> -9151.539391 | BM13: ='1.Dados_cont_historicos'!BM13*(1+VLOOKUP('1.Dados_cont_historicos'!BM$4,'3.Índices_inflação'!$A$2:$BA$120,$CL13,FALSE)) -> -15183.42962 | BN13: ='1.Dados_cont_historicos'!BN13*(1+VLOOKUP('1.Dados_cont_historicos'!BN$4,'3.Índices_inflação'!$A$2:$BA$120,$CL13,FALSE)) -> -31796.61075 | BO13: ='1.Dados_cont_historicos'!BO13*(1+VLOOKUP('1.Dados_cont_historicos'!BO$4,'3.Índices_inflação'!$A$2:$BA$120,$CL13,FALSE)) -> -19918.65541 | BP13: =SUM(BD13:BO13) -> -219930.268 | BQ13: ='1.Dados_cont_historicos'!BQ13*(1+VLOOKUP('1.Dados_cont_historicos'!BQ$4,'3.Índices_inflação'!$A$2:$BA$120,$CL13,FALSE)) -> -16843.40992 | BR13: ='1.Dados_cont_historicos'!BR13*(1+VLOOKUP('1.Dados_cont_historicos'!BR$4,'3.Índices_inflação'!$A$2:$BA$120,$CL13,FALSE)) -> -20814.77198 | BS13: ='1.Dados_cont_historicos'!BS13*(1+VLOOKUP('1.Dados_cont_historicos'!BS$4,'3.Índices_inflação'!$A$2:$BA$120,$CL13,FALSE)) -> -18865.2738 | BT13: ='1.Dados_cont_historicos'!BT13*(1+VLOOKUP('1.Dados_cont_historicos'!BT$4,'3.Índices_inflação'!$A$2:$BA$120,$CL13,FALSE)) -> -18520.26894 | BU13: ='1.Dados_cont_historicos'!BU13*(1+VLOOKUP('1.Dados_cont_historicos'!BU$4,'3.Índices_inflação'!$A$2:$BA$120,$CL13,FALSE)) -> -19057.86794 | BV13: ='1.Dados_cont_historicos'!BV13*(1+VLOOKUP('1.Dados_cont_historicos'!BV$4,'3.Índices_inflação'!$A$2:$BA$120,$CL13,FALSE)) -> -18485.46874 | BW13: ='1.Dados_cont_historicos'!BW13*(1+VLOOKUP('1.Dados_cont_historicos'!BW$4,'3.Índices_inflação'!$A$2:$BA$120,$CL13,FALSE)) -> -18354.19453 | BZ13: =P13 -> -370963.1507 | CA13: =AC13 -> -302519.563 | CB13: =AP13 -> -609303.8042 | CC13: =BC13 -> -187888.0558 | CD13: =BP13 -> -219930.268 | CE13: =SUM(K13:O13,Q13:W13) -> -351008.0343 | CF13: =SUM(X13:AB13,AD13:AJ13) -> -346104.1506 | CG13: =SUM(AK13:AO13,AQ13:AW13) -> -483234.5335 | CH13: =SUM(AX13:BB13,BD13:BJ13) -> -215899.5869 | CI13: =SUM(BK13:BO13,BQ13:BW13) -> -223654.9653 | CK13: INPC | CL13: 4
A14: =C14='1.Dados_cont_historicos'!C14 -> TRUE | C14: Receitas Financeiras | D14: ='1.Dados_cont_historicos'!D14*(1+VLOOKUP('1.Dados_cont_historicos'!D$4,'3.Índices_inflação'!$A$2:$BA$105,$CL14,FALSE)) -> -427997.9447 | E14: ='1.Dados_cont_historicos'!E14*(1+VLOOKUP('1.Dados_cont_historicos'!E$4,'3.Índices_inflação'!$A$2:$BA$105,$CL14,FALSE)) -> -320129.5735 | F14: ='1.Dados_cont_historicos'!F14*(1+VLOOKUP('1.Dados_cont_historicos'!F$4,'3.Índices_inflação'!$A$2:$BA$105,$CL14,FALSE)) -> -496925.3792 | G14: ='1.Dados_cont_historicos'!G14*(1+VLOOKUP('1.Dados_cont_historicos'!G$4,'3.Índices_inflação'!$A$2:$BA$105,$CL14,FALSE)) -> -350961.4354 | H14: ='1.Dados_cont_historicos'!H14*(1+VLOOKUP('1.Dados_cont_historicos'!H$4,'3.Índices_inflação'!$A$2:$BA$105,$CL14,FALSE)) -> -371693.9085 | I14: ='1.Dados_cont_historicos'!I14*(1+VLOOKUP('1.Dados_cont_historicos'!I$4,'3.Índices_inflação'!$A$2:$BA$105,$CL14,FALSE)) -> -314250.6115 | J14: ='1.Dados_cont_historicos'!J14*(1+VLOOKUP('1.Dados_cont_historicos'!J$4,'3.Índices_inflação'!$A$2:$BA$105,$CL14,FALSE)) -> -226394.2759 | K14: ='1.Dados_cont_historicos'!K14*(1+VLOOKUP('1.Dados_cont_historicos'!K$4,'3.Índices_inflação'!$A$2:$BA$105,$CL14,FALSE)) -> -233854.1521 | L14: ='1.Dados_cont_historicos'!L14*(1+VLOOKUP('1.Dados_cont_historicos'!L$4,'3.Índices_inflação'!$A$2:$BA$105,$CL14,FALSE)) -> -135356.3198 | M14: ='1.Dados_cont_historicos'!M14*(1+VLOOKUP('1.Dados_cont_historicos'!M$4,'3.Índices_inflação'!$A$2:$BA$105,$CL14,FALSE)) -> -239911.9273 | N14: ='1.Dados_cont_historicos'!N14*(1+VLOOKUP('1.Dados_cont_historicos'!N$4,'3.Índices_inflação'!$A$2:$BA$105,$CL14,FALSE)) -> -238500.8973 | O14: ='1.Dados_cont_historicos'!O14*(1+VLOOKUP('1.Dados_cont_historicos'!O$4,'3.Índices_inflação'!$A$2:$BA$105,$CL14,FALSE)) -> -205873.3666 | P14: -3561849.792 | Q14: ='1.Dados_cont_historicos'!Q14*(1+VLOOKUP('1.Dados_cont_historicos'!Q$4,'3.Índices_inflação'!$A$2:$BA$105,$CL14,FALSE)) -> -155497.9859 | R14: ='1.Dados_cont_historicos'!R14*(1+VLOOKUP('1.Dados_cont_historicos'!R$4,'3.Índices_inflação'!$A$2:$BA$105,$CL14,FALSE)) -> -150509.4309 | S14: ='1.Dados_cont_historicos'!S14*(1+VLOOKUP('1.Dados_cont_historicos'!S$4,'3.Índices_inflação'!$A$2:$BA$105,$CL14,FALSE)) -> -143165.6404 | T14: ='1.Dados_cont_historicos'!T14*(1+VLOOKUP('1.Dados_cont_historicos'!T$4,'3.Índices_inflação'!$A$2:$BA$105,$CL14,FALSE)) -> -229158.6124 | U14: ='1.Dados_cont_historicos'!U14*(1+VLOOKUP('1.Dados_cont_historicos'!U$4,'3.Índices_inflação'!$A$2:$BA$105,$CL14,FALSE)) -> -212316.1124 | V14: ='1.Dados_cont_historicos'!V14*(1+VLOOKUP('1.Dados_cont_historicos'!V$4,'3.Índices_inflação'!$A$2:$BA$105,$CL14,FALSE)) -> -167515.5498 | W14: ='1.Dados_cont_historicos'!W14*(1+VLOOKUP('1.Dados_cont_historicos'!W$4,'3.Índices_inflação'!$A$2:$BA$105,$CL14,FALSE)) -> -190092.3704 | X14: ='1.Dados_cont_historicos'!X14*(1+VLOOKUP('1.Dados_cont_historicos'!X$4,'3.Índices_inflação'!$A$2:$BA$105,$CL14,FALSE)) -> -159082.0685 | Y14: ='1.Dados_cont_historicos'!Y14*(1+VLOOKUP('1.Dados_cont_historicos'!Y$4,'3.Índices_inflação'!$A$2:$BA$105,$CL14,FALSE)) -> -219158.9901 | Z14: ='1.Dados_cont_historicos'!Z14*(1+VLOOKUP('1.Dados_cont_historicos'!Z$4,'3.Índices_inflação'!$A$2:$BA$105,$CL14,FALSE)) -> -170193.5589 | AA14: ='1.Dados_cont_historicos'!AA14*(1+VLOOKUP('1.Dados_cont_historicos'!AA$4,'3.Índices_inflação'!$A$2:$BA$105,$CL14,FALSE)) -> -143873.6661 | AB14: ='1.Dados_cont_historicos'!AB14*(1+VLOOKUP('1.Dados_cont_historicos'!AB$4,'3.Índices_inflação'!$A$2:$BA$105,$CL14,FALSE)) -> -163038.2952 | AC14: -2103602.281 | AD14: ='1.Dados_cont_historicos'!AD14*(1+VLOOKUP('1.Dados_cont_historicos'!AD$4,'3.Índices_inflação'!$A$2:$BA$105,$CL14,FALSE)) -> -130725.661 | AE14: ='1.Dados_cont_historicos'!AE14*(1+VLOOKUP('1.Dados_cont_historicos'!AE$4,'3.Índices_inflação'!$A$2:$BA$105,$CL14,FALSE)) -> -134338.7386 | AF14: ='1.Dados_cont_historicos'!AF14*(1+VLOOKUP('1.Dados_cont_historicos'!AF$4,'3.Índices_inflação'!$A$2:$BA$105,$CL14,FALSE)) -> -66294.79243 | AG14: ='1.Dados_cont_historicos'!AG14*(1+VLOOKUP('1.Dados_cont_historicos'!AG$4,'3.Índices_inflação'!$A$2:$BA$105,$CL14,FALSE)) -> -205068.9577 | AH14: ='1.Dados_cont_historicos'!AH14*(1+VLOOKUP('1.Dados_cont_historicos'!AH$4,'3.Índices_inflação'!$A$2:$BA$105,$CL14,FALSE)) -> -189869.6535 | AI14: ='1.Dados_cont_historicos'!AI14*(1+VLOOKUP('1.Dados_cont_historicos'!AI$4,'3.Índices_inflação'!$A$2:$BA$105,$CL14,FALSE)) -> -120132.1398 | AJ14: ='1.Dados_cont_historicos'!AJ14*(1+VLOOKUP('1.Dados_cont_historicos'!AJ$4,'3.Índices_inflação'!$A$2:$BA$105,$CL14,FALSE)) -> -109386.7308 | AK14: ='1.Dados_cont_historicos'!AK14*(1+VLOOKUP('1.Dados_cont_historicos'!AK$4,'3.Índices_inflação'!$A$2:$BA$105,$CL14,FALSE)) -> -130533.1793 | AL14: ='1.Dados_cont_historicos'!AL14*(1+VLOOKUP('1.Dados_cont_historicos'!AL$4,'3.Índices_inflação'!$A$2:$BA$105,$CL14,FALSE)) -> -184912.5084 | AM14: ='1.Dados_cont_historicos'!AM14*(1+VLOOKUP('1.Dados_cont_historicos'!AM$4,'3.Índices_inflação'!$A$2:$BA$105,$CL14,FALSE)) -> -161772.1995 | AN14: ='1.Dados_cont_historicos'!AN14*(1+VLOOKUP('1.Dados_cont_historicos'!AN$4,'3.Índices_inflação'!$A$2:$BA$105,$CL14,FALSE)) -> -97345.14606 | AO14: ='1.Dados_cont_historicos'!AO14*(1+VLOOKUP('1.Dados_cont_historicos'!AO$4,'3.Índices_inflação'!$A$2:$BA$105,$CL14,FALSE)) -> -120036.5331 | AP14: -1650416.24 | AQ14: ='1.Dados_cont_historicos'!AQ14*(1+VLOOKUP('1.Dados_cont_historicos'!AQ$4,'3.Índices_inflação'!$A$2:$BA$105,$CL14,FALSE)) -> -148319.1445 | AR14: ='1.Dados_cont_historicos'!AR14*(1+VLOOKUP('1.Dados_cont_historicos'!AR$4,'3.Índices_inflação'!$A$2:$BA$105,$CL14,FALSE)) -> -123746.0603 | AS14: ='1.Dados_cont_historicos'!AS14*(1+VLOOKUP('1.Dados_cont_historicos'!AS$4,'3.Índices_inflação'!$A$2:$BA$105,$CL14,FALSE)) -> -106396.2331 | AT14: ='1.Dados_cont_historicos'!AT14*(1+VLOOKUP('1.Dados_cont_historicos'!AT$4,'3.Índices_inflação'!$A$2:$BA$105,$CL14,FALSE)) -> -128002.7583 | AU14: ='1.Dados_cont_historicos'!AU14*(1+VLOOKUP('1.Dados_cont_historicos'!AU$4,'3.Índices_inflação'!$A$2:$BA$105,$CL14,FALSE)) -> -112982.6587 | AV14: ='1.Dados_cont_historicos'!AV14*(1+VLOOKUP('1.Dados_cont_historicos'!AV$4,'3.Índices_inflação'!$A$2:$BA$105,$CL14,FALSE)) -> -112655.3201 | AW14: ='1.Dados_cont_historicos'!AW14*(1+VLOOKUP('1.Dados_cont_historicos'!AW$4,'3.Índices_inflação'!$A$2:$BA$105,$CL14,FALSE)) -> -125695.9136 | AX14: ='1.Dados_cont_historicos'!AX14*(1+VLOOKUP('1.Dados_cont_historicos'!AX$4,'3.Índices_inflação'!$A$2:$BA$105,$CL14,FALSE)) -> -111823.8772 | AY14: ='1.Dados_cont_historicos'!AY14*(1+VLOOKUP('1.Dados_cont_historicos'!AY$4,'3.Índices_inflação'!$A$2:$BA$105,$CL14,FALSE)) -> -142734.4518 | AZ14: ='1.Dados_cont_historicos'!AZ14*(1+VLOOKUP('1.Dados_cont_historicos'!AZ$4,'3.Índices_inflação'!$A$2:$BA$105,$CL14,FALSE)) -> -146734.0481 | BA14: ='1.Dados_cont_historicos'!BA14*(1+VLOOKUP('1.Dados_cont_historicos'!BA$4,'3.Índices_inflação'!$A$2:$BA$105,$CL14,FALSE)) -> -151045.1023 | BB14: ='1.Dados_cont_historicos'!BB14*(1+VLOOKUP('1.Dados_cont_historicos'!BB$4,'3.Índices_inflação'!$A$2:$BA$105,$CL14,FALSE)) -> -146636.9171 | BC14: -1556772.485 | BD14: ='1.Dados_cont_historicos'!BD14*(1+VLOOKUP('1.Dados_cont_historicos'!BD$4,'3.Índices_inflação'!$A$2:$BA$105,$CL14,FALSE)) -> -139724.6498 | BE14: ='1.Dados_cont_historicos'!BE14*(1+VLOOKUP('1.Dados_cont_historicos'!BE$4,'3.Índices_inflação'!$A$2:$BA$105,$CL14,FALSE)) -> -145523.7902 | BF14: ='1.Dados_cont_historicos'!BF14*(1+VLOOKUP('1.Dados_cont_historicos'!BF$4,'3.Índices_inflação'!$A$2:$BA$105,$CL14,FALSE)) -> -152653.7899 | BG14: ='1.Dados_cont_historicos'!BG14*(1+VLOOKUP('1.Dados_cont_historicos'!BG$4,'3.Índices_inflação'!$A$2:$BA$105,$CL14,FALSE)) -> -201637.0625 | BH14: ='1.Dados_cont_historicos'!BH14*(1+VLOOKUP('1.Dados_cont_historicos'!BH$4,'3.Índices_inflação'!$A$2:$BA$105,$CL14,FALSE)) -> -202879.6608 | BI14: ='1.Dados_cont_historicos'!BI14*(1+VLOOKUP('1.Dados_cont_historicos'!BI$4,'3.Índices_inflação'!$A$2:$BA$105,$CL14,FALSE)) -> -200283.8773 | BJ14: ='1.Dados_cont_historicos'!BJ14*(1+VLOOKUP('1.Dados_cont_historicos'!BJ$4,'3.Índices_inflação'!$A$2:$BA$105,$CL14,FALSE)) -> -201940.6483 | BK14: ='1.Dados_cont_historicos'!BK14*(1+VLOOKUP('1.Dados_cont_historicos'!BK$4,'3.Índices_inflação'!$A$2:$BA$120,$CL14,FALSE)) -> -207666.1759 | BL14: ='1.Dados_cont_historicos'!BL14*(1+VLOOKUP('1.Dados_cont_historicos'!BL$4,'3.Índices_inflação'!$A$2:$BA$120,$CL14,FALSE)) -> -316767.9311 | BM14: ='1.Dados_cont_historicos'!BM14*(1+VLOOKUP('1.Dados_cont_historicos'!BM$4,'3.Índices_inflação'!$A$2:$BA$120,$CL14,FALSE)) -> -318553.9565 | BN14: ='1.Dados_cont_historicos'!BN14*(1+VLOOKUP('1.Dados_cont_historicos'!BN$4,'3.Índices_inflação'!$A$2:$BA$120,$CL14,FALSE)) -> -368897.51 | BO14: ='1.Dados_cont_historicos'!BO14*(1+VLOOKUP('1.Dados_cont_historicos'!BO$4,'3.Índices_inflação'!$A$2:$BA$120,$CL14,FALSE)) -> -393118.6037 | BP14: -2849647.656 | BQ14: ='1.Dados_cont_historicos'!BQ14*(1+VLOOKUP('1.Dados_cont_historicos'!BQ$4,'3.Índices_inflação'!$A$2:$BA$120,$CL14,FALSE)) -> -340161.388 | BR14: ='1.Dados_cont_historicos'!BR14*(1+VLOOKUP('1.Dados_cont_historicos'!BR$4,'3.Índices_inflação'!$A$2:$BA$120,$CL14,FALSE)) -> -280853.989 | BS14: ='1.Dados_cont_historicos'!BS14*(1+VLOOKUP('1.Dados_cont_historicos'!BS$4,'3.Índices_inflação'!$A$2:$BA$120,$CL14,FALSE)) -> -333065.3394 | BT14: ='1.Dados_cont_historicos'!BT14*(1+VLOOKUP('1.Dados_cont_historicos'!BT$4,'3.Índices_inflação'!$A$2:$BA$120,$CL14,FALSE)) -> -314039.2138 | BU14: ='1.Dados_cont_historicos'!BU14*(1+VLOOKUP('1.Dados_cont_historicos'!BU$4,'3.Índices_inflação'!$A$2:$BA$120,$CL14,FALSE)) -> -307746.0282 | BV14: ='1.Dados_cont_historicos'!BV14*(1+VLOOKUP('1.Dados_cont_historicos'!BV$4,'3.Índices_inflação'!$A$2:$BA$120,$CL14,FALSE)) -> -316615.5102 | BW14: ='1.Dados_cont_historicos'!BW14*(1+VLOOKUP('1.Dados_cont_historicos'!BW$4,'3.Índices_inflação'!$A$2:$BA$120,$CL14,FALSE)) -> -310577.3894 | BZ14: -3561849.792 | CA14: -2103602.281 | CB14: -1650416.24 | CC14: -1556772.485 | CD14: -2849647.656 | CE14: -2301752.365 | CF14: -1811163.253 | CG14: -1552397.655 | CH14: -1943617.875 | CI14: -3808063.035 | CK14: IPCA | CL14: 28
A15: =C15='1.Dados_cont_historicos'!C15 -> TRUE | C15: Descontos e multas por impontualidade | D15: ='1.Dados_cont_historicos'!D15*(1+VLOOKUP('1.Dados_cont_historicos'!D$4,'3.Índices_inflação'!$A$2:$BA$105,$CL15,FALSE)) -> -45244.34742 | E15: ='1.Dados_cont_historicos'!E15*(1+VLOOKUP('1.Dados_cont_historicos'!E$4,'3.Índices_inflação'!$A$2:$BA$105,$CL15,FALSE)) -> -46763.37774 | F15: ='1.Dados_cont_historicos'!F15*(1+VLOOKUP('1.Dados_cont_historicos'!F$4,'3.Índices_inflação'!$A$2:$BA$105,$CL15,FALSE)) -> -44449.62318 | G15: ='1.Dados_cont_historicos'!G15*(1+VLOOKUP('1.Dados_cont_historicos'!G$4,'3.Índices_inflação'!$A$2:$BA$105,$CL15,FALSE)) -> -44365.14851 | H15: ='1.Dados_cont_historicos'!H15*(1+VLOOKUP('1.Dados_cont_historicos'!H$4,'3.Índices_inflação'!$A$2:$BA$105,$CL15,FALSE)) -> -46499.25208 | I15: ='1.Dados_cont_historicos'!I15*(1+VLOOKUP('1.Dados_cont_historicos'!I$4,'3.Índices_inflação'!$A$2:$BA$105,$CL15,FALSE)) -> -45200.80371 | J15: ='1.Dados_cont_historicos'!J15*(1+VLOOKUP('1.Dados_cont_historicos'!J$4,'3.Índices_inflação'!$A$2:$BA$105,$CL15,FALSE)) -> -45688.77812 | K15: ='1.Dados_cont_historicos'!K15*(1+VLOOKUP('1.Dados_cont_historicos'!K$4,'3.Índices_inflação'!$A$2:$BA$105,$CL15,FALSE)) -> -51589.34656 | L15: ='1.Dados_cont_historicos'!L15*(1+VLOOKUP('1.Dados_cont_historicos'!L$4,'3.Índices_inflação'!$A$2:$BA$105,$CL15,FALSE)) -> -51907.04415 | M15: ='1.Dados_cont_historicos'!M15*(1+VLOOKUP('1.Dados_cont_historicos'!M$4,'3.Índices_inflação'!$A$2:$BA$105,$CL15,FALSE)) -> -57703.67359 | N15: ='1.Dados_cont_historicos'!N15*(1+VLOOKUP('1.Dados_cont_historicos'!N$4,'3.Índices_inflação'!$A$2:$BA$105,$CL15,FALSE)) -> -60732.39684 | O15: ='1.Dados_cont_historicos'!O15*(1+VLOOKUP('1.Dados_cont_historicos'!O$4,'3.Índices_inflação'!$A$2:$BA$105,$CL15,FALSE)) -> -54084.40239 | P15: -594228.1943 | Q15: ='1.Dados_cont_historicos'!Q15*(1+VLOOKUP('1.Dados_cont_historicos'!Q$4,'3.Índices_inflação'!$A$2:$BA$105,$CL15,FALSE)) -> -58505.3742 | R15: ='1.Dados_cont_historicos'!R15*(1+VLOOKUP('1.Dados_cont_historicos'!R$4,'3.Índices_inflação'!$A$2:$BA$105,$CL15,FALSE)) -> -59099.28684 | S15: ='1.Dados_cont_historicos'!S15*(1+VLOOKUP('1.Dados_cont_historicos'!S$4,'3.Índices_inflação'!$A$2:$BA$105,$CL15,FALSE)) -> -62100.80784 | T15: ='1.Dados_cont_historicos'!T15*(1+VLOOKUP('1.Dados_cont_historicos'!T$4,'3.Índices_inflação'!$A$2:$BA$105,$CL15,FALSE)) -> -58274.96802 | U15: ='1.Dados_cont_historicos'!U15*(1+VLOOKUP('1.Dados_cont_historicos'!U$4,'3.Índices_inflação'!$A$2:$BA$105,$CL15,FALSE)) -> -55812.11702 | V15: ='1.Dados_cont_historicos'!V15*(1+VLOOKUP('1.Dados_cont_historicos'!V$4,'3.Índices_inflação'!$A$2:$BA$105,$CL15,FALSE)) -> -33205.04307 | W15: ='1.Dados_cont_historicos'!W15*(1+VLOOKUP('1.Dados_cont_historicos'!W$4,'3.Índices_inflação'!$A$2:$BA$105,$CL15,FALSE)) -> -86702.70056 | X15: ='1.Dados_cont_historicos'!X15*(1+VLOOKUP('1.Dados_cont_historicos'!X$4,'3.Índices_inflação'!$A$2:$BA$105,$CL15,FALSE)) -> -67310.5275 | Y15: ='1.Dados_cont_historicos'!Y15*(1+VLOOKUP('1.Dados_cont_historicos'!Y$4,'3.Índices_inflação'!$A$2:$BA$105,$CL15,FALSE)) -> -56466.61927 | Z15: ='1.Dados_cont_historicos'!Z15*(1+VLOOKUP('1.Dados_cont_historicos'!Z$4,'3.Índices_inflação'!$A$2:$BA$105,$CL15,FALSE)) -> -54917.18833 | AA15: ='1.Dados_cont_historicos'!AA15*(1+VLOOKUP('1.Dados_cont_historicos'!AA$4,'3.Índices_inflação'!$A$2:$BA$105,$CL15,FALSE)) -> -55347.92828 | AB15: ='1.Dados_cont_historicos'!AB15*(1+VLOOKUP('1.Dados_cont_historicos'!AB$4,'3.Índices_inflação'!$A$2:$BA$105,$CL15,FALSE)) -> -63502.18292 | AC15: -711244.7439 | AD15: ='1.Dados_cont_historicos'!AD15*(1+VLOOKUP('1.Dados_cont_historicos'!AD$4,'3.Índices_inflação'!$A$2:$BA$105,$CL15,FALSE)) -> -47247.13239 | AE15: ='1.Dados_cont_historicos'!AE15*(1+VLOOKUP('1.Dados_cont_historicos'!AE$4,'3.Índices_inflação'!$A$2:$BA$105,$CL15,FALSE)) -> -48606.02097 | AF15: ='1.Dados_cont_historicos'!AF15*(1+VLOOKUP('1.Dados_cont_historicos'!AF$4,'3.Índices_inflação'!$A$2:$BA$105,$CL15,FALSE)) -> -67790.53548 | AG15: ='1.Dados_cont_historicos'!AG15*(1+VLOOKUP('1.Dados_cont_historicos'!AG$4,'3.Índices_inflação'!$A$2:$BA$105,$CL15,FALSE)) -> -60794.44516 | AH15: ='1.Dados_cont_historicos'!AH15*(1+VLOOKUP('1.Dados_cont_historicos'!AH$4,'3.Índices_inflação'!$A$2:$BA$105,$CL15,FALSE)) -> -57175.19692 | AI15: ='1.Dados_cont_historicos'!AI15*(1+VLOOKUP('1.Dados_cont_historicos'!AI$4,'3.Índices_inflação'!$A$2:$BA$105,$CL15,FALSE)) -> -54563.5423 | AJ15: ='1.Dados_cont_historicos'!AJ15*(1+VLOOKUP('1.Dados_cont_historicos'!AJ$4,'3.Índices_inflação'!$A$2:$BA$105,$CL15,FALSE)) -> -50283.29893 | AK15: ='1.Dados_cont_historicos'!AK15*(1+VLOOKUP('1.Dados_cont_historicos'!AK$4,'3.Índices_inflação'!$A$2:$BA$105,$CL15,FALSE)) -> -51386.78974 | AL15: ='1.Dados_cont_historicos'!AL15*(1+VLOOKUP('1.Dados_cont_historicos'!AL$4,'3.Índices_inflação'!$A$2:$BA$105,$CL15,FALSE)) -> -57449.52298 | AM15: ='1.Dados_cont_historicos'!AM15*(1+VLOOKUP('1.Dados_cont_historicos'!AM$4,'3.Índices_inflação'!$A$2:$BA$105,$CL15,FALSE)) -> -52897.93301 | AN15: ='1.Dados_cont_historicos'!AN15*(1+VLOOKUP('1.Dados_cont_historicos'!AN$4,'3.Índices_inflação'!$A$2:$BA$105,$CL15,FALSE)) -> -16511.08551 | AO15: ='1.Dados_cont_historicos'!AO15*(1+VLOOKUP('1.Dados_cont_historicos'!AO$4,'3.Índices_inflação'!$A$2:$BA$105,$CL15,FALSE)) -> -50301.47861 | AP15: -615006.982 | AQ15: ='1.Dados_cont_historicos'!AQ15*(1+VLOOKUP('1.Dados_cont_historicos'!AQ$4,'3.Índices_inflação'!$A$2:$BA$105,$CL15,FALSE)) -> -55137.21291 | AR15: ='1.Dados_cont_historicos'!AR15*(1+VLOOKUP('1.Dados_cont_historicos'!AR$4,'3.Índices_inflação'!$A$2:$BA$105,$CL15,FALSE)) -> -61013.5863 | AS15: ='1.Dados_cont_historicos'!AS15*(1+VLOOKUP('1.Dados_cont_historicos'!AS$4,'3.Índices_inflação'!$A$2:$BA$105,$CL15,FALSE)) -> -55598.30848 | AT15: ='1.Dados_cont_historicos'!AT15*(1+VLOOKUP('1.Dados_cont_historicos'!AT$4,'3.Índices_inflação'!$A$2:$BA$105,$CL15,FALSE)) -> -31681.88109 | AU15: ='1.Dados_cont_historicos'!AU15*(1+VLOOKUP('1.Dados_cont_historicos'!AU$4,'3.Índices_inflação'!$A$2:$BA$105,$CL15,FALSE)) -> -31018.96154 | AV15: ='1.Dados_cont_historicos'!AV15*(1+VLOOKUP('1.Dados_cont_historicos'!AV$4,'3.Índices_inflação'!$A$2:$BA$105,$CL15,FALSE)) -> -40492.91797 | AW15: ='1.Dados_cont_historicos'!AW15*(1+VLOOKUP('1.Dados_cont_historicos'!AW$4,'3.Índices_inflação'!$A$2:$BA$105,$CL15,FALSE)) -> -61172.87865 | AX15: ='1.Dados_cont_historicos'!AX15*(1+VLOOKUP('1.Dados_cont_historicos'!AX$4,'3.Índices_inflação'!$A$2:$BA$105,$CL15,FALSE)) -> -50188.1745 | AY15: ='1.Dados_cont_historicos'!AY15*(1+VLOOKUP('1.Dados_cont_historicos'!AY$4,'3.Índices_inflação'!$A$2:$BA$105,$CL15,FALSE)) -> -54457.00411 | AZ15: ='1.Dados_cont_historicos'!AZ15*(1+VLOOKUP('1.Dados_cont_historicos'!AZ$4,'3.Índices_inflação'!$A$2:$BA$105,$CL15,FALSE)) -> -55722.31836 | BA15: ='1.Dados_cont_historicos'!BA15*(1+VLOOKUP('1.Dados_cont_historicos'!BA$4,'3.Índices_inflação'!$A$2:$BA$105,$CL15,FALSE)) -> -68578.59867 | BB15: ='1.Dados_cont_historicos'!BB15*(1+VLOOKUP('1.Dados_cont_historicos'!BB$4,'3.Índices_inflação'!$A$2:$BA$105,$CL15,FALSE)) -> -64173.25384 | BC15: -629235.0964 | BD15: ='1.Dados_cont_historicos'!BD15*(1+VLOOKUP('1.Dados_cont_historicos'!BD$4,'3.Índices_inflação'!$A$2:$BA$105,$CL15,FALSE)) -> -55661.69766 | BE15: ='1.Dados_cont_historicos'!BE15*(1+VLOOKUP('1.Dados_cont_historicos'!BE$4,'3.Índices_inflação'!$A$2:$BA$105,$CL15,FALSE)) -> -60573.44526 | BF15: ='1.Dados_cont_historicos'!BF15*(1+VLOOKUP('1.Dados_cont_historicos'!BF$4,'3.Índices_inflação'!$A$2:$BA$105,$CL15,FALSE)) -> -62015.97753 | BG15: ='1.Dados_cont_historicos'!BG15*(1+VLOOKUP('1.Dados_cont_historicos'!BG$4,'3.Índices_inflação'!$A$2:$BA$105,$CL15,FALSE)) -> -60449.25469 | BH15: ='1.Dados_cont_historicos'!BH15*(1+VLOOKUP('1.Dados_cont_historicos'!BH$4,'3.Índices_inflação'!$A$2:$BA$105,$CL15,FALSE)) -> -63295.13367 | BI15: ='1.Dados_cont_historicos'!BI15*(1+VLOOKUP('1.Dados_cont_historicos'!BI$4,'3.Índices_inflação'!$A$2:$BA$105,$CL15,FALSE)) -> -60705.12606 | BJ15: ='1.Dados_cont_historicos'!BJ15*(1+VLOOKUP('1.Dados_cont_historicos'!BJ$4,'3.Índices_inflação'!$A$2:$BA$105,$CL15,FALSE)) -> -61931.45818 | BK15: ='1.Dados_cont_historicos'!BK15*(1+VLOOKUP('1.Dados_cont_historicos'!BK$4,'3.Índices_inflação'!$A$2:$BA$120,$CL15,FALSE)) -> -60913.13 | BL15: ='1.Dados_cont_historicos'!BL15*(1+VLOOKUP('1.Dados_cont_historicos'!BL$4,'3.Índices_inflação'!$A$2:$BA$120,$CL15,FALSE)) -> -72824.61516 | BM15: ='1.Dados_cont_historicos'!BM15*(1+VLOOKUP('1.Dados_cont_historicos'!BM$4,'3.Índices_inflação'!$A$2:$BA$120,$CL15,FALSE)) -> -60950.81555 | BN15: ='1.Dados_cont_historicos'!BN15*(1+VLOOKUP('1.Dados_cont_historicos'!BN$4,'3.Índices_inflação'!$A$2:$BA$120,$CL15,FALSE)) -> -74450.86703 | BO15: ='1.Dados_cont_historicos'!BO15*(1+VLOOKUP('1.Dados_cont_historicos'!BO$4,'3.Índices_inflação'!$A$2:$BA$120,$CL15,FALSE)) -> -64466.38158 | BP15: -758237.9024 | BQ15: ='1.Dados_cont_historicos'!BQ15*(1+VLOOKUP('1.Dados_cont_historicos'!BQ$4,'3.Índices_inflação'!$A$2:$BA$120,$CL15,FALSE)) -> -60039.85961 | BR15: ='1.Dados_cont_historicos'!BR15*(1+VLOOKUP('1.Dados_cont_historicos'!BR$4,'3.Índices_inflação'!$A$2:$BA$120,$CL15,FALSE)) -> -67237.66961 | BS15: ='1.Dados_cont_historicos'!BS15*(1+VLOOKUP('1.Dados_cont_historicos'!BS$4,'3.Índices_inflação'!$A$2:$BA$120,$CL15,FALSE)) -> -63037.42842 | BT15: ='1.Dados_cont_historicos'!BT15*(1+VLOOKUP('1.Dados_cont_historicos'!BT$4,'3.Índices_inflação'!$A$2:$BA$120,$CL15,FALSE)) -> -62662.44554 | BU15: ='1.Dados_cont_historicos'!BU15*(1+VLOOKUP('1.Dados_cont_historicos'!BU$4,'3.Índices_inflação'!$A$2:$BA$120,$CL15,FALSE)) -> -63964.47494 | BV15: ='1.Dados_cont_historicos'!BV15*(1+VLOOKUP('1.Dados_cont_historicos'!BV$4,'3.Índices_inflação'!$A$2:$BA$120,$CL15,FALSE)) -> -62895.61861 | BW15: ='1.Dados_cont_historicos'!BW15*(1+VLOOKUP('1.Dados_cont_historicos'!BW$4,'3.Índices_inflação'!$A$2:$BA$120,$CL15,FALSE)) -> -62723.99329 | BZ15: -594228.1943 | CA15: -711244.7439 | CB15: -615006.982 | CC15: -629235.0964 | CD15: -758237.9024 | CE15: -689717.1611 | CF15: -684004.6185 | CG15: -564662.5568 | CH15: -717751.4425 | CI15: -776167.2993 | CK15: IPCA | CL15: 28
A16: =C16='1.Dados_cont_historicos'!C16 -> TRUE | C16: Juros por impontualidade, rendimentos de aplicações e outras | D16: ='1.Dados_cont_historicos'!D16*(1+VLOOKUP('1.Dados_cont_historicos'!D$4,'3.Índices_inflação'!$A$2:$BA$105,$CL16,FALSE)) -> -382753.5972 | E16: ='1.Dados_cont_historicos'!E16*(1+VLOOKUP('1.Dados_cont_historicos'!E$4,'3.Índices_inflação'!$A$2:$BA$105,$CL16,FALSE)) -> -273366.1958 | F16: ='1.Dados_cont_historicos'!F16*(1+VLOOKUP('1.Dados_cont_historicos'!F$4,'3.Índices_inflação'!$A$2:$BA$105,$CL16,FALSE)) -> -452475.756 | G16: ='1.Dados_cont_historicos'!G16*(1+VLOOKUP('1.Dados_cont_historicos'!G$4,'3.Índices_inflação'!$A$2:$BA$105,$CL16,FALSE)) -> -306596.2869 | H16: ='1.Dados_cont_historicos'!H16*(1+VLOOKUP('1.Dados_cont_historicos'!H$4,'3.Índices_inflação'!$A$2:$BA$105,$CL16,FALSE)) -> -325194.6564 | I16: ='1.Dados_cont_historicos'!I16*(1+VLOOKUP('1.Dados_cont_historicos'!I$4,'3.Índices_inflação'!$A$2:$BA$105,$CL16,FALSE)) -> -269049.8077 | J16: ='1.Dados_cont_historicos'!J16*(1+VLOOKUP('1.Dados_cont_historicos'!J$4,'3.Índices_inflação'!$A$2:$BA$105,$CL16,FALSE)) -> -180705.4978 | K16: ='1.Dados_cont_historicos'!K16*(1+VLOOKUP('1.Dados_cont_historicos'!K$4,'3.Índices_inflação'!$A$2:$BA$105,$CL16,FALSE)) -> -182264.8055 | L16: ='1.Dados_cont_historicos'!L16*(1+VLOOKUP('1.Dados_cont_historicos'!L$4,'3.Índices_inflação'!$A$2:$BA$105,$CL16,FALSE)) -> -83449.27568 | M16: ='1.Dados_cont_historicos'!M16*(1+VLOOKUP('1.Dados_cont_historicos'!M$4,'3.Índices_inflação'!$A$2:$BA$105,$CL16,FALSE)) -> -182208.2537 | N16: ='1.Dados_cont_historicos'!N16*(1+VLOOKUP('1.Dados_cont_historicos'!N$4,'3.Índices_inflação'!$A$2:$BA$105,$CL16,FALSE)) -> -177768.5005 | O16: ='1.Dados_cont_historicos'!O16*(1+VLOOKUP('1.Dados_cont_historicos'!O$4,'3.Índices_inflação'!$A$2:$BA$105,$CL16,FALSE)) -> -151788.9642 | P16: -2967621.598 | Q16: ='1.Dados_cont_historicos'!Q16*(1+VLOOKUP('1.Dados_cont_historicos'!Q$4,'3.Índices_inflação'!$A$2:$BA$105,$CL16,FALSE)) -> -96992.61174 | R16: ='1.Dados_cont_historicos'!R16*(1+VLOOKUP('1.Dados_cont_historicos'!R$4,'3.Índices_inflação'!$A$2:$BA$105,$CL16,FALSE)) -> -91410.14406 | S16: ='1.Dados_cont_historicos'!S16*(1+VLOOKUP('1.Dados_cont_historicos'!S$4,'3.Índices_inflação'!$A$2:$BA$105,$CL16,FALSE)) -> -81064.83252 | T16: ='1.Dados_cont_historicos'!T16*(1+VLOOKUP('1.Dados_cont_historicos'!T$4,'3.Índices_inflação'!$A$2:$BA$105,$CL16,FALSE)) -> -170883.6444 | U16: ='1.Dados_cont_historicos'!U16*(1+VLOOKUP('1.Dados_cont_historicos'!U$4,'3.Índices_inflação'!$A$2:$BA$105,$CL16,FALSE)) -> -156503.9954 | V16: ='1.Dados_cont_historicos'!V16*(1+VLOOKUP('1.Dados_cont_historicos'!V$4,'3.Índices_inflação'!$A$2:$BA$105,$CL16,FALSE)) -> -134310.5068 | W16: ='1.Dados_cont_historicos'!W16*(1+VLOOKUP('1.Dados_cont_historicos'!W$4,'3.Índices_inflação'!$A$2:$BA$105,$CL16,FALSE)) -> -103389.6699 | X16: ='1.Dados_cont_historicos'!X16*(1+VLOOKUP('1.Dados_cont_historicos'!X$4,'3.Índices_inflação'!$A$2:$BA$105,$CL16,FALSE)) -> -91771.541 | Y16: ='1.Dados_cont_historicos'!Y16*(1+VLOOKUP('1.Dados_cont_historicos'!Y$4,'3.Índices_inflação'!$A$2:$BA$105,$CL16,FALSE)) -> -162692.3709 | Z16: ='1.Dados_cont_historicos'!Z16*(1+VLOOKUP('1.Dados_cont_historicos'!Z$4,'3.Índices_inflação'!$A$2:$BA$105,$CL16,FALSE)) -> -115276.3706 | AA16: ='1.Dados_cont_historicos'!AA16*(1+VLOOKUP('1.Dados_cont_historicos'!AA$4,'3.Índices_inflação'!$A$2:$BA$105,$CL16,FALSE)) -> -88525.73786 | AB16: ='1.Dados_cont_historicos'!AB16*(1+VLOOKUP('1.Dados_cont_historicos'!AB$4,'3.Índices_inflação'!$A$2:$BA$105,$CL16,FALSE)) -> -99536.11232 | AC16: -1392357.537 | AD16: ='1.Dados_cont_historicos'!AD16*(1+VLOOKUP('1.Dados_cont_historicos'!AD$4,'3.Índices_inflação'!$A$2:$BA$105,$CL16,FALSE)) -> -83478.52864 | AE16: ='1.Dados_cont_historicos'!AE16*(1+VLOOKUP('1.Dados_cont_historicos'!AE$4,'3.Índices_inflação'!$A$2:$BA$105,$CL16,FALSE)) -> -85732.71767 | AF16: ='1.Dados_cont_historicos'!AF16*(1+VLOOKUP('1.Dados_cont_historicos'!AF$4,'3.Índices_inflação'!$A$2:$BA$105,$CL16,FALSE)) -> 1495.743049 | AG16: ='1.Dados_cont_historicos'!AG16*(1+VLOOKUP('1.Dados_cont_historicos'!AG$4,'3.Índices_inflação'!$A$2:$BA$105,$CL16,FALSE)) -> -144274.5125 | AH16: ='1.Dados_cont_historicos'!AH16*(1+VLOOKUP('1.Dados_cont_historicos'!AH$4,'3.Índices_inflação'!$A$2:$BA$105,$CL16,FALSE)) -> -132694.4566 | AI16: ='1.Dados_cont_historicos'!AI16*(1+VLOOKUP('1.Dados_cont_historicos'!AI$4,'3.Índices_inflação'!$A$2:$BA$105,$CL16,FALSE)) -> -65568.59755 | AJ16: ='1.Dados_cont_historicos'!AJ16*(1+VLOOKUP('1.Dados_cont_historicos'!AJ$4,'3.Índices_inflação'!$A$2:$BA$105,$CL16,FALSE)) -> -59103.43187 | AK16: ='1.Dados_cont_historicos'!AK16*(1+VLOOKUP('1.Dados_cont_historicos'!AK$4,'3.Índices_inflação'!$A$2:$BA$105,$CL16,FALSE)) -> -79146.38958 | AL16: ='1.Dados_cont_historicos'!AL16*(1+VLOOKUP('1.Dados_cont_historicos'!AL$4,'3.Índices_inflação'!$A$2:$BA$105,$CL16,FALSE)) -> -127462.9854 | AM16: ='1.Dados_cont_historicos'!AM16*(1+VLOOKUP('1.Dados_cont_historicos'!AM$4,'3.Índices_inflação'!$A$2:$BA$105,$CL16,FALSE)) -> -108874.2665 | AN16: ='1.Dados_cont_historicos'!AN16*(1+VLOOKUP('1.Dados_cont_historicos'!AN$4,'3.Índices_inflação'!$A$2:$BA$105,$CL16,FALSE)) -> -80834.06056 | AO16: ='1.Dados_cont_historicos'!AO16*(1+VLOOKUP('1.Dados_cont_historicos'!AO$4,'3.Índices_inflação'!$A$2:$BA$105,$CL16,FALSE)) -> -69735.05445 | AP16: -1035409.258 | AQ16: ='1.Dados_cont_historicos'!AQ16*(1+VLOOKUP('1.Dados_cont_historicos'!AQ$4,'3.Índices_inflação'!$A$2:$BA$105,$CL16,FALSE)) -> -93181.93164 | AR16: ='1.Dados_cont_historicos'!AR16*(1+VLOOKUP('1.Dados_cont_historicos'!AR$4,'3.Índices_inflação'!$A$2:$BA$105,$CL16,FALSE)) -> -62732.47404 | AS16: ='1.Dados_cont_historicos'!AS16*(1+VLOOKUP('1.Dados_cont_historicos'!AS$4,'3.Índices_inflação'!$A$2:$BA$105,$CL16,FALSE)) -> -50797.92462 | AT16: ='1.Dados_cont_historicos'!AT16*(1+VLOOKUP('1.Dados_cont_historicos'!AT$4,'3.Índices_inflação'!$A$2:$BA$105,$CL16,FALSE)) -> -96320.87722 | AU16: ='1.Dados_cont_historicos'!AU16*(1+VLOOKUP('1.Dados_cont_historicos'!AU$4,'3.Índices_inflação'!$A$2:$BA$105,$CL16,FALSE)) -> -81963.69713 | AV16: ='1.Dados_cont_historicos'!AV16*(1+VLOOKUP('1.Dados_cont_historicos'!AV$4,'3.Índices_inflação'!$A$2:$BA$105,$CL16,FALSE)) -> -72162.40208 | AW16: ='1.Dados_cont_historicos'!AW16*(1+VLOOKUP('1.Dados_cont_historicos'!AW$4,'3.Índices_inflação'!$A$2:$BA$105,$CL16,FALSE)) -> -64523.0349 | AX16: ='1.Dados_cont_historicos'!AX16*(1+VLOOKUP('1.Dados_cont_historicos'!AX$4,'3.Índices_inflação'!$A$2:$BA$105,$CL16,FALSE)) -> -61635.70274 | AY16: ='1.Dados_cont_historicos'!AY16*(1+VLOOKUP('1.Dados_cont_historicos'!AY$4,'3.Índices_inflação'!$A$2:$BA$105,$CL16,FALSE)) -> -88277.44768 | AZ16: ='1.Dados_cont_historicos'!AZ16*(1+VLOOKUP('1.Dados_cont_historicos'!AZ$4,'3.Índices_inflação'!$A$2:$BA$105,$CL16,FALSE)) -> -91011.72973 | BA16: ='1.Dados_cont_historicos'!BA16*(1+VLOOKUP('1.Dados_cont_historicos'!BA$4,'3.Índices_inflação'!$A$2:$BA$105,$CL16,FALSE)) -> -82466.50367 | BB16: ='1.Dados_cont_historicos'!BB16*(1+VLOOKUP('1.Dados_cont_historicos'!BB$4,'3.Índices_inflação'!$A$2:$BA$105,$CL16,FALSE)) -> -82463.66322 | BC16: -927537.3887 | BD16: ='1.Dados_cont_historicos'!BD16*(1+VLOOKUP('1.Dados_cont_historicos'!BD$4,'3.Índices_inflação'!$A$2:$BA$105,$CL16,FALSE)) -> -84062.95212 | BE16: ='1.Dados_cont_historicos'!BE16*(1+VLOOKUP('1.Dados_cont_historicos'!BE$4,'3.Índices_inflação'!$A$2:$BA$105,$CL16,FALSE)) -> -84950.34498 | BF16: ='1.Dados_cont_historicos'!BF16*(1+VLOOKUP('1.Dados_cont_historicos'!BF$4,'3.Índices_inflação'!$A$2:$BA$105,$CL16,FALSE)) -> -90637.81232 | BG16: ='1.Dados_cont_historicos'!BG16*(1+VLOOKUP('1.Dados_cont_historicos'!BG$4,'3.Índices_inflação'!$A$2:$BA$105,$CL16,FALSE)) -> -141187.8078 | BH16: ='1.Dados_cont_historicos'!BH16*(1+VLOOKUP('1.Dados_cont_historicos'!BH$4,'3.Índices_inflação'!$A$2:$BA$105,$CL16,FALSE)) -> -139584.5271 | BI16: ='1.Dados_cont_historicos'!BI16*(1+VLOOKUP('1.Dados_cont_historicos'!BI$4,'3.Índices_inflação'!$A$2:$BA$105,$CL16,FALSE)) -> -139578.7512 | BJ16: ='1.Dados_cont_historicos'!BJ16*(1+VLOOKUP('1.Dados_cont_historicos'!BJ$4,'3.Índices_inflação'!$A$2:$BA$105,$CL16,FALSE)) -> -140009.1901 | BK16: ='1.Dados_cont_historicos'!BK16*(1+VLOOKUP('1.Dados_cont_historicos'!BK$4,'3.Índices_inflação'!$A$2:$BA$120,$CL16,FALSE)) -> -146753.0459 | BL16: ='1.Dados_cont_historicos'!BL16*(1+VLOOKUP('1.Dados_cont_historicos'!BL$4,'3.Índices_inflação'!$A$2:$BA$120,$CL16,FALSE)) -> -243943.3159 | BM16: ='1.Dados_cont_historicos'!BM16*(1+VLOOKUP('1.Dados_cont_historicos'!BM$4,'3.Índices_inflação'!$A$2:$BA$120,$CL16,FALSE)) -> -257603.141 | BN16: ='1.Dados_cont_historicos'!BN16*(1+VLOOKUP('1.Dados_cont_historicos'!BN$4,'3.Índices_inflação'!$A$2:$BA$120,$CL16,FALSE)) -> -294446.643 | BO16: ='1.Dados_cont_historicos'!BO16*(1+VLOOKUP('1.Dados_cont_historicos'!BO$4,'3.Índices_inflação'!$A$2:$BA$120,$CL16,FALSE)) -> -328652.2222 | BP16: -2091409.754 | BQ16: ='1.Dados_cont_historicos'!BQ16*(1+VLOOKUP('1.Dados_cont_historicos'!BQ$4,'3.Índices_inflação'!$A$2:$BA$120,$CL16,FALSE)) -> -280121.5284 | BR16: ='1.Dados_cont_historicos'!BR16*(1+VLOOKUP('1.Dados_cont_historicos'!BR$4,'3.Índices_inflação'!$A$2:$BA$120,$CL16,FALSE)) -> -213616.3194 | BS16: ='1.Dados_cont_historicos'!BS16*(1+VLOOKUP('1.Dados_cont_historicos'!BS$4,'3.Índices_inflação'!$A$2:$BA$120,$CL16,FALSE)) -> -270027.911 | BT16: ='1.Dados_cont_historicos'!BT16*(1+VLOOKUP('1.Dados_cont_historicos'!BT$4,'3.Índices_inflação'!$A$2:$BA$120,$CL16,FALSE)) -> -251376.7682 | BU16: ='1.Dados_cont_historicos'!BU16*(1+VLOOKUP('1.Dados_cont_historicos'!BU$4,'3.Índices_inflação'!$A$2:$BA$120,$CL16,FALSE)) -> -243781.5533 | BV16: ='1.Dados_cont_historicos'!BV16*(1+VLOOKUP('1.Dados_cont_historicos'!BV$4,'3.Índices_inflação'!$A$2:$BA$120,$CL16,FALSE)) -> -253719.8916 | BW16: ='1.Dados_cont_historicos'!BW16*(1+VLOOKUP('1.Dados_cont_historicos'!BW$4,'3.Índices_inflação'!$A$2:$BA$120,$CL16,FALSE)) -> -247853.3961 | BZ16: -2967621.598 | CA16: -1392357.537 | CB16: -1035409.258 | CC16: -927537.3887 | CD16: -2091409.754 | CE16: -1612035.204 | CF16: -1127158.634 | CG16: -987735.0981 | CH16: -1225866.433 | CI16: -3031895.736 | CK16: IPCA | CL16: 28
A17: =C17='1.Dados_cont_historicos'!C17 -> TRUE | C17: Outras Receitas Diversas | D17: ='1.Dados_cont_historicos'!D17*(1+VLOOKUP('1.Dados_cont_historicos'!D$4,'3.Índices_inflação'!$A$2:$BA$105,$CL17,FALSE)) -> -9786.987123 | E17: ='1.Dados_cont_historicos'!E17*(1+VLOOKUP('1.Dados_cont_historicos'!E$4,'3.Índices_inflação'!$A$2:$BA$105,$CL17,FALSE)) -> -43916.6185 | F17: ='1.Dados_cont_historicos'!F17*(1+VLOOKUP('1.Dados_cont_historicos'!F$4,'3.Índices_inflação'!$A$2:$BA$105,$CL17,FALSE)) -> -89480.48608 | G17: ='1.Dados_cont_historicos'!G17*(1+VLOOKUP('1.Dados_cont_historicos'!G$4,'3.Índices_inflação'!$A$2:$BA$105,$CL17,FALSE)) -> -11642.3688 | H17: ='1.Dados_cont_historicos'!H17*(1+VLOOKUP('1.Dados_cont_historicos'!H$4,'3.Índices_inflação'!$A$2:$BA$105,$CL17,FALSE)) -> -5109.935853 | I17: ='1.Dados_cont_historicos'!I17*(1+VLOOKUP('1.Dados_cont_historicos'!I$4,'3.Índices_inflação'!$A$2:$BA$105,$CL17,FALSE)) -> -76407.59573 | J17: ='1.Dados_cont_historicos'!J17*(1+VLOOKUP('1.Dados_cont_historicos'!J$4,'3.Índices_inflação'!$A$2:$BA$105,$CL17,FALSE)) -> -56639.42237 | K17: ='1.Dados_cont_historicos'!K17*(1+VLOOKUP('1.Dados_cont_historicos'!K$4,'3.Índices_inflação'!$A$2:$BA$105,$CL17,FALSE)) -> -17865.79092 | L17: ='1.Dados_cont_historicos'!L17*(1+VLOOKUP('1.Dados_cont_historicos'!L$4,'3.Índices_inflação'!$A$2:$BA$105,$CL17,FALSE)) -> -33619.69989 | M17: ='1.Dados_cont_historicos'!M17*(1+VLOOKUP('1.Dados_cont_historicos'!M$4,'3.Índices_inflação'!$A$2:$BA$105,$CL17,FALSE)) -> -22415.45514 | N17: ='1.Dados_cont_historicos'!N17*(1+VLOOKUP('1.Dados_cont_historicos'!N$4,'3.Índices_inflação'!$A$2:$BA$105,$CL17,FALSE)) -> -16552.61242 | O17: ='1.Dados_cont_historicos'!O17*(1+VLOOKUP('1.Dados_cont_historicos'!O$4,'3.Índices_inflação'!$A$2:$BA$105,$CL17,FALSE)) -> -7861.915784 | P17: -391298.8886 | Q17: ='1.Dados_cont_historicos'!Q17*(1+VLOOKUP('1.Dados_cont_historicos'!Q$4,'3.Índices_inflação'!$A$2:$BA$105,$CL17,FALSE)) -> -26637.10156 | R17: ='1.Dados_cont_historicos'!R17*(1+VLOOKUP('1.Dados_cont_historicos'!R$4,'3.Índices_inflação'!$A$2:$BA$105,$CL17,FALSE)) -> -19606.11014 | S17: ='1.Dados_cont_historicos'!S17*(1+VLOOKUP('1.Dados_cont_historicos'!S$4,'3.Índices_inflação'!$A$2:$BA$105,$CL17,FALSE)) -> -24585.5988 | T17: ='1.Dados_cont_historicos'!T17*(1+VLOOKUP('1.Dados_cont_historicos'!T$4,'3.Índices_inflação'!$A$2:$BA$105,$CL17,FALSE)) -> -10855.51314 | U17: ='1.Dados_cont_historicos'!U17*(1+VLOOKUP('1.Dados_cont_historicos'!U$4,'3.Índices_inflação'!$A$2:$BA$105,$CL17,FALSE)) -> -31982.29324 | V17: ='1.Dados_cont_historicos'!V17*(1+VLOOKUP('1.Dados_cont_historicos'!V$4,'3.Índices_inflação'!$A$2:$BA$105,$CL17,FALSE)) -> -2606.779215 | W17: ='1.Dados_cont_historicos'!W17*(1+VLOOKUP('1.Dados_cont_historicos'!W$4,'3.Índices_inflação'!$A$2:$BA$105,$CL17,FALSE)) -> -8616.745713 | X17: ='1.Dados_cont_historicos'!X17*(1+VLOOKUP('1.Dados_cont_historicos'!X$4,'3.Índices_inflação'!$A$2:$BA$105,$CL17,FALSE)) -> -19959.07932 | Y17: ='1.Dados_cont_historicos'!Y17*(1+VLOOKUP('1.Dados_cont_historicos'!Y$4,'3.Índices_inflação'!$A$2:$BA$105,$CL17,FALSE)) -> -33470.38686 | Z17: ='1.Dados_cont_historicos'!Z17*(1+VLOOKUP('1.Dados_cont_historicos'!Z$4,'3.Índices_inflação'!$A$2:$BA$105,$CL17,FALSE)) -> -16924.27691 | AA17: ='1.Dados_cont_historicos'!AA17*(1+VLOOKUP('1.Dados_cont_historicos'!AA$4,'3.Índices_inflação'!$A$2:$BA$105,$CL17,FALSE)) -> -31055.6414 | AB17: ='1.Dados_cont_historicos'!AB17*(1+VLOOKUP('1.Dados_cont_historicos'!AB$4,'3.Índices_inflação'!$A$2:$BA$105,$CL17,FALSE)) -> 3337.492319 | AC17: -222962.034 | AD17: ='1.Dados_cont_historicos'!AD17*(1+VLOOKUP('1.Dados_cont_historicos'!AD$4,'3.Índices_inflação'!$A$2:$BA$105,$CL17,FALSE)) -> -3716.093025 | AE17: ='1.Dados_cont_historicos'!AE17*(1+VLOOKUP('1.Dados_cont_historicos'!AE$4,'3.Índices_inflação'!$A$2:$BA$105,$CL17,FALSE)) -> -9209.432874 | AF17: ='1.Dados_cont_historicos'!AF17*(1+VLOOKUP('1.Dados_cont_historicos'!AF$4,'3.Índices_inflação'!$A$2:$BA$105,$CL17,FALSE)) -> -7152.927515 | AG17: ='1.Dados_cont_historicos'!AG17*(1+VLOOKUP('1.Dados_cont_historicos'!AG$4,'3.Índices_inflação'!$A$2:$BA$105,$CL17,FALSE)) -> -20135.49731 | AH17: ='1.Dados_cont_historicos'!AH17*(1+VLOOKUP('1.Dados_cont_historicos'!AH$4,'3.Índices_inflação'!$A$2:$BA$105,$CL17,FALSE)) -> -17065.87415 | AI17: ='1.Dados_cont_historicos'!AI17*(1+VLOOKUP('1.Dados_cont_historicos'!AI$4,'3.Índices_inflação'!$A$2:$BA$105,$CL17,FALSE)) -> -43375.33414 | AJ17: ='1.Dados_cont_historicos'!AJ17*(1+VLOOKUP('1.Dados_cont_historicos'!AJ$4,'3.Índices_inflação'!$A$2:$BA$105,$CL17,FALSE)) -> -19754.02668 | AK17: ='1.Dados_cont_historicos'!AK17*(1+VLOOKUP('1.Dados_cont_historicos'!AK$4,'3.Índices_inflação'!$A$2:$BA$105,$CL17,FALSE)) -> -23554.90633 | AL17: ='1.Dados_cont_historicos'!AL17*(1+VLOOKUP('1.Dados_cont_historicos'!AL$4,'3.Índices_inflação'!$A$2:$BA$105,$CL17,FALSE)) -> -21422.68523 | AM17: ='1.Dados_cont_historicos'!AM17*(1+VLOOKUP('1.Dados_cont_historicos'!AM$4,'3.Índices_inflação'!$A$2:$BA$105,$CL17,FALSE)) -> -14456.64429 | AN17: ='1.Dados_cont_historicos'!AN17*(1+VLOOKUP('1.Dados_cont_historicos'!AN$4,'3.Índices_inflação'!$A$2:$BA$105,$CL17,FALSE)) -> -27977.49821 | AO17: ='1.Dados_cont_historicos'!AO17*(1+VLOOKUP('1.Dados_cont_historicos'!AO$4,'3.Índices_inflação'!$A$2:$BA$105,$CL17,FALSE)) -> -18067.63984 | AP17: -225888.5596 | AQ17: ='1.Dados_cont_historicos'!AQ17*(1+VLOOKUP('1.Dados_cont_historicos'!AQ$4,'3.Índices_inflação'!$A$2:$BA$105,$CL17,FALSE)) -> -39997.57217 | AR17: ='1.Dados_cont_historicos'!AR17*(1+VLOOKUP('1.Dados_cont_historicos'!AR$4,'3.Índices_inflação'!$A$2:$BA$105,$CL17,FALSE)) -> -170535.1094 | AS17: ='1.Dados_cont_historicos'!AS17*(1+VLOOKUP('1.Dados_cont_historicos'!AS$4,'3.Índices_inflação'!$A$2:$BA$105,$CL17,FALSE)) -> -59149.75199 | AT17: ='1.Dados_cont_historicos'!AT17*(1+VLOOKUP('1.Dados_cont_historicos'!AT$4,'3.Índices_inflação'!$A$2:$BA$105,$CL17,FALSE)) -> -6153.592251 | AU17: ='1.Dados_cont_historicos'!AU17*(1+VLOOKUP('1.Dados_cont_historicos'!AU$4,'3.Índices_inflação'!$A$2:$BA$105,$CL17,FALSE)) -> -6857.864664 | AV17: ='1.Dados_cont_historicos'!AV17*(1+VLOOKUP('1.Dados_cont_historicos'!AV$4,'3.Índices_inflação'!$A$2:$BA$105,$CL17,FALSE)) -> -458926.0223 | AW17: ='1.Dados_cont_historicos'!AW17*(1+VLOOKUP('1.Dados_cont_historicos'!AW$4,'3.Índices_inflação'!$A$2:$BA$105,$CL17,FALSE)) -> -13437.32473 | AX17: ='1.Dados_cont_historicos'!AX17*(1+VLOOKUP('1.Dados_cont_historicos'!AX$4,'3.Índices_inflação'!$A$2:$BA$105,$CL17,FALSE)) -> -5454.449189 | AY17: ='1.Dados_cont_historicos'!AY17*(1+VLOOKUP('1.Dados_cont_historicos'!AY$4,'3.Índices_inflação'!$A$2:$BA$105,$CL17,FALSE)) -> -40294.1884 | AZ17: ='1.Dados_cont_historicos'!AZ17*(1+VLOOKUP('1.Dados_cont_historicos'!AZ$4,'3.Índices_inflação'!$A$2:$BA$105,$CL17,FALSE)) -> -21576.55562 | BA17: ='1.Dados_cont_historicos'!BA17*(1+VLOOKUP('1.Dados_cont_historicos'!BA$4,'3.Índices_inflação'!$A$2:$BA$105,$CL17,FALSE)) -> -16228.92812 | BB17: ='1.Dados_cont_historicos'!BB17*(1+VLOOKUP('1.Dados_cont_historicos'!BB$4,'3.Índices_inflação'!$A$2:$BA$105,$CL17,FALSE)) -> -29686.3901 | BC17: -868297.749 | BD17: ='1.Dados_cont_historicos'!BD17*(1+VLOOKUP('1.Dados_cont_historicos'!BD$4,'3.Índices_inflação'!$A$2:$BA$105,$CL17,FALSE)) -> 10858.68712 | BE17: ='1.Dados_cont_historicos'!BE17*(1+VLOOKUP('1.Dados_cont_historicos'!BE$4,'3.Índices_inflação'!$A$2:$BA$105,$CL17,FALSE)) -> -20264.37324 | BF17: ='1.Dados_cont_historicos'!BF17*(1+VLOOKUP('1.Dados_cont_historicos'!BF$4,'3.Índices_inflação'!$A$2:$BA$105,$CL17,FALSE)) -> -56589.91485 | BG17: ='1.Dados_cont_historicos'!BG17*(1+VLOOKUP('1.Dados_cont_historicos'!BG$4,'3.Índices_inflação'!$A$2:$BA$105,$CL17,FALSE)) -> -8250.148691 | BH17: ='1.Dados_cont_historicos'!BH17*(1+VLOOKUP('1.Dados_cont_historicos'!BH$4,'3.Índices_inflação'!$A$2:$BA$105,$CL17,FALSE)) -> -4479.616407 | BI17: ='1.Dados_cont_historicos'!BI17*(1+VLOOKUP('1.Dados_cont_historicos'!BI$4,'3.Índices_inflação'!$A$2:$BA$105,$CL17,FALSE)) -> -12695.26998 | BJ17: ='1.Dados_cont_historicos'!BJ17*(1+VLOOKUP('1.Dados_cont_historicos'!BJ$4,'3.Índices_inflação'!$A$2:$BA$105,$CL17,FALSE)) -> -5831.94986 | BK17: ='1.Dados_cont_historicos'!BK17*(1+VLOOKUP('1.Dados_cont_historicos'!BK$4,'3.Índices_inflação'!$A$2:$BA$120,$CL17,FALSE)) -> -4533.968948 | BL17: ='1.Dados_cont_historicos'!BL17*(1+VLOOKUP('1.Dados_cont_historicos'!BL$4,'3.Índices_inflação'!$A$2:$BA$120,$CL17,FALSE)) -> -10004.99054 | BM17: ='1.Dados_cont_historicos'!BM17*(1+VLOOKUP('1.Dados_cont_historicos'!BM$4,'3.Índices_inflação'!$A$2:$BA$120,$CL17,FALSE)) -> -1874.400444 | BN17: ='1.Dados_cont_historicos'!BN17*(1+VLOOKUP('1.Dados_cont_historicos'!BN$4,'3.Índices_inflação'!$A$2:$BA$120,$CL17,FALSE)) -> -1616.060675 | BO17: ='1.Dados_cont_historicos'!BO17*(1+VLOOKUP('1.Dados_cont_historicos'!BO$4,'3.Índices_inflação'!$A$2:$BA$120,$CL17,FALSE)) -> -24439.4809 | BP17: -139721.4874 | BQ17: ='1.Dados_cont_historicos'!BQ17*(1+VLOOKUP('1.Dados_cont_historicos'!BQ$4,'3.Índices_inflação'!$A$2:$BA$120,$CL17,FALSE)) -> -15643.90642 | BR17: ='1.Dados_cont_historicos'!BR17*(1+VLOOKUP('1.Dados_cont_historicos'!BR$4,'3.Índices_inflação'!$A$2:$BA$120,$CL17,FALSE)) -> 659.600079 | BS17: ='1.Dados_cont_historicos'!BS17*(1+VLOOKUP('1.Dados_cont_historicos'!BS$4,'3.Índices_inflação'!$A$2:$BA$120,$CL17,FALSE)) -> -12893.17673 | BT17: ='1.Dados_cont_historicos'!BT17*(1+VLOOKUP('1.Dados_cont_historicos'!BT$4,'3.Índices_inflação'!$A$2:$BA$120,$CL17,FALSE)) -> -9162.924345 | BU17: ='1.Dados_cont_historicos'!BU17*(1+VLOOKUP('1.Dados_cont_historicos'!BU$4,'3.Índices_inflação'!$A$2:$BA$120,$CL17,FALSE)) -> -7112.372237 | BV17: ='1.Dados_cont_historicos'!BV17*(1+VLOOKUP('1.Dados_cont_historicos'!BV$4,'3.Índices_inflação'!$A$2:$BA$120,$CL17,FALSE)) -> -9667.074635 | BW17: ='1.Dados_cont_historicos'!BW17*(1+VLOOKUP('1.Dados_cont_historicos'!BW$4,'3.Índices_inflação'!$A$2:$BA$120,$CL17,FALSE)) -> -8587.083786 | BZ17: -391298.8886 | CA17: -222962.034 | CB17: -225888.5596 | CC17: -868297.749 | CD17: -139721.4874 | CE17: -223205.616 | CF17: -218481.0779 | CG17: -860536.6115 | CH17: -210493.0973 | CI17: -104875.8396 | CK17: IPCA | CL17: 28
A18: =C18='1.Dados_cont_historicos'!C18 -> TRUE | C18: Indenizações e Ressarcimentos | D18: ='1.Dados_cont_historicos'!D18*(1+VLOOKUP('1.Dados_cont_historicos'!D$4,'3.Índices_inflação'!$A$2:$BA$105,$CL18,FALSE)) -> 0 | E18: ='1.Dados_cont_historicos'!E18*(1+VLOOKUP('1.Dados_cont_historicos'!E$4,'3.Índices_inflação'!$A$2:$BA$105,$CL18,FALSE)) -> 0 | F18: ='1.Dados_cont_historicos'!F18*(1+VLOOKUP('1.Dados_cont_historicos'!F$4,'3.Índices_inflação'!$A$2:$BA$105,$CL18,FALSE)) -> 0 | G18: ='1.Dados_cont_historicos'!G18*(1+VLOOKUP('1.Dados_cont_historicos'!G$4,'3.Índices_inflação'!$A$2:$BA$105,$CL18,FALSE)) -> 0 | H18: ='1.Dados_cont_historicos'!H18*(1+VLOOKUP('1.Dados_cont_historicos'!H$4,'3.Índices_inflação'!$A$2:$BA$105,$CL18,FALSE)) -> 0 | I18: ='1.Dados_cont_historicos'!I18*(1+VLOOKUP('1.Dados_cont_historicos'!I$4,'3.Índices_inflação'!$A$2:$BA$105,$CL18,FALSE)) -> 0 | J18: ='1.Dados_cont_historicos'!J18*(1+VLOOKUP('1.Dados_cont_historicos'!J$4,'3.Índices_inflação'!$A$2:$BA$105,$CL18,FALSE)) -> 0 | K18: ='1.Dados_cont_historicos'!K18*(1+VLOOKUP('1.Dados_cont_historicos'!K$4,'3.Índices_inflação'!$A$2:$BA$105,$CL18,FALSE)) -> 0 | L18: ='1.Dados_cont_historicos'!L18*(1+VLOOKUP('1.Dados_cont_historicos'!L$4,'3.Índices_inflação'!$A$2:$BA$105,$CL18,FALSE)) -> 0 | M18: ='1.Dados_cont_historicos'!M18*(1+VLOOKUP('1.Dados_cont_historicos'!M$4,'3.Índices_inflação'!$A$2:$BA$105,$CL18,FALSE)) -> 0 | N18: ='1.Dados_cont_historicos'!N18*(1+VLOOKUP('1.Dados_cont_historicos'!N$4,'3.Índices_inflação'!$A$2:$BA$105,$CL18,FALSE)) -> 0 | O18: ='1.Dados_cont_historicos'!O18*(1+VLOOKUP('1.Dados_cont_historicos'!O$4,'3.Índices_inflação'!$A$2:$BA$105,$CL18,FALSE)) -> 0 | P18: 0 | Q18: ='1.Dados_cont_historicos'!Q18*(1+VLOOKUP('1.Dados_cont_historicos'!Q$4,'3.Índices_inflação'!$A$2:$BA$105,$CL18,FALSE)) -> 0 | R18: ='1.Dados_cont_historicos'!R18*(1+VLOOKUP('1.Dados_cont_historicos'!R$4,'3.Índices_inflação'!$A$2:$BA$105,$CL18,FALSE)) -> -102.4640417 | S18: ='1.Dados_cont_historicos'!S18*(1+VLOOKUP('1.Dados_cont_historicos'!S$4,'3.Índices_inflação'!$A$2:$BA$105,$CL18,FALSE)) -> 0 | T18: ='1.Dados_cont_historicos'!T18*(1+VLOOKUP('1.Dados_cont_historicos'!T$4,'3.Índices_inflação'!$A$2:$BA$105,$CL18,FALSE)) -> 0 | U18: ='1.Dados_cont_historicos'!U18*(1+VLOOKUP('1.Dados_cont_historicos'!U$4,'3.Índices_inflação'!$A$2:$BA$105,$CL18,FALSE)) -> -419.6784171 | V18: ='1.Dados_cont_historicos'!V18*(1+VLOOKUP('1.Dados_cont_historicos'!V$4,'3.Índices_inflação'!$A$2:$BA$105,$CL18,FALSE)) -> 0 | W18: ='1.Dados_cont_historicos'!W18*(1+VLOOKUP('1.Dados_cont_historicos'!W$4,'3.Índices_inflação'!$A$2:$BA$105,$CL18,FALSE)) -> 0 | X18: ='1.Dados_cont_historicos'!X18*(1+VLOOKUP('1.Dados_cont_historicos'!X$4,'3.Índices_inflação'!$A$2:$BA$105,$CL18,FALSE)) -> 0 | Y18: ='1.Dados_cont_historicos'!Y18*(1+VLOOKUP('1.Dados_cont_historicos'!Y$4,'3.Índices_inflação'!$A$2:$BA$105,$CL18,FALSE)) -> 0 | Z18: ='1.Dados_cont_historicos'!Z18*(1+VLOOKUP('1.Dados_cont_historicos'!Z$4,'3.Índices_inflação'!$A$2:$BA$105,$CL18,FALSE)) -> 0 | AA18: ='1.Dados_cont_historicos'!AA18*(1+VLOOKUP('1.Dados_cont_historicos'!AA$4,'3.Índices_inflação'!$A$2:$BA$105,$CL18,FALSE)) -> 0 | AB18: ='1.Dados_cont_historicos'!AB18*(1+VLOOKUP('1.Dados_cont_historicos'!AB$4,'3.Índices_inflação'!$A$2:$BA$105,$CL18,FALSE)) -> 0 | AC18: -522.1424588 | AD18: ='1.Dados_cont_historicos'!AD18*(1+VLOOKUP('1.Dados_cont_historicos'!AD$4,'3.Índices_inflação'!$A$2:$BA$105,$CL18,FALSE)) -> 0 | AE18: ='1.Dados_cont_historicos'!AE18*(1+VLOOKUP('1.Dados_cont_historicos'!AE$4,'3.Índices_inflação'!$A$2:$BA$105,$CL18,FALSE)) -> 0 | AF18: ='1.Dados_cont_historicos'!AF18*(1+VLOOKUP('1.Dados_cont_historicos'!AF$4,'3.Índices_inflação'!$A$2:$BA$105,$CL18,FALSE)) -> 0 | AG18: ='1.Dados_cont_historicos'!AG18*(1+VLOOKUP('1.Dados_cont_historicos'!AG$4,'3.Índices_inflação'!$A$2:$BA$105,$CL18,FALSE)) -> 0 | AH18: ='1.Dados_cont_historicos'!AH18*(1+VLOOKUP('1.Dados_cont_historicos'!AH$4,'3.Índices_inflação'!$A$2:$BA$105,$CL18,FALSE)) -> 0 | AI18: ='1.Dados_cont_historicos'!AI18*(1+VLOOKUP('1.Dados_cont_historicos'!AI$4,'3.Índices_inflação'!$A$2:$BA$105,$CL18,FALSE)) -> 0 | AJ18: ='1.Dados_cont_historicos'!AJ18*(1+VLOOKUP('1.Dados_cont_historicos'!AJ$4,'3.Índices_inflação'!$A$2:$BA$105,$CL18,FALSE)) -> 0 | AK18: ='1.Dados_cont_historicos'!AK18*(1+VLOOKUP('1.Dados_cont_historicos'!AK$4,'3.Índices_inflação'!$A$2:$BA$105,$CL18,FALSE)) -> 0 | AL18: ='1.Dados_cont_historicos'!AL18*(1+VLOOKUP('1.Dados_cont_historicos'!AL$4,'3.Índices_inflação'!$A$2:$BA$105,$CL18,FALSE)) -> 0 | AM18: ='1.Dados_cont_historicos'!AM18*(1+VLOOKUP('1.Dados_cont_historicos'!AM$4,'3.Índices_inflação'!$A$2:$BA$105,$CL18,FALSE)) -> 0 | AN18: ='1.Dados_cont_historicos'!AN18*(1+VLOOKUP('1.Dados_cont_historicos'!AN$4,'3.Índices_inflação'!$A$2:$BA$105,$CL18,FALSE)) -> 0 | AO18: ='1.Dados_cont_historicos'!AO18*(1+VLOOKUP('1.Dados_cont_historicos'!AO$4,'3.Índices_inflação'!$A$2:$BA$105,$CL18,FALSE)) -> 0 | AP18: 0 | AQ18: ='1.Dados_cont_historicos'!AQ18*(1+VLOOKUP('1.Dados_cont_historicos'!AQ$4,'3.Índices_inflação'!$A$2:$BA$105,$CL18,FALSE)) -> -185.5933266 | AR18: ='1.Dados_cont_historicos'!AR18*(1+VLOOKUP('1.Dados_cont_historicos'!AR$4,'3.Índices_inflação'!$A$2:$BA$105,$CL18,FALSE)) -> -6077.206792 | AS18: ='1.Dados_cont_historicos'!AS18*(1+VLOOKUP('1.Dados_cont_historicos'!AS$4,'3.Índices_inflação'!$A$2:$BA$105,$CL18,FALSE)) -> 0 | AT18: ='1.Dados_cont_historicos'!AT18*(1+VLOOKUP('1.Dados_cont_historicos'!AT$4,'3.Índices_inflação'!$A$2:$BA$105,$CL18,FALSE)) -> 0 | AU18: ='1.Dados_cont_historicos'!AU18*(1+VLOOKUP('1.Dados_cont_historicos'!AU$4,'3.Índices_inflação'!$A$2:$BA$105,$CL18,FALSE)) -> 0 | AV18: ='1.Dados_cont_historicos'!AV18*(1+VLOOKUP('1.Dados_cont_historicos'!AV$4,'3.Índices_inflação'!$A$2:$BA$105,$CL18,FALSE)) -> 0 | AW18: ='1.Dados_cont_historicos'!AW18*(1+VLOOKUP('1.Dados_cont_historicos'!AW$4,'3.Índices_inflação'!$A$2:$BA$105,$CL18,FALSE)) -> 0 | AX18: ='1.Dados_cont_historicos'!AX18*(1+VLOOKUP('1.Dados_cont_historicos'!AX$4,'3.Índices_inflação'!$A$2:$BA$105,$CL18,FALSE)) -> 295.3784271 | AY18: ='1.Dados_cont_historicos'!AY18*(1+VLOOKUP('1.Dados_cont_historicos'!AY$4,'3.Índices_inflação'!$A$2:$BA$105,$CL18,FALSE)) -> 151.7086575 | AZ18: ='1.Dados_cont_historicos'!AZ18*(1+VLOOKUP('1.Dados_cont_historicos'!AZ$4,'3.Índices_inflação'!$A$2:$BA$105,$CL18,FALSE)) -> 0 | BA18: ='1.Dados_cont_historicos'!BA18*(1+VLOOKUP('1.Dados_cont_historicos'!BA$4,'3.Índices_inflação'!$A$2:$BA$105,$CL18,FALSE)) -> -5388.514854 | BB18: ='1.Dados_cont_historicos'!BB18*(1+VLOOKUP('1.Dados_cont_historicos'!BB$4,'3.Índices_inflação'!$A$2:$BA$105,$CL18,FALSE)) -> 0 | BC18: -11204.22789 | BD18: ='1.Dados_cont_historicos'!BD18*(1+VLOOKUP('1.Dados_cont_historicos'!BD$4,'3.Índices_inflação'!$A$2:$BA$105,$CL18,FALSE)) -> 0 | BE18: ='1.Dados_cont_historicos'!BE18*(1+VLOOKUP('1.Dados_cont_historicos'!BE$4,'3.Índices_inflação'!$A$2:$BA$105,$CL18,FALSE)) -> 0 | BF18: ='1.Dados_cont_historicos'!BF18*(1+VLOOKUP('1.Dados_cont_historicos'!BF$4,'3.Índices_inflação'!$A$2:$BA$105,$CL18,FALSE)) -> 0 | BG18: ='1.Dados_cont_historicos'!BG18*(1+VLOOKUP('1.Dados_cont_historicos'!BG$4,'3.Índices_inflação'!$A$2:$BA$105,$CL18,FALSE)) -> 0 | BH18: ='1.Dados_cont_historicos'!BH18*(1+VLOOKUP('1.Dados_cont_historicos'!BH$4,'3.Índices_inflação'!$A$2:$BA$105,$CL18,FALSE)) -> 0 | BI18: ='1.Dados_cont_historicos'!BI18*(1+VLOOKUP('1.Dados_cont_historicos'!BI$4,'3.Índices_inflação'!$A$2:$BA$105,$CL18,FALSE)) -> 0 | BJ18: ='1.Dados_cont_historicos'!BJ18*(1+VLOOKUP('1.Dados_cont_historicos'!BJ$4,'3.Índices_inflação'!$A$2:$BA$105,$CL18,FALSE)) -> 0 | BK18: ='1.Dados_cont_historicos'!BK18*(1+VLOOKUP('1.Dados_cont_historicos'!BK$4,'3.Índices_inflação'!$A$2:$BA$120,$CL18,FALSE)) -> 0 | BL18: ='1.Dados_cont_historicos'!BL18*(1+VLOOKUP('1.Dados_cont_historicos'!BL$4,'3.Índices_inflação'!$A$2:$BA$120,$CL18,FALSE)) -> 0 | BM18: ='1.Dados_cont_historicos'!BM18*(1+VLOOKUP('1.Dados_cont_historicos'!BM$4,'3.Índices_inflação'!$A$2:$BA$120,$CL18,FALSE)) -> 0 | BN18: ='1.Dados_cont_historicos'!BN18*(1+VLOOKUP('1.Dados_cont_historicos'!BN$4,'3.Índices_inflação'!$A$2:$BA$120,$CL18,FALSE)) -> 0 | BO18: ='1.Dados_cont_historicos'!BO18*(1+VLOOKUP('1.Dados_cont_historicos'!BO$4,'3.Índices_inflação'!$A$2:$BA$120,$CL18,FALSE)) -> 0 | BP18: 0 | BQ18: ='1.Dados_cont_historicos'!BQ18*(1+VLOOKUP('1.Dados_cont_historicos'!BQ$4,'3.Índices_inflação'!$A$2:$BA$120,$CL18,FALSE)) -> 0 | BR18: ='1.Dados_cont_historicos'!BR18*(1+VLOOKUP('1.Dados_cont_historicos'!BR$4,'3.Índices_inflação'!$A$2:$BA$120,$CL18,FALSE)) -> 0 | BS18: ='1.Dados_cont_historicos'!BS18*(1+VLOOKUP('1.Dados_cont_historicos'!BS$4,'3.Índices_inflação'!$A$2:$BA$120,$CL18,FALSE)) -> 0 | BT18: ='1.Dados_cont_historicos'!BT18*(1+VLOOKUP('1.Dados_cont_historicos'!BT$4,'3.Índices_inflação'!$A$2:$BA$120,$CL18,FALSE)) -> 0 | BU18: ='1.Dados_cont_historicos'!BU18*(1+VLOOKUP('1.Dados_cont_historicos'!BU$4,'3.Índices_inflação'!$A$2:$BA$120,$CL18,FALSE)) -> 0 | BV18: ='1.Dados_cont_historicos'!BV18*(1+VLOOKUP('1.Dados_cont_historicos'!BV$4,'3.Índices_inflação'!$A$2:$BA$120,$CL18,FALSE)) -> 0 | BW18: ='1.Dados_cont_historicos'!BW18*(1+VLOOKUP('1.Dados_cont_historicos'!BW$4,'3.Índices_inflação'!$A$2:$BA$120,$CL18,FALSE)) -> 0 | BZ18: 0 | CA18: -522.1424588 | CB18: 0 | CC18: -11204.22789 | CD18: 0 | CE18: -522.1424588 | CF18: 0 | CG18: -6262.800119 | CH18: -4941.42777 | CI18: 0 | CK18: IPCA | CL18: 28
A19: =C19='1.Dados_cont_historicos'!C19 -> TRUE | C19: Outras | D19: ='1.Dados_cont_historicos'!D19*(1+VLOOKUP('1.Dados_cont_historicos'!D$4,'3.Índices_inflação'!$A$2:$BA$105,$CL19,FALSE)) -> -9786.987123 | E19: ='1.Dados_cont_historicos'!E19*(1+VLOOKUP('1.Dados_cont_historicos'!E$4,'3.Índices_inflação'!$A$2:$BA$105,$CL19,FALSE)) -> -43916.6185 | F19: ='1.Dados_cont_historicos'!F19*(1+VLOOKUP('1.Dados_cont_historicos'!F$4,'3.Índices_inflação'!$A$2:$BA$105,$CL19,FALSE)) -> -89480.48608 | G19: ='1.Dados_cont_historicos'!G19*(1+VLOOKUP('1.Dados_cont_historicos'!G$4,'3.Índices_inflação'!$A$2:$BA$105,$CL19,FALSE)) -> -11642.3688 | H19: ='1.Dados_cont_historicos'!H19*(1+VLOOKUP('1.Dados_cont_historicos'!H$4,'3.Índices_inflação'!$A$2:$BA$105,$CL19,FALSE)) -> -5109.935853 | I19: ='1.Dados_cont_historicos'!I19*(1+VLOOKUP('1.Dados_cont_historicos'!I$4,'3.Índices_inflação'!$A$2:$BA$105,$CL19,FALSE)) -> -76407.59573 | J19: ='1.Dados_cont_historicos'!J19*(1+VLOOKUP('1.Dados_cont_historicos'!J$4,'3.Índices_inflação'!$A$2:$BA$105,$CL19,FALSE)) -> -56639.42237 | K19: ='1.Dados_cont_historicos'!K19*(1+VLOOKUP('1.Dados_cont_historicos'!K$4,'3.Índices_inflação'!$A$2:$BA$105,$CL19,FALSE)) -> -17865.79092 | L19: ='1.Dados_cont_historicos'!L19*(1+VLOOKUP('1.Dados_cont_historicos'!L$4,'3.Índices_inflação'!$A$2:$BA$105,$CL19,FALSE)) -> -33619.69989 | M19: ='1.Dados_cont_historicos'!M19*(1+VLOOKUP('1.Dados_cont_historicos'!M$4,'3.Índices_inflação'!$A$2:$BA$105,$CL19,FALSE)) -> -22415.45514 | N19: ='1.Dados_cont_historicos'!N19*(1+VLOOKUP('1.Dados_cont_historicos'!N$4,'3.Índices_inflação'!$A$2:$BA$105,$CL19,FALSE)) -> -16552.61242 | O19: ='1.Dados_cont_historicos'!O19*(1+VLOOKUP('1.Dados_cont_historicos'!O$4,'3.Índices_inflação'!$A$2:$BA$105,$CL19,FALSE)) -> -7861.915784 | P19: -391298.8886 | Q19: ='1.Dados_cont_historicos'!Q19*(1+VLOOKUP('1.Dados_cont_historicos'!Q$4,'3.Índices_inflação'!$A$2:$BA$105,$CL19,FALSE)) -> -26637.10156 | R19: ='1.Dados_cont_historicos'!R19*(1+VLOOKUP('1.Dados_cont_historicos'!R$4,'3.Índices_inflação'!$A$2:$BA$105,$CL19,FALSE)) -> -19503.6461 | S19: ='1.Dados_cont_historicos'!S19*(1+VLOOKUP('1.Dados_cont_historicos'!S$4,'3.Índices_inflação'!$A$2:$BA$105,$CL19,FALSE)) -> -24585.5988 | T19: ='1.Dados_cont_historicos'!T19*(1+VLOOKUP('1.Dados_cont_historicos'!T$4,'3.Índices_inflação'!$A$2:$BA$105,$CL19,FALSE)) -> -10855.51314 | U19: ='1.Dados_cont_historicos'!U19*(1+VLOOKUP('1.Dados_cont_historicos'!U$4,'3.Índices_inflação'!$A$2:$BA$105,$CL19,FALSE)) -> -31562.61482 | V19: ='1.Dados_cont_historicos'!V19*(1+VLOOKUP('1.Dados_cont_historicos'!V$4,'3.Índices_inflação'!$A$2:$BA$105,$CL19,FALSE)) -> -2606.779215 | W19: ='1.Dados_cont_historicos'!W19*(1+VLOOKUP('1.Dados_cont_historicos'!W$4,'3.Índices_inflação'!$A$2:$BA$105,$CL19,FALSE)) -> -8616.745713 | X19: ='1.Dados_cont_historicos'!X19*(1+VLOOKUP('1.Dados_cont_historicos'!X$4,'3.Índices_inflação'!$A$2:$BA$105,$CL19,FALSE)) -> -19959.07932 | Y19: ='1.Dados_cont_historicos'!Y19*(1+VLOOKUP('1.Dados_cont_historicos'!Y$4,'3.Índices_inflação'!$A$2:$BA$105,$CL19,FALSE)) -> -33470.38686 | Z19: ='1.Dados_cont_historicos'!Z19*(1+VLOOKUP('1.Dados_cont_historicos'!Z$4,'3.Índices_inflação'!$A$2:$BA$105,$CL19,FALSE)) -> -16924.27691 | AA19: ='1.Dados_cont_historicos'!AA19*(1+VLOOKUP('1.Dados_cont_historicos'!AA$4,'3.Índices_inflação'!$A$2:$BA$105,$CL19,FALSE)) -> -31055.6414 | AB19: ='1.Dados_cont_historicos'!AB19*(1+VLOOKUP('1.Dados_cont_historicos'!AB$4,'3.Índices_inflação'!$A$2:$BA$105,$CL19,FALSE)) -> 3337.492319 | AC19: -222439.8915 | AD19: ='1.Dados_cont_historicos'!AD19*(1+VLOOKUP('1.Dados_cont_historicos'!AD$4,'3.Índices_inflação'!$A$2:$BA$105,$CL19,FALSE)) -> -3716.093025 | AE19: ='1.Dados_cont_historicos'!AE19*(1+VLOOKUP('1.Dados_cont_historicos'!AE$4,'3.Índices_inflação'!$A$2:$BA$105,$CL19,FALSE)) -> -9024.506979 | AF19: ='1.Dados_cont_historicos'!AF19*(1+VLOOKUP('1.Dados_cont_historicos'!AF$4,'3.Índices_inflação'!$A$2:$BA$105,$CL19,FALSE)) -> -7152.927515 | AG19: ='1.Dados_cont_historicos'!AG19*(1+VLOOKUP('1.Dados_cont_historicos'!AG$4,'3.Índices_inflação'!$A$2:$BA$105,$CL19,FALSE)) -> -20135.49731 | AH19: ='1.Dados_cont_historicos'!AH19*(1+VLOOKUP('1.Dados_cont_historicos'!AH$4,'3.Índices_inflação'!$A$2:$BA$105,$CL19,FALSE)) -> -17065.87415 | AI19: ='1.Dados_cont_historicos'!AI19*(1+VLOOKUP('1.Dados_cont_historicos'!AI$4,'3.Índices_inflação'!$A$2:$BA$105,$CL19,FALSE)) -> -43375.33414 | AJ19: ='1.Dados_cont_historicos'!AJ19*(1+VLOOKUP('1.Dados_cont_historicos'!AJ$4,'3.Índices_inflação'!$A$2:$BA$105,$CL19,FALSE)) -> -19754.02668 | AK19: ='1.Dados_cont_historicos'!AK19*(1+VLOOKUP('1.Dados_cont_historicos'!AK$4,'3.Índices_inflação'!$A$2:$BA$105,$CL19,FALSE)) -> -23554.90633 | AL19: ='1.Dados_cont_historicos'!AL19*(1+VLOOKUP('1.Dados_cont_historicos'!AL$4,'3.Índices_inflação'!$A$2:$BA$105,$CL19,FALSE)) -> -21422.68523 | AM19: ='1.Dados_cont_historicos'!AM19*(1+VLOOKUP('1.Dados_cont_historicos'!AM$4,'3.Índices_inflação'!$A$2:$BA$105,$CL19,FALSE)) -> -14456.64429 | AN19: ='1.Dados_cont_historicos'!AN19*(1+VLOOKUP('1.Dados_cont_historicos'!AN$4,'3.Índices_inflação'!$A$2:$BA$105,$CL19,FALSE)) -> -27977.49821 | AO19: ='1.Dados_cont_historicos'!AO19*(1+VLOOKUP('1.Dados_cont_historicos'!AO$4,'3.Índices_inflação'!$A$2:$BA$105,$CL19,FALSE)) -> -18067.63984 | AP19: -225703.6337 | AQ19: ='1.Dados_cont_historicos'!AQ19*(1+VLOOKUP('1.Dados_cont_historicos'!AQ$4,'3.Índices_inflação'!$A$2:$BA$105,$CL19,FALSE)) -> -39811.97884 | AR19: ='1.Dados_cont_historicos'!AR19*(1+VLOOKUP('1.Dados_cont_historicos'!AR$4,'3.Índices_inflação'!$A$2:$BA$105,$CL19,FALSE)) -> -164457.9026 | AS19: ='1.Dados_cont_historicos'!AS19*(1+VLOOKUP('1.Dados_cont_historicos'!AS$4,'3.Índices_inflação'!$A$2:$BA$105,$CL19,FALSE)) -> -59149.75199 | AT19: ='1.Dados_cont_historicos'!AT19*(1+VLOOKUP('1.Dados_cont_historicos'!AT$4,'3.Índices_inflação'!$A$2:$BA$105,$CL19,FALSE)) -> -6153.592251 | AU19: ='1.Dados_cont_historicos'!AU19*(1+VLOOKUP('1.Dados_cont_historicos'!AU$4,'3.Índices_inflação'!$A$2:$BA$105,$CL19,FALSE)) -> -6857.864664 | AV19: ='1.Dados_cont_historicos'!AV19*(1+VLOOKUP('1.Dados_cont_historicos'!AV$4,'3.Índices_inflação'!$A$2:$BA$105,$CL19,FALSE)) -> -458926.0223 | AW19: ='1.Dados_cont_historicos'!AW19*(1+VLOOKUP('1.Dados_cont_historicos'!AW$4,'3.Índices_inflação'!$A$2:$BA$105,$CL19,FALSE)) -> -13437.32473 | AX19: ='1.Dados_cont_historicos'!AX19*(1+VLOOKUP('1.Dados_cont_historicos'!AX$4,'3.Índices_inflação'!$A$2:$BA$105,$CL19,FALSE)) -> -5749.827616 | AY19: ='1.Dados_cont_historicos'!AY19*(1+VLOOKUP('1.Dados_cont_historicos'!AY$4,'3.Índices_inflação'!$A$2:$BA$105,$CL19,FALSE)) -> -40445.89705 | AZ19: ='1.Dados_cont_historicos'!AZ19*(1+VLOOKUP('1.Dados_cont_historicos'!AZ$4,'3.Índices_inflação'!$A$2:$BA$105,$CL19,FALSE)) -> -21576.55562 | BA19: ='1.Dados_cont_historicos'!BA19*(1+VLOOKUP('1.Dados_cont_historicos'!BA$4,'3.Índices_inflação'!$A$2:$BA$105,$CL19,FALSE)) -> -10724.93948 | BB19: ='1.Dados_cont_historicos'!BB19*(1+VLOOKUP('1.Dados_cont_historicos'!BB$4,'3.Índices_inflação'!$A$2:$BA$105,$CL19,FALSE)) -> -29800.32575 | BC19: -857091.983 | BD19: ='1.Dados_cont_historicos'!BD19*(1+VLOOKUP('1.Dados_cont_historicos'!BD$4,'3.Índices_inflação'!$A$2:$BA$105,$CL19,FALSE)) -> 10858.68712 | BE19: ='1.Dados_cont_historicos'!BE19*(1+VLOOKUP('1.Dados_cont_historicos'!BE$4,'3.Índices_inflação'!$A$2:$BA$105,$CL19,FALSE)) -> -20264.28309 | BF19: ='1.Dados_cont_historicos'!BF19*(1+VLOOKUP('1.Dados_cont_historicos'!BF$4,'3.Índices_inflação'!$A$2:$BA$105,$CL19,FALSE)) -> -56589.91485 | BG19: ='1.Dados_cont_historicos'!BG19*(1+VLOOKUP('1.Dados_cont_historicos'!BG$4,'3.Índices_inflação'!$A$2:$BA$105,$CL19,FALSE)) -> -8250.148691 | BH19: ='1.Dados_cont_historicos'!BH19*(1+VLOOKUP('1.Dados_cont_historicos'!BH$4,'3.Índices_inflação'!$A$2:$BA$105,$CL19,FALSE)) -> -4479.616407 | BI19: ='1.Dados_cont_historicos'!BI19*(1+VLOOKUP('1.Dados_cont_historicos'!BI$4,'3.Índices_inflação'!$A$2:$BA$105,$CL19,FALSE)) -> -12695.26998 | BJ19: ='1.Dados_cont_historicos'!BJ19*(1+VLOOKUP('1.Dados_cont_historicos'!BJ$4,'3.Índices_inflação'!$A$2:$BA$105,$CL19,FALSE)) -> -5804.564861 | BK19: ='1.Dados_cont_historicos'!BK19*(1+VLOOKUP('1.Dados_cont_historicos'!BK$4,'3.Índices_inflação'!$A$2:$BA$120,$CL19,FALSE)) -> -4561.117753 | BL19: ='1.Dados_cont_historicos'!BL19*(1+VLOOKUP('1.Dados_cont_historicos'!BL$4,'3.Índices_inflação'!$A$2:$BA$120,$CL19,FALSE)) -> -10004.99054 | BM19: ='1.Dados_cont_historicos'!BM19*(1+VLOOKUP('1.Dados_cont_historicos'!BM$4,'3.Índices_inflação'!$A$2:$BA$120,$CL19,FALSE)) -> -1874.400444 | BN19: ='1.Dados_cont_historicos'!BN19*(1+VLOOKUP('1.Dados_cont_historicos'!BN$4,'3.Índices_inflação'!$A$2:$BA$120,$CL19,FALSE)) -> -1616.060675 | BO19: ='1.Dados_cont_historicos'!BO19*(1+VLOOKUP('1.Dados_cont_historicos'!BO$4,'3.Índices_inflação'!$A$2:$BA$120,$CL19,FALSE)) -> -24439.4809 | BP19: -139721.1611 | BQ19: ='1.Dados_cont_historicos'!BQ19*(1+VLOOKUP('1.Dados_cont_historicos'!BQ$4,'3.Índices_inflação'!$A$2:$BA$120,$CL19,FALSE)) -> -15643.90642 | BR19: ='1.Dados_cont_historicos'!BR19*(1+VLOOKUP('1.Dados_cont_historicos'!BR$4,'3.Índices_inflação'!$A$2:$BA$120,$CL19,FALSE)) -> 659.600079 | BS19: ='1.Dados_cont_historicos'!BS19*(1+VLOOKUP('1.Dados_cont_historicos'!BS$4,'3.Índices_inflação'!$A$2:$BA$120,$CL19,FALSE)) -> -12893.17673 | BT19: ='1.Dados_cont_historicos'!BT19*(1+VLOOKUP('1.Dados_cont_historicos'!BT$4,'3.Índices_inflação'!$A$2:$BA$120,$CL19,FALSE)) -> -9162.924345 | BU19: ='1.Dados_cont_historicos'!BU19*(1+VLOOKUP('1.Dados_cont_historicos'!BU$4,'3.Índices_inflação'!$A$2:$BA$120,$CL19,FALSE)) -> -7112.372237 | BV19: ='1.Dados_cont_historicos'!BV19*(1+VLOOKUP('1.Dados_cont_historicos'!BV$4,'3.Índices_inflação'!$A$2:$BA$120,$CL19,FALSE)) -> -9667.074635 | BW19: ='1.Dados_cont_historicos'!BW19*(1+VLOOKUP('1.Dados_cont_historicos'!BW$4,'3.Índices_inflação'!$A$2:$BA$120,$CL19,FALSE)) -> -8587.083786 | BZ19: -391298.8886 | CA19: -222439.8915 | CB19: -225703.6337 | CC19: -857091.983 | CD19: -139721.1611 | CE19: -222683.4735 | CF19: -218296.152 | CG19: -854273.8114 | CH19: -205522.6563 | CI19: -104902.9884 | CK19: IPCA | CL19: 28
A20: =C20='1.Dados_cont_historicos'!C20 -> TRUE | C20: Total - Outras Receitas | D20: =D13+D14+D17 -> -484368.2098 | E20: -383952.0392 | F20: -607570.041 | G20: -384649.0907 | H20: -407702.3937 | I20: -415997.0698 | J20: -318742.5259 | K20: -276538.7492 | L20: -188309.8057 | M20: -268578.072 | N20: -273485.626 | O20: -314218.2082 | P20: -4324111.831 | Q20: -208492.494 | R20: -194834.7188 | S20: -185583.0742 | T20: -264480.469 | U20: -265969.8838 | V20: -206931.7226 | W20: -228543.1922 | X20: -219024.5498 | Y20: -289536.5189 | Z20: -184291.1752 | AA20: -213998.2021 | AB20: -167397.8775 | AC20: -2629083.878 | AD20: -158435.7958 | AE20: -181519.0495 | AF20: -95801.11145 | AG20: -260078.5545 | AH20: -232048.1093 | AI20: -208329.8849 | AJ20: =AJ13+AJ14+AJ17 -> -165287.6523 | AK20: -194772.3614 | AL20: -249877.4577 | AM20: -214397.1404 | AN20: -115978.2367 | AO20: -409083.2501 | AP20: -2485608.604 | AQ20: -214155.2377 | AR20: -316948.9269 | AS20: -185602.4866 | AT20: -150913.2484 | AU20: -143183.8687 | AV20: -545660.8952 | AW20: -155595.6902 | AX20: -138679.0011 | AY20: -200189.3968 | AZ20: -184316.4107 | BA20: -185078.7888 | BB20: -192634.3389 | BC20: -2612958.29 | BD20: -146496.2293 | BE20: -196823.8884 | BF20: -237822.0872 | BG20: -241042.634 | BH20: -226748.489 | BI20: -201950.9373 | BJ20: -218228.358 | BK20: -228863.6191 | BL20: -335924.461 | BM20: -335611.7866 | BN20: -402310.1814 | BO20: -437476.74 | BP20: -3209299.411 | BQ20: -372648.7043 | BR20: -301009.1609 | BS20: -364823.79 | BT20: -341722.4071 | BU20: -333916.2684 | BV20: -344768.0536 | BW20: -337518.6677 | BZ20: =BZ13+BZ14+BZ17 -> -4324111.831 | CA20: -2629083.878 | CB20: -2485608.604 | CC20: -2612958.29 | CD20: -3209299.411 | CE20: -2875966.016 | CF20: -2375748.481 | CG20: -2896168.8 | CH20: -2370010.559 | CI20: -4136593.84
A21: =C21='1.Dados_cont_historicos'!C21 -> TRUE
A22: =C22='1.Dados_cont_historicos'!C22 -> TRUE | C22: Aluguel | D22: ='1.Dados_cont_historicos'!D22*(1+VLOOKUP('1.Dados_cont_historicos'!D$4,'3.Índices_inflação'!$A$2:$BA$105,$CL22,FALSE)) -> 29208.74657 | E22: ='1.Dados_cont_historicos'!E22*(1+VLOOKUP('1.Dados_cont_historicos'!E$4,'3.Índices_inflação'!$A$2:$BA$105,$CL22,FALSE)) -> 26352.30823 | F22: ='1.Dados_cont_historicos'!F22*(1+VLOOKUP('1.Dados_cont_historicos'!F$4,'3.Índices_inflação'!$A$2:$BA$105,$CL22,FALSE)) -> 19943.6133 | G22: ='1.Dados_cont_historicos'!G22*(1+VLOOKUP('1.Dados_cont_historicos'!G$4,'3.Índices_inflação'!$A$2:$BA$105,$CL22,FALSE)) -> 41068.74828 | H22: ='1.Dados_cont_historicos'!H22*(1+VLOOKUP('1.Dados_cont_historicos'!H$4,'3.Índices_inflação'!$A$2:$BA$105,$CL22,FALSE)) -> 64632.38366 | I22: ='1.Dados_cont_historicos'!I22*(1+VLOOKUP('1.Dados_cont_historicos'!I$4,'3.Índices_inflação'!$A$2:$BA$105,$CL22,FALSE)) -> 36059.55067 | J22: ='1.Dados_cont_historicos'!J22*(1+VLOOKUP('1.Dados_cont_historicos'!J$4,'3.Índices_inflação'!$A$2:$BA$105,$CL22,FALSE)) -> 38917.77844 | K22: ='1.Dados_cont_historicos'!K22*(1+VLOOKUP('1.Dados_cont_historicos'!K$4,'3.Índices_inflação'!$A$2:$BA$105,$CL22,FALSE)) -> 25739.15854 | L22: ='1.Dados_cont_historicos'!L22*(1+VLOOKUP('1.Dados_cont_historicos'!L$4,'3.Índices_inflação'!$A$2:$BA$105,$CL22,FALSE)) -> 26959.51291 | M22: ='1.Dados_cont_historicos'!M22*(1+VLOOKUP('1.Dados_cont_historicos'!M$4,'3.Índices_inflação'!$A$2:$BA$105,$CL22,FALSE)) -> 25761.39507 | N22: ='1.Dados_cont_historicos'!N22*(1+VLOOKUP('1.Dados_cont_historicos'!N$4,'3.Índices_inflação'!$A$2:$BA$105,$CL22,FALSE)) -> 89333.38681 | O22: ='1.Dados_cont_historicos'!O22*(1+VLOOKUP('1.Dados_cont_historicos'!O$4,'3.Índices_inflação'!$A$2:$BA$105,$CL22,FALSE)) -> 13196.70082 | P22: =SUM(D22:O22) -> 437173.2833 | Q22: ='1.Dados_cont_historicos'!Q22*(1+VLOOKUP('1.Dados_cont_historicos'!Q$4,'3.Índices_inflação'!$A$2:$BA$105,$CL22,FALSE)) -> 26423.92173 | R22: ='1.Dados_cont_historicos'!R22*(1+VLOOKUP('1.Dados_cont_historicos'!R$4,'3.Índices_inflação'!$A$2:$BA$105,$CL22,FALSE)) -> 16311.27768 | S22: ='1.Dados_cont_historicos'!S22*(1+VLOOKUP('1.Dados_cont_historicos'!S$4,'3.Índices_inflação'!$A$2:$BA$105,$CL22,FALSE)) -> 11271.96776 | T22: ='1.Dados_cont_historicos'!T22*(1+VLOOKUP('1.Dados_cont_historicos'!T$4,'3.Índices_inflação'!$A$2:$BA$105,$CL22,FALSE)) -> 16608.77591 | U22: ='1.Dados_cont_historicos'!U22*(1+VLOOKUP('1.Dados_cont_historicos'!U$4,'3.Índices_inflação'!$A$2:$BA$105,$CL22,FALSE)) -> 20093.67423 | V22: ='1.Dados_cont_historicos'!V22*(1+VLOOKUP('1.Dados_cont_historicos'!V$4,'3.Índices_inflação'!$A$2:$BA$105,$CL22,FALSE)) -> 15721.36678 | W22: ='1.Dados_cont_historicos'!W22*(1+VLOOKUP('1.Dados_cont_historicos'!W$4,'3.Índices_inflação'!$A$2:$BA$105,$CL22,FALSE)) -> 107192.0652 | X22: ='1.Dados_cont_historicos'!X22*(1+VLOOKUP('1.Dados_cont_historicos'!X$4,'3.Índices_inflação'!$A$2:$BA$105,$CL22,FALSE)) -> 22337.32347 | Y22: ='1.Dados_cont_historicos'!Y22*(1+VLOOKUP('1.Dados_cont_historicos'!Y$4,'3.Índices_inflação'!$A$2:$BA$105,$CL22,FALSE)) -> 10963.71875 | Z22: ='1.Dados_cont_historicos'!Z22*(1+VLOOKUP('1.Dados_cont_historicos'!Z$4,'3.Índices_inflação'!$A$2:$BA$105,$CL22,FALSE)) -> 76177.28065 | AA22: ='1.Dados_cont_historicos'!AA22*(1+VLOOKUP('1.Dados_cont_historicos'!AA$4,'3.Índices_inflação'!$A$2:$BA$105,$CL22,FALSE)) -> 35442.25114 | AB22: ='1.Dados_cont_historicos'!AB22*(1+VLOOKUP('1.Dados_cont_historicos'!AB$4,'3.Índices_inflação'!$A$2:$BA$105,$CL22,FALSE)) -> 14401.95054 | AC22: =SUM(Q22:AB22) -> 372945.5738 | AD22: ='1.Dados_cont_historicos'!AD22*(1+VLOOKUP('1.Dados_cont_historicos'!AD$4,'3.Índices_inflação'!$A$2:$BA$105,$CL22,FALSE)) -> 47903.14925 | AE22: ='1.Dados_cont_historicos'!AE22*(1+VLOOKUP('1.Dados_cont_historicos'!AE$4,'3.Índices_inflação'!$A$2:$BA$105,$CL22,FALSE)) -> 30014.92779 | AF22: ='1.Dados_cont_historicos'!AF22*(1+VLOOKUP('1.Dados_cont_historicos'!AF$4,'3.Índices_inflação'!$A$2:$BA$105,$CL22,FALSE)) -> 23049.42861 | AG22: ='1.Dados_cont_historicos'!AG22*(1+VLOOKUP('1.Dados_cont_historicos'!AG$4,'3.Índices_inflação'!$A$2:$BA$105,$CL22,FALSE)) -> 24674.90877 | AH22: ='1.Dados_cont_historicos'!AH22*(1+VLOOKUP('1.Dados_cont_historicos'!AH$4,'3.Índices_inflação'!$A$2:$BA$105,$CL22,FALSE)) -> 33581.70105 | AI22: ='1.Dados_cont_historicos'!AI22*(1+VLOOKUP('1.Dados_cont_historicos'!AI$4,'3.Índices_inflação'!$A$2:$BA$105,$CL22,FALSE)) -> 16752.56804 | AJ22: ='1.Dados_cont_historicos'!AJ22*(1+VLOOKUP('1.Dados_cont_historicos'!AJ$4,'3.Índices_inflação'!$A$2:$BA$105,$CL22,FALSE)) -> 41091.19403 | AK22: ='1.Dados_cont_historicos'!AK22*(1+VLOOKUP('1.Dados_cont_historicos'!AK$4,'3.Índices_inflação'!$A$2:$BA$105,$CL22,FALSE)) -> 16666.58892 | AL22: ='1.Dados_cont_historicos'!AL22*(1+VLOOKUP('1.Dados_cont_historicos'!AL$4,'3.Índices_inflação'!$A$2:$BA$105,$CL22,FALSE)) -> 100440.7338 | AM22: ='1.Dados_cont_historicos'!AM22*(1+VLOOKUP('1.Dados_cont_historicos'!AM$4,'3.Índices_inflação'!$A$2:$BA$105,$CL22,FALSE)) -> 20534.64468 | AN22: ='1.Dados_cont_historicos'!AN22*(1+VLOOKUP('1.Dados_cont_historicos'!AN$4,'3.Índices_inflação'!$A$2:$BA$105,$CL22,FALSE)) -> 21513.36576 | AO22: ='1.Dados_cont_historicos'!AO22*(1+VLOOKUP('1.Dados_cont_historicos'!AO$4,'3.Índices_inflação'!$A$2:$BA$105,$CL22,FALSE)) -> 45974.15229 | AP22: =SUM(AD22:AO22) -> 422197.363 | AQ22: ='1.Dados_cont_historicos'!AQ22*(1+VLOOKUP('1.Dados_cont_historicos'!AQ$4,'3.Índices_inflação'!$A$2:$BA$105,$CL22,FALSE)) -> 33770.28844 | AR22: ='1.Dados_cont_historicos'!AR22*(1+VLOOKUP('1.Dados_cont_historicos'!AR$4,'3.Índices_inflação'!$A$2:$BA$105,$CL22,FALSE)) -> 25564.4757 | AS22: ='1.Dados_cont_historicos'!AS22*(1+VLOOKUP('1.Dados_cont_historicos'!AS$4,'3.Índices_inflação'!$A$2:$BA$105,$CL22,FALSE)) -> 23212.05535 | AT22: ='1.Dados_cont_historicos'!AT22*(1+VLOOKUP('1.Dados_cont_historicos'!AT$4,'3.Índices_inflação'!$A$2:$BA$105,$CL22,FALSE)) -> 20037.05279 | AU22: ='1.Dados_cont_historicos'!AU22*(1+VLOOKUP('1.Dados_cont_historicos'!AU$4,'3.Índices_inflação'!$A$2:$BA$105,$CL22,FALSE)) -> 18332.59774 | AV22: ='1.Dados_cont_historicos'!AV22*(1+VLOOKUP('1.Dados_cont_historicos'!AV$4,'3.Índices_inflação'!$A$2:$BA$105,$CL22,FALSE)) -> 15863.55621 | AW22: ='1.Dados_cont_historicos'!AW22*(1+VLOOKUP('1.Dados_cont_historicos'!AW$4,'3.Índices_inflação'!$A$2:$BA$105,$CL22,FALSE)) -> 6027.612749 | AX22: ='1.Dados_cont_historicos'!AX22*(1+VLOOKUP('1.Dados_cont_historicos'!AX$4,'3.Índices_inflação'!$A$2:$BA$105,$CL22,FALSE)) -> 6285.187416 | AY22: ='1.Dados_cont_historicos'!AY22*(1+VLOOKUP('1.Dados_cont_historicos'!AY$4,'3.Índices_inflação'!$A$2:$BA$105,$CL22,FALSE)) -> 5282.783628 | AZ22: ='1.Dados_cont_historicos'!AZ22*(1+VLOOKUP('1.Dados_cont_historicos'!AZ$4,'3.Índices_inflação'!$A$2:$BA$105,$CL22,FALSE)) -> 22967.94547 | BA22: ='1.Dados_cont_historicos'!BA22*(1+VLOOKUP('1.Dados_cont_historicos'!BA$4,'3.Índices_inflação'!$A$2:$BA$105,$CL22,FALSE)) -> 11977.01887 | BB22: ='1.Dados_cont_historicos'!BB22*(1+VLOOKUP('1.Dados_cont_historicos'!BB$4,'3.Índices_inflação'!$A$2:$BA$105,$CL22,FALSE)) -> 25708.92788 | BC22: =SUM(AQ22:BB22) -> 215029.5022 | BD22: ='1.Dados_cont_historicos'!BD22*(1+VLOOKUP('1.Dados_cont_historicos'!BD$4,'3.Índices_inflação'!$A$2:$BA$105,$CL22,FALSE)) -> 12637.60225 | BE22: ='1.Dados_cont_historicos'!BE22*(1+VLOOKUP('1.Dados_cont_historicos'!BE$4,'3.Índices_inflação'!$A$2:$BA$105,$CL22,FALSE)) -> 30767.80154 | BF22: ='1.Dados_cont_historicos'!BF22*(1+VLOOKUP('1.Dados_cont_historicos'!BF$4,'3.Índices_inflação'!$A$2:$BA$105,$CL22,FALSE)) -> 11366.21628 | BG22: ='1.Dados_cont_historicos'!BG22*(1+VLOOKUP('1.Dados_cont_historicos'!BG$4,'3.Índices_inflação'!$A$2:$BA$105,$CL22,FALSE)) -> 15138.63955 | BH22: ='1.Dados_cont_historicos'!BH22*(1+VLOOKUP('1.Dados_cont_historicos'!BH$4,'3.Índices_inflação'!$A$2:$BA$105,$CL22,FALSE)) -> 10485.12247 | BI22: ='1.Dados_cont_historicos'!BI22*(1+VLOOKUP('1.Dados_cont_historicos'!BI$4,'3.Índices_inflação'!$A$2:$BA$105,$CL22,FALSE)) -> 8605.924569 | BJ22: ='1.Dados_cont_historicos'!BJ22*(1+VLOOKUP('1.Dados_cont_historicos'!BJ$4,'3.Índices_inflação'!$A$2:$BA$105,$CL22,FALSE)) -> 10117.61416 | BK22: ='1.Dados_cont_historicos'!BK22*(1+VLOOKUP('1.Dados_cont_historicos'!BK$4,'3.Índices_inflação'!$A$2:$BA$120,$CL22,FALSE)) -> 11372.21052 | BL22: ='1.Dados_cont_historicos'!BL22*(1+VLOOKUP('1.Dados_cont_historicos'!BL$4,'3.Índices_inflação'!$A$2:$BA$120,$CL22,FALSE)) -> 9611.258982 | BM22: ='1.Dados_cont_historicos'!BM22*(1+VLOOKUP('1.Dados_cont_historicos'!BM$4,'3.Índices_inflação'!$A$2:$BA$120,$CL22,FALSE)) -> 8874.915811 | BN22: ='1.Dados_cont_historicos'!BN22*(1+VLOOKUP('1.Dados_cont_historicos'!BN$4,'3.Índices_inflação'!$A$2:$BA$120,$CL22,FALSE)) -> 31700.83973 | BO22: ='1.Dados_cont_historicos'!BO22*(1+VLOOKUP('1.Dados_cont_historicos'!BO$4,'3.Índices_inflação'!$A$2:$BA$120,$CL22,FALSE)) -> 12753.49944 | BP22: =SUM(BD22:BO22) -> 173431.6453 | BQ22: ='1.Dados_cont_historicos'!BQ22*(1+VLOOKUP('1.Dados_cont_historicos'!BQ$4,'3.Índices_inflação'!$A$2:$BA$120,$CL22,FALSE)) -> 8173.943765 | BR22: ='1.Dados_cont_historicos'!BR22*(1+VLOOKUP('1.Dados_cont_historicos'!BR$4,'3.Índices_inflação'!$A$2:$BA$120,$CL22,FALSE)) -> 8654.754778 | BS22: ='1.Dados_cont_historicos'!BS22*(1+VLOOKUP('1.Dados_cont_historicos'!BS$4,'3.Índices_inflação'!$A$2:$BA$120,$CL22,FALSE)) -> 13680.96814 | BT22: ='1.Dados_cont_historicos'!BT22*(1+VLOOKUP('1.Dados_cont_historicos'!BT$4,'3.Índices_inflação'!$A$2:$BA$120,$CL22,FALSE)) -> 18411.24258 | BU22: ='1.Dados_cont_historicos'!BU22*(1+VLOOKUP('1.Dados_cont_historicos'!BU$4,'3.Índices_inflação'!$A$2:$BA$120,$CL22,FALSE)) -> 13234.32523 | BV22: ='1.Dados_cont_historicos'!BV22*(1+VLOOKUP('1.Dados_cont_historicos'!BV$4,'3.Índices_inflação'!$A$2:$BA$120,$CL22,FALSE)) -> 10883.85495 | BW22: ='1.Dados_cont_historicos'!BW22*(1+VLOOKUP('1.Dados_cont_historicos'!BW$4,'3.Índices_inflação'!$A$2:$BA$120,$CL22,FALSE)) -> 12849.56057 | BZ22: =P22 -> 437173.2833 | CA22: =AC22 -> 372945.5738 | CB22: =AP22 -> 422197.363 | CC22: =BC22 -> 215029.5022 | CD22: =BP22 -> 173431.6453 | CE22: =SUM(K22:O22,Q22:W22) -> 394613.2034 | CF22: =SUM(X22:AB22,AD22:AJ22) -> 376390.4021 | CG22: =SUM(AK22:AO22,AQ22:AW22) -> 347937.1244 | CH22: =SUM(AX22:BB22,BD22:BJ22) -> 171340.7841 | CI22: =SUM(BK22:BO22,BQ22:BW22) -> 160201.3745 | CK22: IGP-M | CL22: 7
A23: =C23='1.Dados_cont_historicos'!C23 -> TRUE | C23: Atendimento Telefônico | D23: ='1.Dados_cont_historicos'!D23*(1+VLOOKUP('1.Dados_cont_historicos'!D$4,'3.Índices_inflação'!$A$2:$BA$105,$CL23,FALSE)) -> 30296.92007 | E23: ='1.Dados_cont_historicos'!E23*(1+VLOOKUP('1.Dados_cont_historicos'!E$4,'3.Índices_inflação'!$A$2:$BA$105,$CL23,FALSE)) -> 29357.12235 | F23: ='1.Dados_cont_historicos'!F23*(1+VLOOKUP('1.Dados_cont_historicos'!F$4,'3.Índices_inflação'!$A$2:$BA$105,$CL23,FALSE)) -> 29332.27913 | G23: ='1.Dados_cont_historicos'!G23*(1+VLOOKUP('1.Dados_cont_historicos'!G$4,'3.Índices_inflação'!$A$2:$BA$105,$CL23,FALSE)) -> 29056.0354 | H23: ='1.Dados_cont_historicos'!H23*(1+VLOOKUP('1.Dados_cont_historicos'!H$4,'3.Índices_inflação'!$A$2:$BA$105,$CL23,FALSE)) -> 45576.6513 | I23: ='1.Dados_cont_historicos'!I23*(1+VLOOKUP('1.Dados_cont_historicos'!I$4,'3.Índices_inflação'!$A$2:$BA$105,$CL23,FALSE)) -> 12408.00387 | J23: ='1.Dados_cont_historicos'!J23*(1+VLOOKUP('1.Dados_cont_historicos'!J$4,'3.Índices_inflação'!$A$2:$BA$105,$CL23,FALSE)) -> 29800.58281 | K23: ='1.Dados_cont_historicos'!K23*(1+VLOOKUP('1.Dados_cont_historicos'!K$4,'3.Índices_inflação'!$A$2:$BA$105,$CL23,FALSE)) -> 29578.45894 | L23: ='1.Dados_cont_historicos'!L23*(1+VLOOKUP('1.Dados_cont_historicos'!L$4,'3.Índices_inflação'!$A$2:$BA$105,$CL23,FALSE)) -> 29803.31367 | M23: ='1.Dados_cont_historicos'!M23*(1+VLOOKUP('1.Dados_cont_historicos'!M$4,'3.Índices_inflação'!$A$2:$BA$105,$CL23,FALSE)) -> 29077.18154 | N23: ='1.Dados_cont_historicos'!N23*(1+VLOOKUP('1.Dados_cont_historicos'!N$4,'3.Índices_inflação'!$A$2:$BA$105,$CL23,FALSE)) -> 27893.93919 | O23: ='1.Dados_cont_historicos'!O23*(1+VLOOKUP('1.Dados_cont_historicos'!O$4,'3.Índices_inflação'!$A$2:$BA$105,$CL23,FALSE)) -> 27802.00044 | P23: 349982.4887 | Q23: ='1.Dados_cont_historicos'!Q23*(1+VLOOKUP('1.Dados_cont_historicos'!Q$4,'3.Índices_inflação'!$A$2:$BA$105,$CL23,FALSE)) -> 29168.71252 | R23: ='1.Dados_cont_historicos'!R23*(1+VLOOKUP('1.Dados_cont_historicos'!R$4,'3.Índices_inflação'!$A$2:$BA$105,$CL23,FALSE)) -> 28928.87783 | S23: ='1.Dados_cont_historicos'!S23*(1+VLOOKUP('1.Dados_cont_historicos'!S$4,'3.Índices_inflação'!$A$2:$BA$105,$CL23,FALSE)) -> 29216.73752 | T23: ='1.Dados_cont_historicos'!T23*(1+VLOOKUP('1.Dados_cont_historicos'!T$4,'3.Índices_inflação'!$A$2:$BA$105,$CL23,FALSE)) -> 28481.11175 | U23: ='1.Dados_cont_historicos'!U23*(1+VLOOKUP('1.Dados_cont_historicos'!U$4,'3.Índices_inflação'!$A$2:$BA$105,$CL23,FALSE)) -> 28148.04763 | V23: ='1.Dados_cont_historicos'!V23*(1+VLOOKUP('1.Dados_cont_historicos'!V$4,'3.Índices_inflação'!$A$2:$BA$105,$CL23,FALSE)) -> 26652.96672 | W23: ='1.Dados_cont_historicos'!W23*(1+VLOOKUP('1.Dados_cont_historicos'!W$4,'3.Índices_inflação'!$A$2:$BA$105,$CL23,FALSE)) -> 29610.14759 | X23: ='1.Dados_cont_historicos'!X23*(1+VLOOKUP('1.Dados_cont_historicos'!X$4,'3.Índices_inflação'!$A$2:$BA$105,$CL23,FALSE)) -> 26473.8121 | Y23: ='1.Dados_cont_historicos'!Y23*(1+VLOOKUP('1.Dados_cont_historicos'!Y$4,'3.Índices_inflação'!$A$2:$BA$105,$CL23,FALSE)) -> 26595.68532 | Z23: ='1.Dados_cont_historicos'!Z23*(1+VLOOKUP('1.Dados_cont_historicos'!Z$4,'3.Índices_inflação'!$A$2:$BA$105,$CL23,FALSE)) -> 28357.99814 | AA23: ='1.Dados_cont_historicos'!AA23*(1+VLOOKUP('1.Dados_cont_historicos'!AA$4,'3.Índices_inflação'!$A$2:$BA$105,$CL23,FALSE)) -> 27476.95107 | AB23: ='1.Dados_cont_historicos'!AB23*(1+VLOOKUP('1.Dados_cont_historicos'!AB$4,'3.Índices_inflação'!$A$2:$BA$105,$CL23,FALSE)) -> 27027.20773 | AC23: 336138.2559 | AD23: ='1.Dados_cont_historicos'!AD23*(1+VLOOKUP('1.Dados_cont_historicos'!AD$4,'3.Índices_inflação'!$A$2:$BA$105,$CL23,FALSE)) -> 28413.99993 | AE23: ='1.Dados_cont_historicos'!AE23*(1+VLOOKUP('1.Dados_cont_historicos'!AE$4,'3.Índices_inflação'!$A$2:$BA$105,$CL23,FALSE)) -> 27421.5638 | AF23: ='1.Dados_cont_historicos'!AF23*(1+VLOOKUP('1.Dados_cont_historicos'!AF$4,'3.Índices_inflação'!$A$2:$BA$105,$CL23,FALSE)) -> 28158.86952 | AG23: ='1.Dados_cont_historicos'!AG23*(1+VLOOKUP('1.Dados_cont_historicos'!AG$4,'3.Índices_inflação'!$A$2:$BA$105,$CL23,FALSE)) -> 28684.31502 | AH23: ='1.Dados_cont_historicos'!AH23*(1+VLOOKUP('1.Dados_cont_historicos'!AH$4,'3.Índices_inflação'!$A$2:$BA$105,$CL23,FALSE)) -> 27685.96561 | AI23: ='1.Dados_cont_historicos'!AI23*(1+VLOOKUP('1.Dados_cont_historicos'!AI$4,'3.Índices_inflação'!$A$2:$BA$105,$CL23,FALSE)) -> 27693.3063 | AJ23: ='1.Dados_cont_historicos'!AJ23*(1+VLOOKUP('1.Dados_cont_historicos'!AJ$4,'3.Índices_inflação'!$A$2:$BA$105,$CL23,FALSE)) -> 26843.55805 | AK23: ='1.Dados_cont_historicos'!AK23*(1+VLOOKUP('1.Dados_cont_historicos'!AK$4,'3.Índices_inflação'!$A$2:$BA$105,$CL23,FALSE)) -> 27723.14916 | AL23: ='1.Dados_cont_historicos'!AL23*(1+VLOOKUP('1.Dados_cont_historicos'!AL$4,'3.Índices_inflação'!$A$2:$BA$105,$CL23,FALSE)) -> 26955.22643 | AM23: ='1.Dados_cont_historicos'!AM23*(1+VLOOKUP('1.Dados_cont_historicos'!AM$4,'3.Índices_inflação'!$A$2:$BA$105,$CL23,FALSE)) -> 27536.75299 | AN23: ='1.Dados_cont_historicos'!AN23*(1+VLOOKUP('1.Dados_cont_historicos'!AN$4,'3.Índices_inflação'!$A$2:$BA$105,$CL23,FALSE)) -> 27028.71013 | AO23: ='1.Dados_cont_historicos'!AO23*(1+VLOOKUP('1.Dados_cont_historicos'!AO$4,'3.Índices_inflação'!$A$2:$BA$105,$CL23,FALSE)) -> 26839.80571 | AP23: 330985.2226 | AQ23: ='1.Dados_cont_historicos'!AQ23*(1+VLOOKUP('1.Dados_cont_historicos'!AQ$4,'3.Índices_inflação'!$A$2:$BA$105,$CL23,FALSE)) -> 27472.98157 | AR23: ='1.Dados_cont_historicos'!AR23*(1+VLOOKUP('1.Dados_cont_historicos'!AR$4,'3.Índices_inflação'!$A$2:$BA$105,$CL23,FALSE)) -> 27088.09614 | AS23: ='1.Dados_cont_historicos'!AS23*(1+VLOOKUP('1.Dados_cont_historicos'!AS$4,'3.Índices_inflação'!$A$2:$BA$105,$CL23,FALSE)) -> 27405.87609 | AT23: ='1.Dados_cont_historicos'!AT23*(1+VLOOKUP('1.Dados_cont_historicos'!AT$4,'3.Índices_inflação'!$A$2:$BA$105,$CL23,FALSE)) -> 314.4150408 | AU23: ='1.Dados_cont_historicos'!AU23*(1+VLOOKUP('1.Dados_cont_historicos'!AU$4,'3.Índices_inflação'!$A$2:$BA$105,$CL23,FALSE)) -> 318.3577073 | AV23: ='1.Dados_cont_historicos'!AV23*(1+VLOOKUP('1.Dados_cont_historicos'!AV$4,'3.Índices_inflação'!$A$2:$BA$105,$CL23,FALSE)) -> 81547.66472 | AW23: ='1.Dados_cont_historicos'!AW23*(1+VLOOKUP('1.Dados_cont_historicos'!AW$4,'3.Índices_inflação'!$A$2:$BA$105,$CL23,FALSE)) -> 27034.83155 | AX23: ='1.Dados_cont_historicos'!AX23*(1+VLOOKUP('1.Dados_cont_historicos'!AX$4,'3.Índices_inflação'!$A$2:$BA$105,$CL23,FALSE)) -> 26832.57224 | AY23: ='1.Dados_cont_historicos'!AY23*(1+VLOOKUP('1.Dados_cont_historicos'!AY$4,'3.Índices_inflação'!$A$2:$BA$105,$CL23,FALSE)) -> 26733.74218 | AZ23: ='1.Dados_cont_historicos'!AZ23*(1+VLOOKUP('1.Dados_cont_historicos'!AZ$4,'3.Índices_inflação'!$A$2:$BA$105,$CL23,FALSE)) -> 26570.08955 | BA23: ='1.Dados_cont_historicos'!BA23*(1+VLOOKUP('1.Dados_cont_historicos'!BA$4,'3.Índices_inflação'!$A$2:$BA$105,$CL23,FALSE)) -> 26271.97182 | BB23: ='1.Dados_cont_historicos'!BB23*(1+VLOOKUP('1.Dados_cont_historicos'!BB$4,'3.Índices_inflação'!$A$2:$BA$105,$CL23,FALSE)) -> 25922.02449 | BC23: 323512.6231 | BD23: ='1.Dados_cont_historicos'!BD23*(1+VLOOKUP('1.Dados_cont_historicos'!BD$4,'3.Índices_inflação'!$A$2:$BA$105,$CL23,FALSE)) -> 26703.40298 | BE23: ='1.Dados_cont_historicos'!BE23*(1+VLOOKUP('1.Dados_cont_historicos'!BE$4,'3.Índices_inflação'!$A$2:$BA$105,$CL23,FALSE)) -> 26459.44051 | BF23: ='1.Dados_cont_historicos'!BF23*(1+VLOOKUP('1.Dados_cont_historicos'!BF$4,'3.Índices_inflação'!$A$2:$BA$105,$CL23,FALSE)) -> 26523.94046 | BG23: ='1.Dados_cont_historicos'!BG23*(1+VLOOKUP('1.Dados_cont_historicos'!BG$4,'3.Índices_inflação'!$A$2:$BA$105,$CL23,FALSE)) -> 26441.97036 | BH23: ='1.Dados_cont_historicos'!BH23*(1+VLOOKUP('1.Dados_cont_historicos'!BH$4,'3.Índices_inflação'!$A$2:$BA$105,$CL23,FALSE)) -> 25971.13424 | BI23: ='1.Dados_cont_historicos'!BI23*(1+VLOOKUP('1.Dados_cont_historicos'!BI$4,'3.Índices_inflação'!$A$2:$BA$105,$CL23,FALSE)) -> 25909.61327 | BJ23: ='1.Dados_cont_historicos'!BJ23*(1+VLOOKUP('1.Dados_cont_historicos'!BJ$4,'3.Índices_inflação'!$A$2:$BA$105,$CL23,FALSE)) -> 25838.00764 | BK23: ='1.Dados_cont_historicos'!BK23*(1+VLOOKUP('1.Dados_cont_historicos'!BK$4,'3.Índices_inflação'!$A$2:$BA$120,$CL23,FALSE)) -> 25553.3432 | BL23: ='1.Dados_cont_historicos'!BL23*(1+VLOOKUP('1.Dados_cont_historicos'!BL$4,'3.Índices_inflação'!$A$2:$BA$120,$CL23,FALSE)) -> 25260.32345 | BM23: ='1.Dados_cont_historicos'!BM23*(1+VLOOKUP('1.Dados_cont_historicos'!BM$4,'3.Índices_inflação'!$A$2:$BA$120,$CL23,FALSE)) -> 24948.4676 | BN23: ='1.Dados_cont_historicos'!BN23*(1+VLOOKUP('1.Dados_cont_historicos'!BN$4,'3.Índices_inflação'!$A$2:$BA$120,$CL23,FALSE)) -> 24594.0933 | BO23: ='1.Dados_cont_historicos'!BO23*(1+VLOOKUP('1.Dados_cont_historicos'!BO$4,'3.Índices_inflação'!$A$2:$BA$120,$CL23,FALSE)) -> 26394.01867 | BP23: 310597.7557 | BQ23: ='1.Dados_cont_historicos'!BQ23*(1+VLOOKUP('1.Dados_cont_historicos'!BQ$4,'3.Índices_inflação'!$A$2:$BA$120,$CL23,FALSE)) -> 27796.23855 | BR23: ='1.Dados_cont_historicos'!BR23*(1+VLOOKUP('1.Dados_cont_historicos'!BR$4,'3.Índices_inflação'!$A$2:$BA$120,$CL23,FALSE)) -> 27021.66686 | BS23: ='1.Dados_cont_historicos'!BS23*(1+VLOOKUP('1.Dados_cont_historicos'!BS$4,'3.Índices_inflação'!$A$2:$BA$120,$CL23,FALSE)) -> 26345.09959 | BT23: ='1.Dados_cont_historicos'!BT23*(1+VLOOKUP('1.Dados_cont_historicos'!BT$4,'3.Índices_inflação'!$A$2:$BA$120,$CL23,FALSE)) -> 26201.28076 | BU23: ='1.Dados_cont_historicos'!BU23*(1+VLOOKUP('1.Dados_cont_historicos'!BU$4,'3.Índices_inflação'!$A$2:$BA$120,$CL23,FALSE)) -> 25952.94834 | BV23: ='1.Dados_cont_historicos'!BV23*(1+VLOOKUP('1.Dados_cont_historicos'!BV$4,'3.Índices_inflação'!$A$2:$BA$120,$CL23,FALSE)) -> 25938.55875 | BW23: ='1.Dados_cont_historicos'!BW23*(1+VLOOKUP('1.Dados_cont_historicos'!BW$4,'3.Índices_inflação'!$A$2:$BA$120,$CL23,FALSE)) -> 25987.69946 | BZ23: 349982.4887 | CA23: 336138.2559 | CB23: 330985.2226 | CC23: 323512.6231 | CD23: 310597.7557 | CE23: 344361.4953 | CF23: 330833.2326 | CG23: 327265.8672 | CH23: 316177.9097 | CI23: 311993.7385 | CK23: IPCA | CL23: 28
A24: =C24='1.Dados_cont_historicos'!C24 -> TRUE | C24: Autosserviços de Água e Esgoto | D24: ='1.Dados_cont_historicos'!D24*(1+VLOOKUP('1.Dados_cont_historicos'!D$4,'3.Índices_inflação'!$A$2:$BA$105,$CL24,FALSE)) -> 5637.489011 | E24: ='1.Dados_cont_historicos'!E24*(1+VLOOKUP('1.Dados_cont_historicos'!E$4,'3.Índices_inflação'!$A$2:$BA$105,$CL24,FALSE)) -> 7985.68621 | F24: ='1.Dados_cont_historicos'!F24*(1+VLOOKUP('1.Dados_cont_historicos'!F$4,'3.Índices_inflação'!$A$2:$BA$105,$CL24,FALSE)) -> 7928.397761 | G24: ='1.Dados_cont_historicos'!G24*(1+VLOOKUP('1.Dados_cont_historicos'!G$4,'3.Índices_inflação'!$A$2:$BA$105,$CL24,FALSE)) -> 12538.78458 | H24: ='1.Dados_cont_historicos'!H24*(1+VLOOKUP('1.Dados_cont_historicos'!H$4,'3.Índices_inflação'!$A$2:$BA$105,$CL24,FALSE)) -> 11165.83933 | I24: ='1.Dados_cont_historicos'!I24*(1+VLOOKUP('1.Dados_cont_historicos'!I$4,'3.Índices_inflação'!$A$2:$BA$105,$CL24,FALSE)) -> 10816.23597 | J24: ='1.Dados_cont_historicos'!J24*(1+VLOOKUP('1.Dados_cont_historicos'!J$4,'3.Índices_inflação'!$A$2:$BA$105,$CL24,FALSE)) -> 12265.61576 | K24: ='1.Dados_cont_historicos'!K24*(1+VLOOKUP('1.Dados_cont_historicos'!K$4,'3.Índices_inflação'!$A$2:$BA$105,$CL24,FALSE)) -> 13216.91263 | L24: ='1.Dados_cont_historicos'!L24*(1+VLOOKUP('1.Dados_cont_historicos'!L$4,'3.Índices_inflação'!$A$2:$BA$105,$CL24,FALSE)) -> 9397.672698 | M24: ='1.Dados_cont_historicos'!M24*(1+VLOOKUP('1.Dados_cont_historicos'!M$4,'3.Índices_inflação'!$A$2:$BA$105,$CL24,FALSE)) -> 19789.68524 | N24: ='1.Dados_cont_historicos'!N24*(1+VLOOKUP('1.Dados_cont_historicos'!N$4,'3.Índices_inflação'!$A$2:$BA$105,$CL24,FALSE)) -> 12022.51821 | O24: ='1.Dados_cont_historicos'!O24*(1+VLOOKUP('1.Dados_cont_historicos'!O$4,'3.Índices_inflação'!$A$2:$BA$105,$CL24,FALSE)) -> 7234.102427 | P24: 129998.9398 | Q24: ='1.Dados_cont_historicos'!Q24*(1+VLOOKUP('1.Dados_cont_historicos'!Q$4,'3.Índices_inflação'!$A$2:$BA$105,$CL24,FALSE)) -> 6355.55703 | R24: ='1.Dados_cont_historicos'!R24*(1+VLOOKUP('1.Dados_cont_historicos'!R$4,'3.Índices_inflação'!$A$2:$BA$105,$CL24,FALSE)) -> 8518.097039 | S24: ='1.Dados_cont_historicos'!S24*(1+VLOOKUP('1.Dados_cont_historicos'!S$4,'3.Índices_inflação'!$A$2:$BA$105,$CL24,FALSE)) -> 5370.025601 | T24: ='1.Dados_cont_historicos'!T24*(1+VLOOKUP('1.Dados_cont_historicos'!T$4,'3.Índices_inflação'!$A$2:$BA$105,$CL24,FALSE)) -> 6311.702761 | U24: ='1.Dados_cont_historicos'!U24*(1+VLOOKUP('1.Dados_cont_historicos'!U$4,'3.Índices_inflação'!$A$2:$BA$105,$CL24,FALSE)) -> 13040.95386 | V24: ='1.Dados_cont_historicos'!V24*(1+VLOOKUP('1.Dados_cont_historicos'!V$4,'3.Índices_inflação'!$A$2:$BA$105,$CL24,FALSE)) -> 6727.061093 | W24: ='1.Dados_cont_historicos'!W24*(1+VLOOKUP('1.Dados_cont_historicos'!W$4,'3.Índices_inflação'!$A$2:$BA$105,$CL24,FALSE)) -> 6758.735123 | X24: ='1.Dados_cont_historicos'!X24*(1+VLOOKUP('1.Dados_cont_historicos'!X$4,'3.Índices_inflação'!$A$2:$BA$105,$CL24,FALSE)) -> 6240.703185 | Y24: ='1.Dados_cont_historicos'!Y24*(1+VLOOKUP('1.Dados_cont_historicos'!Y$4,'3.Índices_inflação'!$A$2:$BA$105,$CL24,FALSE)) -> 11250.82366 | Z24: ='1.Dados_cont_historicos'!Z24*(1+VLOOKUP('1.Dados_cont_historicos'!Z$4,'3.Índices_inflação'!$A$2:$BA$105,$CL24,FALSE)) -> 8012.569786 | AA24: ='1.Dados_cont_historicos'!AA24*(1+VLOOKUP('1.Dados_cont_historicos'!AA$4,'3.Índices_inflação'!$A$2:$BA$105,$CL24,FALSE)) -> 7851.604068 | AB24: ='1.Dados_cont_historicos'!AB24*(1+VLOOKUP('1.Dados_cont_historicos'!AB$4,'3.Índices_inflação'!$A$2:$BA$105,$CL24,FALSE)) -> 5813.772949 | AC24: 92251.60616 | AD24: ='1.Dados_cont_historicos'!AD24*(1+VLOOKUP('1.Dados_cont_historicos'!AD$4,'3.Índices_inflação'!$A$2:$BA$105,$CL24,FALSE)) -> 5969.733064 | AE24: ='1.Dados_cont_historicos'!AE24*(1+VLOOKUP('1.Dados_cont_historicos'!AE$4,'3.Índices_inflação'!$A$2:$BA$105,$CL24,FALSE)) -> 6987.042008 | AF24: ='1.Dados_cont_historicos'!AF24*(1+VLOOKUP('1.Dados_cont_historicos'!AF$4,'3.Índices_inflação'!$A$2:$BA$105,$CL24,FALSE)) -> 20699.56538 | AG24: ='1.Dados_cont_historicos'!AG24*(1+VLOOKUP('1.Dados_cont_historicos'!AG$4,'3.Índices_inflação'!$A$2:$BA$105,$CL24,FALSE)) -> 6964.140545 | AH24: ='1.Dados_cont_historicos'!AH24*(1+VLOOKUP('1.Dados_cont_historicos'!AH$4,'3.Índices_inflação'!$A$2:$BA$105,$CL24,FALSE)) -> 6260.65575 | AI24: ='1.Dados_cont_historicos'!AI24*(1+VLOOKUP('1.Dados_cont_historicos'!AI$4,'3.Índices_inflação'!$A$2:$BA$105,$CL24,FALSE)) -> 8992.054719 | AJ24: ='1.Dados_cont_historicos'!AJ24*(1+VLOOKUP('1.Dados_cont_historicos'!AJ$4,'3.Índices_inflação'!$A$2:$BA$105,$CL24,FALSE)) -> 5751.578678 | AK24: ='1.Dados_cont_historicos'!AK24*(1+VLOOKUP('1.Dados_cont_historicos'!AK$4,'3.Índices_inflação'!$A$2:$BA$105,$CL24,FALSE)) -> 5954.797327 | AL24: ='1.Dados_cont_historicos'!AL24*(1+VLOOKUP('1.Dados_cont_historicos'!AL$4,'3.Índices_inflação'!$A$2:$BA$105,$CL24,FALSE)) -> 8889.646507 | AM24: ='1.Dados_cont_historicos'!AM24*(1+VLOOKUP('1.Dados_cont_historicos'!AM$4,'3.Índices_inflação'!$A$2:$BA$105,$CL24,FALSE)) -> 8844.028829 | AN24: ='1.Dados_cont_historicos'!AN24*(1+VLOOKUP('1.Dados_cont_historicos'!AN$4,'3.Índices_inflação'!$A$2:$BA$105,$CL24,FALSE)) -> 9961.268275 | AO24: ='1.Dados_cont_historicos'!AO24*(1+VLOOKUP('1.Dados_cont_historicos'!AO$4,'3.Índices_inflação'!$A$2:$BA$105,$CL24,FALSE)) -> 6702.614631 | AP24: 101977.1257 | AQ24: ='1.Dados_cont_historicos'!AQ24*(1+VLOOKUP('1.Dados_cont_historicos'!AQ$4,'3.Índices_inflação'!$A$2:$BA$105,$CL24,FALSE)) -> 6754.1024 | AR24: ='1.Dados_cont_historicos'!AR24*(1+VLOOKUP('1.Dados_cont_historicos'!AR$4,'3.Índices_inflação'!$A$2:$BA$105,$CL24,FALSE)) -> 6357.738041 | AS24: ='1.Dados_cont_historicos'!AS24*(1+VLOOKUP('1.Dados_cont_historicos'!AS$4,'3.Índices_inflação'!$A$2:$BA$105,$CL24,FALSE)) -> 68005.99304 | AT24: ='1.Dados_cont_historicos'!AT24*(1+VLOOKUP('1.Dados_cont_historicos'!AT$4,'3.Índices_inflação'!$A$2:$BA$105,$CL24,FALSE)) -> 5921.847369 | AU24: ='1.Dados_cont_historicos'!AU24*(1+VLOOKUP('1.Dados_cont_historicos'!AU$4,'3.Índices_inflação'!$A$2:$BA$105,$CL24,FALSE)) -> 7101.915975 | AV24: ='1.Dados_cont_historicos'!AV24*(1+VLOOKUP('1.Dados_cont_historicos'!AV$4,'3.Índices_inflação'!$A$2:$BA$105,$CL24,FALSE)) -> 6647.300289 | AW24: ='1.Dados_cont_historicos'!AW24*(1+VLOOKUP('1.Dados_cont_historicos'!AW$4,'3.Índices_inflação'!$A$2:$BA$105,$CL24,FALSE)) -> 6389.082036 | AX24: ='1.Dados_cont_historicos'!AX24*(1+VLOOKUP('1.Dados_cont_historicos'!AX$4,'3.Índices_inflação'!$A$2:$BA$105,$CL24,FALSE)) -> 6031.983708 | AY24: ='1.Dados_cont_historicos'!AY24*(1+VLOOKUP('1.Dados_cont_historicos'!AY$4,'3.Índices_inflação'!$A$2:$BA$105,$CL24,FALSE)) -> 6032.393631 | AZ24: ='1.Dados_cont_historicos'!AZ24*(1+VLOOKUP('1.Dados_cont_historicos'!AZ$4,'3.Índices_inflação'!$A$2:$BA$105,$CL24,FALSE)) -> 6448.31037 | BA24: ='1.Dados_cont_historicos'!BA24*(1+VLOOKUP('1.Dados_cont_historicos'!BA$4,'3.Índices_inflação'!$A$2:$BA$105,$CL24,FALSE)) -> 5910.125787 | BB24: ='1.Dados_cont_historicos'!BB24*(1+VLOOKUP('1.Dados_cont_historicos'!BB$4,'3.Índices_inflação'!$A$2:$BA$105,$CL24,FALSE)) -> 8104.133394 | BC24: 139704.926 | BD24: ='1.Dados_cont_historicos'!BD24*(1+VLOOKUP('1.Dados_cont_historicos'!BD$4,'3.Índices_inflação'!$A$2:$BA$105,$CL24,FALSE)) -> 6061.420611 | BE24: ='1.Dados_cont_historicos'!BE24*(1+VLOOKUP('1.Dados_cont_historicos'!BE$4,'3.Índices_inflação'!$A$2:$BA$105,$CL24,FALSE)) -> 8625.854583 | BF24: ='1.Dados_cont_historicos'!BF24*(1+VLOOKUP('1.Dados_cont_historicos'!BF$4,'3.Índices_inflação'!$A$2:$BA$105,$CL24,FALSE)) -> 8344.137771 | BG24: ='1.Dados_cont_historicos'!BG24*(1+VLOOKUP('1.Dados_cont_historicos'!BG$4,'3.Índices_inflação'!$A$2:$BA$105,$CL24,FALSE)) -> 6201.049248 | BH24: ='1.Dados_cont_historicos'!BH24*(1+VLOOKUP('1.Dados_cont_historicos'!BH$4,'3.Índices_inflação'!$A$2:$BA$105,$CL24,FALSE)) -> 6290.257356 | BI24: ='1.Dados_cont_historicos'!BI24*(1+VLOOKUP('1.Dados_cont_historicos'!BI$4,'3.Índices_inflação'!$A$2:$BA$105,$CL24,FALSE)) -> 6234.275169 | BJ24: ='1.Dados_cont_historicos'!BJ24*(1+VLOOKUP('1.Dados_cont_historicos'!BJ$4,'3.Índices_inflação'!$A$2:$BA$105,$CL24,FALSE)) -> 6447.512682 | BK24: ='1.Dados_cont_historicos'!BK24*(1+VLOOKUP('1.Dados_cont_historicos'!BK$4,'3.Índices_inflação'!$A$2:$BA$120,$CL24,FALSE)) -> 6148.18 | BL24: ='1.Dados_cont_historicos'!BL24*(1+VLOOKUP('1.Dados_cont_historicos'!BL$4,'3.Índices_inflação'!$A$2:$BA$120,$CL24,FALSE)) -> 6208.48 | BM24: ='1.Dados_cont_historicos'!BM24*(1+VLOOKUP('1.Dados_cont_historicos'!BM$4,'3.Índices_inflação'!$A$2:$BA$120,$CL24,FALSE)) -> 7380.84 | BN24: ='1.Dados_cont_historicos'!BN24*(1+VLOOKUP('1.Dados_cont_historicos'!BN$4,'3.Índices_inflação'!$A$2:$BA$120,$CL24,FALSE)) -> 7192.98 | BO24: ='1.Dados_cont_historicos'!BO24*(1+VLOOKUP('1.Dados_cont_historicos'!BO$4,'3.Índices_inflação'!$A$2:$BA$120,$CL24,FALSE)) -> 6391.05 | BP24: 81526.03742 | BQ24: ='1.Dados_cont_historicos'!BQ24*(1+VLOOKUP('1.Dados_cont_historicos'!BQ$4,'3.Índices_inflação'!$A$2:$BA$120,$CL24,FALSE)) -> 9332.91 | BR24: ='1.Dados_cont_historicos'!BR24*(1+VLOOKUP('1.Dados_cont_historicos'!BR$4,'3.Índices_inflação'!$A$2:$BA$120,$CL24,FALSE)) -> 6893.18 | BS24: ='1.Dados_cont_historicos'!BS24*(1+VLOOKUP('1.Dados_cont_historicos'!BS$4,'3.Índices_inflação'!$A$2:$BA$120,$CL24,FALSE)) -> 7531.49 | BT24: ='1.Dados_cont_historicos'!BT24*(1+VLOOKUP('1.Dados_cont_historicos'!BT$4,'3.Índices_inflação'!$A$2:$BA$120,$CL24,FALSE)) -> 5597.12 | BU24: ='1.Dados_cont_historicos'!BU24*(1+VLOOKUP('1.Dados_cont_historicos'!BU$4,'3.Índices_inflação'!$A$2:$BA$120,$CL24,FALSE)) -> 5677.64 | BV24: ='1.Dados_cont_historicos'!BV24*(1+VLOOKUP('1.Dados_cont_historicos'!BV$4,'3.Índices_inflação'!$A$2:$BA$120,$CL24,FALSE)) -> 5627.11 | BW24: ='1.Dados_cont_historicos'!BW24*(1+VLOOKUP('1.Dados_cont_historicos'!BW$4,'3.Índices_inflação'!$A$2:$BA$120,$CL24,FALSE)) -> 5819.58 | BZ24: 129998.9398 | CA24: 92251.60616 | CB24: 101977.1257 | CC24: 139704.926 | CD24: 81526.03742 | CE24: 114743.0237 | CF24: 100794.2438 | CG24: 147530.3347 | CH24: 80731.45431 | CI24: 79800.56 | CK24: ETM | CL24: 50
A25: =C25='1.Dados_cont_historicos'!C25 -> TRUE | C25: Combustíveis e Lubrificantes | D25: ='1.Dados_cont_historicos'!D25*(1+VLOOKUP('1.Dados_cont_historicos'!D$4,'3.Índices_inflação'!$A$2:$BA$105,$CL25,FALSE)) -> 149939.2095 | E25: ='1.Dados_cont_historicos'!E25*(1+VLOOKUP('1.Dados_cont_historicos'!E$4,'3.Índices_inflação'!$A$2:$BA$105,$CL25,FALSE)) -> 98491.90385 | F25: ='1.Dados_cont_historicos'!F25*(1+VLOOKUP('1.Dados_cont_historicos'!F$4,'3.Índices_inflação'!$A$2:$BA$105,$CL25,FALSE)) -> 143469.178 | G25: ='1.Dados_cont_historicos'!G25*(1+VLOOKUP('1.Dados_cont_historicos'!G$4,'3.Índices_inflação'!$A$2:$BA$105,$CL25,FALSE)) -> 118589.942 | H25: ='1.Dados_cont_historicos'!H25*(1+VLOOKUP('1.Dados_cont_historicos'!H$4,'3.Índices_inflação'!$A$2:$BA$105,$CL25,FALSE)) -> 164825.9953 | I25: ='1.Dados_cont_historicos'!I25*(1+VLOOKUP('1.Dados_cont_historicos'!I$4,'3.Índices_inflação'!$A$2:$BA$105,$CL25,FALSE)) -> 170093.4065 | J25: ='1.Dados_cont_historicos'!J25*(1+VLOOKUP('1.Dados_cont_historicos'!J$4,'3.Índices_inflação'!$A$2:$BA$105,$CL25,FALSE)) -> 144355.6598 | K25: ='1.Dados_cont_historicos'!K25*(1+VLOOKUP('1.Dados_cont_historicos'!K$4,'3.Índices_inflação'!$A$2:$BA$105,$CL25,FALSE)) -> 240808.7466 | L25: ='1.Dados_cont_historicos'!L25*(1+VLOOKUP('1.Dados_cont_historicos'!L$4,'3.Índices_inflação'!$A$2:$BA$105,$CL25,FALSE)) -> 153823.633 | M25: ='1.Dados_cont_historicos'!M25*(1+VLOOKUP('1.Dados_cont_historicos'!M$4,'3.Índices_inflação'!$A$2:$BA$105,$CL25,FALSE)) -> 106528.3224 | N25: ='1.Dados_cont_historicos'!N25*(1+VLOOKUP('1.Dados_cont_historicos'!N$4,'3.Índices_inflação'!$A$2:$BA$105,$CL25,FALSE)) -> 174291.5851 | O25: ='1.Dados_cont_historicos'!O25*(1+VLOOKUP('1.Dados_cont_historicos'!O$4,'3.Índices_inflação'!$A$2:$BA$105,$CL25,FALSE)) -> 173595.576 | P25: 1838813.158 | Q25: ='1.Dados_cont_historicos'!Q25*(1+VLOOKUP('1.Dados_cont_historicos'!Q$4,'3.Índices_inflação'!$A$2:$BA$105,$CL25,FALSE)) -> 181844.0119 | R25: ='1.Dados_cont_historicos'!R25*(1+VLOOKUP('1.Dados_cont_historicos'!R$4,'3.Índices_inflação'!$A$2:$BA$105,$CL25,FALSE)) -> 109020.0493 | S25: ='1.Dados_cont_historicos'!S25*(1+VLOOKUP('1.Dados_cont_historicos'!S$4,'3.Índices_inflação'!$A$2:$BA$105,$CL25,FALSE)) -> 178153.5135 | T25: ='1.Dados_cont_historicos'!T25*(1+VLOOKUP('1.Dados_cont_historicos'!T$4,'3.Índices_inflação'!$A$2:$BA$105,$CL25,FALSE)) -> 164451.6016 | U25: ='1.Dados_cont_historicos'!U25*(1+VLOOKUP('1.Dados_cont_historicos'!U$4,'3.Índices_inflação'!$A$2:$BA$105,$CL25,FALSE)) -> 179619.2879 | V25: ='1.Dados_cont_historicos'!V25*(1+VLOOKUP('1.Dados_cont_historicos'!V$4,'3.Índices_inflação'!$A$2:$BA$105,$CL25,FALSE)) -> 156239.5963 | W25: ='1.Dados_cont_historicos'!W25*(1+VLOOKUP('1.Dados_cont_historicos'!W$4,'3.Índices_inflação'!$A$2:$BA$105,$CL25,FALSE)) -> 173663.0507 | X25: ='1.Dados_cont_historicos'!X25*(1+VLOOKUP('1.Dados_cont_historicos'!X$4,'3.Índices_inflação'!$A$2:$BA$105,$CL25,FALSE)) -> 224585.1146 | Y25: ='1.Dados_cont_historicos'!Y25*(1+VLOOKUP('1.Dados_cont_historicos'!Y$4,'3.Índices_inflação'!$A$2:$BA$105,$CL25,FALSE)) -> 134134.7009 | Z25: ='1.Dados_cont_historicos'!Z25*(1+VLOOKUP('1.Dados_cont_historicos'!Z$4,'3.Índices_inflação'!$A$2:$BA$105,$CL25,FALSE)) -> 180707.7203 | AA25: ='1.Dados_cont_historicos'!AA25*(1+VLOOKUP('1.Dados_cont_historicos'!AA$4,'3.Índices_inflação'!$A$2:$BA$105,$CL25,FALSE)) -> 177092.2158 | AB25: ='1.Dados_cont_historicos'!AB25*(1+VLOOKUP('1.Dados_cont_historicos'!AB$4,'3.Índices_inflação'!$A$2:$BA$105,$CL25,FALSE)) -> 207313.3109 | AC25: 2066824.174 | AD25: ='1.Dados_cont_historicos'!AD25*(1+VLOOKUP('1.Dados_cont_historicos'!AD$4,'3.Índices_inflação'!$A$2:$BA$105,$CL25,FALSE)) -> 96079.48542 | AE25: ='1.Dados_cont_historicos'!AE25*(1+VLOOKUP('1.Dados_cont_historicos'!AE$4,'3.Índices_inflação'!$A$2:$BA$105,$CL25,FALSE)) -> 191595.6532 | AF25: ='1.Dados_cont_historicos'!AF25*(1+VLOOKUP('1.Dados_cont_historicos'!AF$4,'3.Índices_inflação'!$A$2:$BA$105,$CL25,FALSE)) -> 184887.9318 | AG25: ='1.Dados_cont_historicos'!AG25*(1+VLOOKUP('1.Dados_cont_historicos'!AG$4,'3.Índices_inflação'!$A$2:$BA$105,$CL25,FALSE)) -> 192106.6311 | AH25: ='1.Dados_cont_historicos'!AH25*(1+VLOOKUP('1.Dados_cont_historicos'!AH$4,'3.Índices_inflação'!$A$2:$BA$105,$CL25,FALSE)) -> 193277.3148 | AI25: ='1.Dados_cont_historicos'!AI25*(1+VLOOKUP('1.Dados_cont_historicos'!AI$4,'3.Índices_inflação'!$A$2:$BA$105,$CL25,FALSE)) -> 153862.5208 | AJ25: ='1.Dados_cont_historicos'!AJ25*(1+VLOOKUP('1.Dados_cont_historicos'!AJ$4,'3.Índices_inflação'!$A$2:$BA$105,$CL25,FALSE)) -> 224239.4442 | AK25: ='1.Dados_cont_historicos'!AK25*(1+VLOOKUP('1.Dados_cont_historicos'!AK$4,'3.Índices_inflação'!$A$2:$BA$105,$CL25,FALSE)) -> 162289.714 | AL25: ='1.Dados_cont_historicos'!AL25*(1+VLOOKUP('1.Dados_cont_historicos'!AL$4,'3.Índices_inflação'!$A$2:$BA$105,$CL25,FALSE)) -> 213919.8471 | AM25: ='1.Dados_cont_historicos'!AM25*(1+VLOOKUP('1.Dados_cont_historicos'!AM$4,'3.Índices_inflação'!$A$2:$BA$105,$CL25,FALSE)) -> 186383.8821 | AN25: ='1.Dados_cont_historicos'!AN25*(1+VLOOKUP('1.Dados_cont_historicos'!AN$4,'3.Índices_inflação'!$A$2:$BA$105,$CL25,FALSE)) -> 196394.9135 | AO25: ='1.Dados_cont_historicos'!AO25*(1+VLOOKUP('1.Dados_cont_historicos'!AO$4,'3.Índices_inflação'!$A$2:$BA$105,$CL25,FALSE)) -> 311113.2818 | AP25: 2306150.62 | AQ25: ='1.Dados_cont_historicos'!AQ25*(1+VLOOKUP('1.Dados_cont_historicos'!AQ$4,'3.Índices_inflação'!$A$2:$BA$105,$CL25,FALSE)) -> 150528.43 | AR25: ='1.Dados_cont_historicos'!AR25*(1+VLOOKUP('1.Dados_cont_historicos'!AR$4,'3.Índices_inflação'!$A$2:$BA$105,$CL25,FALSE)) -> 143815.9005 | AS25: ='1.Dados_cont_historicos'!AS25*(1+VLOOKUP('1.Dados_cont_historicos'!AS$4,'3.Índices_inflação'!$A$2:$BA$105,$CL25,FALSE)) -> 157223.4991 | AT25: ='1.Dados_cont_historicos'!AT25*(1+VLOOKUP('1.Dados_cont_historicos'!AT$4,'3.Índices_inflação'!$A$2:$BA$105,$CL25,FALSE)) -> 172830.2376 | AU25: ='1.Dados_cont_historicos'!AU25*(1+VLOOKUP('1.Dados_cont_historicos'!AU$4,'3.Índices_inflação'!$A$2:$BA$105,$CL25,FALSE)) -> 205614.206 | AV25: ='1.Dados_cont_historicos'!AV25*(1+VLOOKUP('1.Dados_cont_historicos'!AV$4,'3.Índices_inflação'!$A$2:$BA$105,$CL25,FALSE)) -> 209163.1779 | AW25: ='1.Dados_cont_historicos'!AW25*(1+VLOOKUP('1.Dados_cont_historicos'!AW$4,'3.Índices_inflação'!$A$2:$BA$105,$CL25,FALSE)) -> 187691.5146 | AX25: ='1.Dados_cont_historicos'!AX25*(1+VLOOKUP('1.Dados_cont_historicos'!AX$4,'3.Índices_inflação'!$A$2:$BA$105,$CL25,FALSE)) -> 174885.2448 | AY25: ='1.Dados_cont_historicos'!AY25*(1+VLOOKUP('1.Dados_cont_historicos'!AY$4,'3.Índices_inflação'!$A$2:$BA$105,$CL25,FALSE)) -> 248210.7615 | AZ25: ='1.Dados_cont_historicos'!AZ25*(1+VLOOKUP('1.Dados_cont_historicos'!AZ$4,'3.Índices_inflação'!$A$2:$BA$105,$CL25,FALSE)) -> 134342.2088 | BA25: ='1.Dados_cont_historicos'!BA25*(1+VLOOKUP('1.Dados_cont_historicos'!BA$4,'3.Índices_inflação'!$A$2:$BA$105,$CL25,FALSE)) -> 167071.7453 | BB25: ='1.Dados_cont_historicos'!BB25*(1+VLOOKUP('1.Dados_cont_historicos'!BB$4,'3.Índices_inflação'!$A$2:$BA$105,$CL25,FALSE)) -> 227976.017 | BC25: 2179352.943 | BD25: ='1.Dados_cont_historicos'!BD25*(1+VLOOKUP('1.Dados_cont_historicos'!BD$4,'3.Índices_inflação'!$A$2:$BA$105,$CL25,FALSE)) -> 60544.39902 | BE25: ='1.Dados_cont_historicos'!BE25*(1+VLOOKUP('1.Dados_cont_historicos'!BE$4,'3.Índices_inflação'!$A$2:$BA$105,$CL25,FALSE)) -> 127356.4322 | BF25: ='1.Dados_cont_historicos'!BF25*(1+VLOOKUP('1.Dados_cont_historicos'!BF$4,'3.Índices_inflação'!$A$2:$BA$105,$CL25,FALSE)) -> 136709.2196 | BG25: ='1.Dados_cont_historicos'!BG25*(1+VLOOKUP('1.Dados_cont_historicos'!BG$4,'3.Índices_inflação'!$A$2:$BA$105,$CL25,FALSE)) -> 212273.4372 | BH25: ='1.Dados_cont_historicos'!BH25*(1+VLOOKUP('1.Dados_cont_historicos'!BH$4,'3.Índices_inflação'!$A$2:$BA$105,$CL25,FALSE)) -> 125365.7795 | BI25: ='1.Dados_cont_historicos'!BI25*(1+VLOOKUP('1.Dados_cont_historicos'!BI$4,'3.Índices_inflação'!$A$2:$BA$105,$CL25,FALSE)) -> 114228.7058 | BJ25: ='1.Dados_cont_historicos'!BJ25*(1+VLOOKUP('1.Dados_cont_historicos'!BJ$4,'3.Índices_inflação'!$A$2:$BA$105,$CL25,FALSE)) -> 138608.1459 | BK25: ='1.Dados_cont_historicos'!BK25*(1+VLOOKUP('1.Dados_cont_historicos'!BK$4,'3.Índices_inflação'!$A$2:$BA$120,$CL25,FALSE)) -> 165734.9604 | BL25: ='1.Dados_cont_historicos'!BL25*(1+VLOOKUP('1.Dados_cont_historicos'!BL$4,'3.Índices_inflação'!$A$2:$BA$120,$CL25,FALSE)) -> 130916.4688 | BM25: ='1.Dados_cont_historicos'!BM25*(1+VLOOKUP('1.Dados_cont_historicos'!BM$4,'3.Índices_inflação'!$A$2:$BA$120,$CL25,FALSE)) -> 90676.76771 | BN25: ='1.Dados_cont_historicos'!BN25*(1+VLOOKUP('1.Dados_cont_historicos'!BN$4,'3.Índices_inflação'!$A$2:$BA$120,$CL25,FALSE)) -> 87368.06297 | BO25: ='1.Dados_cont_historicos'!BO25*(1+VLOOKUP('1.Dados_cont_historicos'!BO$4,'3.Índices_inflação'!$A$2:$BA$120,$CL25,FALSE)) -> 232128.5719 | BP25: 1621910.951 | BQ25: ='1.Dados_cont_historicos'!BQ25*(1+VLOOKUP('1.Dados_cont_historicos'!BQ$4,'3.Índices_inflação'!$A$2:$BA$120,$CL25,FALSE)) -> 115506.4133 | BR25: ='1.Dados_cont_historicos'!BR25*(1+VLOOKUP('1.Dados_cont_historicos'!BR$4,'3.Índices_inflação'!$A$2:$BA$120,$CL25,FALSE)) -> 238888.9469 | BS25: ='1.Dados_cont_historicos'!BS25*(1+VLOOKUP('1.Dados_cont_historicos'!BS$4,'3.Índices_inflação'!$A$2:$BA$120,$CL25,FALSE)) -> 155682.3866 | BT25: ='1.Dados_cont_historicos'!BT25*(1+VLOOKUP('1.Dados_cont_historicos'!BT$4,'3.Índices_inflação'!$A$2:$BA$120,$CL25,FALSE)) -> 235836.757 | BU25: ='1.Dados_cont_historicos'!BU25*(1+VLOOKUP('1.Dados_cont_historicos'!BU$4,'3.Índices_inflação'!$A$2:$BA$120,$CL25,FALSE)) -> 140138.6083 | BV25: ='1.Dados_cont_historicos'!BV25*(1+VLOOKUP('1.Dados_cont_historicos'!BV$4,'3.Índices_inflação'!$A$2:$BA$120,$CL25,FALSE)) -> 126513.6622 | BW25: ='1.Dados_cont_historicos'!BW25*(1+VLOOKUP('1.Dados_cont_historicos'!BW$4,'3.Índices_inflação'!$A$2:$BA$120,$CL25,FALSE)) -> 151213.3411 | BZ25: 1838813.158 | CA25: 2066824.174 | CB25: 2306150.62 | CC25: 2179352.943 | CD25: 1621910.951 | CE25: 1992038.974 | CF25: 2159882.044 | CG25: 2296968.604 | CH25: 1867572.097 | CI25: 1870604.947 | CK25: IPCA BH Comb | CL25: 47
A26: =C26='1.Dados_cont_historicos'!C26 -> TRUE | C26: Comercialização | D26: ='1.Dados_cont_historicos'!D26*(1+VLOOKUP('1.Dados_cont_historicos'!D$4,'3.Índices_inflação'!$A$2:$BA$105,$CL26,FALSE)) -> 110003.7265 | E26: ='1.Dados_cont_historicos'!E26*(1+VLOOKUP('1.Dados_cont_historicos'!E$4,'3.Índices_inflação'!$A$2:$BA$105,$CL26,FALSE)) -> 101904.0647 | F26: ='1.Dados_cont_historicos'!F26*(1+VLOOKUP('1.Dados_cont_historicos'!F$4,'3.Índices_inflação'!$A$2:$BA$105,$CL26,FALSE)) -> 98519.88325 | G26: ='1.Dados_cont_historicos'!G26*(1+VLOOKUP('1.Dados_cont_historicos'!G$4,'3.Índices_inflação'!$A$2:$BA$105,$CL26,FALSE)) -> 82751.43578 | H26: ='1.Dados_cont_historicos'!H26*(1+VLOOKUP('1.Dados_cont_historicos'!H$4,'3.Índices_inflação'!$A$2:$BA$105,$CL26,FALSE)) -> 95589.39142 | I26: ='1.Dados_cont_historicos'!I26*(1+VLOOKUP('1.Dados_cont_historicos'!I$4,'3.Índices_inflação'!$A$2:$BA$105,$CL26,FALSE)) -> 89033.80186 | J26: ='1.Dados_cont_historicos'!J26*(1+VLOOKUP('1.Dados_cont_historicos'!J$4,'3.Índices_inflação'!$A$2:$BA$105,$CL26,FALSE)) -> 88519.06147 | K26: ='1.Dados_cont_historicos'!K26*(1+VLOOKUP('1.Dados_cont_historicos'!K$4,'3.Índices_inflação'!$A$2:$BA$105,$CL26,FALSE)) -> 94146.63523 | L26: ='1.Dados_cont_historicos'!L26*(1+VLOOKUP('1.Dados_cont_historicos'!L$4,'3.Índices_inflação'!$A$2:$BA$105,$CL26,FALSE)) -> 87882.89907 | M26: ='1.Dados_cont_historicos'!M26*(1+VLOOKUP('1.Dados_cont_historicos'!M$4,'3.Índices_inflação'!$A$2:$BA$105,$CL26,FALSE)) -> 88816.56363 | N26: ='1.Dados_cont_historicos'!N26*(1+VLOOKUP('1.Dados_cont_historicos'!N$4,'3.Índices_inflação'!$A$2:$BA$105,$CL26,FALSE)) -> 99271.26724 | O26: ='1.Dados_cont_historicos'!O26*(1+VLOOKUP('1.Dados_cont_historicos'!O$4,'3.Índices_inflação'!$A$2:$BA$105,$CL26,FALSE)) -> 109865.615 | P26: 1146304.345 | Q26: ='1.Dados_cont_historicos'!Q26*(1+VLOOKUP('1.Dados_cont_historicos'!Q$4,'3.Índices_inflação'!$A$2:$BA$105,$CL26,FALSE)) -> 95116.01663 | R26: ='1.Dados_cont_historicos'!R26*(1+VLOOKUP('1.Dados_cont_historicos'!R$4,'3.Índices_inflação'!$A$2:$BA$105,$CL26,FALSE)) -> 120817.7467 | S26: ='1.Dados_cont_historicos'!S26*(1+VLOOKUP('1.Dados_cont_historicos'!S$4,'3.Índices_inflação'!$A$2:$BA$105,$CL26,FALSE)) -> 86404.8583 | T26: ='1.Dados_cont_historicos'!T26*(1+VLOOKUP('1.Dados_cont_historicos'!T$4,'3.Índices_inflação'!$A$2:$BA$105,$CL26,FALSE)) -> 100245.8411 | U26: ='1.Dados_cont_historicos'!U26*(1+VLOOKUP('1.Dados_cont_historicos'!U$4,'3.Índices_inflação'!$A$2:$BA$105,$CL26,FALSE)) -> 91308.97537 | V26: ='1.Dados_cont_historicos'!V26*(1+VLOOKUP('1.Dados_cont_historicos'!V$4,'3.Índices_inflação'!$A$2:$BA$105,$CL26,FALSE)) -> 100103.9992 | W26: ='1.Dados_cont_historicos'!W26*(1+VLOOKUP('1.Dados_cont_historicos'!W$4,'3.Índices_inflação'!$A$2:$BA$105,$CL26,FALSE)) -> 123646.8022 | X26: ='1.Dados_cont_historicos'!X26*(1+VLOOKUP('1.Dados_cont_historicos'!X$4,'3.Índices_inflação'!$A$2:$BA$105,$CL26,FALSE)) -> 108132.8844 | Y26: ='1.Dados_cont_historicos'!Y26*(1+VLOOKUP('1.Dados_cont_historicos'!Y$4,'3.Índices_inflação'!$A$2:$BA$105,$CL26,FALSE)) -> 100345.8085 | Z26: ='1.Dados_cont_historicos'!Z26*(1+VLOOKUP('1.Dados_cont_historicos'!Z$4,'3.Índices_inflação'!$A$2:$BA$105,$CL26,FALSE)) -> 140449.478 | AA26: ='1.Dados_cont_historicos'!AA26*(1+VLOOKUP('1.Dados_cont_historicos'!AA$4,'3.Índices_inflação'!$A$2:$BA$105,$CL26,FALSE)) -> 299729.7201 | AB26: ='1.Dados_cont_historicos'!AB26*(1+VLOOKUP('1.Dados_cont_historicos'!AB$4,'3.Índices_inflação'!$A$2:$BA$105,$CL26,FALSE)) -> 143486.0235 | AC26: 1509788.154 | AD26: ='1.Dados_cont_historicos'!AD26*(1+VLOOKUP('1.Dados_cont_historicos'!AD$4,'3.Índices_inflação'!$A$2:$BA$105,$CL26,FALSE)) -> 139444.8075 | AE26: ='1.Dados_cont_historicos'!AE26*(1+VLOOKUP('1.Dados_cont_historicos'!AE$4,'3.Índices_inflação'!$A$2:$BA$105,$CL26,FALSE)) -> 145234.2149 | AF26: ='1.Dados_cont_historicos'!AF26*(1+VLOOKUP('1.Dados_cont_historicos'!AF$4,'3.Índices_inflação'!$A$2:$BA$105,$CL26,FALSE)) -> 147148.2729 | AG26: ='1.Dados_cont_historicos'!AG26*(1+VLOOKUP('1.Dados_cont_historicos'!AG$4,'3.Índices_inflação'!$A$2:$BA$105,$CL26,FALSE)) -> 153663.8327 | AH26: ='1.Dados_cont_historicos'!AH26*(1+VLOOKUP('1.Dados_cont_historicos'!AH$4,'3.Índices_inflação'!$A$2:$BA$105,$CL26,FALSE)) -> 153592.6729 | AI26: ='1.Dados_cont_historicos'!AI26*(1+VLOOKUP('1.Dados_cont_historicos'!AI$4,'3.Índices_inflação'!$A$2:$BA$105,$CL26,FALSE)) -> 171101.7345 | AJ26: ='1.Dados_cont_historicos'!AJ26*(1+VLOOKUP('1.Dados_cont_historicos'!AJ$4,'3.Índices_inflação'!$A$2:$BA$105,$CL26,FALSE)) -> 157610.1501 | AK26: ='1.Dados_cont_historicos'!AK26*(1+VLOOKUP('1.Dados_cont_historicos'!AK$4,'3.Índices_inflação'!$A$2:$BA$105,$CL26,FALSE)) -> 156075.2354 | AL26: ='1.Dados_cont_historicos'!AL26*(1+VLOOKUP('1.Dados_cont_historicos'!AL$4,'3.Índices_inflação'!$A$2:$BA$105,$CL26,FALSE)) -> 149163.1048 | AM26: ='1.Dados_cont_historicos'!AM26*(1+VLOOKUP('1.Dados_cont_historicos'!AM$4,'3.Índices_inflação'!$A$2:$BA$105,$CL26,FALSE)) -> 160858.4276 | AN26: ='1.Dados_cont_historicos'!AN26*(1+VLOOKUP('1.Dados_cont_historicos'!AN$4,'3.Índices_inflação'!$A$2:$BA$105,$CL26,FALSE)) -> 152474.8899 | AO26: ='1.Dados_cont_historicos'!AO26*(1+VLOOKUP('1.Dados_cont_historicos'!AO$4,'3.Índices_inflação'!$A$2:$BA$105,$CL26,FALSE)) -> 153750.508 | AP26: 1840117.851 | AQ26: ='1.Dados_cont_historicos'!AQ26*(1+VLOOKUP('1.Dados_cont_historicos'!AQ$4,'3.Índices_inflação'!$A$2:$BA$105,$CL26,FALSE)) -> 158711.3726 | AR26: ='1.Dados_cont_historicos'!AR26*(1+VLOOKUP('1.Dados_cont_historicos'!AR$4,'3.Índices_inflação'!$A$2:$BA$105,$CL26,FALSE)) -> 153169.8377 | AS26: ='1.Dados_cont_historicos'!AS26*(1+VLOOKUP('1.Dados_cont_historicos'!AS$4,'3.Índices_inflação'!$A$2:$BA$105,$CL26,FALSE)) -> 145267.4567 | AT26: ='1.Dados_cont_historicos'!AT26*(1+VLOOKUP('1.Dados_cont_historicos'!AT$4,'3.Índices_inflação'!$A$2:$BA$105,$CL26,FALSE)) -> 154960.0012 | AU26: ='1.Dados_cont_historicos'!AU26*(1+VLOOKUP('1.Dados_cont_historicos'!AU$4,'3.Índices_inflação'!$A$2:$BA$105,$CL26,FALSE)) -> 157150.3625 | AV26: ='1.Dados_cont_historicos'!AV26*(1+VLOOKUP('1.Dados_cont_historicos'!AV$4,'3.Índices_inflação'!$A$2:$BA$105,$CL26,FALSE)) -> 149102.7995 | AW26: ='1.Dados_cont_historicos'!AW26*(1+VLOOKUP('1.Dados_cont_historicos'!AW$4,'3.Índices_inflação'!$A$2:$BA$105,$CL26,FALSE)) -> 155454.457 | AX26: ='1.Dados_cont_historicos'!AX26*(1+VLOOKUP('1.Dados_cont_historicos'!AX$4,'3.Índices_inflação'!$A$2:$BA$105,$CL26,FALSE)) -> 151749.0527 | AY26: ='1.Dados_cont_historicos'!AY26*(1+VLOOKUP('1.Dados_cont_historicos'!AY$4,'3.Índices_inflação'!$A$2:$BA$105,$CL26,FALSE)) -> 144319.9136 | AZ26: ='1.Dados_cont_historicos'!AZ26*(1+VLOOKUP('1.Dados_cont_historicos'!AZ$4,'3.Índices_inflação'!$A$2:$BA$105,$CL26,FALSE)) -> 153940.7377 | BA26: ='1.Dados_cont_historicos'!BA26*(1+VLOOKUP('1.Dados_cont_historicos'!BA$4,'3.Índices_inflação'!$A$2:$BA$105,$CL26,FALSE)) -> 152618.3749 | BB26: ='1.Dados_cont_historicos'!BB26*(1+VLOOKUP('1.Dados_cont_historicos'!BB$4,'3.Índices_inflação'!$A$2:$BA$105,$CL26,FALSE)) -> 157077.9461 | BC26: 1833522.312 | BD26: ='1.Dados_cont_historicos'!BD26*(1+VLOOKUP('1.Dados_cont_historicos'!BD$4,'3.Índices_inflação'!$A$2:$BA$105,$CL26,FALSE)) -> 158191.7723 | BE26: ='1.Dados_cont_historicos'!BE26*(1+VLOOKUP('1.Dados_cont_historicos'!BE$4,'3.Índices_inflação'!$A$2:$BA$105,$CL26,FALSE)) -> 153909.4721 | BF26: ='1.Dados_cont_historicos'!BF26*(1+VLOOKUP('1.Dados_cont_historicos'!BF$4,'3.Índices_inflação'!$A$2:$BA$105,$CL26,FALSE)) -> 160482.915 | BG26: ='1.Dados_cont_historicos'!BG26*(1+VLOOKUP('1.Dados_cont_historicos'!BG$4,'3.Índices_inflação'!$A$2:$BA$105,$CL26,FALSE)) -> 157217.5102 | BH26: ='1.Dados_cont_historicos'!BH26*(1+VLOOKUP('1.Dados_cont_historicos'!BH$4,'3.Índices_inflação'!$A$2:$BA$105,$CL26,FALSE)) -> 155535.7808 | BI26: ='1.Dados_cont_historicos'!BI26*(1+VLOOKUP('1.Dados_cont_historicos'!BI$4,'3.Índices_inflação'!$A$2:$BA$105,$CL26,FALSE)) -> 133580.7062 | BJ26: ='1.Dados_cont_historicos'!BJ26*(1+VLOOKUP('1.Dados_cont_historicos'!BJ$4,'3.Índices_inflação'!$A$2:$BA$105,$CL26,FALSE)) -> 107342.2251 | BK26: ='1.Dados_cont_historicos'!BK26*(1+VLOOKUP('1.Dados_cont_historicos'!BK$4,'3.Índices_inflação'!$A$2:$BA$120,$CL26,FALSE)) -> 148394.5351 | BL26: ='1.Dados_cont_historicos'!BL26*(1+VLOOKUP('1.Dados_cont_historicos'!BL$4,'3.Índices_inflação'!$A$2:$BA$120,$CL26,FALSE)) -> 131310.1451 | BM26: ='1.Dados_cont_historicos'!BM26*(1+VLOOKUP('1.Dados_cont_historicos'!BM$4,'3.Índices_inflação'!$A$2:$BA$120,$CL26,FALSE)) -> 147974.579 | BN26: ='1.Dados_cont_historicos'!BN26*(1+VLOOKUP('1.Dados_cont_historicos'!BN$4,'3.Índices_inflação'!$A$2:$BA$120,$CL26,FALSE)) -> 158944.8474 | BO26: ='1.Dados_cont_historicos'!BO26*(1+VLOOKUP('1.Dados_cont_historicos'!BO$4,'3.Índices_inflação'!$A$2:$BA$120,$CL26,FALSE)) -> 148413.9167 | BP26: 1761298.405 | BQ26: ='1.Dados_cont_historicos'!BQ26*(1+VLOOKUP('1.Dados_cont_historicos'!BQ$4,'3.Índices_inflação'!$A$2:$BA$120,$CL26,FALSE)) -> 144494.1332 | BR26: ='1.Dados_cont_historicos'!BR26*(1+VLOOKUP('1.Dados_cont_historicos'!BR$4,'3.Índices_inflação'!$A$2:$BA$120,$CL26,FALSE)) -> 145589.7861 | BS26: ='1.Dados_cont_historicos'!BS26*(1+VLOOKUP('1.Dados_cont_historicos'!BS$4,'3.Índices_inflação'!$A$2:$BA$120,$CL26,FALSE)) -> 159400.8395 | BT26: ='1.Dados_cont_historicos'!BT26*(1+VLOOKUP('1.Dados_cont_historicos'!BT$4,'3.Índices_inflação'!$A$2:$BA$120,$CL26,FALSE)) -> 155786.4285 | BU26: ='1.Dados_cont_historicos'!BU26*(1+VLOOKUP('1.Dados_cont_historicos'!BU$4,'3.Índices_inflação'!$A$2:$BA$120,$CL26,FALSE)) -> 155426.8692 | BV26: ='1.Dados_cont_historicos'!BV26*(1+VLOOKUP('1.Dados_cont_historicos'!BV$4,'3.Índices_inflação'!$A$2:$BA$120,$CL26,FALSE)) -> 133729.9387 | BW26: ='1.Dados_cont_historicos'!BW26*(1+VLOOKUP('1.Dados_cont_historicos'!BW$4,'3.Índices_inflação'!$A$2:$BA$120,$CL26,FALSE)) -> 107964.1094 | BZ26: 1146304.345 | CA26: 1509788.154 | CB26: 1840117.851 | CC26: 1833522.312 | CD26: 1761298.405 | CE26: 1197627.22 | CF26: 1859939.6 | CG26: 1846138.453 | CH26: 1785966.407 | CI26: 1737430.128 | CK26: IPCA | CL26: 28
A27: =C27='1.Dados_cont_historicos'!C27 -> TRUE | C27: Comunicação, Publicidade e Propaganda Legal | D27: ='1.Dados_cont_historicos'!D27*(1+VLOOKUP('1.Dados_cont_historicos'!D$4,'3.Índices_inflação'!$A$2:$BA$105,$CL27,FALSE)) -> 5770.985404 | E27: ='1.Dados_cont_historicos'!E27*(1+VLOOKUP('1.Dados_cont_historicos'!E$4,'3.Índices_inflação'!$A$2:$BA$105,$CL27,FALSE)) -> 310.4726874 | F27: ='1.Dados_cont_historicos'!F27*(1+VLOOKUP('1.Dados_cont_historicos'!F$4,'3.Índices_inflação'!$A$2:$BA$105,$CL27,FALSE)) -> 0 | G27: ='1.Dados_cont_historicos'!G27*(1+VLOOKUP('1.Dados_cont_historicos'!G$4,'3.Índices_inflação'!$A$2:$BA$105,$CL27,FALSE)) -> 0 | H27: ='1.Dados_cont_historicos'!H27*(1+VLOOKUP('1.Dados_cont_historicos'!H$4,'3.Índices_inflação'!$A$2:$BA$105,$CL27,FALSE)) -> 3.924179587 | I27: ='1.Dados_cont_historicos'!I27*(1+VLOOKUP('1.Dados_cont_historicos'!I$4,'3.Índices_inflação'!$A$2:$BA$105,$CL27,FALSE)) -> 2622.570215 | J27: ='1.Dados_cont_historicos'!J27*(1+VLOOKUP('1.Dados_cont_historicos'!J$4,'3.Índices_inflação'!$A$2:$BA$105,$CL27,FALSE)) -> 12691.7952 | K27: ='1.Dados_cont_historicos'!K27*(1+VLOOKUP('1.Dados_cont_historicos'!K$4,'3.Índices_inflação'!$A$2:$BA$105,$CL27,FALSE)) -> 333.3612243 | L27: ='1.Dados_cont_historicos'!L27*(1+VLOOKUP('1.Dados_cont_historicos'!L$4,'3.Índices_inflação'!$A$2:$BA$105,$CL27,FALSE)) -> 59.8247073 | M27: ='1.Dados_cont_historicos'!M27*(1+VLOOKUP('1.Dados_cont_historicos'!M$4,'3.Índices_inflação'!$A$2:$BA$105,$CL27,FALSE)) -> 0 | N27: ='1.Dados_cont_historicos'!N27*(1+VLOOKUP('1.Dados_cont_historicos'!N$4,'3.Índices_inflação'!$A$2:$BA$105,$CL27,FALSE)) -> 0 | O27: ='1.Dados_cont_historicos'!O27*(1+VLOOKUP('1.Dados_cont_historicos'!O$4,'3.Índices_inflação'!$A$2:$BA$105,$CL27,FALSE)) -> 0 | P27: 21792.93362 | Q27: ='1.Dados_cont_historicos'!Q27*(1+VLOOKUP('1.Dados_cont_historicos'!Q$4,'3.Índices_inflação'!$A$2:$BA$105,$CL27,FALSE)) -> 0 | R27: ='1.Dados_cont_historicos'!R27*(1+VLOOKUP('1.Dados_cont_historicos'!R$4,'3.Índices_inflação'!$A$2:$BA$105,$CL27,FALSE)) -> 6123.251134 | S27: ='1.Dados_cont_historicos'!S27*(1+VLOOKUP('1.Dados_cont_historicos'!S$4,'3.Índices_inflação'!$A$2:$BA$105,$CL27,FALSE)) -> 10661.20234 | T27: ='1.Dados_cont_historicos'!T27*(1+VLOOKUP('1.Dados_cont_historicos'!T$4,'3.Índices_inflação'!$A$2:$BA$105,$CL27,FALSE)) -> 407.4268086 | U27: ='1.Dados_cont_historicos'!U27*(1+VLOOKUP('1.Dados_cont_historicos'!U$4,'3.Índices_inflação'!$A$2:$BA$105,$CL27,FALSE)) -> 619.6996941 | V27: ='1.Dados_cont_historicos'!V27*(1+VLOOKUP('1.Dados_cont_historicos'!V$4,'3.Índices_inflação'!$A$2:$BA$105,$CL27,FALSE)) -> 789.8280542 | W27: ='1.Dados_cont_historicos'!W27*(1+VLOOKUP('1.Dados_cont_historicos'!W$4,'3.Índices_inflação'!$A$2:$BA$105,$CL27,FALSE)) -> 122.8263368 | X27: ='1.Dados_cont_historicos'!X27*(1+VLOOKUP('1.Dados_cont_historicos'!X$4,'3.Índices_inflação'!$A$2:$BA$105,$CL27,FALSE)) -> 1073.531016 | Y27: ='1.Dados_cont_historicos'!Y27*(1+VLOOKUP('1.Dados_cont_historicos'!Y$4,'3.Índices_inflação'!$A$2:$BA$105,$CL27,FALSE)) -> 63.63132153 | Z27: ='1.Dados_cont_historicos'!Z27*(1+VLOOKUP('1.Dados_cont_historicos'!Z$4,'3.Índices_inflação'!$A$2:$BA$105,$CL27,FALSE)) -> 1563.41011 | AA27: ='1.Dados_cont_historicos'!AA27*(1+VLOOKUP('1.Dados_cont_historicos'!AA$4,'3.Índices_inflação'!$A$2:$BA$105,$CL27,FALSE)) -> 1075.44568 | AB27: ='1.Dados_cont_historicos'!AB27*(1+VLOOKUP('1.Dados_cont_historicos'!AB$4,'3.Índices_inflação'!$A$2:$BA$105,$CL27,FALSE)) -> 554.0274264 | AC27: 23054.27992 | AD27: ='1.Dados_cont_historicos'!AD27*(1+VLOOKUP('1.Dados_cont_historicos'!AD$4,'3.Índices_inflação'!$A$2:$BA$105,$CL27,FALSE)) -> 263.4763009 | AE27: ='1.Dados_cont_historicos'!AE27*(1+VLOOKUP('1.Dados_cont_historicos'!AE$4,'3.Índices_inflação'!$A$2:$BA$105,$CL27,FALSE)) -> 419.7571258 | AF27: ='1.Dados_cont_historicos'!AF27*(1+VLOOKUP('1.Dados_cont_historicos'!AF$4,'3.Índices_inflação'!$A$2:$BA$105,$CL27,FALSE)) -> 12134.41815 | AG27: ='1.Dados_cont_historicos'!AG27*(1+VLOOKUP('1.Dados_cont_historicos'!AG$4,'3.Índices_inflação'!$A$2:$BA$105,$CL27,FALSE)) -> 828.5420759 | AH27: ='1.Dados_cont_historicos'!AH27*(1+VLOOKUP('1.Dados_cont_historicos'!AH$4,'3.Índices_inflação'!$A$2:$BA$105,$CL27,FALSE)) -> 517.166481 | AI27: ='1.Dados_cont_historicos'!AI27*(1+VLOOKUP('1.Dados_cont_historicos'!AI$4,'3.Índices_inflação'!$A$2:$BA$105,$CL27,FALSE)) -> 1292.786924 | AJ27: ='1.Dados_cont_historicos'!AJ27*(1+VLOOKUP('1.Dados_cont_historicos'!AJ$4,'3.Índices_inflação'!$A$2:$BA$105,$CL27,FALSE)) -> 0 | AK27: ='1.Dados_cont_historicos'!AK27*(1+VLOOKUP('1.Dados_cont_historicos'!AK$4,'3.Índices_inflação'!$A$2:$BA$105,$CL27,FALSE)) -> 0 | AL27: ='1.Dados_cont_historicos'!AL27*(1+VLOOKUP('1.Dados_cont_historicos'!AL$4,'3.Índices_inflação'!$A$2:$BA$105,$CL27,FALSE)) -> 0 | AM27: ='1.Dados_cont_historicos'!AM27*(1+VLOOKUP('1.Dados_cont_historicos'!AM$4,'3.Índices_inflação'!$A$2:$BA$105,$CL27,FALSE)) -> 4143.904694 | AN27: ='1.Dados_cont_historicos'!AN27*(1+VLOOKUP('1.Dados_cont_historicos'!AN$4,'3.Índices_inflação'!$A$2:$BA$105,$CL27,FALSE)) -> 717.7009842 | AO27: ='1.Dados_cont_historicos'!AO27*(1+VLOOKUP('1.Dados_cont_historicos'!AO$4,'3.Índices_inflação'!$A$2:$BA$105,$CL27,FALSE)) -> 658.8597412 | AP27: 20976.61248 | AQ27: ='1.Dados_cont_historicos'!AQ27*(1+VLOOKUP('1.Dados_cont_historicos'!AQ$4,'3.Índices_inflação'!$A$2:$BA$105,$CL27,FALSE)) -> 3009.658768 | AR27: ='1.Dados_cont_historicos'!AR27*(1+VLOOKUP('1.Dados_cont_historicos'!AR$4,'3.Índices_inflação'!$A$2:$BA$105,$CL27,FALSE)) -> 1463.026436 | AS27: ='1.Dados_cont_historicos'!AS27*(1+VLOOKUP('1.Dados_cont_historicos'!AS$4,'3.Índices_inflação'!$A$2:$BA$105,$CL27,FALSE)) -> 604.9667725 | AT27: ='1.Dados_cont_historicos'!AT27*(1+VLOOKUP('1.Dados_cont_historicos'!AT$4,'3.Índices_inflação'!$A$2:$BA$105,$CL27,FALSE)) -> 657.418668 | AU27: ='1.Dados_cont_historicos'!AU27*(1+VLOOKUP('1.Dados_cont_historicos'!AU$4,'3.Índices_inflação'!$A$2:$BA$105,$CL27,FALSE)) -> 456.872115 | AV27: ='1.Dados_cont_historicos'!AV27*(1+VLOOKUP('1.Dados_cont_historicos'!AV$4,'3.Índices_inflação'!$A$2:$BA$105,$CL27,FALSE)) -> 0 | AW27: ='1.Dados_cont_historicos'!AW27*(1+VLOOKUP('1.Dados_cont_historicos'!AW$4,'3.Índices_inflação'!$A$2:$BA$105,$CL27,FALSE)) -> 0 | AX27: ='1.Dados_cont_historicos'!AX27*(1+VLOOKUP('1.Dados_cont_historicos'!AX$4,'3.Índices_inflação'!$A$2:$BA$105,$CL27,FALSE)) -> 0 | AY27: ='1.Dados_cont_historicos'!AY27*(1+VLOOKUP('1.Dados_cont_historicos'!AY$4,'3.Índices_inflação'!$A$2:$BA$105,$CL27,FALSE)) -> 0 | AZ27: ='1.Dados_cont_historicos'!AZ27*(1+VLOOKUP('1.Dados_cont_historicos'!AZ$4,'3.Índices_inflação'!$A$2:$BA$105,$CL27,FALSE)) -> 0 | BA27: ='1.Dados_cont_historicos'!BA27*(1+VLOOKUP('1.Dados_cont_historicos'!BA$4,'3.Índices_inflação'!$A$2:$BA$105,$CL27,FALSE)) -> 0 | BB27: ='1.Dados_cont_historicos'!BB27*(1+VLOOKUP('1.Dados_cont_historicos'!BB$4,'3.Índices_inflação'!$A$2:$BA$105,$CL27,FALSE)) -> 0 | BC27: 6191.942759 | BD27: ='1.Dados_cont_historicos'!BD27*(1+VLOOKUP('1.Dados_cont_historicos'!BD$4,'3.Índices_inflação'!$A$2:$BA$105,$CL27,FALSE)) -> 0 | BE27: ='1.Dados_cont_historicos'!BE27*(1+VLOOKUP('1.Dados_cont_historicos'!BE$4,'3.Índices_inflação'!$A$2:$BA$105,$CL27,FALSE)) -> 623.4494867 | BF27: ='1.Dados_cont_historicos'!BF27*(1+VLOOKUP('1.Dados_cont_historicos'!BF$4,'3.Índices_inflação'!$A$2:$BA$105,$CL27,FALSE)) -> 0 | BG27: ='1.Dados_cont_historicos'!BG27*(1+VLOOKUP('1.Dados_cont_historicos'!BG$4,'3.Índices_inflação'!$A$2:$BA$105,$CL27,FALSE)) -> 41874.11879 | BH27: ='1.Dados_cont_historicos'!BH27*(1+VLOOKUP('1.Dados_cont_historicos'!BH$4,'3.Índices_inflação'!$A$2:$BA$105,$CL27,FALSE)) -> 0 | BI27: ='1.Dados_cont_historicos'!BI27*(1+VLOOKUP('1.Dados_cont_historicos'!BI$4,'3.Índices_inflação'!$A$2:$BA$105,$CL27,FALSE)) -> 140.1939334 | BJ27: ='1.Dados_cont_historicos'!BJ27*(1+VLOOKUP('1.Dados_cont_historicos'!BJ$4,'3.Índices_inflação'!$A$2:$BA$105,$CL27,FALSE)) -> 416.582607 | BK27: ='1.Dados_cont_historicos'!BK27*(1+VLOOKUP('1.Dados_cont_historicos'!BK$4,'3.Índices_inflação'!$A$2:$BA$120,$CL27,FALSE)) -> 550.6527967 | BL27: ='1.Dados_cont_historicos'!BL27*(1+VLOOKUP('1.Dados_cont_historicos'!BL$4,'3.Índices_inflação'!$A$2:$BA$120,$CL27,FALSE)) -> 317.5307744 | BM27: ='1.Dados_cont_historicos'!BM27*(1+VLOOKUP('1.Dados_cont_historicos'!BM$4,'3.Índices_inflação'!$A$2:$BA$120,$CL27,FALSE)) -> 268.8091212 | BN27: ='1.Dados_cont_historicos'!BN27*(1+VLOOKUP('1.Dados_cont_historicos'!BN$4,'3.Índices_inflação'!$A$2:$BA$120,$CL27,FALSE)) -> 266.2794663 | BO27: ='1.Dados_cont_historicos'!BO27*(1+VLOOKUP('1.Dados_cont_historicos'!BO$4,'3.Índices_inflação'!$A$2:$BA$120,$CL27,FALSE)) -> 220.2914278 | BP27: 44677.90841 | BQ27: ='1.Dados_cont_historicos'!BQ27*(1+VLOOKUP('1.Dados_cont_historicos'!BQ$4,'3.Índices_inflação'!$A$2:$BA$120,$CL27,FALSE)) -> 306.7515406 | BR27: ='1.Dados_cont_historicos'!BR27*(1+VLOOKUP('1.Dados_cont_historicos'!BR$4,'3.Índices_inflação'!$A$2:$BA$120,$CL27,FALSE)) -> 0 | BS27: ='1.Dados_cont_historicos'!BS27*(1+VLOOKUP('1.Dados_cont_historicos'!BS$4,'3.Índices_inflação'!$A$2:$BA$120,$CL27,FALSE)) -> 0 | BT27: ='1.Dados_cont_historicos'!BT27*(1+VLOOKUP('1.Dados_cont_historicos'!BT$4,'3.Índices_inflação'!$A$2:$BA$120,$CL27,FALSE)) -> 41492.95715 | BU27: ='1.Dados_cont_historicos'!BU27*(1+VLOOKUP('1.Dados_cont_historicos'!BU$4,'3.Índices_inflação'!$A$2:$BA$120,$CL27,FALSE)) -> 0 | BV27: ='1.Dados_cont_historicos'!BV27*(1+VLOOKUP('1.Dados_cont_historicos'!BV$4,'3.Índices_inflação'!$A$2:$BA$120,$CL27,FALSE)) -> 140.350554 | BW27: ='1.Dados_cont_historicos'!BW27*(1+VLOOKUP('1.Dados_cont_historicos'!BW$4,'3.Índices_inflação'!$A$2:$BA$120,$CL27,FALSE)) -> 418.9960674 | BZ27: 21792.93362 | CA27: 23054.27992 | CB27: 20976.61248 | CC27: 6191.942759 | CD27: 44677.90841 | CE27: 19117.4203 | CF27: 19786.19261 | CG27: 11712.40818 | CH27: 43054.34482 | CI27: 43982.6189 | CK27: IPCA | CL27: 28
A28: =C28='1.Dados_cont_historicos'!C28 -> TRUE | C28: Convênios | D28: ='1.Dados_cont_historicos'!D28*(1+VLOOKUP('1.Dados_cont_historicos'!D$4,'3.Índices_inflação'!$A$2:$BA$105,$CL28,FALSE)) -> 0 | E28: ='1.Dados_cont_historicos'!E28*(1+VLOOKUP('1.Dados_cont_historicos'!E$4,'3.Índices_inflação'!$A$2:$BA$105,$CL28,FALSE)) -> 0 | F28: ='1.Dados_cont_historicos'!F28*(1+VLOOKUP('1.Dados_cont_historicos'!F$4,'3.Índices_inflação'!$A$2:$BA$105,$CL28,FALSE)) -> 0 | G28: ='1.Dados_cont_historicos'!G28*(1+VLOOKUP('1.Dados_cont_historicos'!G$4,'3.Índices_inflação'!$A$2:$BA$105,$CL28,FALSE)) -> 0 | H28: ='1.Dados_cont_historicos'!H28*(1+VLOOKUP('1.Dados_cont_historicos'!H$4,'3.Índices_inflação'!$A$2:$BA$105,$CL28,FALSE)) -> 0 | I28: ='1.Dados_cont_historicos'!I28*(1+VLOOKUP('1.Dados_cont_historicos'!I$4,'3.Índices_inflação'!$A$2:$BA$105,$CL28,FALSE)) -> 0 | J28: ='1.Dados_cont_historicos'!J28*(1+VLOOKUP('1.Dados_cont_historicos'!J$4,'3.Índices_inflação'!$A$2:$BA$105,$CL28,FALSE)) -> 0 | K28: ='1.Dados_cont_historicos'!K28*(1+VLOOKUP('1.Dados_cont_historicos'!K$4,'3.Índices_inflação'!$A$2:$BA$105,$CL28,FALSE)) -> 0 | L28: ='1.Dados_cont_historicos'!L28*(1+VLOOKUP('1.Dados_cont_historicos'!L$4,'3.Índices_inflação'!$A$2:$BA$105,$CL28,FALSE)) -> 0 | M28: ='1.Dados_cont_historicos'!M28*(1+VLOOKUP('1.Dados_cont_historicos'!M$4,'3.Índices_inflação'!$A$2:$BA$105,$CL28,FALSE)) -> 0 | N28: ='1.Dados_cont_historicos'!N28*(1+VLOOKUP('1.Dados_cont_historicos'!N$4,'3.Índices_inflação'!$A$2:$BA$105,$CL28,FALSE)) -> 0 | O28: ='1.Dados_cont_historicos'!O28*(1+VLOOKUP('1.Dados_cont_historicos'!O$4,'3.Índices_inflação'!$A$2:$BA$105,$CL28,FALSE)) -> 0 | P28: 0 | Q28: ='1.Dados_cont_historicos'!Q28*(1+VLOOKUP('1.Dados_cont_historicos'!Q$4,'3.Índices_inflação'!$A$2:$BA$105,$CL28,FALSE)) -> 0 | R28: ='1.Dados_cont_historicos'!R28*(1+VLOOKUP('1.Dados_cont_historicos'!R$4,'3.Índices_inflação'!$A$2:$BA$105,$CL28,FALSE)) -> 0 | S28: ='1.Dados_cont_historicos'!S28*(1+VLOOKUP('1.Dados_cont_historicos'!S$4,'3.Índices_inflação'!$A$2:$BA$105,$CL28,FALSE)) -> 0 | T28: ='1.Dados_cont_historicos'!T28*(1+VLOOKUP('1.Dados_cont_historicos'!T$4,'3.Índices_inflação'!$A$2:$BA$105,$CL28,FALSE)) -> 0 | U28: ='1.Dados_cont_historicos'!U28*(1+VLOOKUP('1.Dados_cont_historicos'!U$4,'3.Índices_inflação'!$A$2:$BA$105,$CL28,FALSE)) -> 0 | V28: ='1.Dados_cont_historicos'!V28*(1+VLOOKUP('1.Dados_cont_historicos'!V$4,'3.Índices_inflação'!$A$2:$BA$105,$CL28,FALSE)) -> 0 | W28: ='1.Dados_cont_historicos'!W28*(1+VLOOKUP('1.Dados_cont_historicos'!W$4,'3.Índices_inflação'!$A$2:$BA$105,$CL28,FALSE)) -> 0 | X28: ='1.Dados_cont_historicos'!X28*(1+VLOOKUP('1.Dados_cont_historicos'!X$4,'3.Índices_inflação'!$A$2:$BA$105,$CL28,FALSE)) -> 0 | Y28: ='1.Dados_cont_historicos'!Y28*(1+VLOOKUP('1.Dados_cont_historicos'!Y$4,'3.Índices_inflação'!$A$2:$BA$105,$CL28,FALSE)) -> 0 | Z28: ='1.Dados_cont_historicos'!Z28*(1+VLOOKUP('1.Dados_cont_historicos'!Z$4,'3.Índices_inflação'!$A$2:$BA$105,$CL28,FALSE)) -> 0 | AA28: ='1.Dados_cont_historicos'!AA28*(1+VLOOKUP('1.Dados_cont_historicos'!AA$4,'3.Índices_inflação'!$A$2:$BA$105,$CL28,FALSE)) -> 0 | AB28: ='1.Dados_cont_historicos'!AB28*(1+VLOOKUP('1.Dados_cont_historicos'!AB$4,'3.Índices_inflação'!$A$2:$BA$105,$CL28,FALSE)) -> 0 | AC28: 0 | AD28: ='1.Dados_cont_historicos'!AD28*(1+VLOOKUP('1.Dados_cont_historicos'!AD$4,'3.Índices_inflação'!$A$2:$BA$105,$CL28,FALSE)) -> 0 | AE28: ='1.Dados_cont_historicos'!AE28*(1+VLOOKUP('1.Dados_cont_historicos'!AE$4,'3.Índices_inflação'!$A$2:$BA$105,$CL28,FALSE)) -> 0 | AF28: ='1.Dados_cont_historicos'!AF28*(1+VLOOKUP('1.Dados_cont_historicos'!AF$4,'3.Índices_inflação'!$A$2:$BA$105,$CL28,FALSE)) -> 234776.6673 | AG28: ='1.Dados_cont_historicos'!AG28*(1+VLOOKUP('1.Dados_cont_historicos'!AG$4,'3.Índices_inflação'!$A$2:$BA$105,$CL28,FALSE)) -> 0 | AH28: ='1.Dados_cont_historicos'!AH28*(1+VLOOKUP('1.Dados_cont_historicos'!AH$4,'3.Índices_inflação'!$A$2:$BA$105,$CL28,FALSE)) -> 0 | AI28: ='1.Dados_cont_historicos'!AI28*(1+VLOOKUP('1.Dados_cont_historicos'!AI$4,'3.Índices_inflação'!$A$2:$BA$105,$CL28,FALSE)) -> 0 | AJ28: ='1.Dados_cont_historicos'!AJ28*(1+VLOOKUP('1.Dados_cont_historicos'!AJ$4,'3.Índices_inflação'!$A$2:$BA$105,$CL28,FALSE)) -> 0 | AK28: ='1.Dados_cont_historicos'!AK28*(1+VLOOKUP('1.Dados_cont_historicos'!AK$4,'3.Índices_inflação'!$A$2:$BA$105,$CL28,FALSE)) -> 0 | AL28: ='1.Dados_cont_historicos'!AL28*(1+VLOOKUP('1.Dados_cont_historicos'!AL$4,'3.Índices_inflação'!$A$2:$BA$105,$CL28,FALSE)) -> 0 | AM28: ='1.Dados_cont_historicos'!AM28*(1+VLOOKUP('1.Dados_cont_historicos'!AM$4,'3.Índices_inflação'!$A$2:$BA$105,$CL28,FALSE)) -> 0 | AN28: ='1.Dados_cont_historicos'!AN28*(1+VLOOKUP('1.Dados_cont_historicos'!AN$4,'3.Índices_inflação'!$A$2:$BA$105,$CL28,FALSE)) -> 0 | AO28: ='1.Dados_cont_historicos'!AO28*(1+VLOOKUP('1.Dados_cont_historicos'!AO$4,'3.Índices_inflação'!$A$2:$BA$105,$CL28,FALSE)) -> 0 | AP28: 234776.6673 | AQ28: ='1.Dados_cont_historicos'!AQ28*(1+VLOOKUP('1.Dados_cont_historicos'!AQ$4,'3.Índices_inflação'!$A$2:$BA$105,$CL28,FALSE)) -> 0 | AR28: ='1.Dados_cont_historicos'!AR28*(1+VLOOKUP('1.Dados_cont_historicos'!AR$4,'3.Índices_inflação'!$A$2:$BA$105,$CL28,FALSE)) -> 0 | AS28: ='1.Dados_cont_historicos'!AS28*(1+VLOOKUP('1.Dados_cont_historicos'!AS$4,'3.Índices_inflação'!$A$2:$BA$105,$CL28,FALSE)) -> 0 | AT28: ='1.Dados_cont_historicos'!AT28*(1+VLOOKUP('1.Dados_cont_historicos'!AT$4,'3.Índices_inflação'!$A$2:$BA$105,$CL28,FALSE)) -> 0 | AU28: ='1.Dados_cont_historicos'!AU28*(1+VLOOKUP('1.Dados_cont_historicos'!AU$4,'3.Índices_inflação'!$A$2:$BA$105,$CL28,FALSE)) -> 0 | AV28: ='1.Dados_cont_historicos'!AV28*(1+VLOOKUP('1.Dados_cont_historicos'!AV$4,'3.Índices_inflação'!$A$2:$BA$105,$CL28,FALSE)) -> 0 | AW28: ='1.Dados_cont_historicos'!AW28*(1+VLOOKUP('1.Dados_cont_historicos'!AW$4,'3.Índices_inflação'!$A$2:$BA$105,$CL28,FALSE)) -> 0 | AX28: ='1.Dados_cont_historicos'!AX28*(1+VLOOKUP('1.Dados_cont_historicos'!AX$4,'3.Índices_inflação'!$A$2:$BA$105,$CL28,FALSE)) -> 0 | AY28: ='1.Dados_cont_historicos'!AY28*(1+VLOOKUP('1.Dados_cont_historicos'!AY$4,'3.Índices_inflação'!$A$2:$BA$105,$CL28,FALSE)) -> 0 | AZ28: ='1.Dados_cont_historicos'!AZ28*(1+VLOOKUP('1.Dados_cont_historicos'!AZ$4,'3.Índices_inflação'!$A$2:$BA$105,$CL28,FALSE)) -> 0 | BA28: ='1.Dados_cont_historicos'!BA28*(1+VLOOKUP('1.Dados_cont_historicos'!BA$4,'3.Índices_inflação'!$A$2:$BA$105,$CL28,FALSE)) -> 0 | BB28: ='1.Dados_cont_historicos'!BB28*(1+VLOOKUP('1.Dados_cont_historicos'!BB$4,'3.Índices_inflação'!$A$2:$BA$105,$CL28,FALSE)) -> 0 | BC28: 0 | BD28: ='1.Dados_cont_historicos'!BD28*(1+VLOOKUP('1.Dados_cont_historicos'!BD$4,'3.Índices_inflação'!$A$2:$BA$105,$CL28,FALSE)) -> 0 | BE28: ='1.Dados_cont_historicos'!BE28*(1+VLOOKUP('1.Dados_cont_historicos'!BE$4,'3.Índices_inflação'!$A$2:$BA$105,$CL28,FALSE)) -> 0 | BF28: ='1.Dados_cont_historicos'!BF28*(1+VLOOKUP('1.Dados_cont_historicos'!BF$4,'3.Índices_inflação'!$A$2:$BA$105,$CL28,FALSE)) -> 0 | BG28: ='1.Dados_cont_historicos'!BG28*(1+VLOOKUP('1.Dados_cont_historicos'!BG$4,'3.Índices_inflação'!$A$2:$BA$105,$CL28,FALSE)) -> 0 | BH28: ='1.Dados_cont_historicos'!BH28*(1+VLOOKUP('1.Dados_cont_historicos'!BH$4,'3.Índices_inflação'!$A$2:$BA$105,$CL28,FALSE)) -> 0 | BI28: ='1.Dados_cont_historicos'!BI28*(1+VLOOKUP('1.Dados_cont_historicos'!BI$4,'3.Índices_inflação'!$A$2:$BA$105,$CL28,FALSE)) -> 0 | BJ28: ='1.Dados_cont_historicos'!BJ28*(1+VLOOKUP('1.Dados_cont_historicos'!BJ$4,'3.Índices_inflação'!$A$2:$BA$105,$CL28,FALSE)) -> 0 | BK28: ='1.Dados_cont_historicos'!BK28*(1+VLOOKUP('1.Dados_cont_historicos'!BK$4,'3.Índices_inflação'!$A$2:$BA$120,$CL28,FALSE)) -> 0 | BL28: ='1.Dados_cont_historicos'!BL28*(1+VLOOKUP('1.Dados_cont_historicos'!BL$4,'3.Índices_inflação'!$A$2:$BA$120,$CL28,FALSE)) -> 0 | BM28: ='1.Dados_cont_historicos'!BM28*(1+VLOOKUP('1.Dados_cont_historicos'!BM$4,'3.Índices_inflação'!$A$2:$BA$120,$CL28,FALSE)) -> 0 | BN28: ='1.Dados_cont_historicos'!BN28*(1+VLOOKUP('1.Dados_cont_historicos'!BN$4,'3.Índices_inflação'!$A$2:$BA$120,$CL28,FALSE)) -> 0 | BO28: ='1.Dados_cont_historicos'!BO28*(1+VLOOKUP('1.Dados_cont_historicos'!BO$4,'3.Índices_inflação'!$A$2:$BA$120,$CL28,FALSE)) -> 0 | BP28: 0 | BQ28: ='1.Dados_cont_historicos'!BQ28*(1+VLOOKUP('1.Dados_cont_historicos'!BQ$4,'3.Índices_inflação'!$A$2:$BA$120,$CL28,FALSE)) -> 0 | BR28: ='1.Dados_cont_historicos'!BR28*(1+VLOOKUP('1.Dados_cont_historicos'!BR$4,'3.Índices_inflação'!$A$2:$BA$120,$CL28,FALSE)) -> 0 | BS28: ='1.Dados_cont_historicos'!BS28*(1+VLOOKUP('1.Dados_cont_historicos'!BS$4,'3.Índices_inflação'!$A$2:$BA$120,$CL28,FALSE)) -> 0 | BT28: ='1.Dados_cont_historicos'!BT28*(1+VLOOKUP('1.Dados_cont_historicos'!BT$4,'3.Índices_inflação'!$A$2:$BA$120,$CL28,FALSE)) -> 0 | BU28: ='1.Dados_cont_historicos'!BU28*(1+VLOOKUP('1.Dados_cont_historicos'!BU$4,'3.Índices_inflação'!$A$2:$BA$120,$CL28,FALSE)) -> 0 | BV28: ='1.Dados_cont_historicos'!BV28*(1+VLOOKUP('1.Dados_cont_historicos'!BV$4,'3.Índices_inflação'!$A$2:$BA$120,$CL28,FALSE)) -> 0 | BW28: ='1.Dados_cont_historicos'!BW28*(1+VLOOKUP('1.Dados_cont_historicos'!BW$4,'3.Índices_inflação'!$A$2:$BA$120,$CL28,FALSE)) -> 0 | BZ28: 0 | CA28: 0 | CB28: 234776.6673 | CC28: 0 | CD28: 0 | CE28: 0 | CF28: 234776.6673 | CG28: 0 | CH28: 0 | CI28: 0 | CK28: IPCA | CL28: 28
